Workbook

Sheet DO_HTRABAJO (hidden)
B1: Reporte de anticuamiento
B2: MOS - CPC Martín Cruz - 998401784
B5: FECHA EMISION | C5: CUENTA | D5: CLIENTE | E5: SECTORES | F5: DOCUMENTO | G5: FECHA VCTO | H5: MONEDA | I5: MON ORIG | J5: DOLARES | K5: SOLES | L5: DIAS | M5: CONCEPTO | N5: DIAS CAL | Y5: Moneda | Z5: Simbolo | AB5: Etiquetas de fila
B6: 2020-04-13 | C6: 121201 | D6: AGF VULCANO S.R.L. | E6: SECTOR CENTRO | F6: 0001-00066953 | G6: 2020-08-03 | H6: US | I6: 55,869.00 | J6: 55,869.00 | K6: 184,702.91 | L6: 76 | M6: POR COBRAR POR VENCER | N6: 90 DIAS | P6: =IF(COUNTIF(D$6:D6,D6)=1,P5+1,P5) -> 1 | Q6: =D6 -> AGF VULCANO S.R.L. | R6: SECTOR CENTRO | S6: =IF(ROWS(S$6:S6)<=MAX($P$6:$P$1000),ROWS(S$6:S6),"") -> 1 | T6: =IF(S6<>"",VLOOKUP(S6,$P$6:$R$1000,2,0),"") -> AGF VULCANO S.R.L. | U6: =IF(S6<>"",VLOOKUP(S6,$P$6:$R$1000,3,0),"") -> SECTOR CENTRO | V6: =COUNTIF($T$6:OFFSET($T$5,COUNT($S$6:$S$999),0),"<="&T6) -> 3 | Y6: Dólares | Z6: US | AB6: US
B7: 2019-11-18 | C7: 121201 | D7: ILOP S.A.C. | E7: SECTOR ESTE | F7: 0005-00014336 | G7: 2020-02-10 | H7: US | I7: 3,978.32 | J7: 3,978.32 | K7: 13,331.35 | L7: -99 | M7: POR COBRAR VENCIDOS | N7: > 90 DIAS | P7: =IF(COUNTIF(D$6:D7,D7)=1,P6+1,P6) -> 2 | Q7: ILOP S.A.C. | R7: SECTOR ESTE | S7: =IF(ROWS(S$6:S7)<=MAX($P$6:$P$1000),ROWS(S$6:S7),"") -> 2 | T7: =IF(S7<>"",VLOOKUP(S7,$P$6:$R$1000,2,0),"") -> ILOP S.A.C. | U7: =IF(S7<>"",VLOOKUP(S7,$P$6:$R$1000,3,0),"") -> SECTOR ESTE | V7: =COUNTIF($T$6:OFFSET($T$5,COUNT($S$6:$S$999),0),"<="&T7) -> 21 | Y7: Soles | Z7: MN
B8: 2020-01-20 | C8: 121202 | D8: QUISPE NINA AMERICO | E8: SECTOR ESTE | F8: 0005-00029241 | G8: 2020-05-25 | H8: MN | I8: 9,721.22 | J8: 2,870.16 | K8: 9,721.22 | L8: 6 | M8: POR COBRAR POR VENCER | N8: 15 DIAS | P8: =IF(COUNTIF(D$6:D8,D8)=1,P7+1,P7) -> 3 | Q8: QUISPE NINA AMERICO | R8: SECTOR ESTE | S8: =IF(ROWS(S$6:S8)<=MAX($P$6:$P$1000),ROWS(S$6:S8),"") -> 3 | T8: QUISPE NINA AMERICO | U8: SECTOR ESTE | V8: =COUNTIF($T$6:OFFSET($T$5,COUNT($S$6:$S$999),0),"<="&T8) -> 36
B9: 2020-05-18 | C9: 121201 | D9: GRUPO IMPORT EIRL | E9: SECTOR NORTE | F9: 0002-00094590 | G9: 2020-08-24 | H9: US | I9: 110,503.63 | J9: 110,503.63 | K9: 372,618.24 | L9: 97 | M9: POR COBRAR POR VENCER | N9: > 90 DIAS | P9: =IF(COUNTIF(D$6:D9,D9)=1,P8+1,P8) -> 4 | Q9: GRUPO IMPORT EIRL | R9: SECTOR NORTE | S9: =IF(ROWS(S$6:S9)<=MAX($P$6:$P$1000),ROWS(S$6:S9),"") -> 4 | T9: GRUPO IMPORT EIRL | U9: SECTOR NORTE | V9: =COUNTIF($T$6:OFFSET($T$5,COUNT($S$6:$S$999),0),"<="&T9) -> 20
B10: 2019-11-11 | C10: 121201 | D10: CAO JINGHUI | E10: SECTOR ESTE | F10: 0005-00026359 | G10: 2020-01-20 | H10: US | I10: 9,450.97 | J10: 9,450.97 | K10: 31,282.71 | L10: -120 | M10: POR COBRAR VENCIDOS | N10: > 90 DIAS | P10: =IF(COUNTIF(D$6:D10,D10)=1,P9+1,P9) -> 5 | Q10: CAO JINGHUI | R10: SECTOR ESTE | S10: =IF(ROWS(S$6:S10)<=MAX($P$6:$P$1000),ROWS(S$6:S10),"") -> 5 | T10: CAO JINGHUI | U10: SECTOR ESTE | V10: =COUNTIF($T$6:OFFSET($T$5,COUNT($S$6:$S$999),0),"<="&T10) -> 10
B11: 2019-09-02 | C11: 121201 | D11: PLASTIJHIM SRL | E11: SECTOR NORTE | F11: 0002-00005889 | G11: 2019-11-25 | H11: US | I11: 1,078.29 | J11: 1,078.29 | K11: 3,655.40 | L11: -176 | M11: POR COBRAR VENCIDOS | N11: > 90 DIAS | P11: =IF(COUNTIF(D$6:D11,D11)=1,P10+1,P10) -> 6 | Q11: PLASTIJHIM SRL | R11: SECTOR NORTE | S11: =IF(ROWS(S$6:S11)<=MAX($P$6:$P$1000),ROWS(S$6:S11),"") -> 6 | T11: PLASTIJHIM SRL | U11: SECTOR NORTE | V11: =COUNTIF($T$6:OFFSET($T$5,COUNT($S$6:$S$999),0),"<="&T11) -> 34
B12: 2020-02-17 | C12: 121202 | D12: SEGURINDUSTRIA SA | E12: SECTOR NORTE | F12: 0002-00076765 | G12: 2020-06-08 | H12: US | I12: 77,483.60 | J12: 77,483.60 | K12: 260,732.31 | L12: 20 | M12: POR COBRAR POR VENCER | N12: 30 DIAS | P12: =IF(COUNTIF(D$6:D12,D12)=1,P11+1,P11) -> 7 | Q12: SEGURINDUSTRIA SA | R12: SECTOR NORTE | S12: =IF(ROWS(S$6:S12)<=MAX($P$6:$P$1000),ROWS(S$6:S12),"") -> 7 | T12: SEGURINDUSTRIA SA | U12: SECTOR NORTE | V12: =COUNTIF($T$6:OFFSET($T$5,COUNT($S$6:$S$999),0),"<="&T12) -> 40
B13: 2020-03-09 | C13: 121201 | D13: A.C.D. S.R.L. | E13: SECTOR SUR | F13: 0003-00065086 | G13: 2020-04-20 | H13: US | I13: 143,331.65 | J13: 143,331.65 | K13: 482,454.33 | L13: -29 | M13: POR COBRAR VENCIDOS | N13: 30 DIAS | P13: =IF(COUNTIF(D$6:D13,D13)=1,P12+1,P12) -> 8 | Q13: A.C.D. S.R.L. | R13: SECTOR SUR | S13: =IF(ROWS(S$6:S13)<=MAX($P$6:$P$1000),ROWS(S$6:S13),"") -> 8 | T13: A.C.D. S.R.L. | U13: SECTOR SUR | V13: =COUNTIF($T$6:OFFSET($T$5,COUNT($S$6:$S$999),0),"<="&T13) -> 2
B14: 2019-12-16 | C14: 121202 | D14: J.D. PLASTIC S.A.C. | E14: SECTOR ESTE | F14: 0005-00034432 | G14: 2019-12-16 | H14: US | I14: 23,773.17 | J14: 23,773.17 | K14: 80,472.18 | L14: -155 | M14: POR COBRAR VENCIDOS | N14: > 90 DIAS | P14: =IF(COUNTIF(D$6:D14,D14)=1,P13+1,P13) -> 9 | Q14: J.D. PLASTIC S.A.C. | R14: SECTOR ESTE | S14: =IF(ROWS(S$6:S14)<=MAX($P$6:$P$1000),ROWS(S$6:S14),"") -> 9 | T14: J.D. PLASTIC S.A.C. | U14: SECTOR ESTE | V14: =COUNTIF($T$6:OFFSET($T$5,COUNT($S$6:$S$999),0),"<="&T14) -> 23
B15: 2020-04-13 | C15: 121202 | D15: ROBERCAR EIRL | E15: SECTOR OESTE | F15: 0004-00095282 | G15: 2020-06-22 | H15: US | I15: 56,988.92 | J15: 56,988.92 | K15: 190,513.96 | L15: 34 | M15: POR COBRAR POR VENCER | N15: 45 DIAS | P15: =IF(COUNTIF(D$6:D15,D15)=1,P14+1,P14) -> 10 | Q15: ROBERCAR EIRL | R15: SECTOR OESTE | S15: =IF(ROWS(S$6:S15)<=MAX($P$6:$P$1000),ROWS(S$6:S15),"") -> 10 | T15: ROBERCAR EIRL | U15: SECTOR OESTE | V15: =COUNTIF($T$6:OFFSET($T$5,COUNT($S$6:$S$999),0),"<="&T15) -> 37
B16: 2020-02-03 | C16: 121202 | D16: J.D. PLASTIC S.A.C. | E16: SECTOR ESTE | F16: 0005-00027432 | G16: 2020-05-25 | H16: US | I16: 9,156.17 | J16: 9,156.17 | K16: 30,471.73 | L16: 6 | M16: POR COBRAR POR VENCER | N16: 15 DIAS | P16: =IF(COUNTIF(D$6:D16,D16)=1,P15+1,P15) -> 10 | Q16: J.D. PLASTIC S.A.C. | R16: SECTOR ESTE | S16: =IF(ROWS(S$6:S16)<=MAX($P$6:$P$1000),ROWS(S$6:S16),"") -> 11 | T16: OTUSS S.A.C. | U16: SECTOR SUR | V16: =COUNTIF($T$6:OFFSET($T$5,COUNT($S$6:$S$999),0),"<="&T16) -> 32
B17: 2020-03-30 | C17: 121201 | D17: OTUSS S.A.C. | E17: SECTOR SUR | F17: 0003-00077988 | G17: 2020-03-30 | H17: US | I17: 86,551.31 | J17: 86,551.31 | K17: 286,831.04 | L17: -50 | M17: POR COBRAR VENCIDOS | N17: 60 DIAS | P17: =IF(COUNTIF(D$6:D17,D17)=1,P16+1,P16) -> 11 | Q17: OTUSS S.A.C. | R17: SECTOR SUR | S17: =IF(ROWS(S$6:S17)<=MAX($P$6:$P$1000),ROWS(S$6:S17),"") -> 12 | T17: WIBGUS S.A.C. | U17: SECTOR OESTE | V17: =COUNTIF($T$6:OFFSET($T$5,COUNT($S$6:$S$999),0),"<="&T17) -> 50
B18: 2020-03-23 | C18: 121201 | D18: WIBGUS S.A.C. | E18: SECTOR OESTE | F18: 0004-00062991 | G18: 2020-06-15 | H18: MN | I18: 53,851.30 | J18: 16,186.14 | K18: 53,851.30 | L18: 27 | M18: POR COBRAR POR VENCER | N18: 30 DIAS | P18: =IF(COUNTIF(D$6:D18,D18)=1,P17+1,P17) -> 12 | Q18: WIBGUS S.A.C. | R18: SECTOR OESTE | S18: =IF(ROWS(S$6:S18)<=MAX($P$6:$P$1000),ROWS(S$6:S18),"") -> 13 | T18: QUIMENSA EIRL | U18: SECTOR NORTE | V18: =COUNTIF($T$6:OFFSET($T$5,COUNT($S$6:$S$999),0),"<="&T18) -> 35
B19: 2020-02-24 | C19: 121201 | D19: QUIMENSA EIRL | E19: SECTOR NORTE | F19: 0002-00044780 | G19: 2020-02-24 | H19: US | I19: 25,630.63 | J19: 25,630.63 | K19: 86,093.29 | L19: -85 | M19: POR COBRAR VENCIDOS | N19: 90 DIAS | P19: =IF(COUNTIF(D$6:D19,D19)=1,P18+1,P18) -> 13 | Q19: QUIMENSA EIRL | R19: SECTOR NORTE | S19: =IF(ROWS(S$6:S19)<=MAX($P$6:$P$1000),ROWS(S$6:S19),"") -> 14 | T19: PENTAGRAF S.A.C. | U19: SECTOR SUR | V19: =COUNTIF($T$6:OFFSET($T$5,COUNT($S$6:$S$999),0),"<="&T19) -> 33
B20: 2020-05-04 | C20: 121201 | D20: PENTAGRAF S.A.C. | E20: SECTOR SUR | F20: 0003-00069319 | G20: 2020-08-24 | H20: US | I20: 121,575.07 | J20: 121,575.07 | K20: 410,315.86 | L20: 97 | M20: POR COBRAR POR VENCER | N20: > 90 DIAS | P20: =IF(COUNTIF(D$6:D20,D20)=1,P19+1,P19) -> 14 | Q20: PENTAGRAF S.A.C. | R20: SECTOR SUR | S20: =IF(ROWS(S$6:S20)<=MAX($P$6:$P$1000),ROWS(S$6:S20),"") -> 15 | T20: 3E SERVICIOS S.A.C. | U20: SECTOR NORTE | V20: =COUNTIF($T$6:OFFSET($T$5,COUNT($S$6:$S$999),0),"<="&T20) -> 1
B21: 2020-04-06 | C21: 121202 | D21: AGF VULCANO S.R.L. | E21: SECTOR OESTE | F21: 0004-00053884 | G21: 2020-06-15 | H21: MN | I21: 25,127.38 | J21: 7,552.56 | K21: 25,127.38 | L21: 27 | M21: POR COBRAR POR VENCER | N21: 30 DIAS | P21: =IF(COUNTIF(D$6:D21,D21)=1,P20+1,P20) -> 14 | Q21: AGF VULCANO S.R.L. | R21: SECTOR OESTE | S21: =IF(ROWS(S$6:S21)<=MAX($P$6:$P$1000),ROWS(S$6:S21),"") -> 16 | T21: CALIGAS S.R.L. | U21: SECTOR OESTE | V21: =COUNTIF($T$6:OFFSET($T$5,COUNT($S$6:$S$999),0),"<="&T21) -> 9
B22: 2019-12-02 | C22: 121201 | D22: 3E SERVICIOS S.A.C. | E22: SECTOR NORTE | F22: 0002-00032972 | G22: 2020-02-10 | H22: MN | I22: 24,800.42 | J22: 7,497.10 | K22: 24,800.42 | L22: -99 | M22: POR COBRAR VENCIDOS | N22: > 90 DIAS | P22: =IF(COUNTIF(D$6:D22,D22)=1,P21+1,P21) -> 15 | Q22: 3E SERVICIOS S.A.C. | R22: SECTOR NORTE | S22: =IF(ROWS(S$6:S22)<=MAX($P$6:$P$1000),ROWS(S$6:S22),"") -> 17 | T22: OMNITEC S.R.L. | U22: SECTOR OESTE | V22: =COUNTIF($T$6:OFFSET($T$5,COUNT($S$6:$S$999),0),"<="&T22) -> 31
B23: 2020-04-20 | C23: 121201 | D23: CALIGAS S.R.L. | E23: SECTOR OESTE | F23: 0004-00071756 | G23: 2020-07-13 | H23: MN | I23: 118,378.26 | J23: 34,961.09 | K23: 118,378.26 | L23: 55 | M23: POR COBRAR POR VENCER | N23: 60 DIAS | P23: =IF(COUNTIF(D$6:D23,D23)=1,P22+1,P22) -> 16 | Q23: CALIGAS S.R.L. | R23: SECTOR OESTE | S23: =IF(ROWS(S$6:S23)<=MAX($P$6:$P$1000),ROWS(S$6:S23),"") -> 18 | T23: RV CONSULTORES SAC | U23: SECTOR ESTE | V23: =COUNTIF($T$6:OFFSET($T$5,COUNT($S$6:$S$999),0),"<="&T23) -> 38
B24: 2020-05-11 | C24: 121201 | D24: OMNITEC S.R.L. | E24: SECTOR OESTE | F24: 0004-00062498 | G24: 2020-08-17 | H24: US | I24: 88,928.46 | J24: 88,928.46 | K24: 301,111.77 | L24: 90 | M24: POR COBRAR POR VENCER | N24: 90 DIAS | P24: =IF(COUNTIF(D$6:D24,D24)=1,P23+1,P23) -> 17 | Q24: OMNITEC S.R.L. | R24: SECTOR OESTE | S24: =IF(ROWS(S$6:S24)<=MAX($P$6:$P$1000),ROWS(S$6:S24),"") -> 19 | T24: CONDORCO S.R.L. | U24: SECTOR ESTE | V24: =COUNTIF($T$6:OFFSET($T$5,COUNT($S$6:$S$999),0),"<="&T24) -> 13
B25: 2019-10-14 | C25: 121202 | D25: PLASTIJHIM SRL | E25: SECTOR SUR | F25: 0003-00005996 | G25: 2020-02-17 | H25: US | I25: 6,511.61 | J25: 6,511.61 | K25: 21,957.15 | L25: -92 | M25: POR COBRAR VENCIDOS | N25: > 90 DIAS | P25: =IF(COUNTIF(D$6:D25,D25)=1,P24+1,P24) -> 17 | Q25: PLASTIJHIM SRL | R25: SECTOR SUR | S25: =IF(ROWS(S$6:S25)<=MAX($P$6:$P$1000),ROWS(S$6:S25),"") -> 20 | T25: VICKO Y CO S.A. | U25: SECTOR ESTE | V25: =COUNTIF($T$6:OFFSET($T$5,COUNT($S$6:$S$999),0),"<="&T25) -> 48
B26: 2020-05-25 | C26: 121202 | D26: RV CONSULTORES SAC | E26: SECTOR ESTE | F26: 0005-00058159 | G26: 2020-09-14 | H26: MN | I26: 23,546.61 | J26: 7,075.30 | K26: 23,546.61 | L26: 118 | M26: POR COBRAR POR VENCER | N26: > 90 DIAS | P26: =IF(COUNTIF(D$6:D26,D26)=1,P25+1,P25) -> 18 | Q26: RV CONSULTORES SAC | R26: SECTOR ESTE | S26: =IF(ROWS(S$6:S26)<=MAX($P$6:$P$1000),ROWS(S$6:S26),"") -> 21 | T26: DR GAS S.A.C. | U26: SECTOR OESTE | V26: =COUNTIF($T$6:OFFSET($T$5,COUNT($S$6:$S$999),0),"<="&T26) -> 16
B27: 2020-04-27 | C27: 121202 | D27: CONDORCO S.R.L. | E27: SECTOR ESTE | F27: 0005-00083091 | G27: 2020-06-22 | H27: MN | I27: 112,995.75 | J27: 33,332.08 | K27: 112,995.75 | L27: 34 | M27: POR COBRAR POR VENCER | N27: 45 DIAS | P27: =IF(COUNTIF(D$6:D27,D27)=1,P26+1,P26) -> 19 | Q27: CONDORCO S.R.L. | R27: SECTOR ESTE | S27: =IF(ROWS(S$6:S27)<=MAX($P$6:$P$1000),ROWS(S$6:S27),"") -> 22 | T27: CYPRESS PERU S.A.C. | U27: SECTOR OESTE | V27: =COUNTIF($T$6:OFFSET($T$5,COUNT($S$6:$S$999),0),"<="&T27) -> 14
B28: 2020-03-30 | C28: 121202 | D28: VICKO Y CO S.A. | E28: SECTOR ESTE | F28: 0005-00063540 | G28: 2020-08-03 | H28: MN | I28: 112,795.31 | J28: 34,005.22 | K28: 112,795.31 | L28: 76 | M28: POR COBRAR POR VENCER | N28: 90 DIAS | P28: =IF(COUNTIF(D$6:D28,D28)=1,P27+1,P27) -> 20 | Q28: VICKO Y CO S.A. | R28: SECTOR ESTE | S28: =IF(ROWS(S$6:S28)<=MAX($P$6:$P$1000),ROWS(S$6:S28),"") -> 23 | T28: ARPE EIRL | U28: SECTOR OESTE | V28: =COUNTIF($T$6:OFFSET($T$5,COUNT($S$6:$S$999),0),"<="&T28) -> 6
B29: 2020-05-04 | C29: 121201 | D29: AGF VULCANO S.R.L. | E29: SECTOR ESTE | F29: 0005-00057478 | G29: 2020-06-29 | H29: US | I29: 28,058.25 | J29: 28,058.25 | K29: 93,939.02 | L29: 41 | M29: POR COBRAR POR VENCER | N29: 45 DIAS | P29: =IF(COUNTIF(D$6:D29,D29)=1,P28+1,P28) -> 20 | Q29: AGF VULCANO S.R.L. | R29: SECTOR ESTE | S29: =IF(ROWS(S$6:S29)<=MAX($P$6:$P$1000),ROWS(S$6:S29),"") -> 24 | T29: DIMACAR S.A.C. | U29: SECTOR ESTE | V29: =COUNTIF($T$6:OFFSET($T$5,COUNT($S$6:$S$999),0),"<="&T29) -> 15
B30: 2020-03-09 | C30: 121201 | D30: PENTAGRAF S.A.C. | E30: SECTOR SUR | F30: 0003-00059495 | G30: 2020-06-01 | H30: US | I30: 15,545.53 | J30: 15,545.53 | K30: 52,606.07 | L30: 13 | M30: POR COBRAR POR VENCER | N30: 15 DIAS | P30: =IF(COUNTIF(D$6:D30,D30)=1,P29+1,P29) -> 20 | Q30: PENTAGRAF S.A.C. | R30: SECTOR SUR | S30: =IF(ROWS(S$6:S30)<=MAX($P$6:$P$1000),ROWS(S$6:S30),"") -> 25 | T30: CINSA E.I.R.L | U30: SECTOR SUR | V30: =COUNTIF($T$6:OFFSET($T$5,COUNT($S$6:$S$999),0),"<="&T30) -> 12
B31: 2020-04-13 | C31: 121202 | D31: CALIGAS S.R.L. | E31: SECTOR SUR | F31: 0003-00072522 | G31: 2020-08-03 | H31: MN | I31: 110,583.27 | J31: 32,833.51 | K31: 110,583.27 | L31: 76 | M31: POR COBRAR POR VENCER | N31: 90 DIAS | P31: =IF(COUNTIF(D$6:D31,D31)=1,P30+1,P30) -> 20 | Q31: CALIGAS S.R.L. | R31: SECTOR SUR | S31: =IF(ROWS(S$6:S31)<=MAX($P$6:$P$1000),ROWS(S$6:S31),"") -> 26 | T31: ASTRIB S.A.C. | U31: SECTOR NORTE | V31: =COUNTIF($T$6:OFFSET($T$5,COUNT($S$6:$S$999),0),"<="&T31) -> 7
B32: 2020-02-03 | C32: 121202 | D32: DR GAS S.A.C. | E32: SECTOR OESTE | F32: 0004-00024806 | G32: 2020-03-02 | H32: US | I32: 1,440.74 | J32: 1,440.74 | K32: 4,897.08 | L32: -78 | M32: POR COBRAR VENCIDOS | N32: 90 DIAS | P32: =IF(COUNTIF(D$6:D32,D32)=1,P31+1,P31) -> 21 | Q32: DR GAS S.A.C. | R32: SECTOR OESTE | S32: =IF(ROWS(S$6:S32)<=MAX($P$6:$P$1000),ROWS(S$6:S32),"") -> 27 | T32: C. CHINININ S.A.C. | U32: SECTOR NORTE | V32: =COUNTIF($T$6:OFFSET($T$5,COUNT($S$6:$S$999),0),"<="&T32) -> 8
B33: 2019-09-09 | C33: 121202 | D33: PLASTIJHIM SRL | E33: SECTOR NORTE | F33: 0002-00008918 | G33: 2019-09-09 | H33: US | I33: 2,213.74 | J33: 2,213.74 | K33: 7,418.24 | L33: -253 | M33: POR COBRAR VENCIDOS | N33: > 90 DIAS | P33: =IF(COUNTIF(D$6:D33,D33)=1,P32+1,P32) -> 21 | Q33: PLASTIJHIM SRL | R33: SECTOR NORTE | S33: =IF(ROWS(S$6:S33)<=MAX($P$6:$P$1000),ROWS(S$6:S33),"") -> 28 | T33: INGEMEC PERU SAC | U33: SECTOR NORTE | V33: =COUNTIF($T$6:OFFSET($T$5,COUNT($S$6:$S$999),0),"<="&T33) -> 22
B34: 2019-09-09 | C34: 121202 | D34: PLASTIJHIM SRL | E34: SECTOR SUR | F34: 0003-00008599 | G34: 2019-09-23 | H34: US | I34: 2,869.79 | J34: 2,869.79 | K34: 9,671.19 | L34: -239 | M34: POR COBRAR VENCIDOS | N34: > 90 DIAS | P34: =IF(COUNTIF(D$6:D34,D34)=1,P33+1,P33) -> 21 | Q34: PLASTIJHIM SRL | R34: SECTOR SUR | S34: =IF(ROWS(S$6:S34)<=MAX($P$6:$P$1000),ROWS(S$6:S34),"") -> 29 | T34: LA BRETAÐA S.A.C. | U34: SECTOR NORTE | V34: =COUNTIF($T$6:OFFSET($T$5,COUNT($S$6:$S$999),0),"<="&T34) -> 27
B35: 2020-03-16 | C35: 121201 | D35: PENTAGRAF S.A.C. | E35: SECTOR ESTE | F35: 0005-00056150 | G35: 2020-06-08 | H35: MN | I35: 26,865.38 | J35: 8,043.53 | K35: 26,865.38 | L35: 20 | M35: POR COBRAR POR VENCER | N35: 30 DIAS | P35: =IF(COUNTIF(D$6:D35,D35)=1,P34+1,P34) -> 21 | Q35: PENTAGRAF S.A.C. | R35: SECTOR ESTE | S35: =IF(ROWS(S$6:S35)<=MAX($P$6:$P$1000),ROWS(S$6:S35),"") -> 30 | T35: CHINANGO S.A.C. | U35: SECTOR NORTE | V35: =COUNTIF($T$6:OFFSET($T$5,COUNT($S$6:$S$999),0),"<="&T35) -> 11
B36: 2020-05-04 | C36: 121202 | D36: CALIGAS S.R.L. | E36: SECTOR ESTE | F36: 0005-00079026 | G36: 2020-07-27 | H36: US | I36: 102,578.40 | J36: 102,578.40 | K36: 339,842.24 | L36: 69 | M36: POR COBRAR POR VENCER | N36: 75 DIAS | P36: =IF(COUNTIF(D$6:D36,D36)=1,P35+1,P35) -> 21 | Q36: CALIGAS S.R.L. | R36: SECTOR ESTE | S36: =IF(ROWS(S$6:S36)<=MAX($P$6:$P$1000),ROWS(S$6:S36),"") -> 31 | T36: KOZUMI PERU S.A. | U36: SECTOR OESTE | V36: =COUNTIF($T$6:OFFSET($T$5,COUNT($S$6:$S$999),0),"<="&T36) -> 25
B37: 2020-01-27 | C37: 121202 | D37: CYPRESS PERU S.A.C. | E37: SECTOR OESTE | F37: 0004-00026534 | G37: 2020-03-23 | H37: US | I37: 4,454.39 | J37: 4,454.39 | K37: 14,957.84 | L37: -57 | M37: POR COBRAR VENCIDOS | N37: 60 DIAS | P37: =IF(COUNTIF(D$6:D37,D37)=1,P36+1,P36) -> 22 | Q37: CYPRESS PERU S.A.C. | R37: SECTOR OESTE | S37: =IF(ROWS(S$6:S37)<=MAX($P$6:$P$1000),ROWS(S$6:S37),"") -> 32 | T37: LIDER GRAFICO SRL | U37: SECTOR ESTE | V37: =COUNTIF($T$6:OFFSET($T$5,COUNT($S$6:$S$999),0),"<="&T37) -> 30
B38: 2019-11-18 | C38: 121202 | D38: CAO JINGHUI | E38: SECTOR OESTE | F38: 0004-00039449 | G38: 2020-02-10 | H38: MN | I38: 24,805.15 | J38: 7,433.37 | K38: 24,805.15 | L38: -99 | M38: POR COBRAR VENCIDOS | N38: > 90 DIAS | P38: =IF(COUNTIF(D$6:D38,D38)=1,P37+1,P37) -> 22 | Q38: CAO JINGHUI | R38: SECTOR OESTE | S38: =IF(ROWS(S$6:S38)<=MAX($P$6:$P$1000),ROWS(S$6:S38),"") -> 33 | T38: =IF(S38<>"",VLOOKUP(S38,$P$6:$R$1000,2,0),"") -> LA GRANJITA E.I.R.L | U38: SECTOR ESTE | V38: =COUNTIF($T$6:OFFSET($T$5,COUNT($S$6:$S$999),0),"<="&T38) -> 28
B39: 2020-01-13 | C39: 121202 | D39: ARPE EIRL | E39: SECTOR OESTE | F39: 0004-00013036 | G39: 2020-04-20 | H39: US | I39: 12,515.81 | J39: 12,515.81 | K39: 42,178.28 | L39: -29 | M39: POR COBRAR VENCIDOS | N39: 30 DIAS | P39: =IF(COUNTIF(D$6:D39,D39)=1,P38+1,P38) -> 23 | Q39: ARPE EIRL | R39: SECTOR OESTE | S39: =IF(ROWS(S$6:S39)<=MAX($P$6:$P$1000),ROWS(S$6:S39),"") -> 34 | T39: TECNO COLOR S R L | U39: SECTOR SUR | V39: =COUNTIF($T$6:OFFSET($T$5,COUNT($S$6:$S$999),0),"<="&T39) -> 44
B40: 2020-03-02 | C40: 121201 | D40: DIMACAR S.A.C. | E40: SECTOR ESTE | F40: 0005-00072964 | G40: 2020-03-16 | H40: MN | I40: 126,080.00 | J40: 37,953.04 | K40: 126,080.00 | L40: -64 | M40: POR COBRAR VENCIDOS | N40: 75 DIAS | P40: =IF(COUNTIF(D$6:D40,D40)=1,P39+1,P39) -> 24 | Q40: DIMACAR S.A.C. | R40: SECTOR ESTE | S40: =IF(ROWS(S$6:S40)<=MAX($P$6:$P$1000),ROWS(S$6:S40),"") -> 35 | T40: TECNO LASER S.A.C. | U40: SECTOR NORTE | V40: =COUNTIF($T$6:OFFSET($T$5,COUNT($S$6:$S$999),0),"<="&T40) -> 45
B41: 2020-04-20 | C41: 121202 | D41: CINSA E.I.R.L | E41: SECTOR SUR | F41: 0003-00041735 | G41: 2020-07-27 | H41: US | I41: 17,661.69 | J41: 17,661.69 | K41: 59,025.37 | L41: 69 | M41: POR COBRAR POR VENCER | N41: 75 DIAS | P41: =IF(COUNTIF(D$6:D41,D41)=1,P40+1,P40) -> 25 | Q41: CINSA E.I.R.L | R41: SECTOR SUR | S41: =IF(ROWS(S$6:S41)<=MAX($P$6:$P$1000),ROWS(S$6:S41),"") -> 36 | T41: FIDUCIARIA GBC S.A. | U41: SECTOR NORTE | V41: =COUNTIF($T$6:OFFSET($T$5,COUNT($S$6:$S$999),0),"<="&T41) -> 18
B42: 2020-03-30 | C42: 121201 | D42: OMNITEC S.R.L. | E42: SECTOR ESTE | F42: 0005-00047342 | G42: 2020-06-08 | H42: MN | I42: 19,857.23 | J42: 5,880.14 | K42: 19,857.23 | L42: 20 | M42: POR COBRAR POR VENCER | N42: 30 DIAS | P42: =IF(COUNTIF(D$6:D42,D42)=1,P41+1,P41) -> 25 | Q42: OMNITEC S.R.L. | R42: SECTOR ESTE | S42: =IF(ROWS(S$6:S42)<=MAX($P$6:$P$1000),ROWS(S$6:S42),"") -> 37 | T42: L & C SERVIS EIRL | U42: SECTOR OESTE | V42: =COUNTIF($T$6:OFFSET($T$5,COUNT($S$6:$S$999),0),"<="&T42) -> 26
B43: 2019-10-07 | C43: 121202 | D43: ASTRIB S.A.C. | E43: SECTOR NORTE | F43: 0002-00002853 | G43: 2019-11-18 | H43: MN | I43: 1,760.71 | J43: 527.32 | K43: 1,760.71 | L43: -183 | M43: POR COBRAR VENCIDOS | N43: > 90 DIAS | P43: =IF(COUNTIF(D$6:D43,D43)=1,P42+1,P42) -> 26 | Q43: ASTRIB S.A.C. | R43: SECTOR NORTE | S43: =IF(ROWS(S$6:S43)<=MAX($P$6:$P$1000),ROWS(S$6:S43),"") -> 38 | T43: LARCO PETS EIRL | U43: SECTOR SUR | V43: =COUNTIF($T$6:OFFSET($T$5,COUNT($S$6:$S$999),0),"<="&T43) -> 29
B44: 2019-09-30 | C44: 121202 | D44: C. CHINININ S.A.C. | E44: SECTOR NORTE | F44: 0002-00002834 | G44: 2019-11-11 | H44: US | I44: 10,434.63 | J44: 10,434.63 | K44: 34,789.06 | L44: -190 | M44: POR COBRAR VENCIDOS | N44: > 90 DIAS | P44: =IF(COUNTIF(D$6:D44,D44)=1,P43+1,P43) -> 27 | Q44: C. CHINININ S.A.C. | R44: SECTOR NORTE | S44: =IF(ROWS(S$6:S44)<=MAX($P$6:$P$1000),ROWS(S$6:S44),"") -> 39 | T44: EL REPOSTERO SAC | U44: SECTOR NORTE | V44: =COUNTIF($T$6:OFFSET($T$5,COUNT($S$6:$S$999),0),"<="&T44) -> 17
B45: 2020-05-04 | C45: 121202 | D45: OTUSS S.A.C. | E45: SECTOR SUR | F45: 0003-00083351 | G45: 2020-09-07 | H45: MN | I45: 126,196.33 | J45: 37,160.29 | K45: 126,196.33 | L45: 111 | M45: POR COBRAR POR VENCER | N45: > 90 DIAS | P45: =IF(COUNTIF(D$6:D45,D45)=1,P44+1,P44) -> 27 | Q45: OTUSS S.A.C. | R45: SECTOR SUR | S45: =IF(ROWS(S$6:S45)<=MAX($P$6:$P$1000),ROWS(S$6:S45),"") -> 40 | T45: TROQPA SAC | U45: SECTOR OESTE | V45: =COUNTIF($T$6:OFFSET($T$5,COUNT($S$6:$S$999),0),"<="&T45) -> 46
B46: 2020-03-02 | C46: 121202 | D46: ROBERCAR EIRL | E46: SECTOR SUR | F46: 0003-00065155 | G46: 2020-06-22 | H46: MN | I46: 52,805.96 | J46: 15,781.82 | K46: 52,805.96 | L46: 34 | M46: POR COBRAR POR VENCER | N46: 45 DIAS | P46: =IF(COUNTIF(D$6:D46,D46)=1,P45+1,P45) -> 27 | Q46: ROBERCAR EIRL | R46: SECTOR SUR | S46: =IF(ROWS(S$6:S46)<=MAX($P$6:$P$1000),ROWS(S$6:S46),"") -> 41 | T46: GAS ANTONIO'S SAC | U46: SECTOR SUR | V46: =COUNTIF($T$6:OFFSET($T$5,COUNT($S$6:$S$999),0),"<="&T46) -> 19
B47: 2020-04-20 | C47: 121202 | D47: QUIMENSA EIRL | E47: SECTOR NORTE | F47: 0002-00052531 | G47: 2020-07-13 | H47: MN | I47: 17,039.23 | J47: 5,038.21 | K47: 17,039.23 | L47: 55 | M47: POR COBRAR POR VENCER | N47: 60 DIAS | P47: =IF(COUNTIF(D$6:D47,D47)=1,P46+1,P46) -> 27 | Q47: QUIMENSA EIRL | R47: SECTOR NORTE | S47: =IF(ROWS(S$6:S47)<=MAX($P$6:$P$1000),ROWS(S$6:S47),"") -> 42 | T47: JHOSBET E.I.R.L. | U47: SECTOR ESTE | V47: =COUNTIF($T$6:OFFSET($T$5,COUNT($S$6:$S$999),0),"<="&T47) -> 24
B48: 2019-11-11 | C48: 121202 | D48: ILOP S.A.C. | E48: SECTOR SUR | F48: 0003-00014863 | G48: 2020-03-16 | H48: US | I48: 1,563.97 | J48: 1,563.97 | K48: 5,233.04 | L48: -64 | M48: POR COBRAR VENCIDOS | N48: 75 DIAS | P48: =IF(COUNTIF(D$6:D48,D48)=1,P47+1,P47) -> 27 | Q48: ILOP S.A.C. | R48: SECTOR SUR | S48: =IF(ROWS(S$6:S48)<=MAX($P$6:$P$1000),ROWS(S$6:S48),"") -> 43 | T48: VAMER E.I.R.L | U48: SECTOR SUR | V48: =COUNTIF($T$6:OFFSET($T$5,COUNT($S$6:$S$999),0),"<="&T48) -> 47
B49: 2020-05-11 | C49: 121202 | D49: GRUPO IMPORT EIRL | E49: SECTOR CENTRO | F49: 0001-00068670 | G49: 2020-08-03 | H49: MN | I49: 140,182.85 | J49: 41,498.77 | K49: 140,182.85 | L49: 76 | M49: POR COBRAR POR VENCER | N49: 90 DIAS | P49: =IF(COUNTIF(D$6:D49,D49)=1,P48+1,P48) -> 27 | Q49: GRUPO IMPORT EIRL | R49: SECTOR CENTRO | S49: =IF(ROWS(S$6:S49)<=MAX($P$6:$P$1000),ROWS(S$6:S49),"") -> 44 | T49: VLALDO E.I.R.L. | U49: SECTOR ESTE | V49: =COUNTIF($T$6:OFFSET($T$5,COUNT($S$6:$S$999),0),"<="&T49) -> 49
B50: 2020-03-16 | C50: 121201 | D50: INGEMEC PERU SAC | E50: SECTOR NORTE | F50: 0002-00058166 | G50: 2020-06-22 | H50: US | I50: 26,967.57 | J50: 26,967.57 | K50: 89,963.81 | L50: 34 | M50: POR COBRAR POR VENCER | N50: 45 DIAS | P50: =IF(COUNTIF(D$6:D50,D50)=1,P49+1,P49) -> 28 | Q50: INGEMEC PERU SAC | R50: SECTOR NORTE | S50: =IF(ROWS(S$6:S50)<=MAX($P$6:$P$1000),ROWS(S$6:S50),"") -> 45 | T50: SERVICON S.A.C. | U50: SECTOR CENTRO | V50: =COUNTIF($T$6:OFFSET($T$5,COUNT($S$6:$S$999),0),"<="&T50) -> 41
B51: 2020-04-06 | C51: 121202 | D51: OMNITEC S.R.L. | E51: SECTOR OESTE | F51: 0004-00059301 | G51: 2020-06-15 | H51: US | I51: 16,025.65 | J51: 16,025.65 | K51: 53,397.47 | L51: 27 | M51: POR COBRAR POR VENCER | N51: 30 DIAS | P51: =IF(COUNTIF(D$6:D51,D51)=1,P50+1,P50) -> 28 | Q51: OMNITEC S.R.L. | R51: SECTOR OESTE | S51: =IF(ROWS(S$6:S51)<=MAX($P$6:$P$1000),ROWS(S$6:S51),"") -> 46 | T51: AGRO SELECTO S.A.C. | U51: SECTOR NORTE | V51: =COUNTIF($T$6:OFFSET($T$5,COUNT($S$6:$S$999),0),"<="&T51) -> 4
B52: 2020-05-04 | C52: 121201 | D52: INGEMEC PERU SAC | E52: SECTOR ESTE | F52: 0005-00071631 | G52: 2020-05-18 | H52: US | I52: 77,220.60 | J52: 77,220.60 | K52: 262,550.04 | L52: -1 | M52: POR COBRAR VENCIDOS | N52: 15 DIAS | P52: =IF(COUNTIF(D$6:D52,D52)=1,P51+1,P51) -> 28 | Q52: INGEMEC PERU SAC | R52: SECTOR ESTE | S52: =IF(ROWS(S$6:S52)<=MAX($P$6:$P$1000),ROWS(S$6:S52),"") -> 47 | T52: ARCPERU S.A.C. | U52: SECTOR ESTE | V52: =COUNTIF($T$6:OFFSET($T$5,COUNT($S$6:$S$999),0),"<="&T52) -> 5
B53: 2019-10-14 | C53: 121202 | D53: C. CHINININ S.A.C. | E53: SECTOR SUR | F53: 0003-00002769 | G53: 2020-02-03 | H53: US | I53: 757.70 | J53: 757.70 | K53: 2,549.66 | L53: -106 | M53: POR COBRAR VENCIDOS | N53: > 90 DIAS | P53: =IF(COUNTIF(D$6:D53,D53)=1,P52+1,P52) -> 28 | Q53: C. CHINININ S.A.C. | R53: SECTOR SUR | S53: =IF(ROWS(S$6:S53)<=MAX($P$6:$P$1000),ROWS(S$6:S53),"") -> 48 | T53: SALVADOR LAZO FIDEL | U53: SECTOR OESTE | V53: =COUNTIF($T$6:OFFSET($T$5,COUNT($S$6:$S$999),0),"<="&T53) -> 39
B54: 2020-05-18 | C54: 121202 | D54: A.C.D. S.R.L. | E54: SECTOR CENTRO | F54: 0001-00066579 | G54: 2020-07-13 | H54: US | I54: 88,227.54 | J54: 88,227.54 | K54: 292,033.16 | L54: 55 | M54: POR COBRAR POR VENCER | N54: 60 DIAS | P54: =IF(COUNTIF(D$6:D54,D54)=1,P53+1,P53) -> 28 | Q54: A.C.D. S.R.L. | R54: SECTOR CENTRO | S54: =IF(ROWS(S$6:S54)<=MAX($P$6:$P$1000),ROWS(S$6:S54),"") -> 49 | T54: SUCAROL E.I.R.L. | U54: SECTOR ESTE | V54: =COUNTIF($T$6:OFFSET($T$5,COUNT($S$6:$S$999),0),"<="&T54) -> 42
B55: 2020-01-13 | C55: 121202 | D55: LA BRETAÐA S.A.C. | E55: SECTOR NORTE | F55: 0002-00014140 | G55: 2020-01-27 | H55: MN | I55: 1,021.36 | J55: 305.70 | K55: 1,021.36 | L55: -113 | M55: POR COBRAR VENCIDOS | N55: > 90 DIAS | P55: =IF(COUNTIF(D$6:D55,D55)=1,P54+1,P54) -> 29 | Q55: LA BRETAÐA S.A.C. | R55: SECTOR NORTE | S55: =IF(ROWS(S$6:S55)<=MAX($P$6:$P$1000),ROWS(S$6:S55),"") -> 50 | T55: SURTIDORES S.A.C. | U55: SECTOR OESTE | V55: =COUNTIF($T$6:OFFSET($T$5,COUNT($S$6:$S$999),0),"<="&T55) -> 43
B56: 2020-03-02 | C56: 121202 | D56: CONDORCO S.R.L. | E56: SECTOR OESTE | F56: 0004-00057532 | G56: 2020-07-06 | H56: US | I56: 23,617.26 | J56: 23,617.26 | K56: 79,141.44 | L56: 48 | M56: POR COBRAR POR VENCER | N56: 60 DIAS | P56: =IF(COUNTIF(D$6:D56,D56)=1,P55+1,P55) -> 29 | Q56: CONDORCO S.R.L. | R56: SECTOR OESTE
B57: 2020-04-13 | C57: 121202 | D57: CONDORCO S.R.L. | E57: SECTOR NORTE | F57: 0002-00061846 | G57: 2020-06-08 | H57: US | I57: 136,711.81 | J57: 136,711.81 | K57: 457,574.43 | L57: 20 | M57: POR COBRAR POR VENCER | N57: 30 DIAS | P57: =IF(COUNTIF(D$6:D57,D57)=1,P56+1,P56) -> 29 | Q57: CONDORCO S.R.L. | R57: SECTOR NORTE
B58: 2020-02-24 | C58: 121202 | D58: ROBERCAR EIRL | E58: SECTOR NORTE | F58: 0002-00074940 | G58: 2020-06-29 | H58: US | I58: 106,715.54 | J58: 106,715.54 | K58: 357,497.06 | L58: 41 | M58: POR COBRAR POR VENCER | N58: 45 DIAS | P58: =IF(COUNTIF(D$6:D58,D58)=1,P57+1,P57) -> 29 | Q58: ROBERCAR EIRL | R58: SECTOR NORTE
B59: 2020-05-11 | C59: 121201 | D59: AGF VULCANO S.R.L. | E59: SECTOR SUR | F59: 0003-00095175 | G59: 2020-07-20 | H59: US | I59: 59,212.61 | J59: 59,212.61 | K59: 198,835.94 | L59: 62 | M59: POR COBRAR POR VENCER | N59: 75 DIAS | P59: =IF(COUNTIF(D$6:D59,D59)=1,P58+1,P58) -> 29 | Q59: AGF VULCANO S.R.L. | R59: SECTOR SUR
B60: 2020-02-10 | C60: 121202 | D60: CHINANGO S.A.C. | E60: SECTOR NORTE | F60: 0002-00017687 | G60: 2020-06-15 | H60: US | I60: 1,075.64 | J60: 1,075.64 | K60: 3,594.79 | L60: 27 | M60: POR COBRAR POR VENCER | N60: 30 DIAS | P60: =IF(COUNTIF(D$6:D60,D60)=1,P59+1,P59) -> 30 | Q60: CHINANGO S.A.C. | R60: SECTOR NORTE
B61: 2020-01-13 | C61: 121202 | D61: QUISPE NINA AMERICO | E61: SECTOR ESTE | F61: 0005-00033842 | G61: 2020-05-04 | H61: US | I61: 16,271.77 | J61: 16,271.77 | K61: 54,396.53 | L61: -15 | M61: POR COBRAR VENCIDOS | N61: 15 DIAS | P61: =IF(COUNTIF(D$6:D61,D61)=1,P60+1,P60) -> 30 | Q61: QUISPE NINA AMERICO | R61: SECTOR ESTE
B62: 2020-04-13 | C62: 121202 | D62: KOZUMI PERU S.A. | E62: SECTOR OESTE | F62: 0004-00059266 | G62: 2020-08-17 | H62: US | I62: 15,446.33 | J62: 15,446.33 | K62: 52,131.36 | L62: 90 | M62: POR COBRAR POR VENCER | N62: 90 DIAS | P62: =IF(COUNTIF(D$6:D62,D62)=1,P61+1,P61) -> 31 | Q62: KOZUMI PERU S.A. | R62: SECTOR OESTE
B63: 2020-04-27 | C63: 121202 | D63: RV CONSULTORES SAC | E63: SECTOR OESTE | F63: 0004-00073674 | G63: 2020-08-17 | H63: US | I63: 139,071.76 | J63: 139,071.76 | K63: 472,148.63 | L63: 90 | M63: POR COBRAR POR VENCER | N63: 90 DIAS | P63: =IF(COUNTIF(D$6:D63,D63)=1,P62+1,P62) -> 31 | Q63: RV CONSULTORES SAC | R63: SECTOR OESTE
B64: 2019-08-26 | C64: 121202 | D64: PLASTIJHIM SRL | E64: SECTOR SUR | F64: 0003-00005271 | G64: 2019-10-07 | H64: MN | I64: 5,422.72 | J64: 1,596.33 | K64: 5,422.72 | L64: -225 | M64: POR COBRAR VENCIDOS | N64: > 90 DIAS | P64: =IF(COUNTIF(D$6:D64,D64)=1,P63+1,P63) -> 31 | Q64: PLASTIJHIM SRL | R64: SECTOR SUR
B65: 2020-03-09 | C65: 121201 | D65: VICKO Y CO S.A. | E65: SECTOR CENTRO | F65: 0001-00070575 | G65: 2020-06-15 | H65: US | I65: 68,585.77 | J65: 68,585.77 | K65: 229,968.09 | L65: 27 | M65: POR COBRAR POR VENCER | N65: 30 DIAS | P65: =IF(COUNTIF(D$6:D65,D65)=1,P64+1,P64) -> 31 | Q65: VICKO Y CO S.A. | R65: SECTOR CENTRO
B66: 2019-12-30 | C66: 121201 | D66: DR GAS S.A.C. | E66: SECTOR OESTE | F66: 0004-00022269 | G66: 2020-05-04 | H66: MN | I66: 14,488.72 | J66: 4,334.05 | K66: 14,488.72 | L66: -15 | M66: POR COBRAR VENCIDOS | N66: 15 DIAS | P66: =IF(COUNTIF(D$6:D66,D66)=1,P65+1,P65) -> 31 | Q66: DR GAS S.A.C. | R66: SECTOR OESTE
B67: 2020-02-10 | C67: 121202 | D67: LIDER GRAFICO SRL | E67: SECTOR ESTE | F67: 0005-00012629 | G67: 2020-06-01 | H67: US | I67: 8,125.70 | J67: 8,125.70 | K67: 27,351.11 | L67: 13 | M67: POR COBRAR POR VENCER | N67: 15 DIAS | P67: =IF(COUNTIF(D$6:D67,D67)=1,P66+1,P66) -> 32 | Q67: LIDER GRAFICO SRL | R67: SECTOR ESTE
B68: 2020-03-02 | C68: 121202 | D68: LA GRANJITA E.I.R.L | E68: SECTOR ESTE | F68: 0005-00045300 | G68: 2020-06-22 | H68: MN | I68: 24,231.94 | J68: 7,127.04 | K68: 24,231.94 | L68: 34 | M68: POR COBRAR POR VENCER | N68: 45 DIAS | P68: =IF(COUNTIF(D$6:D68,D68)=1,P67+1,P67) -> 33 | Q68: LA GRANJITA E.I.R.L | R68: SECTOR ESTE
B69: 2020-01-06 | C69: 121202 | D69: TECNO COLOR S R L | E69: SECTOR SUR | F69: 0003-00036078 | G69: 2020-03-30 | H69: US | I69: 16,807.00 | J69: 16,807.00 | K69: 56,622.78 | L69: -50 | M69: POR COBRAR VENCIDOS | N69: 60 DIAS | P69: =IF(COUNTIF(D$6:D69,D69)=1,P68+1,P68) -> 34 | Q69: TECNO COLOR S R L | R69: SECTOR SUR
B70: 2020-01-13 | C70: 121202 | D70: TECNO LASER S.A.C. | E70: SECTOR NORTE | F70: 0002-00028227 | G70: 2020-03-23 | H70: MN | I70: 4,711.64 | J70: 1,412.79 | K70: 4,711.64 | L70: -57 | M70: POR COBRAR VENCIDOS | N70: 60 DIAS | P70: =IF(COUNTIF(D$6:D70,D70)=1,P69+1,P69) -> 35 | Q70: =D70 -> TECNO LASER S.A.C. | R70: SECTOR NORTE
B71: 2020-04-27 | C71: 121202 | D71: A.C.D. S.R.L. | E71: SECTOR OESTE | F71: 0004-00075490 | G71: 2020-08-17 | H71: US | I71: 123,924.93 | J71: 123,924.93 | K71: 421,344.76 | L71: 90 | M71: POR COBRAR POR VENCER | N71: 90 DIAS | P71: =IF(COUNTIF(D$6:D71,D71)=1,P70+1,P70) -> 35 | Q71: A.C.D. S.R.L. | R71: SECTOR OESTE | U71: =IF(S71<>"",VLOOKUP(S71,$P$6:$R$1000,3,0),"") -> 
B72: 2019-12-02 | C72: 121202 | D72: TECNO LASER S.A.C. | E72: SECTOR ESTE | F72: 0005-00031520 | G72: 2020-03-23 | H72: MN | I72: 22,066.34 | J72: 6,575.19 | K72: 22,066.34 | L72: -57 | M72: POR COBRAR VENCIDOS | N72: 60 DIAS | P72: =IF(COUNTIF(D$6:D72,D72)=1,P71+1,P71) -> 35 | Q72: TECNO LASER S.A.C. | R72: SECTOR ESTE
B73: 2020-05-18 | C73: 121202 | D73: CINSA E.I.R.L | E73: SECTOR NORTE | F73: 0002-00054658 | G73: 2020-06-29 | H73: MN | I73: 21,403.89 | J73: 6,472.30 | K73: 21,403.89 | L73: 41 | M73: POR COBRAR POR VENCER | N73: 45 DIAS | P73: =IF(COUNTIF(D$6:D73,D73)=1,P72+1,P72) -> 35 | Q73: CINSA E.I.R.L | R73: SECTOR NORTE
B74: 2019-09-16 | C74: 121202 | D74: FIDUCIARIA GBC S.A. | E74: SECTOR NORTE | F74: 0002-00000088 | G74: 2019-10-28 | H74: MN | I74: 8,874.09 | J74: 2,680.18 | K74: 8,874.09 | L74: -204 | M74: POR COBRAR VENCIDOS | N74: > 90 DIAS | P74: =IF(COUNTIF(D$6:D74,D74)=1,P73+1,P73) -> 36 | Q74: FIDUCIARIA GBC S.A. | R74: SECTOR NORTE
B75: 2019-12-02 | C75: 121202 | D75: ARPE EIRL | E75: SECTOR ESTE | F75: 0005-00031568 | G75: 2020-02-10 | H75: US | I75: 22,707.77 | J75: 22,707.77 | K75: 76,593.31 | L75: -99 | M75: POR COBRAR VENCIDOS | N75: > 90 DIAS | P75: =IF(COUNTIF(D$6:D75,D75)=1,P74+1,P74) -> 36 | Q75: ARPE EIRL | R75: SECTOR ESTE
B76: 2020-04-20 | C76: 121202 | D76: VICKO Y CO S.A. | E76: SECTOR OESTE | F76: 0004-00066692 | G76: 2020-08-24 | H76: MN | I76: 148,478.25 | J76: 44,938.94 | K76: 148,478.25 | L76: 97 | M76: POR COBRAR POR VENCER | N76: > 90 DIAS | P76: =IF(COUNTIF(D$6:D76,D76)=1,P75+1,P75) -> 36 | Q76: VICKO Y CO S.A. | R76: SECTOR OESTE
B77: 2020-03-23 | C77: 121201 | D77: AGF VULCANO S.R.L. | E77: SECTOR ESTE | F77: 0005-00099861 | G77: 2020-04-06 | H77: US | I77: 114,070.54 | J77: 114,070.54 | K77: 378,942.33 | L77: -43 | M77: POR COBRAR VENCIDOS | N77: 45 DIAS | P77: =IF(COUNTIF(D$6:D77,D77)=1,P76+1,P76) -> 36 | Q77: AGF VULCANO S.R.L. | R77: SECTOR ESTE
B78: 2020-05-18 | C78: 121201 | D78: CINSA E.I.R.L | E78: SECTOR NORTE | F78: 0002-00088720 | G78: 2020-05-18 | H78: US | I78: 131,655.28 | J78: 131,655.28 | K78: 441,045.19 | L78: -1 | M78: POR COBRAR VENCIDOS | N78: 15 DIAS | P78: =IF(COUNTIF(D$6:D78,D78)=1,P77+1,P77) -> 36 | Q78: CINSA E.I.R.L | R78: SECTOR NORTE
B79: 2019-12-02 | C79: 121202 | D79: LA BRETAÐA S.A.C. | E79: SECTOR NORTE | F79: 0002-00013165 | G79: 2020-01-13 | H79: US | I79: 8,946.64 | J79: 8,946.64 | K79: 30,159.12 | L79: -127 | M79: POR COBRAR VENCIDOS | N79: > 90 DIAS | P79: =IF(COUNTIF(D$6:D79,D79)=1,P78+1,P78) -> 36 | Q79: LA BRETAÐA S.A.C. | R79: SECTOR NORTE
B80: 2019-12-02 | C80: 121201 | D80: TECNO LASER S.A.C. | E80: SECTOR ESTE | F80: 0005-00029300 | G80: 2019-12-30 | H80: MN | I80: 2,792.69 | J80: 825.02 | K80: 2,792.69 | L80: -141 | M80: POR COBRAR VENCIDOS | N80: > 90 DIAS | P80: =IF(COUNTIF(D$6:D80,D80)=1,P79+1,P79) -> 36 | Q80: TECNO LASER S.A.C. | R80: SECTOR ESTE
B81: 2020-01-27 | C81: 121201 | D81: CAO JINGHUI | E81: SECTOR NORTE | F81: 0002-00019205 | G81: 2020-03-09 | H81: MN | I81: 7,662.44 | J81: 2,307.96 | K81: 7,662.44 | L81: -71 | M81: POR COBRAR VENCIDOS | N81: 75 DIAS | P81: =IF(COUNTIF(D$6:D81,D81)=1,P80+1,P80) -> 36 | Q81: CAO JINGHUI | R81: SECTOR NORTE
B82: 2019-12-02 | C82: 121201 | D82: QUISPE NINA AMERICO | E82: SECTOR OESTE | F82: 0004-00013054 | G82: 2020-02-10 | H82: US | I82: 6,702.84 | J82: 6,702.84 | K82: 22,394.19 | L82: -99 | M82: POR COBRAR VENCIDOS | N82: > 90 DIAS | P82: =IF(COUNTIF(D$6:D82,D82)=1,P81+1,P81) -> 36 | Q82: QUISPE NINA AMERICO | R82: SECTOR OESTE
B83: 2019-08-12 | C83: 121202 | D83: FIDUCIARIA GBC S.A. | E83: SECTOR SUR | F83: 0003-00000625 | G83: 2019-12-16 | H83: US | I83: 13,620.78 | J83: 13,620.78 | K83: 45,670.48 | L83: -155 | M83: POR COBRAR VENCIDOS | N83: > 90 DIAS | P83: =IF(COUNTIF(D$6:D83,D83)=1,P82+1,P82) -> 36 | Q83: FIDUCIARIA GBC S.A. | R83: SECTOR SUR
B84: 2019-12-16 | C84: 121201 | D84: TECNO COLOR S R L | E84: SECTOR ESTE | F84: 0005-00025586 | G84: 2020-01-27 | H84: MN | I84: 1,914.96 | J84: 575.24 | K84: 1,914.96 | L84: -113 | M84: POR COBRAR VENCIDOS | N84: > 90 DIAS | P84: =IF(COUNTIF(D$6:D84,D84)=1,P83+1,P83) -> 36 | Q84: TECNO COLOR S R L | R84: SECTOR ESTE
B85: 2019-12-23 | C85: 121202 | D85: TECNO COLOR S R L | E85: SECTOR ESTE | F85: 0005-00015072 | G85: 2020-03-30 | H85: US | I85: 12,444.34 | J85: 12,444.34 | K85: 41,178.32 | L85: -50 | M85: POR COBRAR VENCIDOS | N85: 60 DIAS | P85: =IF(COUNTIF(D$6:D85,D85)=1,P84+1,P84) -> 36 | Q85: TECNO COLOR S R L | R85: SECTOR ESTE
B86: 2020-05-04 | C86: 121202 | D86: L & C SERVIS EIRL | E86: SECTOR OESTE | F86: 0004-00049670 | G86: 2020-08-10 | H86: US | I86: 20,418.67 | J86: 20,418.67 | K86: 68,443.38 | L86: 83 | M86: POR COBRAR POR VENCER | N86: 90 DIAS | P86: =IF(COUNTIF(D$6:D86,D86)=1,P85+1,P85) -> 37 | Q86: L & C SERVIS EIRL | R86: SECTOR OESTE
B87: 2020-04-27 | C87: 121202 | D87: L & C SERVIS EIRL | E87: SECTOR NORTE | F87: 0002-00095685 | G87: 2020-06-08 | H87: US | I87: 61,523.08 | J87: 61,523.08 | K87: 206,348.41 | L87: 20 | M87: POR COBRAR POR VENCER | N87: 30 DIAS | P87: =IF(COUNTIF(D$6:D87,D87)=1,P86+1,P86) -> 37 | Q87: L & C SERVIS EIRL | R87: SECTOR NORTE
B88: 2020-01-27 | C88: 121202 | D88: DR GAS S.A.C. | E88: SECTOR OESTE | F88: 0004-00034121 | G88: 2020-01-27 | H88: US | I88: 28,202.66 | J88: 28,202.66 | K88: 95,240.38 | L88: -113 | M88: POR COBRAR VENCIDOS | N88: > 90 DIAS | P88: =IF(COUNTIF(D$6:D88,D88)=1,P87+1,P87) -> 37 | Q88: DR GAS S.A.C. | R88: SECTOR OESTE
B89: 2020-01-13 | C89: 121202 | D89: 3E SERVICIOS S.A.C. | E89: SECTOR OESTE | F89: 0004-00018465 | G89: 2020-02-10 | H89: US | I89: 6,881.25 | J89: 6,881.25 | K89: 23,148.53 | L89: -99 | M89: POR COBRAR VENCIDOS | N89: > 90 DIAS | P89: =IF(COUNTIF(D$6:D89,D89)=1,P88+1,P88) -> 37 | Q89: 3E SERVICIOS S.A.C. | R89: SECTOR OESTE
B90: 2020-05-04 | C90: 121202 | D90: OMNITEC S.R.L. | E90: SECTOR ESTE | F90: 0005-00090014 | G90: 2020-08-10 | H90: US | I90: 52,779.92 | J90: 52,779.92 | K90: 178,765.59 | L90: 83 | M90: POR COBRAR POR VENCER | N90: 90 DIAS | P90: =IF(COUNTIF(D$6:D90,D90)=1,P89+1,P89) -> 37 | Q90: OMNITEC S.R.L. | R90: SECTOR ESTE
B91: 2020-01-06 | C91: 121201 | D91: ARPE EIRL | E91: SECTOR SUR | F91: 0003-00026322 | G91: 2020-05-11 | H91: MN | I91: 13,067.18 | J91: 3,906.48 | K91: 13,067.18 | L91: -8 | M91: POR COBRAR VENCIDOS | N91: 15 DIAS | P91: =IF(COUNTIF(D$6:D91,D91)=1,P90+1,P90) -> 37 | Q91: ARPE EIRL | R91: SECTOR SUR
B92: 2019-11-25 | C92: 121201 | D92: DR GAS S.A.C. | E92: SECTOR SUR | F92: 0003-00030813 | G92: 2020-02-17 | H92: US | I92: 28,903.81 | J92: 28,903.81 | K92: 95,498.19 | L92: -92 | M92: POR COBRAR VENCIDOS | N92: > 90 DIAS | P92: =IF(COUNTIF(D$6:D92,D92)=1,P91+1,P91) -> 37 | Q92: DR GAS S.A.C. | R92: SECTOR SUR
B93: 2020-02-10 | C93: 121202 | D93: LARCO PETS EIRL | E93: SECTOR SUR | F93: 0003-00083660 | G93: 2020-06-15 | H93: MN | I93: 53,791.11 | J93: 15,938.11 | K93: 53,791.11 | L93: 27 | M93: POR COBRAR POR VENCER | N93: 30 DIAS | P93: =IF(COUNTIF(D$6:D93,D93)=1,P92+1,P92) -> 38 | Q93: LARCO PETS EIRL | R93: SECTOR SUR
B94: 2020-01-20 | C94: 121201 | D94: ILOP S.A.C. | E94: SECTOR ESTE | F94: 0005-00030204 | G94: 2020-03-02 | H94: US | I94: 22,306.29 | J94: 22,306.29 | K94: 73,967.66 | L94: -78 | M94: POR COBRAR VENCIDOS | N94: 90 DIAS | P94: =IF(COUNTIF(D$6:D94,D94)=1,P93+1,P93) -> 38 | Q94: ILOP S.A.C. | R94: SECTOR ESTE
B95: 2020-04-27 | C95: 121202 | D95: DIMACAR S.A.C. | E95: SECTOR SUR | F95: 0003-00090267 | G95: 2020-06-22 | H95: US | I95: 74,994.91 | J95: 74,994.91 | K95: 251,457.93 | L95: 34 | M95: POR COBRAR POR VENCER | N95: 45 DIAS | P95: =IF(COUNTIF(D$6:D95,D95)=1,P94+1,P94) -> 38 | Q95: DIMACAR S.A.C. | R95: SECTOR SUR
B96: 2020-03-23 | C96: 121202 | D96: EL REPOSTERO SAC | E96: SECTOR NORTE | F96: 0002-00090964 | G96: 2020-06-15 | H96: MN | I96: 75,943.78 | J96: 22,488.53 | K96: 75,943.78 | L96: 27 | M96: POR COBRAR POR VENCER | N96: 30 DIAS | P96: =IF(COUNTIF(D$6:D96,D96)=1,P95+1,P95) -> 39 | Q96: EL REPOSTERO SAC | R96: SECTOR NORTE
B97: 2020-03-09 | C97: 121201 | D97: TROQPA SAC | E97: SECTOR OESTE | F97: 0004-00084305 | G97: 2020-04-20 | H97: US | I97: 52,215.46 | J97: 52,215.46 | K97: 173,459.76 | L97: -29 | M97: POR COBRAR VENCIDOS | N97: 30 DIAS | P97: =IF(COUNTIF(D$6:D97,D97)=1,P96+1,P96) -> 40 | Q97: TROQPA SAC | R97: SECTOR OESTE
B98: 2020-03-02 | C98: 121201 | D98: CINSA E.I.R.L | E98: SECTOR OESTE | F98: 0004-00061075 | G98: 2020-06-08 | H98: MN | I98: 127,528.35 | J98: 37,864.71 | K98: 127,528.35 | L98: 20 | M98: POR COBRAR POR VENCER | N98: 30 DIAS | P98: =IF(COUNTIF(D$6:D98,D98)=1,P97+1,P97) -> 40 | Q98: CINSA E.I.R.L | R98: SECTOR OESTE
B99: 2020-02-03 | C99: 121201 | D99: CHINANGO S.A.C. | E99: SECTOR SUR | F99: 0003-00038887 | G99: 2020-02-03 | H99: US | I99: 25,385.80 | J99: 25,385.80 | K99: 83,900.07 | L99: -106 | M99: POR COBRAR VENCIDOS | N99: > 90 DIAS | P99: =IF(COUNTIF(D$6:D99,D99)=1,P98+1,P98) -> 40 | Q99: CHINANGO S.A.C. | R99: SECTOR SUR
B100: 2019-12-30 | C100: 121202 | D100: ILOP S.A.C. | E100: SECTOR NORTE | F100: 0002-00032814 | G100: 2020-03-23 | H100: MN | I100: 16,267.44 | J100: 4,807.16 | K100: 16,267.44 | L100: -57 | M100: POR COBRAR VENCIDOS | N100: 60 DIAS | P100: =IF(COUNTIF(D$6:D100,D100)=1,P99+1,P99) -> 40 | Q100: ILOP S.A.C. | R100: SECTOR NORTE
B101: 2020-04-06 | C101: 121202 | D101: SEGURINDUSTRIA SA | E101: SECTOR CENTRO | F101: 0001-00090798 | G101: 2020-07-13 | H101: MN | I101: 70,271.33 | J101: 21,108.84 | K101: 70,271.33 | L101: 55 | M101: POR COBRAR POR VENCER | N101: 60 DIAS | P101: =IF(COUNTIF(D$6:D101,D101)=1,P100+1,P100) -> 40 | Q101: SEGURINDUSTRIA SA | R101: SECTOR CENTRO
B102: 2020-02-24 | C102: 121202 | D102: A.C.D. S.R.L. | E102: SECTOR CENTRO | F102: 0001-00068603 | G102: 2020-02-24 | H102: US | I102: 87,794.66 | J102: 87,794.66 | K102: 290,688.12 | L102: -85 | M102: POR COBRAR VENCIDOS | N102: 90 DIAS | P102: =IF(COUNTIF(D$6:D102,D102)=1,P101+1,P101) -> 40 | Q102: A.C.D. S.R.L. | R102: SECTOR CENTRO
B103: 2020-03-16 | C103: 121202 | D103: VICKO Y CO S.A. | E103: SECTOR SUR | F103: 0003-00042125 | G103: 2020-06-08 | H103: US | I103: 22,800.03 | J103: 22,800.03 | K103: 77,406.10 | L103: 20 | M103: POR COBRAR POR VENCER | N103: 30 DIAS | P103: =IF(COUNTIF(D$6:D103,D103)=1,P102+1,P102) -> 40 | Q103: VICKO Y CO S.A. | R103: SECTOR SUR
B104: 2020-04-06 | C104: 121202 | D104: TROQPA SAC | E104: SECTOR OESTE | F104: 0004-00049883 | G104: 2020-06-15 | H104: MN | I104: 29,811.48 | J104: 8,861.91 | K104: 29,811.48 | L104: 27 | M104: POR COBRAR POR VENCER | N104: 30 DIAS | P104: =IF(COUNTIF(D$6:D104,D104)=1,P103+1,P103) -> 40 | Q104: TROQPA SAC | R104: SECTOR OESTE
B105: 2019-08-12 | C105: 121201 | D105: GAS ANTONIO'S SAC | E105: SECTOR SUR | F105: 0003-00005277 | G105: 2019-09-09 | H105: US | I105: 5,717.55 | J105: 5,717.55 | K105: 19,090.90 | L105: -253 | M105: POR COBRAR VENCIDOS | N105: > 90 DIAS | P105: =IF(COUNTIF(D$6:D105,D105)=1,P104+1,P104) -> 41 | Q105: GAS ANTONIO'S SAC | R105: SECTOR SUR
B106: 2020-02-10 | C106: 121202 | D106: CAO JINGHUI | E106: SECTOR OESTE | F106: 0004-00016581 | G106: 2020-05-18 | H106: MN | I106: 7,750.05 | J106: 2,316.91 | K106: 7,750.05 | L106: -1 | M106: POR COBRAR VENCIDOS | N106: 15 DIAS | P106: =IF(COUNTIF(D$6:D106,D106)=1,P105+1,P105) -> 41 | Q106: CAO JINGHUI | R106: SECTOR OESTE
B107: 2020-01-13 | C107: 121202 | D107: TECNO LASER S.A.C. | E107: SECTOR OESTE | F107: 0004-00029302 | G107: 2020-04-06 | H107: MN | I107: 7,007.19 | J107: 2,094.83 | K107: 7,007.19 | L107: -43 | M107: POR COBRAR VENCIDOS | N107: 45 DIAS | P107: =IF(COUNTIF(D$6:D107,D107)=1,P106+1,P106) -> 41 | Q107: TECNO LASER S.A.C. | R107: SECTOR OESTE
B108: 2020-03-16 | C108: 121202 | D108: TROQPA SAC | E108: SECTOR SUR | F108: 0003-00056796 | G108: 2020-03-30 | H108: US | I108: 27,565.13 | J108: 27,565.13 | K108: 91,433.54 | L108: -50 | M108: POR COBRAR VENCIDOS | N108: 60 DIAS | P108: =IF(COUNTIF(D$6:D108,D108)=1,P107+1,P107) -> 41 | Q108: TROQPA SAC | R108: SECTOR SUR
B109: 2020-05-04 | C109: 121202 | D109: DIMACAR S.A.C. | E109: SECTOR NORTE | F109: 0002-00046378 | G109: 2020-08-10 | H109: MN | I109: 24,074.74 | J109: 7,216.65 | K109: 24,074.74 | L109: 83 | M109: POR COBRAR POR VENCER | N109: 90 DIAS | P109: =IF(COUNTIF(D$6:D109,D109)=1,P108+1,P108) -> 41 | Q109: DIMACAR S.A.C. | R109: SECTOR NORTE
B110: 2020-02-17 | C110: 121202 | D110: ROBERCAR EIRL | E110: SECTOR CENTRO | F110: 0001-00052130 | G110: 2020-06-22 | H110: US | I110: 25,841.51 | J110: 25,841.51 | K110: 85,897.18 | L110: 34 | M110: POR COBRAR POR VENCER | N110: 45 DIAS | P110: =IF(COUNTIF(D$6:D110,D110)=1,P109+1,P109) -> 41 | Q110: ROBERCAR EIRL | R110: SECTOR CENTRO
B111: 2020-04-13 | C111: 121202 | D111: JHOSBET E.I.R.L. | E111: SECTOR ESTE | F111: 0005-00051116 | G111: 2020-07-06 | H111: US | I111: 20,006.90 | J111: 20,006.90 | K111: 66,642.98 | L111: 48 | M111: POR COBRAR POR VENCER | N111: 60 DIAS | P111: =IF(COUNTIF(D$6:D111,D111)=1,P110+1,P110) -> 42 | Q111: JHOSBET E.I.R.L. | R111: SECTOR ESTE
B112: 2020-03-16 | C112: 121201 | D112: CONDORCO S.R.L. | E112: SECTOR OESTE | F112: 0004-00085094 | G112: 2020-06-22 | H112: US | I112: 93,914.78 | J112: 93,914.78 | K112: 317,431.96 | L112: 34 | M112: POR COBRAR POR VENCER | N112: 45 DIAS | P112: =IF(COUNTIF(D$6:D112,D112)=1,P111+1,P111) -> 42 | Q112: CONDORCO S.R.L. | R112: SECTOR OESTE
B113: 2019-11-18 | C113: 121201 | D113: LA BRETAÐA S.A.C. | E113: SECTOR OESTE | F113: 0004-00032456 | G113: 2019-12-30 | H113: US | I113: 25,829.13 | J113: 25,829.13 | K113: 87,509.09 | L113: -141 | M113: POR COBRAR VENCIDOS | N113: > 90 DIAS | P113: =IF(COUNTIF(D$6:D113,D113)=1,P112+1,P112) -> 42 | Q113: LA BRETAÐA S.A.C. | R113: SECTOR OESTE
B114: 2019-11-18 | C114: 121202 | D114: LA BRETAÐA S.A.C. | E114: SECTOR ESTE | F114: 0005-00023400 | G114: 2020-03-23 | H114: MN | I114: 13,942.75 | J114: 4,208.50 | K114: 13,942.75 | L114: -57 | M114: POR COBRAR VENCIDOS | N114: 60 DIAS | P114: =IF(COUNTIF(D$6:D114,D114)=1,P113+1,P113) -> 42 | Q114: LA BRETAÐA S.A.C. | R114: SECTOR ESTE
B115: 2019-11-04 | C115: 121202 | D115: 3E SERVICIOS S.A.C. | E115: SECTOR OESTE | F115: 0004-00016001 | G115: 2020-02-24 | H115: MN | I115: 5,029.34 | J115: 1,507.14 | K115: 5,029.34 | L115: -85 | M115: POR COBRAR VENCIDOS | N115: 90 DIAS | P115: =IF(COUNTIF(D$6:D115,D115)=1,P114+1,P114) -> 42 | Q115: 3E SERVICIOS S.A.C. | R115: SECTOR OESTE
B116: 2019-12-09 | C116: 121201 | D116: ARPE EIRL | E116: SECTOR NORTE | F116: 0002-00016932 | G116: 2020-01-06 | H116: MN | I116: 14,871.28 | J116: 4,452.48 | K116: 14,871.28 | L116: -134 | M116: POR COBRAR VENCIDOS | N116: > 90 DIAS | P116: =IF(COUNTIF(D$6:D116,D116)=1,P115+1,P115) -> 42 | Q116: ARPE EIRL | R116: SECTOR NORTE
B117: 2020-02-17 | C117: 121201 | D117: JHOSBET E.I.R.L. | E117: SECTOR OESTE | F117: 0004-00087010 | G117: 2020-04-13 | H117: US | I117: 134,927.75 | J117: 134,927.75 | K117: 445,261.58 | L117: -36 | M117: POR COBRAR VENCIDOS | N117: 45 DIAS | P117: =IF(COUNTIF(D$6:D117,D117)=1,P116+1,P116) -> 42 | Q117: JHOSBET E.I.R.L. | R117: SECTOR OESTE
B118: 2020-05-18 | C118: 121202 | D118: RV CONSULTORES SAC | E118: SECTOR ESTE | F118: 0005-00059924 | G118: 2020-09-21 | H118: US | I118: 17,411.22 | J118: 17,411.22 | K118: 58,397.23 | L118: 125 | M118: POR COBRAR POR VENCER | N118: > 90 DIAS | P118: =IF(COUNTIF(D$6:D118,D118)=1,P117+1,P117) -> 42 | Q118: RV CONSULTORES SAC | R118: SECTOR ESTE
B119: 2020-04-13 | C119: 121202 | D119: VICKO Y CO S.A. | E119: SECTOR NORTE | F119: 0002-00053174 | G119: 2020-06-08 | H119: US | I119: 20,204.10 | J119: 20,204.10 | K119: 66,835.16 | L119: 20 | M119: POR COBRAR POR VENCER | N119: 30 DIAS | P119: =IF(COUNTIF(D$6:D119,D119)=1,P118+1,P118) -> 42 | Q119: VICKO Y CO S.A. | R119: SECTOR NORTE
B120: 2020-03-16 | C120: 121202 | D120: EL REPOSTERO SAC | E120: SECTOR ESTE | F120: 0005-00086867 | G120: 2020-03-16 | H120: MN | I120: 71,824.37 | J120: 21,692.65 | K120: 71,824.37 | L120: -64 | M120: POR COBRAR VENCIDOS | N120: 75 DIAS | P120: =IF(COUNTIF(D$6:D120,D120)=1,P119+1,P119) -> 42 | Q120: EL REPOSTERO SAC | R120: SECTOR ESTE
B121: 2020-01-13 | C121: 121202 | D121: TECNO COLOR S R L | E121: SECTOR SUR | F121: 0003-00013010 | G121: 2020-04-20 | H121: US | I121: 9,018.37 | J121: 9,018.37 | K121: 30,328.78 | L121: -29 | M121: POR COBRAR VENCIDOS | N121: 30 DIAS | P121: =IF(COUNTIF(D$6:D121,D121)=1,P120+1,P120) -> 42 | Q121: TECNO COLOR S R L | R121: SECTOR SUR
B122: 2020-03-23 | C122: 121201 | D122: CALIGAS S.R.L. | E122: SECTOR NORTE | F122: 0002-00096498 | G122: 2020-04-06 | H122: US | I122: 51,984.97 | J122: 51,984.97 | K122: 175,137.36 | L122: -43 | M122: POR COBRAR VENCIDOS | N122: 45 DIAS | P122: =IF(COUNTIF(D$6:D122,D122)=1,P121+1,P121) -> 42 | Q122: CALIGAS S.R.L. | R122: SECTOR NORTE
B123: 2019-12-09 | C123: 121201 | D123: TECNO COLOR S R L | E123: SECTOR ESTE | F123: 0005-00022178 | G123: 2020-01-20 | H123: US | I123: 14,070.67 | J123: 14,070.67 | K123: 46,658.34 | L123: -120 | M123: POR COBRAR VENCIDOS | N123: > 90 DIAS | P123: =IF(COUNTIF(D$6:D123,D123)=1,P122+1,P122) -> 42 | Q123: TECNO COLOR S R L | R123: SECTOR ESTE
B124: 2020-03-16 | C124: 121202 | D124: VAMER E.I.R.L | E124: SECTOR SUR | F124: 0003-00043443 | G124: 2020-05-11 | H124: MN | I124: 23,584.37 | J124: 7,031.71 | K124: 23,584.37 | L124: -8 | M124: POR COBRAR VENCIDOS | N124: 15 DIAS | P124: =IF(COUNTIF(D$6:D124,D124)=1,P123+1,P123) -> 43 | Q124: VAMER E.I.R.L | R124: SECTOR SUR
B125: 2020-02-24 | C125: 121202 | D125: VLALDO E.I.R.L. | E125: SECTOR ESTE | F125: 0005-00086756 | G125: 2020-06-15 | H125: US | I125: 98,850.18 | J125: 98,850.18 | K125: 329,072.25 | L125: 27 | M125: POR COBRAR POR VENCER | N125: 30 DIAS | P125: =IF(COUNTIF(D$6:D125,D125)=1,P124+1,P124) -> 44 | Q125: VLALDO E.I.R.L. | R125: SECTOR ESTE
B126: 2020-04-06 | C126: 121201 | D126: LARCO PETS EIRL | E126: SECTOR ESTE | F126: 0005-00093588 | G126: 2020-04-06 | H126: US | I126: 57,155.17 | J126: 57,155.17 | K126: 191,698.44 | L126: -43 | M126: POR COBRAR VENCIDOS | N126: 45 DIAS | P126: =IF(COUNTIF(D$6:D126,D126)=1,P125+1,P125) -> 44 | Q126: LARCO PETS EIRL | R126: SECTOR ESTE
B127: 2019-09-16 | C127: 121202 | D127: GAS ANTONIO'S SAC | E127: SECTOR SUR | F127: 0003-00003361 | G127: 2019-10-14 | H127: US | I127: 1,206.71 | J127: 1,206.71 | K127: 3,993.00 | L127: -218 | M127: POR COBRAR VENCIDOS | N127: > 90 DIAS | P127: =IF(COUNTIF(D$6:D127,D127)=1,P126+1,P126) -> 44 | Q127: GAS ANTONIO'S SAC | R127: SECTOR SUR
B128: 2020-04-27 | C128: 121201 | D128: PENTAGRAF S.A.C. | E128: SECTOR OESTE | F128: 0004-00053665 | G128: 2020-06-22 | H128: US | I128: 26,067.18 | J128: 26,067.18 | K128: 86,960.11 | L128: 34 | M128: POR COBRAR POR VENCER | N128: 45 DIAS | P128: =IF(COUNTIF(D$6:D128,D128)=1,P127+1,P127) -> 44 | Q128: PENTAGRAF S.A.C. | R128: SECTOR OESTE
B129: 2019-09-02 | C129: 121202 | D129: ASTRIB S.A.C. | E129: SECTOR SUR | F129: 0003-00006414 | G129: 2019-11-25 | H129: US | I129: 9,814.52 | J129: 9,814.52 | K129: 32,996.42 | L129: -176 | M129: POR COBRAR VENCIDOS | N129: > 90 DIAS | P129: =IF(COUNTIF(D$6:D129,D129)=1,P128+1,P128) -> 44 | Q129: ASTRIB S.A.C. | R129: SECTOR SUR
B130: 2020-02-17 | C130: 121202 | D130: VICKO Y CO S.A. | E130: SECTOR CENTRO | F130: 0001-00068423 | G130: 2020-02-17 | H130: US | I130: 86,767.96 | J130: 86,767.96 | K130: 293,449.24 | L130: -92 | M130: POR COBRAR VENCIDOS | N130: > 90 DIAS | P130: =IF(COUNTIF(D$6:D130,D130)=1,P129+1,P129) -> 44 | Q130: VICKO Y CO S.A. | R130: SECTOR CENTRO
B131: 2020-03-09 | C131: 121201 | D131: INGEMEC PERU SAC | E131: SECTOR NORTE | F131: 0002-00075145 | G131: 2020-05-18 | H131: MN | I131: 86,697.11 | J131: 26,035.17 | K131: 86,697.11 | L131: -1 | M131: POR COBRAR VENCIDOS | N131: 15 DIAS | P131: =IF(COUNTIF(D$6:D131,D131)=1,P130+1,P130) -> 44 | Q131: INGEMEC PERU SAC | R131: SECTOR NORTE
B132: 2020-05-11 | C132: 121202 | D132: SERVICON S.A.C. | E132: SECTOR CENTRO | F132: 0001-00091941 | G132: 2020-05-11 | H132: US | I132: 51,375.08 | J132: 51,375.08 | K132: 172,312.02 | L132: -8 | M132: POR COBRAR VENCIDOS | N132: 15 DIAS | P132: =IF(COUNTIF(D$6:D132,D132)=1,P131+1,P131) -> 45 | Q132: SERVICON S.A.C. | R132: SECTOR CENTRO
B133: 2020-03-09 | C133: 121202 | D133: RV CONSULTORES SAC | E133: SECTOR ESTE | F133: 0005-00087495 | G133: 2020-05-04 | H133: MN | I133: 83,865.00 | J133: 24,959.82 | K133: 83,865.00 | L133: -15 | M133: POR COBRAR VENCIDOS | N133: 15 DIAS | P133: =IF(COUNTIF(D$6:D133,D133)=1,P132+1,P132) -> 45 | Q133: RV CONSULTORES SAC | R133: SECTOR ESTE
B134: 2020-02-17 | C134: 121201 | D134: OMNITEC S.R.L. | E134: SECTOR CENTRO | F134: 0001-00096666 | G134: 2020-04-13 | H134: US | I134: 61,816.10 | J134: 61,816.10 | K134: 204,425.84 | L134: -36 | M134: POR COBRAR VENCIDOS | N134: 45 DIAS | P134: =IF(COUNTIF(D$6:D134,D134)=1,P133+1,P133) -> 45 | Q134: =D134 -> OMNITEC S.R.L. | R134: SECTOR CENTRO
B135: 2019-12-23 | C135: 121201 | D135: DR GAS S.A.C. | E135: SECTOR OESTE | F135: 0004-00024432 | G135: 2020-03-16 | H135: MN | I135: 3,966.36 | J135: 1,191.46 | K135: 3,966.36 | L135: -64 | M135: POR COBRAR VENCIDOS | N135: 75 DIAS | P135: =IF(COUNTIF(D$6:D135,D135)=1,P134+1,P134) -> 45 | Q135: DR GAS S.A.C. | R135: SECTOR OESTE | U135: =IF(S135<>"",VLOOKUP(S135,$P$6:$R$1000,3,0),"") -> 
B136: 2020-04-20 | C136: 121202 | D136: L & C SERVIS EIRL | E136: SECTOR NORTE | F136: 0002-00072547 | G136: 2020-07-27 | H136: US | I136: 96,101.70 | J136: 96,101.70 | K136: 317,423.92 | L136: 69 | M136: POR COBRAR POR VENCER | N136: 75 DIAS | P136: =IF(COUNTIF(D$6:D136,D136)=1,P135+1,P135) -> 45 | Q136: L & C SERVIS EIRL | R136: SECTOR NORTE
B137: 2020-05-11 | C137: 121202 | D137: QUIMENSA EIRL | E137: SECTOR CENTRO | F137: 0001-00067703 | G137: 2020-07-20 | H137: US | I137: 97,512.22 | J137: 97,512.22 | K137: 330,371.40 | L137: 62 | M137: POR COBRAR POR VENCER | N137: 75 DIAS | P137: =IF(COUNTIF(D$6:D137,D137)=1,P136+1,P136) -> 45 | Q137: QUIMENSA EIRL | R137: SECTOR CENTRO
B138: 2020-01-13 | C138: 121201 | D138: J.D. PLASTIC S.A.C. | E138: SECTOR OESTE | F138: 0004-00027403 | G138: 2020-01-27 | H138: US | I138: 5,556.47 | J138: 5,556.47 | K138: 18,347.46 | L138: -113 | M138: POR COBRAR VENCIDOS | N138: > 90 DIAS | P138: =IF(COUNTIF(D$6:D138,D138)=1,P137+1,P137) -> 45 | Q138: J.D. PLASTIC S.A.C. | R138: SECTOR OESTE
B139: 2020-03-16 | C139: 121201 | D139: INGEMEC PERU SAC | E139: SECTOR ESTE | F139: 0005-00041768 | G139: 2020-05-11 | H139: US | I139: 25,340.46 | J139: 25,340.46 | K139: 84,865.20 | L139: -8 | M139: POR COBRAR VENCIDOS | N139: 15 DIAS | P139: =IF(COUNTIF(D$6:D139,D139)=1,P138+1,P138) -> 45 | Q139: INGEMEC PERU SAC | R139: SECTOR ESTE
B140: 2020-01-20 | C140: 121202 | D140: CHINANGO S.A.C. | E140: SECTOR OESTE | F140: 0004-00030738 | G140: 2020-02-03 | H140: MN | I140: 16,590.19 | J140: 4,905.44 | K140: 16,590.19 | L140: -106 | M140: POR COBRAR VENCIDOS | N140: > 90 DIAS | P140: =IF(COUNTIF(D$6:D140,D140)=1,P139+1,P139) -> 45 | Q140: CHINANGO S.A.C. | R140: SECTOR OESTE
B141: 2020-03-23 | C141: 121202 | D141: CALIGAS S.R.L. | E141: SECTOR SUR | F141: 0003-00071429 | G141: 2020-07-27 | H141: MN | I141: 98,062.38 | J141: 29,141.87 | K141: 98,062.38 | L141: 69 | M141: POR COBRAR POR VENCER | N141: 75 DIAS | P141: =IF(COUNTIF(D$6:D141,D141)=1,P140+1,P140) -> 45 | Q141: CALIGAS S.R.L. | R141: SECTOR SUR
B142: 2020-03-09 | C142: 121201 | D142: OMNITEC S.R.L. | E142: SECTOR OESTE | F142: 0004-00061849 | G142: 2020-06-29 | H142: MN | I142: 108,809.54 | J142: 32,695.17 | K142: 108,809.54 | L142: 41 | M142: POR COBRAR POR VENCER | N142: 45 DIAS | P142: =IF(COUNTIF(D$6:D142,D142)=1,P141+1,P141) -> 45 | Q142: OMNITEC S.R.L. | R142: SECTOR OESTE
B143: 2020-03-09 | C143: 121202 | D143: VAMER E.I.R.L | E143: SECTOR SUR | F143: 0003-00089757 | G143: 2020-04-06 | H143: MN | I143: 52,367.60 | J143: 15,557.81 | K143: 52,367.60 | L143: -43 | M143: POR COBRAR VENCIDOS | N143: 45 DIAS | P143: =IF(COUNTIF(D$6:D143,D143)=1,P142+1,P142) -> 45 | Q143: VAMER E.I.R.L | R143: SECTOR SUR
B144: 2019-11-04 | C144: 121201 | D144: ASTRIB S.A.C. | E144: SECTOR SUR | F144: 0003-00008527 | G144: 2020-01-27 | H144: MN | I144: 1,444.82 | J144: 429.62 | K144: 1,444.82 | L144: -113 | M144: POR COBRAR VENCIDOS | N144: > 90 DIAS | P144: =IF(COUNTIF(D$6:D144,D144)=1,P143+1,P143) -> 45 | Q144: ASTRIB S.A.C. | R144: SECTOR SUR
B145: 2020-03-02 | C145: 121201 | D145: LARCO PETS EIRL | E145: SECTOR OESTE | F145: 0004-00073672 | G145: 2020-03-16 | H145: MN | I145: 64,581.81 | J145: 19,101.39 | K145: 64,581.81 | L145: -64 | M145: POR COBRAR VENCIDOS | N145: 75 DIAS | P145: =IF(COUNTIF(D$6:D145,D145)=1,P144+1,P144) -> 45 | Q145: LARCO PETS EIRL | R145: SECTOR OESTE
B146: 2020-05-18 | C146: 121202 | D146: LARCO PETS EIRL | E146: SECTOR CENTRO | F146: 0001-00059791 | G146: 2020-08-10 | H146: MN | I146: 24,329.68 | J146: 7,223.78 | K146: 24,329.68 | L146: 83 | M146: POR COBRAR POR VENCER | N146: 90 DIAS | P146: =IF(COUNTIF(D$6:D146,D146)=1,P145+1,P145) -> 45 | Q146: LARCO PETS EIRL | R146: SECTOR CENTRO
B147: 2019-12-16 | C147: 121201 | D147: TECNO LASER S.A.C. | E147: SECTOR ESTE | F147: 0005-00021439 | G147: 2020-04-20 | H147: MN | I147: 5,849.75 | J147: 1,748.80 | K147: 5,849.75 | L147: -29 | M147: POR COBRAR VENCIDOS | N147: 30 DIAS | P147: =IF(COUNTIF(D$6:D147,D147)=1,P146+1,P146) -> 45 | Q147: TECNO LASER S.A.C. | R147: SECTOR ESTE
B148: 2020-04-13 | C148: 121202 | D148: RV CONSULTORES SAC | E148: SECTOR SUR | F148: 0003-00087992 | G148: 2020-08-17 | H148: MN | I148: 73,542.55 | J148: 21,966.11 | K148: 73,542.55 | L148: 90 | M148: POR COBRAR POR VENCER | N148: 90 DIAS | P148: =IF(COUNTIF(D$6:D148,D148)=1,P147+1,P147) -> 45 | Q148: RV CONSULTORES SAC | R148: SECTOR SUR
B149: 2020-03-23 | C149: 121202 | D149: OTUSS S.A.C. | E149: SECTOR SUR | F149: 0003-00056462 | G149: 2020-07-27 | H149: US | I149: 27,022.67 | J149: 27,022.67 | K149: 91,552.81 | L149: 69 | M149: POR COBRAR POR VENCER | N149: 75 DIAS | P149: =IF(COUNTIF(D$6:D149,D149)=1,P148+1,P148) -> 45 | Q149: OTUSS S.A.C. | R149: SECTOR SUR
B150: 2020-05-11 | C150: 121201 | D150: TROQPA SAC | E150: SECTOR ESTE | F150: 0005-00088069 | G150: 2020-05-25 | H150: MN | I150: 142,357.29 | J150: 42,507.40 | K150: 142,357.29 | L150: 6 | M150: POR COBRAR POR VENCER | N150: 15 DIAS | P150: =IF(COUNTIF(D$6:D150,D150)=1,P149+1,P149) -> 45 | Q150: TROQPA SAC | R150: SECTOR ESTE
B151: 2020-04-20 | C151: 121201 | D151: VICKO Y CO S.A. | E151: SECTOR NORTE | F151: 0002-00082361 | G151: 2020-06-01 | H151: US | I151: 55,010.02 | J151: 55,010.02 | K151: 186,979.06 | L151: 13 | M151: POR COBRAR POR VENCER | N151: 15 DIAS | P151: =IF(COUNTIF(D$6:D151,D151)=1,P150+1,P150) -> 45 | Q151: VICKO Y CO S.A. | R151: SECTOR NORTE
B152: 2020-05-18 | C152: 121202 | D152: A.C.D. S.R.L. | E152: SECTOR CENTRO | F152: 0001-00096269 | G152: 2020-09-07 | H152: US | I152: 58,080.37 | J152: 58,080.37 | K152: 196,776.29 | L152: 111 | M152: POR COBRAR POR VENCER | N152: > 90 DIAS | P152: =IF(COUNTIF(D$6:D152,D152)=1,P151+1,P151) -> 45 | Q152: A.C.D. S.R.L. | R152: SECTOR CENTRO
B153: 2020-05-18 | C153: 121201 | D153: CALIGAS S.R.L. | E153: SECTOR CENTRO | F153: 0001-00055810 | G153: 2020-09-21 | H153: US | I153: 19,805.46 | J153: 19,805.46 | K153: 65,417.43 | L153: 125 | M153: POR COBRAR POR VENCER | N153: > 90 DIAS | P153: =IF(COUNTIF(D$6:D153,D153)=1,P152+1,P152) -> 45 | Q153: CALIGAS S.R.L. | R153: SECTOR CENTRO
B154: 2020-02-24 | C154: 121201 | D154: OMNITEC S.R.L. | E154: SECTOR NORTE | F154: 0002-00097309 | G154: 2020-06-29 | H154: US | I154: 56,430.12 | J154: 56,430.12 | K154: 188,645.89 | L154: 41 | M154: POR COBRAR POR VENCER | N154: 45 DIAS | P154: =IF(COUNTIF(D$6:D154,D154)=1,P153+1,P153) -> 45 | Q154: OMNITEC S.R.L. | R154: SECTOR NORTE
B155: 2020-04-06 | C155: 121202 | D155: LA GRANJITA E.I.R.L | E155: SECTOR NORTE | F155: 0002-00074579 | G155: 2020-07-27 | H155: US | I155: 119,599.47 | J155: 119,599.47 | K155: 397,668.24 | L155: 69 | M155: POR COBRAR POR VENCER | N155: 75 DIAS | P155: =IF(COUNTIF(D$6:D155,D155)=1,P154+1,P154) -> 45 | Q155: LA GRANJITA E.I.R.L | R155: SECTOR NORTE
B156: 2019-12-16 | C156: 121202 | D156: CHINANGO S.A.C. | E156: SECTOR OESTE | F156: 0004-00023040 | G156: 2020-01-13 | H156: MN | I156: 12,966.26 | J156: 3,832.77 | K156: 12,966.26 | L156: -127 | M156: POR COBRAR VENCIDOS | N156: > 90 DIAS | P156: =IF(COUNTIF(D$6:D156,D156)=1,P155+1,P155) -> 45 | Q156: CHINANGO S.A.C. | R156: SECTOR OESTE
B157: 2020-03-23 | C157: 121202 | D157: AGRO SELECTO S.A.C. | E157: SECTOR NORTE | F157: 0002-00059577 | G157: 2020-06-01 | H157: US | I157: 27,212.85 | J157: 27,212.85 | K157: 89,829.62 | L157: 13 | M157: POR COBRAR POR VENCER | N157: 15 DIAS | P157: =IF(COUNTIF(D$6:D157,D157)=1,P156+1,P156) -> 46 | Q157: AGRO SELECTO S.A.C. | R157: SECTOR NORTE
B158: 2020-03-30 | C158: 121201 | D158: SEGURINDUSTRIA SA | E158: SECTOR CENTRO | F158: 0001-00044792 | G158: 2020-08-03 | H158: US | I158: 28,355.68 | J158: 28,355.68 | K158: 95,190.02 | L158: 76 | M158: POR COBRAR POR VENCER | N158: 90 DIAS | P158: =IF(COUNTIF(D$6:D158,D158)=1,P157+1,P157) -> 46 | Q158: SEGURINDUSTRIA SA | R158: SECTOR CENTRO
B159: 2020-03-09 | C159: 121201 | D159: OTUSS S.A.C. | E159: SECTOR NORTE | F159: 0002-00098054 | G159: 2020-05-04 | H159: MN | I159: 87,960.75 | J159: 26,116.61 | K159: 87,960.75 | L159: -15 | M159: POR COBRAR VENCIDOS | N159: 15 DIAS | P159: =IF(COUNTIF(D$6:D159,D159)=1,P158+1,P158) -> 46 | Q159: OTUSS S.A.C. | R159: SECTOR NORTE
B160: 2019-11-25 | C160: 121202 | D160: TECNO COLOR S R L | E160: SECTOR NORTE | F160: 0002-00019931 | G160: 2020-03-16 | H160: MN | I160: 4,417.55 | J160: 1,333.80 | K160: 4,417.55 | L160: -64 | M160: POR COBRAR VENCIDOS | N160: 75 DIAS | P160: =IF(COUNTIF(D$6:D160,D160)=1,P159+1,P159) -> 46 | Q160: TECNO COLOR S R L | R160: SECTOR NORTE
B161: 2020-01-27 | C161: 121202 | D161: ILOP S.A.C. | E161: SECTOR SUR | F161: 0003-00026849 | G161: 2020-04-20 | H161: US | I161: 4,645.78 | J161: 4,645.78 | K161: 15,679.51 | L161: -29 | M161: POR COBRAR VENCIDOS | N161: 30 DIAS | P161: =IF(COUNTIF(D$6:D161,D161)=1,P160+1,P160) -> 46 | Q161: ILOP S.A.C. | R161: SECTOR SUR
B162: 2020-02-17 | C162: 121202 | D162: VAMER E.I.R.L | E162: SECTOR ESTE | F162: 0005-00052311 | G162: 2020-06-08 | H162: MN | I162: 20,682.73 | J162: 6,101.10 | K162: 20,682.73 | L162: 20 | M162: POR COBRAR POR VENCER | N162: 30 DIAS | P162: =IF(COUNTIF(D$6:D162,D162)=1,P161+1,P161) -> 46 | Q162: VAMER E.I.R.L | R162: SECTOR ESTE
B163: 2019-08-19 | C163: 121201 | D163: GAS ANTONIO'S SAC | E163: SECTOR NORTE | F163: 0002-00008967 | G163: 2019-11-25 | H163: US | I163: 12,202.73 | J163: 12,202.73 | K163: 41,123.20 | L163: -176 | M163: POR COBRAR VENCIDOS | N163: > 90 DIAS | P163: =IF(COUNTIF(D$6:D163,D163)=1,P162+1,P162) -> 46 | Q163: GAS ANTONIO'S SAC | R163: SECTOR NORTE
B164: 2020-03-09 | C164: 121202 | D164: CINSA E.I.R.L | E164: SECTOR CENTRO | F164: 0001-00084618 | G164: 2020-04-20 | H164: US | I164: 90,720.80 | J164: 90,720.80 | K164: 307,452.79 | L164: -29 | M164: POR COBRAR VENCIDOS | N164: 30 DIAS | P164: =IF(COUNTIF(D$6:D164,D164)=1,P163+1,P163) -> 46 | Q164: CINSA E.I.R.L | R164: SECTOR CENTRO
B165: 2020-03-30 | C165: 121202 | D165: LARCO PETS EIRL | E165: SECTOR NORTE | F165: 0002-00058876 | G165: 2020-04-13 | H165: US | I165: 29,568.45 | J165: 29,568.45 | K165: 99,054.31 | L165: -36 | M165: POR COBRAR VENCIDOS | N165: 45 DIAS | P165: =IF(COUNTIF(D$6:D165,D165)=1,P164+1,P164) -> 46 | Q165: LARCO PETS EIRL | R165: SECTOR NORTE
B166: 2020-05-04 | C166: 121201 | D166: QUIMENSA EIRL | E166: SECTOR SUR | F166: 0003-00040520 | G166: 2020-07-27 | H166: MN | I166: 26,883.87 | J166: 8,104.87 | K166: 26,883.87 | L166: 69 | M166: POR COBRAR POR VENCER | N166: 75 DIAS | P166: =IF(COUNTIF(D$6:D166,D166)=1,P165+1,P165) -> 46 | Q166: QUIMENSA EIRL | R166: SECTOR SUR
B167: 2020-02-24 | C167: 121202 | D167: AGRO SELECTO S.A.C. | E167: SECTOR NORTE | F167: 0002-00093149 | G167: 2020-03-09 | H167: MN | I167: 122,326.28 | J167: 36,515.31 | K167: 122,326.28 | L167: -71 | M167: POR COBRAR VENCIDOS | N167: 75 DIAS | P167: =IF(COUNTIF(D$6:D167,D167)=1,P166+1,P166) -> 46 | Q167: AGRO SELECTO S.A.C. | R167: SECTOR NORTE
B168: 2020-02-17 | C168: 121202 | D168: KOZUMI PERU S.A. | E168: SECTOR OESTE | F168: 0004-00072923 | G168: 2020-03-02 | H168: US | I168: 107,182.62 | J168: 107,182.62 | K168: 364,420.91 | L168: -78 | M168: POR COBRAR VENCIDOS | N168: 90 DIAS | P168: =IF(COUNTIF(D$6:D168,D168)=1,P167+1,P167) -> 46 | Q168: KOZUMI PERU S.A. | R168: SECTOR OESTE
B169: 2020-03-23 | C169: 121202 | D169: VLALDO E.I.R.L. | E169: SECTOR ESTE | F169: 0005-00079207 | G169: 2020-04-20 | H169: US | I169: 139,574.05 | J169: 139,574.05 | K169: 473,714.33 | L169: -29 | M169: POR COBRAR VENCIDOS | N169: 30 DIAS | P169: =IF(COUNTIF(D$6:D169,D169)=1,P168+1,P168) -> 46 | Q169: VLALDO E.I.R.L. | R169: SECTOR ESTE
B170: 2020-01-13 | C170: 121202 | D170: CAO JINGHUI | E170: SECTOR SUR | F170: 0003-00037495 | G170: 2020-01-27 | H170: US | I170: 20,967.12 | J170: 20,967.12 | K170: 69,443.10 | L170: -113 | M170: POR COBRAR VENCIDOS | N170: > 90 DIAS | P170: =IF(COUNTIF(D$6:D170,D170)=1,P169+1,P169) -> 46 | Q170: CAO JINGHUI | R170: SECTOR SUR
B171: 2020-02-10 | C171: 121202 | D171: CAO JINGHUI | E171: SECTOR SUR | F171: 0003-00031389 | G171: 2020-05-18 | H171: US | I171: 25,157.03 | J171: 25,157.03 | K171: 83,345.24 | L171: -1 | M171: POR COBRAR VENCIDOS | N171: 15 DIAS | P171: =IF(COUNTIF(D$6:D171,D171)=1,P170+1,P170) -> 46 | Q171: CAO JINGHUI | R171: SECTOR SUR
B172: 2020-04-20 | C172: 121202 | D172: CONDORCO S.R.L. | E172: SECTOR OESTE | F172: 0004-00083441 | G172: 2020-06-15 | H172: MN | I172: 83,994.48 | J172: 24,726.08 | K172: 83,994.48 | L172: 27 | M172: POR COBRAR POR VENCER | N172: 30 DIAS | P172: =IF(COUNTIF(D$6:D172,D172)=1,P171+1,P171) -> 46 | Q172: CONDORCO S.R.L. | R172: SECTOR OESTE
B173: 2020-02-24 | C173: 121202 | D173: AGF VULCANO S.R.L. | E173: SECTOR SUR | F173: 0003-00057146 | G173: 2020-06-15 | H173: MN | I173: 15,459.56 | J173: 4,674.80 | K173: 15,459.56 | L173: 27 | M173: POR COBRAR POR VENCER | N173: 30 DIAS | P173: =IF(COUNTIF(D$6:D173,D173)=1,P172+1,P172) -> 46 | Q173: AGF VULCANO S.R.L. | R173: SECTOR SUR
B174: 2020-02-17 | C174: 121202 | D174: LA GRANJITA E.I.R.L | E174: SECTOR NORTE | F174: 0002-00095512 | G174: 2020-04-13 | H174: MN | I174: 79,862.86 | J174: 24,011.68 | K174: 79,862.86 | L174: -36 | M174: POR COBRAR VENCIDOS | N174: 45 DIAS | P174: =IF(COUNTIF(D$6:D174,D174)=1,P173+1,P173) -> 46 | Q174: LA GRANJITA E.I.R.L | R174: SECTOR NORTE
B175: 2020-03-09 | C175: 121201 | D175: ROBERCAR EIRL | E175: SECTOR OESTE | F175: 0004-00050926 | G175: 2020-07-13 | H175: US | I175: 17,366.62 | J175: 17,366.62 | K175: 57,691.91 | L175: 55 | M175: POR COBRAR POR VENCER | N175: 60 DIAS | P175: =IF(COUNTIF(D$6:D175,D175)=1,P174+1,P174) -> 46 | Q175: ROBERCAR EIRL | R175: SECTOR OESTE
B176: 2019-09-16 | C176: 121202 | D176: GAS ANTONIO'S SAC | E176: SECTOR SUR | F176: 0003-00007091 | G176: 2019-10-14 | H176: MN | I176: 12,831.12 | J176: 3,884.69 | K176: 12,831.12 | L176: -218 | M176: POR COBRAR VENCIDOS | N176: > 90 DIAS | P176: =IF(COUNTIF(D$6:D176,D176)=1,P175+1,P175) -> 46 | Q176: GAS ANTONIO'S SAC | R176: SECTOR SUR
B177: 2020-02-10 | C177: 121202 | D177: LIDER GRAFICO SRL | E177: SECTOR NORTE | F177: 0002-00035245 | G177: 2020-06-01 | H177: US | I177: 24,563.27 | J177: 24,563.27 | K177: 83,072.98 | L177: 13 | M177: POR COBRAR POR VENCER | N177: 15 DIAS | P177: =IF(COUNTIF(D$6:D177,D177)=1,P176+1,P176) -> 46 | Q177: LIDER GRAFICO SRL | R177: SECTOR NORTE
B178: 2020-04-20 | C178: 121202 | D178: OMNITEC S.R.L. | E178: SECTOR OESTE | F178: 0004-00072864 | G178: 2020-05-18 | H178: US | I178: 111,730.59 | J178: 111,730.59 | K178: 370,275.18 | L178: -1 | M178: POR COBRAR VENCIDOS | N178: 15 DIAS | P178: =IF(COUNTIF(D$6:D178,D178)=1,P177+1,P177) -> 46 | Q178: OMNITEC S.R.L. | R178: SECTOR OESTE
B179: 2020-02-03 | C179: 121202 | D179: TECNO LASER S.A.C. | E179: SECTOR OESTE | F179: 0004-00033972 | G179: 2020-04-13 | H179: MN | I179: 20,349.21 | J179: 6,129.28 | K179: 20,349.21 | L179: -36 | M179: POR COBRAR VENCIDOS | N179: 45 DIAS | P179: =IF(COUNTIF(D$6:D179,D179)=1,P178+1,P178) -> 46 | Q179: TECNO LASER S.A.C. | R179: SECTOR OESTE
B180: 2020-03-16 | C180: 121202 | D180: PENTAGRAF S.A.C. | E180: SECTOR OESTE | F180: 0004-00057021 | G180: 2020-06-08 | H180: US | I180: 27,309.39 | J180: 27,309.39 | K180: 92,442.29 | L180: 20 | M180: POR COBRAR POR VENCER | N180: 30 DIAS | P180: =IF(COUNTIF(D$6:D180,D180)=1,P179+1,P179) -> 46 | Q180: PENTAGRAF S.A.C. | R180: SECTOR OESTE
B181: 2019-11-18 | C181: 121202 | D181: CAO JINGHUI | E181: SECTOR NORTE | F181: 0002-00030203 | G181: 2019-11-18 | H181: MN | I181: 16,251.18 | J181: 4,848.20 | K181: 16,251.18 | L181: -183 | M181: POR COBRAR VENCIDOS | N181: > 90 DIAS | P181: =IF(COUNTIF(D$6:D181,D181)=1,P180+1,P180) -> 46 | Q181: CAO JINGHUI | R181: SECTOR NORTE
B182: 2020-05-18 | C182: 121201 | D182: LARCO PETS EIRL | E182: SECTOR NORTE | F182: 0002-00063007 | G182: 2020-06-01 | H182: US | I182: 51,754.60 | J182: 51,754.60 | K182: 174,464.76 | L182: 13 | M182: POR COBRAR POR VENCER | N182: 15 DIAS | P182: =IF(COUNTIF(D$6:D182,D182)=1,P181+1,P181) -> 46 | Q182: LARCO PETS EIRL | R182: SECTOR NORTE
B183: 2020-03-23 | C183: 121201 | D183: LA GRANJITA E.I.R.L | E183: SECTOR ESTE | F183: 0005-00041092 | G183: 2020-07-13 | H183: US | I183: 20,881.10 | J183: 20,881.10 | K183: 69,889.04 | L183: 55 | M183: POR COBRAR POR VENCER | N183: 60 DIAS | P183: =IF(COUNTIF(D$6:D183,D183)=1,P182+1,P182) -> 46 | Q183: LA GRANJITA E.I.R.L | R183: SECTOR ESTE
B184: 2020-05-11 | C184: 121202 | D184: CALIGAS S.R.L. | E184: SECTOR SUR | F184: 0003-00063074 | G184: 2020-05-25 | H184: MN | I184: 112,913.93 | J184: 33,475.82 | K184: 112,913.93 | L184: 6 | M184: POR COBRAR POR VENCER | N184: 15 DIAS | P184: =IF(COUNTIF(D$6:D184,D184)=1,P183+1,P183) -> 46 | Q184: CALIGAS S.R.L. | R184: SECTOR SUR
B185: 2020-03-23 | C185: 121202 | D185: A.C.D. S.R.L. | E185: SECTOR SUR | F185: 0003-00084439 | G185: 2020-06-15 | H185: US | I185: 75,522.48 | J185: 75,522.48 | K185: 256,096.73 | L185: 27 | M185: POR COBRAR POR VENCER | N185: 30 DIAS | P185: =IF(COUNTIF(D$6:D185,D185)=1,P184+1,P184) -> 46 | Q185: A.C.D. S.R.L. | R185: SECTOR SUR
B186: 2020-03-30 | C186: 121202 | D186: PENTAGRAF S.A.C. | E186: SECTOR SUR | F186: 0003-00041998 | G186: 2020-03-30 | H186: MN | I186: 16,051.50 | J186: 4,788.63 | K186: 16,051.50 | L186: -50 | M186: POR COBRAR VENCIDOS | N186: 60 DIAS | P186: =IF(COUNTIF(D$6:D186,D186)=1,P185+1,P185) -> 46 | Q186: PENTAGRAF S.A.C. | R186: SECTOR SUR
B187: 2019-11-18 | C187: 121201 | D187: LA BRETAÐA S.A.C. | E187: SECTOR ESTE | F187: 0005-00014518 | G187: 2019-12-16 | H187: MN | I187: 11,949.96 | J187: 3,518.83 | K187: 11,949.96 | L187: -155 | M187: POR COBRAR VENCIDOS | N187: > 90 DIAS | P187: =IF(COUNTIF(D$6:D187,D187)=1,P186+1,P186) -> 46 | Q187: LA BRETAÐA S.A.C. | R187: SECTOR ESTE
B188: 2019-09-23 | C188: 121202 | D188: GAS ANTONIO'S SAC | E188: SECTOR SUR | F188: 0003-00003551 | G188: 2019-09-23 | H188: MN | I188: 10,763.65 | J188: 3,173.25 | K188: 10,763.65 | L188: -239 | M188: POR COBRAR VENCIDOS | N188: > 90 DIAS | P188: =IF(COUNTIF(D$6:D188,D188)=1,P187+1,P187) -> 46 | Q188: GAS ANTONIO'S SAC | R188: SECTOR SUR
B189: 2019-12-30 | C189: 121202 | D189: TECNO LASER S.A.C. | E189: SECTOR SUR | F189: 0003-00034445 | G189: 2020-04-06 | H189: MN | I189: 15,286.67 | J189: 4,628.12 | K189: 15,286.67 | L189: -43 | M189: POR COBRAR VENCIDOS | N189: 45 DIAS | P189: =IF(COUNTIF(D$6:D189,D189)=1,P188+1,P188) -> 46 | Q189: TECNO LASER S.A.C. | R189: SECTOR SUR
B190: 2020-05-18 | C190: 121201 | D190: VICKO Y CO S.A. | E190: SECTOR CENTRO | F190: 0001-00077347 | G190: 2020-08-24 | H190: US | I190: 123,212.21 | J190: 123,212.21 | K190: 418,305.45 | L190: 97 | M190: POR COBRAR POR VENCER | N190: > 90 DIAS | P190: =IF(COUNTIF(D$6:D190,D190)=1,P189+1,P189) -> 46 | Q190: VICKO Y CO S.A. | R190: SECTOR CENTRO
B191: 2020-04-20 | C191: 121201 | D191: LA GRANJITA E.I.R.L | E191: SECTOR NORTE | F191: 0002-00079922 | G191: 2020-07-13 | H191: US | I191: 123,690.48 | J191: 123,690.48 | K191: 411,394.54 | L191: 55 | M191: POR COBRAR POR VENCER | N191: 60 DIAS | P191: =IF(COUNTIF(D$6:D191,D191)=1,P190+1,P190) -> 46 | Q191: LA GRANJITA E.I.R.L | R191: SECTOR NORTE
B192: 2020-02-24 | C192: 121201 | D192: INGEMEC PERU SAC | E192: SECTOR OESTE | F192: 0004-00053195 | G192: 2020-03-09 | H192: MN | I192: 27,515.37 | J192: 8,262.87 | K192: 27,515.37 | L192: -71 | M192: POR COBRAR VENCIDOS | N192: 75 DIAS | P192: =IF(COUNTIF(D$6:D192,D192)=1,P191+1,P191) -> 46 | Q192: INGEMEC PERU SAC | R192: SECTOR OESTE
B193: 2020-05-18 | C193: 121202 | D193: TROQPA SAC | E193: SECTOR CENTRO | F193: 0001-00074910 | G193: 2020-06-01 | H193: US | I193: 147,235.10 | J193: 147,235.10 | K193: 495,593.35 | L193: 13 | M193: POR COBRAR POR VENCER | N193: 15 DIAS | P193: =IF(COUNTIF(D$6:D193,D193)=1,P192+1,P192) -> 46 | Q193: TROQPA SAC | R193: SECTOR CENTRO
B194: 2020-04-27 | C194: 121202 | D194: LA GRANJITA E.I.R.L | E194: SECTOR OESTE | F194: 0004-00051096 | G194: 2020-06-22 | H194: US | I194: 25,866.06 | J194: 25,866.06 | K194: 85,358.00 | L194: 34 | M194: POR COBRAR POR VENCER | N194: 45 DIAS | P194: =IF(COUNTIF(D$6:D194,D194)=1,P193+1,P193) -> 46 | Q194: LA GRANJITA E.I.R.L | R194: SECTOR OESTE
B195: 2020-01-06 | C195: 121202 | D195: CYPRESS PERU S.A.C. | E195: SECTOR SUR | F195: 0003-00031802 | G195: 2020-05-11 | H195: MN | I195: 15,706.50 | J195: 4,638.66 | K195: 15,706.50 | L195: -8 | M195: POR COBRAR VENCIDOS | N195: 15 DIAS | P195: =IF(COUNTIF(D$6:D195,D195)=1,P194+1,P194) -> 46 | Q195: CYPRESS PERU S.A.C. | R195: SECTOR SUR
B196: 2020-01-06 | C196: 121202 | D196: 3E SERVICIOS S.A.C. | E196: SECTOR OESTE | F196: 0004-00010302 | G196: 2020-03-30 | H196: MN | I196: 4,095.59 | J196: 1,233.61 | K196: 4,095.59 | L196: -50 | M196: POR COBRAR VENCIDOS | N196: 60 DIAS | P196: =IF(COUNTIF(D$6:D196,D196)=1,P195+1,P195) -> 46 | Q196: 3E SERVICIOS S.A.C. | R196: SECTOR OESTE
B197: 2020-02-10 | C197: 121201 | D197: ARCPERU S.A.C. | E197: SECTOR ESTE | F197: 0005-00031412 | G197: 2020-04-06 | H197: MN | I197: 20,951.99 | J197: 6,215.36 | K197: 20,951.99 | L197: -43 | M197: POR COBRAR VENCIDOS | N197: 45 DIAS | P197: =IF(COUNTIF(D$6:D197,D197)=1,P196+1,P196) -> 47 | Q197: ARCPERU S.A.C. | R197: SECTOR ESTE
B198: 2019-12-30 | C198: 121202 | D198: SALVADOR LAZO FIDEL | E198: SECTOR OESTE | F198: 0004-00025363 | G198: 2020-03-09 | H198: US | I198: 624.22 | J198: 624.22 | K198: 2,121.10 | L198: -71 | M198: POR COBRAR VENCIDOS | N198: 75 DIAS | P198: =IF(COUNTIF(D$6:D198,D198)=1,P197+1,P197) -> 48 | Q198: =D198 -> SALVADOR LAZO FIDEL | R198: SECTOR OESTE
B199: 2019-12-16 | C199: 121202 | D199: LIDER GRAFICO SRL | E199: SECTOR ESTE | F199: 0005-00013497 | G199: 2019-12-16 | H199: MN | I199: 10,030.08 | J199: 3,014.75 | K199: 10,030.08 | L199: -155 | M199: POR COBRAR VENCIDOS | N199: > 90 DIAS | P199: =IF(COUNTIF(D$6:D199,D199)=1,P198+1,P198) -> 48 | Q199: LIDER GRAFICO SRL | R199: SECTOR ESTE | U199: =IF(S199<>"",VLOOKUP(S199,$P$6:$R$1000,3,0),"") -> 
B200: 2019-09-23 | C200: 121201 | D200: FIDUCIARIA GBC S.A. | E200: SECTOR SUR | F200: 0003-00001575 | G200: 2020-01-13 | H200: US | I200: 3,918.74 | J200: 3,918.74 | K200: 13,131.70 | L200: -127 | M200: POR COBRAR VENCIDOS | N200: > 90 DIAS | P200: =IF(COUNTIF(D$6:D200,D200)=1,P199+1,P199) -> 48 | Q200: FIDUCIARIA GBC S.A. | R200: SECTOR SUR
B201: 2019-11-25 | C201: 121202 | D201: TECNO COLOR S R L | E201: SECTOR ESTE | F201: 0005-00016638 | G201: 2020-03-16 | H201: US | I201: 13,094.94 | J201: 13,094.94 | K201: 43,475.20 | L201: -64 | M201: POR COBRAR VENCIDOS | N201: 75 DIAS | P201: =IF(COUNTIF(D$6:D201,D201)=1,P200+1,P200) -> 48 | Q201: TECNO COLOR S R L | R201: SECTOR ESTE
B202: 2020-04-20 | C202: 121201 | D202: L & C SERVIS EIRL | E202: SECTOR CENTRO | F202: 0001-00068176 | G202: 2020-06-29 | H202: MN | I202: 137,843.41 | J202: 41,456.66 | K202: 137,843.41 | L202: 41 | M202: POR COBRAR POR VENCER | N202: 45 DIAS | P202: =IF(COUNTIF(D$6:D202,D202)=1,P201+1,P201) -> 48 | Q202: L & C SERVIS EIRL | R202: SECTOR CENTRO
... 798 more rows

Sheet DO_REPORTE (hidden)
B1: Reporte de anticuamiento
B2: MOS - CPC Martín Cruz - 998401784
E4: POR COBRAR VENCIDOS | L4: TOTAL | M4: POR COBRAR POR VENCER | T4: TOTAL | U4: TOTAL GRAL
B6: OR | C6: CLIENTE | D6: SECTOR | E6: > 90 DIAS | F6: 90 DIAS | G6: 75 DIAS | H6: 60 DIAS | I6: 45 DIAS | J6: 30 DIAS | K6: 15 DIAS | M6: =OFFSET($L6,0,-COLUMNS($M$6:M$6)) -> 15 DIAS | N6: =OFFSET($L6,0,-COLUMNS($M$6:N$6)) -> 30 DIAS | O6: =OFFSET($L6,0,-COLUMNS($M$6:O$6)) -> 45 DIAS | P6: =OFFSET($L6,0,-COLUMNS($M$6:P$6)) -> 60 DIAS | Q6: =OFFSET($L6,0,-COLUMNS($M$6:Q$6)) -> 75 DIAS | R6: =OFFSET($L6,0,-COLUMNS($M$6:R$6)) -> 90 DIAS | S6: =OFFSET($L6,0,-COLUMNS($M$6:S$6)) -> > 90 DIAS
B7: =ROWS(B$7:B7) -> 1 | C7: =INDEX(DO_HTRABAJO!$T$6:$U$55,MATCH($B7,DO_HTRABAJO!$V$6:$V$55,0),1) -> 3E SERVICIOS S.A.C. | D7: =INDEX(DO_HTRABAJO!$T$6:$U$55,MATCH($B7,DO_HTRABAJO!$V$6:$V$55,0),2) -> SECTOR NORTE | E7: =SUMIFS(IF(DO_HTRABAJO!$AB$6="MN",DO_HTRABAJO!$K$6:$K$1000,DO_HTRABAJO!$J$6:$J$1000),DO_HTRABAJO!$D$6:$D$1000,$C7,DO_HTRABAJO!$E$6:$E$1000,$D7,DO_HTRABAJO!$M$6:$M$1000,$E$4,DO_HTRABAJO!$N$6:$N$1000,E$6) -> 98,127.14 | F7: =SUMIFS(IF(DO_HTRABAJO!$AB$6="MN",DO_HTRABAJO!$K$6:$K$1000,DO_HTRABAJO!$J$6:$J$1000),DO_HTRABAJO!$D$6:$D$1000,$C7,DO_HTRABAJO!$E$6:$E$1000,$D7,DO_HTRABAJO!$M$6:$M$1000,$E$4,DO_HTRABAJO!$N$6:$N$1000,F$6) -> 0 | G7: =SUMIFS(IF(DO_HTRABAJO!$AB$6="MN",DO_HTRABAJO!$K$6:$K$1000,DO_HTRABAJO!$J$6:$J$1000),DO_HTRABAJO!$D$6:$D$1000,$C7,DO_HTRABAJO!$E$6:$E$1000,$D7,DO_HTRABAJO!$M$6:$M$1000,$E$4,DO_HTRABAJO!$N$6:$N$1000,G$6) -> 0 | H7: =SUMIFS(IF(DO_HTRABAJO!$AB$6="MN",DO_HTRABAJO!$K$6:$K$1000,DO_HTRABAJO!$J$6:$J$1000),DO_HTRABAJO!$D$6:$D$1000,$C7,DO_HTRABAJO!$E$6:$E$1000,$D7,DO_HTRABAJO!$M$6:$M$1000,$E$4,DO_HTRABAJO!$N$6:$N$1000,H$6) -> 0 | I7: =SUMIFS(IF(DO_HTRABAJO!$AB$6="MN",DO_HTRABAJO!$K$6:$K$1000,DO_HTRABAJO!$J$6:$J$1000),DO_HTRABAJO!$D$6:$D$1000,$C7,DO_HTRABAJO!$E$6:$E$1000,$D7,DO_HTRABAJO!$M$6:$M$1000,$E$4,DO_HTRABAJO!$N$6:$N$1000,I$6) -> 17,618.28 | J7: =SUMIFS(IF(DO_HTRABAJO!$AB$6="MN",DO_HTRABAJO!$K$6:$K$1000,DO_HTRABAJO!$J$6:$J$1000),DO_HTRABAJO!$D$6:$D$1000,$C7,DO_HTRABAJO!$E$6:$E$1000,$D7,DO_HTRABAJO!$M$6:$M$1000,$E$4,DO_HTRABAJO!$N$6:$N$1000,J$6) -> 24,991.99 | K7: =SUMIFS(IF(DO_HTRABAJO!$AB$6="MN",DO_HTRABAJO!$K$6:$K$1000,DO_HTRABAJO!$J$6:$J$1000),DO_HTRABAJO!$D$6:$D$1000,$C7,DO_HTRABAJO!$E$6:$E$1000,$D7,DO_HTRABAJO!$M$6:$M$1000,$E$4,DO_HTRABAJO!$N$6:$N$1000,K$6) -> 0 | L7: =SUM(E7:K7) -> 140,737.41 | M7: =SUMIFS(IF(DO_HTRABAJO!$AB$6="MN",DO_HTRABAJO!$K$6:$K$1000,DO_HTRABAJO!$J$6:$J$1000),DO_HTRABAJO!$D$6:$D$1000,$C7,DO_HTRABAJO!$E$6:$E$1000,$D7,DO_HTRABAJO!$M$6:$M$1000,$M$4,DO_HTRABAJO!$N$6:$N$1000,M$6) -> 0 | N7: =SUMIFS(IF(DO_HTRABAJO!$AB$6="MN",DO_HTRABAJO!$K$6:$K$1000,DO_HTRABAJO!$J$6:$J$1000),DO_HTRABAJO!$D$6:$D$1000,$C7,DO_HTRABAJO!$E$6:$E$1000,$D7,DO_HTRABAJO!$M$6:$M$1000,$M$4,DO_HTRABAJO!$N$6:$N$1000,N$6) -> 0 | O7: =SUMIFS(IF(DO_HTRABAJO!$AB$6="MN",DO_HTRABAJO!$K$6:$K$1000,DO_HTRABAJO!$J$6:$J$1000),DO_HTRABAJO!$D$6:$D$1000,$C7,DO_HTRABAJO!$E$6:$E$1000,$D7,DO_HTRABAJO!$M$6:$M$1000,$M$4,DO_HTRABAJO!$N$6:$N$1000,O$6) -> 0 | P7: =SUMIFS(IF(DO_HTRABAJO!$AB$6="MN",DO_HTRABAJO!$K$6:$K$1000,DO_HTRABAJO!$J$6:$J$1000),DO_HTRABAJO!$D$6:$D$1000,$C7,DO_HTRABAJO!$E$6:$E$1000,$D7,DO_HTRABAJO!$M$6:$M$1000,$M$4,DO_HTRABAJO!$N$6:$N$1000,P$6) -> 0 | Q7: =SUMIFS(IF(DO_HTRABAJO!$AB$6="MN",DO_HTRABAJO!$K$6:$K$1000,DO_HTRABAJO!$J$6:$J$1000),DO_HTRABAJO!$D$6:$D$1000,$C7,DO_HTRABAJO!$E$6:$E$1000,$D7,DO_HTRABAJO!$M$6:$M$1000,$M$4,DO_HTRABAJO!$N$6:$N$1000,Q$6) -> 0 | R7: =SUMIFS(IF(DO_HTRABAJO!$AB$6="MN",DO_HTRABAJO!$K$6:$K$1000,DO_HTRABAJO!$J$6:$J$1000),DO_HTRABAJO!$D$6:$D$1000,$C7,DO_HTRABAJO!$E$6:$E$1000,$D7,DO_HTRABAJO!$M$6:$M$1000,$M$4,DO_HTRABAJO!$N$6:$N$1000,R$6) -> 0 | S7: =SUMIFS(IF(DO_HTRABAJO!$AB$6="MN",DO_HTRABAJO!$K$6:$K$1000,DO_HTRABAJO!$J$6:$J$1000),DO_HTRABAJO!$D$6:$D$1000,$C7,DO_HTRABAJO!$E$6:$E$1000,$D7,DO_HTRABAJO!$M$6:$M$1000,$M$4,DO_HTRABAJO!$N$6:$N$1000,S$6) -> 0 | T7: =SUM(M7:S7) -> 0 | U7: =SUM(L7,T7) -> 140,737.41
B8: =ROWS(B$7:B8) -> 2 | C8: =INDEX(DO_HTRABAJO!$T$6:$T$55,MATCH(B8,DO_HTRABAJO!$V$6:$V$55,0)) -> A.C.D. S.R.L. | D8: =INDEX(DO_HTRABAJO!$T$6:$U$55,MATCH($B8,DO_HTRABAJO!$V$6:$V$55,0),2) -> SECTOR SUR | E8: =SUMIFS(IF(DO_HTRABAJO!$AB$6="MN",DO_HTRABAJO!$K$6:$K$1000,DO_HTRABAJO!$J$6:$J$1000),DO_HTRABAJO!$D$6:$D$1000,$C8,DO_HTRABAJO!$E$6:$E$1000,$D8,DO_HTRABAJO!$M$6:$M$1000,$E$4,DO_HTRABAJO!$N$6:$N$1000,E$6) -> 286,353.98 | F8: =SUMIFS(IF(DO_HTRABAJO!$AB$6="MN",DO_HTRABAJO!$K$6:$K$1000,DO_HTRABAJO!$J$6:$J$1000),DO_HTRABAJO!$D$6:$D$1000,$C8,DO_HTRABAJO!$E$6:$E$1000,$D8,DO_HTRABAJO!$M$6:$M$1000,$E$4,DO_HTRABAJO!$N$6:$N$1000,F$6) -> 83,694.98 | G8: =SUMIFS(IF(DO_HTRABAJO!$AB$6="MN",DO_HTRABAJO!$K$6:$K$1000,DO_HTRABAJO!$J$6:$J$1000),DO_HTRABAJO!$D$6:$D$1000,$C8,DO_HTRABAJO!$E$6:$E$1000,$D8,DO_HTRABAJO!$M$6:$M$1000,$E$4,DO_HTRABAJO!$N$6:$N$1000,G$6) -> 0 | H8: =SUMIFS(IF(DO_HTRABAJO!$AB$6="MN",DO_HTRABAJO!$K$6:$K$1000,DO_HTRABAJO!$J$6:$J$1000),DO_HTRABAJO!$D$6:$D$1000,$C8,DO_HTRABAJO!$E$6:$E$1000,$D8,DO_HTRABAJO!$M$6:$M$1000,$E$4,DO_HTRABAJO!$N$6:$N$1000,H$6) -> 0 | I8: =SUMIFS(IF(DO_HTRABAJO!$AB$6="MN",DO_HTRABAJO!$K$6:$K$1000,DO_HTRABAJO!$J$6:$J$1000),DO_HTRABAJO!$D$6:$D$1000,$C8,DO_HTRABAJO!$E$6:$E$1000,$D8,DO_HTRABAJO!$M$6:$M$1000,$E$4,DO_HTRABAJO!$N$6:$N$1000,I$6) -> 0 | J8: =SUMIFS(IF(DO_HTRABAJO!$AB$6="MN",DO_HTRABAJO!$K$6:$K$1000,DO_HTRABAJO!$J$6:$J$1000),DO_HTRABAJO!$D$6:$D$1000,$C8,DO_HTRABAJO!$E$6:$E$1000,$D8,DO_HTRABAJO!$M$6:$M$1000,$E$4,DO_HTRABAJO!$N$6:$N$1000,J$6) -> 202,659.00 | K8: =SUMIFS(IF(DO_HTRABAJO!$AB$6="MN",DO_HTRABAJO!$K$6:$K$1000,DO_HTRABAJO!$J$6:$J$1000),DO_HTRABAJO!$D$6:$D$1000,$C8,DO_HTRABAJO!$E$6:$E$1000,$D8,DO_HTRABAJO!$M$6:$M$1000,$E$4,DO_HTRABAJO!$N$6:$N$1000,K$6) -> 0 | L8: 572,707.96 | M8: =SUMIFS(IF(DO_HTRABAJO!$AB$6="MN",DO_HTRABAJO!$K$6:$K$1000,DO_HTRABAJO!$J$6:$J$1000),DO_HTRABAJO!$D$6:$D$1000,$C8,DO_HTRABAJO!$E$6:$E$1000,$D8,DO_HTRABAJO!$M$6:$M$1000,$M$4,DO_HTRABAJO!$N$6:$N$1000,M$6) -> 0 | N8: =SUMIFS(IF(DO_HTRABAJO!$AB$6="MN",DO_HTRABAJO!$K$6:$K$1000,DO_HTRABAJO!$J$6:$J$1000),DO_HTRABAJO!$D$6:$D$1000,$C8,DO_HTRABAJO!$E$6:$E$1000,$D8,DO_HTRABAJO!$M$6:$M$1000,$M$4,DO_HTRABAJO!$N$6:$N$1000,N$6) -> 75,522.48 | O8: =SUMIFS(IF(DO_HTRABAJO!$AB$6="MN",DO_HTRABAJO!$K$6:$K$1000,DO_HTRABAJO!$J$6:$J$1000),DO_HTRABAJO!$D$6:$D$1000,$C8,DO_HTRABAJO!$E$6:$E$1000,$D8,DO_HTRABAJO!$M$6:$M$1000,$M$4,DO_HTRABAJO!$N$6:$N$1000,O$6) -> 0 | P8: =SUMIFS(IF(DO_HTRABAJO!$AB$6="MN",DO_HTRABAJO!$K$6:$K$1000,DO_HTRABAJO!$J$6:$J$1000),DO_HTRABAJO!$D$6:$D$1000,$C8,DO_HTRABAJO!$E$6:$E$1000,$D8,DO_HTRABAJO!$M$6:$M$1000,$M$4,DO_HTRABAJO!$N$6:$N$1000,P$6) -> 15,097.63 | Q8: =SUMIFS(IF(DO_HTRABAJO!$AB$6="MN",DO_HTRABAJO!$K$6:$K$1000,DO_HTRABAJO!$J$6:$J$1000),DO_HTRABAJO!$D$6:$D$1000,$C8,DO_HTRABAJO!$E$6:$E$1000,$D8,DO_HTRABAJO!$M$6:$M$1000,$M$4,DO_HTRABAJO!$N$6:$N$1000,Q$6) -> 0 | R8: =SUMIFS(IF(DO_HTRABAJO!$AB$6="MN",DO_HTRABAJO!$K$6:$K$1000,DO_HTRABAJO!$J$6:$J$1000),DO_HTRABAJO!$D$6:$D$1000,$C8,DO_HTRABAJO!$E$6:$E$1000,$D8,DO_HTRABAJO!$M$6:$M$1000,$M$4,DO_HTRABAJO!$N$6:$N$1000,R$6) -> 0 | S8: =SUMIFS(IF(DO_HTRABAJO!$AB$6="MN",DO_HTRABAJO!$K$6:$K$1000,DO_HTRABAJO!$J$6:$J$1000),DO_HTRABAJO!$D$6:$D$1000,$C8,DO_HTRABAJO!$E$6:$E$1000,$D8,DO_HTRABAJO!$M$6:$M$1000,$M$4,DO_HTRABAJO!$N$6:$N$1000,S$6) -> 187,337.31 | T8: =SUM(M8:S8) -> 277,957.42 | U8: =SUM(L8,T8) -> 850,665.38
B9: =ROWS(B$7:B9) -> 3 | C9: =INDEX(DO_HTRABAJO!$T$6:$T$55,MATCH(B9,DO_HTRABAJO!$V$6:$V$55,0)) -> AGF VULCANO S.R.L. | D9: =INDEX(DO_HTRABAJO!$T$6:$U$55,MATCH($B9,DO_HTRABAJO!$V$6:$V$55,0),2) -> SECTOR CENTRO | E9: =SUMIFS(IF(DO_HTRABAJO!$AB$6="MN",DO_HTRABAJO!$K$6:$K$1000,DO_HTRABAJO!$J$6:$J$1000),DO_HTRABAJO!$D$6:$D$1000,$C9,DO_HTRABAJO!$E$6:$E$1000,$D9,DO_HTRABAJO!$M$6:$M$1000,$E$4,DO_HTRABAJO!$N$6:$N$1000,E$6) -> 53,774.90 | F9: =SUMIFS(IF(DO_HTRABAJO!$AB$6="MN",DO_HTRABAJO!$K$6:$K$1000,DO_HTRABAJO!$J$6:$J$1000),DO_HTRABAJO!$D$6:$D$1000,$C9,DO_HTRABAJO!$E$6:$E$1000,$D9,DO_HTRABAJO!$M$6:$M$1000,$E$4,DO_HTRABAJO!$N$6:$N$1000,F$6) -> 0 | G9: =SUMIFS(IF(DO_HTRABAJO!$AB$6="MN",DO_HTRABAJO!$K$6:$K$1000,DO_HTRABAJO!$J$6:$J$1000),DO_HTRABAJO!$D$6:$D$1000,$C9,DO_HTRABAJO!$E$6:$E$1000,$D9,DO_HTRABAJO!$M$6:$M$1000,$E$4,DO_HTRABAJO!$N$6:$N$1000,G$6) -> 24,891.74 | H9: =SUMIFS(IF(DO_HTRABAJO!$AB$6="MN",DO_HTRABAJO!$K$6:$K$1000,DO_HTRABAJO!$J$6:$J$1000),DO_HTRABAJO!$D$6:$D$1000,$C9,DO_HTRABAJO!$E$6:$E$1000,$D9,DO_HTRABAJO!$M$6:$M$1000,$E$4,DO_HTRABAJO!$N$6:$N$1000,H$6) -> 0 | I9: =SUMIFS(IF(DO_HTRABAJO!$AB$6="MN",DO_HTRABAJO!$K$6:$K$1000,DO_HTRABAJO!$J$6:$J$1000),DO_HTRABAJO!$D$6:$D$1000,$C9,DO_HTRABAJO!$E$6:$E$1000,$D9,DO_HTRABAJO!$M$6:$M$1000,$E$4,DO_HTRABAJO!$N$6:$N$1000,I$6) -> 28,883.16 | J9: =SUMIFS(IF(DO_HTRABAJO!$AB$6="MN",DO_HTRABAJO!$K$6:$K$1000,DO_HTRABAJO!$J$6:$J$1000),DO_HTRABAJO!$D$6:$D$1000,$C9,DO_HTRABAJO!$E$6:$E$1000,$D9,DO_HTRABAJO!$M$6:$M$1000,$E$4,DO_HTRABAJO!$N$6:$N$1000,J$6) -> 0 | K9: =SUMIFS(IF(DO_HTRABAJO!$AB$6="MN",DO_HTRABAJO!$K$6:$K$1000,DO_HTRABAJO!$J$6:$J$1000),DO_HTRABAJO!$D$6:$D$1000,$C9,DO_HTRABAJO!$E$6:$E$1000,$D9,DO_HTRABAJO!$M$6:$M$1000,$E$4,DO_HTRABAJO!$N$6:$N$1000,K$6) -> 0 | L9: 107,549.80 | M9: =SUMIFS(IF(DO_HTRABAJO!$AB$6="MN",DO_HTRABAJO!$K$6:$K$1000,DO_HTRABAJO!$J$6:$J$1000),DO_HTRABAJO!$D$6:$D$1000,$C9,DO_HTRABAJO!$E$6:$E$1000,$D9,DO_HTRABAJO!$M$6:$M$1000,$M$4,DO_HTRABAJO!$N$6:$N$1000,M$6) -> 0 | N9: =SUMIFS(IF(DO_HTRABAJO!$AB$6="MN",DO_HTRABAJO!$K$6:$K$1000,DO_HTRABAJO!$J$6:$J$1000),DO_HTRABAJO!$D$6:$D$1000,$C9,DO_HTRABAJO!$E$6:$E$1000,$D9,DO_HTRABAJO!$M$6:$M$1000,$M$4,DO_HTRABAJO!$N$6:$N$1000,N$6) -> 21,748.65 | O9: =SUMIFS(IF(DO_HTRABAJO!$AB$6="MN",DO_HTRABAJO!$K$6:$K$1000,DO_HTRABAJO!$J$6:$J$1000),DO_HTRABAJO!$D$6:$D$1000,$C9,DO_HTRABAJO!$E$6:$E$1000,$D9,DO_HTRABAJO!$M$6:$M$1000,$M$4,DO_HTRABAJO!$N$6:$N$1000,O$6) -> 25,736.69 | P9: =SUMIFS(IF(DO_HTRABAJO!$AB$6="MN",DO_HTRABAJO!$K$6:$K$1000,DO_HTRABAJO!$J$6:$J$1000),DO_HTRABAJO!$D$6:$D$1000,$C9,DO_HTRABAJO!$E$6:$E$1000,$D9,DO_HTRABAJO!$M$6:$M$1000,$M$4,DO_HTRABAJO!$N$6:$N$1000,P$6) -> 0 | Q9: =SUMIFS(IF(DO_HTRABAJO!$AB$6="MN",DO_HTRABAJO!$K$6:$K$1000,DO_HTRABAJO!$J$6:$J$1000),DO_HTRABAJO!$D$6:$D$1000,$C9,DO_HTRABAJO!$E$6:$E$1000,$D9,DO_HTRABAJO!$M$6:$M$1000,$M$4,DO_HTRABAJO!$N$6:$N$1000,Q$6) -> 0 | R9: =SUMIFS(IF(DO_HTRABAJO!$AB$6="MN",DO_HTRABAJO!$K$6:$K$1000,DO_HTRABAJO!$J$6:$J$1000),DO_HTRABAJO!$D$6:$D$1000,$C9,DO_HTRABAJO!$E$6:$E$1000,$D9,DO_HTRABAJO!$M$6:$M$1000,$M$4,DO_HTRABAJO!$N$6:$N$1000,R$6) -> 55,869.00 | S9: =SUMIFS(IF(DO_HTRABAJO!$AB$6="MN",DO_HTRABAJO!$K$6:$K$1000,DO_HTRABAJO!$J$6:$J$1000),DO_HTRABAJO!$D$6:$D$1000,$C9,DO_HTRABAJO!$E$6:$E$1000,$D9,DO_HTRABAJO!$M$6:$M$1000,$M$4,DO_HTRABAJO!$N$6:$N$1000,S$6) -> 103,354.34 | T9: 206,708.68 | U9: 314,258.48
B10: =ROWS(B$7:B10) -> 4 | C10: =INDEX(DO_HTRABAJO!$T$6:$T$55,MATCH(B10,DO_HTRABAJO!$V$6:$V$55,0)) -> AGRO SELECTO S.A.C. | D10: =INDEX(DO_HTRABAJO!$T$6:$U$55,MATCH($B10,DO_HTRABAJO!$V$6:$V$55,0),2) -> SECTOR NORTE | E10: =SUMIFS(IF(DO_HTRABAJO!$AB$6="MN",DO_HTRABAJO!$K$6:$K$1000,DO_HTRABAJO!$J$6:$J$1000),DO_HTRABAJO!$D$6:$D$1000,$C10,DO_HTRABAJO!$E$6:$E$1000,$D10,DO_HTRABAJO!$M$6:$M$1000,$E$4,DO_HTRABAJO!$N$6:$N$1000,E$6) -> 57,750.55 | F10: =SUMIFS(IF(DO_HTRABAJO!$AB$6="MN",DO_HTRABAJO!$K$6:$K$1000,DO_HTRABAJO!$J$6:$J$1000),DO_HTRABAJO!$D$6:$D$1000,$C10,DO_HTRABAJO!$E$6:$E$1000,$D10,DO_HTRABAJO!$M$6:$M$1000,$E$4,DO_HTRABAJO!$N$6:$N$1000,F$6) -> 0 | G10: =SUMIFS(IF(DO_HTRABAJO!$AB$6="MN",DO_HTRABAJO!$K$6:$K$1000,DO_HTRABAJO!$J$6:$J$1000),DO_HTRABAJO!$D$6:$D$1000,$C10,DO_HTRABAJO!$E$6:$E$1000,$D10,DO_HTRABAJO!$M$6:$M$1000,$E$4,DO_HTRABAJO!$N$6:$N$1000,G$6) -> 36,515.31 | H10: =SUMIFS(IF(DO_HTRABAJO!$AB$6="MN",DO_HTRABAJO!$K$6:$K$1000,DO_HTRABAJO!$J$6:$J$1000),DO_HTRABAJO!$D$6:$D$1000,$C10,DO_HTRABAJO!$E$6:$E$1000,$D10,DO_HTRABAJO!$M$6:$M$1000,$E$4,DO_HTRABAJO!$N$6:$N$1000,H$6) -> 0 | I10: =SUMIFS(IF(DO_HTRABAJO!$AB$6="MN",DO_HTRABAJO!$K$6:$K$1000,DO_HTRABAJO!$J$6:$J$1000),DO_HTRABAJO!$D$6:$D$1000,$C10,DO_HTRABAJO!$E$6:$E$1000,$D10,DO_HTRABAJO!$M$6:$M$1000,$E$4,DO_HTRABAJO!$N$6:$N$1000,I$6) -> 0 | J10: =SUMIFS(IF(DO_HTRABAJO!$AB$6="MN",DO_HTRABAJO!$K$6:$K$1000,DO_HTRABAJO!$J$6:$J$1000),DO_HTRABAJO!$D$6:$D$1000,$C10,DO_HTRABAJO!$E$6:$E$1000,$D10,DO_HTRABAJO!$M$6:$M$1000,$E$4,DO_HTRABAJO!$N$6:$N$1000,J$6) -> 21,235.24 | K10: =SUMIFS(IF(DO_HTRABAJO!$AB$6="MN",DO_HTRABAJO!$K$6:$K$1000,DO_HTRABAJO!$J$6:$J$1000),DO_HTRABAJO!$D$6:$D$1000,$C10,DO_HTRABAJO!$E$6:$E$1000,$D10,DO_HTRABAJO!$M$6:$M$1000,$E$4,DO_HTRABAJO!$N$6:$N$1000,K$6) -> 0 | L10: 115,501.10 | M10: =SUMIFS(IF(DO_HTRABAJO!$AB$6="MN",DO_HTRABAJO!$K$6:$K$1000,DO_HTRABAJO!$J$6:$J$1000),DO_HTRABAJO!$D$6:$D$1000,$C10,DO_HTRABAJO!$E$6:$E$1000,$D10,DO_HTRABAJO!$M$6:$M$1000,$M$4,DO_HTRABAJO!$N$6:$N$1000,M$6) -> 27,212.85 | N10: =SUMIFS(IF(DO_HTRABAJO!$AB$6="MN",DO_HTRABAJO!$K$6:$K$1000,DO_HTRABAJO!$J$6:$J$1000),DO_HTRABAJO!$D$6:$D$1000,$C10,DO_HTRABAJO!$E$6:$E$1000,$D10,DO_HTRABAJO!$M$6:$M$1000,$M$4,DO_HTRABAJO!$N$6:$N$1000,N$6) -> 0 | O10: =SUMIFS(IF(DO_HTRABAJO!$AB$6="MN",DO_HTRABAJO!$K$6:$K$1000,DO_HTRABAJO!$J$6:$J$1000),DO_HTRABAJO!$D$6:$D$1000,$C10,DO_HTRABAJO!$E$6:$E$1000,$D10,DO_HTRABAJO!$M$6:$M$1000,$M$4,DO_HTRABAJO!$N$6:$N$1000,O$6) -> 185,415.16 | P10: =SUMIFS(IF(DO_HTRABAJO!$AB$6="MN",DO_HTRABAJO!$K$6:$K$1000,DO_HTRABAJO!$J$6:$J$1000),DO_HTRABAJO!$D$6:$D$1000,$C10,DO_HTRABAJO!$E$6:$E$1000,$D10,DO_HTRABAJO!$M$6:$M$1000,$M$4,DO_HTRABAJO!$N$6:$N$1000,P$6) -> 0 | Q10: =SUMIFS(IF(DO_HTRABAJO!$AB$6="MN",DO_HTRABAJO!$K$6:$K$1000,DO_HTRABAJO!$J$6:$J$1000),DO_HTRABAJO!$D$6:$D$1000,$C10,DO_HTRABAJO!$E$6:$E$1000,$D10,DO_HTRABAJO!$M$6:$M$1000,$M$4,DO_HTRABAJO!$N$6:$N$1000,Q$6) -> 0 | R10: =SUMIFS(IF(DO_HTRABAJO!$AB$6="MN",DO_HTRABAJO!$K$6:$K$1000,DO_HTRABAJO!$J$6:$J$1000),DO_HTRABAJO!$D$6:$D$1000,$C10,DO_HTRABAJO!$E$6:$E$1000,$D10,DO_HTRABAJO!$M$6:$M$1000,$M$4,DO_HTRABAJO!$N$6:$N$1000,R$6) -> 0 | S10: =SUMIFS(IF(DO_HTRABAJO!$AB$6="MN",DO_HTRABAJO!$K$6:$K$1000,DO_HTRABAJO!$J$6:$J$1000),DO_HTRABAJO!$D$6:$D$1000,$C10,DO_HTRABAJO!$E$6:$E$1000,$D10,DO_HTRABAJO!$M$6:$M$1000,$M$4,DO_HTRABAJO!$N$6:$N$1000,S$6) -> 212,628.01 | T10: 425,256.03 | U10: 540,757.13
B11: =ROWS(B$7:B11) -> 5 | C11: =INDEX(DO_HTRABAJO!$T$6:$T$55,MATCH(B11,DO_HTRABAJO!$V$6:$V$55,0)) -> ARCPERU S.A.C. | D11: =INDEX(DO_HTRABAJO!$T$6:$U$55,MATCH($B11,DO_HTRABAJO!$V$6:$V$55,0),2) -> SECTOR ESTE | E11: =SUMIFS(IF(DO_HTRABAJO!$AB$6="MN",DO_HTRABAJO!$K$6:$K$1000,DO_HTRABAJO!$J$6:$J$1000),DO_HTRABAJO!$D$6:$D$1000,$C11,DO_HTRABAJO!$E$6:$E$1000,$D11,DO_HTRABAJO!$M$6:$M$1000,$E$4,DO_HTRABAJO!$N$6:$N$1000,E$6) -> 55,945.32 | F11: =SUMIFS(IF(DO_HTRABAJO!$AB$6="MN",DO_HTRABAJO!$K$6:$K$1000,DO_HTRABAJO!$J$6:$J$1000),DO_HTRABAJO!$D$6:$D$1000,$C11,DO_HTRABAJO!$E$6:$E$1000,$D11,DO_HTRABAJO!$M$6:$M$1000,$E$4,DO_HTRABAJO!$N$6:$N$1000,F$6) -> 30,396.34 | G11: =SUMIFS(IF(DO_HTRABAJO!$AB$6="MN",DO_HTRABAJO!$K$6:$K$1000,DO_HTRABAJO!$J$6:$J$1000),DO_HTRABAJO!$D$6:$D$1000,$C11,DO_HTRABAJO!$E$6:$E$1000,$D11,DO_HTRABAJO!$M$6:$M$1000,$E$4,DO_HTRABAJO!$N$6:$N$1000,G$6) -> 0 | H11: =SUMIFS(IF(DO_HTRABAJO!$AB$6="MN",DO_HTRABAJO!$K$6:$K$1000,DO_HTRABAJO!$J$6:$J$1000),DO_HTRABAJO!$D$6:$D$1000,$C11,DO_HTRABAJO!$E$6:$E$1000,$D11,DO_HTRABAJO!$M$6:$M$1000,$E$4,DO_HTRABAJO!$N$6:$N$1000,H$6) -> 5,236.89 | I11: =SUMIFS(IF(DO_HTRABAJO!$AB$6="MN",DO_HTRABAJO!$K$6:$K$1000,DO_HTRABAJO!$J$6:$J$1000),DO_HTRABAJO!$D$6:$D$1000,$C11,DO_HTRABAJO!$E$6:$E$1000,$D11,DO_HTRABAJO!$M$6:$M$1000,$E$4,DO_HTRABAJO!$N$6:$N$1000,I$6) -> 6,215.36 | J11: =SUMIFS(IF(DO_HTRABAJO!$AB$6="MN",DO_HTRABAJO!$K$6:$K$1000,DO_HTRABAJO!$J$6:$J$1000),DO_HTRABAJO!$D$6:$D$1000,$C11,DO_HTRABAJO!$E$6:$E$1000,$D11,DO_HTRABAJO!$M$6:$M$1000,$E$4,DO_HTRABAJO!$N$6:$N$1000,J$6) -> 0 | K11: =SUMIFS(IF(DO_HTRABAJO!$AB$6="MN",DO_HTRABAJO!$K$6:$K$1000,DO_HTRABAJO!$J$6:$J$1000),DO_HTRABAJO!$D$6:$D$1000,$C11,DO_HTRABAJO!$E$6:$E$1000,$D11,DO_HTRABAJO!$M$6:$M$1000,$E$4,DO_HTRABAJO!$N$6:$N$1000,K$6) -> 1,271.61 | L11: 99,065.53 | M11: =SUMIFS(IF(DO_HTRABAJO!$AB$6="MN",DO_HTRABAJO!$K$6:$K$1000,DO_HTRABAJO!$J$6:$J$1000),DO_HTRABAJO!$D$6:$D$1000,$C11,DO_HTRABAJO!$E$6:$E$1000,$D11,DO_HTRABAJO!$M$6:$M$1000,$M$4,DO_HTRABAJO!$N$6:$N$1000,M$6) -> 0 | N11: =SUMIFS(IF(DO_HTRABAJO!$AB$6="MN",DO_HTRABAJO!$K$6:$K$1000,DO_HTRABAJO!$J$6:$J$1000),DO_HTRABAJO!$D$6:$D$1000,$C11,DO_HTRABAJO!$E$6:$E$1000,$D11,DO_HTRABAJO!$M$6:$M$1000,$M$4,DO_HTRABAJO!$N$6:$N$1000,N$6) -> 14,101.55 | O11: =SUMIFS(IF(DO_HTRABAJO!$AB$6="MN",DO_HTRABAJO!$K$6:$K$1000,DO_HTRABAJO!$J$6:$J$1000),DO_HTRABAJO!$D$6:$D$1000,$C11,DO_HTRABAJO!$E$6:$E$1000,$D11,DO_HTRABAJO!$M$6:$M$1000,$M$4,DO_HTRABAJO!$N$6:$N$1000,O$6) -> 0 | P11: =SUMIFS(IF(DO_HTRABAJO!$AB$6="MN",DO_HTRABAJO!$K$6:$K$1000,DO_HTRABAJO!$J$6:$J$1000),DO_HTRABAJO!$D$6:$D$1000,$C11,DO_HTRABAJO!$E$6:$E$1000,$D11,DO_HTRABAJO!$M$6:$M$1000,$M$4,DO_HTRABAJO!$N$6:$N$1000,P$6) -> 0 | Q11: =SUMIFS(IF(DO_HTRABAJO!$AB$6="MN",DO_HTRABAJO!$K$6:$K$1000,DO_HTRABAJO!$J$6:$J$1000),DO_HTRABAJO!$D$6:$D$1000,$C11,DO_HTRABAJO!$E$6:$E$1000,$D11,DO_HTRABAJO!$M$6:$M$1000,$M$4,DO_HTRABAJO!$N$6:$N$1000,Q$6) -> 0 | R11: =SUMIFS(IF(DO_HTRABAJO!$AB$6="MN",DO_HTRABAJO!$K$6:$K$1000,DO_HTRABAJO!$J$6:$J$1000),DO_HTRABAJO!$D$6:$D$1000,$C11,DO_HTRABAJO!$E$6:$E$1000,$D11,DO_HTRABAJO!$M$6:$M$1000,$M$4,DO_HTRABAJO!$N$6:$N$1000,R$6) -> 0 | S11: =SUMIFS(IF(DO_HTRABAJO!$AB$6="MN",DO_HTRABAJO!$K$6:$K$1000,DO_HTRABAJO!$J$6:$J$1000),DO_HTRABAJO!$D$6:$D$1000,$C11,DO_HTRABAJO!$E$6:$E$1000,$D11,DO_HTRABAJO!$M$6:$M$1000,$M$4,DO_HTRABAJO!$N$6:$N$1000,S$6) -> 14,101.55 | T11: 28,203.10 | U11: 127,268.63
B12: =ROWS(B$7:B12) -> 6 | C12: =INDEX(DO_HTRABAJO!$T$6:$T$55,MATCH(B12,DO_HTRABAJO!$V$6:$V$55,0)) -> ARPE EIRL | D12: =INDEX(DO_HTRABAJO!$T$6:$U$55,MATCH($B12,DO_HTRABAJO!$V$6:$V$55,0),2) -> SECTOR OESTE | E12: =SUMIFS(IF(DO_HTRABAJO!$AB$6="MN",DO_HTRABAJO!$K$6:$K$1000,DO_HTRABAJO!$J$6:$J$1000),DO_HTRABAJO!$D$6:$D$1000,$C12,DO_HTRABAJO!$E$6:$E$1000,$D12,DO_HTRABAJO!$M$6:$M$1000,$E$4,DO_HTRABAJO!$N$6:$N$1000,E$6) -> 74,291.67 | F12: =SUMIFS(IF(DO_HTRABAJO!$AB$6="MN",DO_HTRABAJO!$K$6:$K$1000,DO_HTRABAJO!$J$6:$J$1000),DO_HTRABAJO!$D$6:$D$1000,$C12,DO_HTRABAJO!$E$6:$E$1000,$D12,DO_HTRABAJO!$M$6:$M$1000,$E$4,DO_HTRABAJO!$N$6:$N$1000,F$6) -> 0 | G12: =SUMIFS(IF(DO_HTRABAJO!$AB$6="MN",DO_HTRABAJO!$K$6:$K$1000,DO_HTRABAJO!$J$6:$J$1000),DO_HTRABAJO!$D$6:$D$1000,$C12,DO_HTRABAJO!$E$6:$E$1000,$D12,DO_HTRABAJO!$M$6:$M$1000,$E$4,DO_HTRABAJO!$N$6:$N$1000,G$6) -> 0 | H12: =SUMIFS(IF(DO_HTRABAJO!$AB$6="MN",DO_HTRABAJO!$K$6:$K$1000,DO_HTRABAJO!$J$6:$J$1000),DO_HTRABAJO!$D$6:$D$1000,$C12,DO_HTRABAJO!$E$6:$E$1000,$D12,DO_HTRABAJO!$M$6:$M$1000,$E$4,DO_HTRABAJO!$N$6:$N$1000,H$6) -> 0 | I12: =SUMIFS(IF(DO_HTRABAJO!$AB$6="MN",DO_HTRABAJO!$K$6:$K$1000,DO_HTRABAJO!$J$6:$J$1000),DO_HTRABAJO!$D$6:$D$1000,$C12,DO_HTRABAJO!$E$6:$E$1000,$D12,DO_HTRABAJO!$M$6:$M$1000,$E$4,DO_HTRABAJO!$N$6:$N$1000,I$6) -> 0 | J12: =SUMIFS(IF(DO_HTRABAJO!$AB$6="MN",DO_HTRABAJO!$K$6:$K$1000,DO_HTRABAJO!$J$6:$J$1000),DO_HTRABAJO!$D$6:$D$1000,$C12,DO_HTRABAJO!$E$6:$E$1000,$D12,DO_HTRABAJO!$M$6:$M$1000,$E$4,DO_HTRABAJO!$N$6:$N$1000,J$6) -> 19,651.07 | K12: =SUMIFS(IF(DO_HTRABAJO!$AB$6="MN",DO_HTRABAJO!$K$6:$K$1000,DO_HTRABAJO!$J$6:$J$1000),DO_HTRABAJO!$D$6:$D$1000,$C12,DO_HTRABAJO!$E$6:$E$1000,$D12,DO_HTRABAJO!$M$6:$M$1000,$E$4,DO_HTRABAJO!$N$6:$N$1000,K$6) -> 29,000.52 | L12: 122,943.26 | M12: =SUMIFS(IF(DO_HTRABAJO!$AB$6="MN",DO_HTRABAJO!$K$6:$K$1000,DO_HTRABAJO!$J$6:$J$1000),DO_HTRABAJO!$D$6:$D$1000,$C12,DO_HTRABAJO!$E$6:$E$1000,$D12,DO_HTRABAJO!$M$6:$M$1000,$M$4,DO_HTRABAJO!$N$6:$N$1000,M$6) -> 0 | N12: =SUMIFS(IF(DO_HTRABAJO!$AB$6="MN",DO_HTRABAJO!$K$6:$K$1000,DO_HTRABAJO!$J$6:$J$1000),DO_HTRABAJO!$D$6:$D$1000,$C12,DO_HTRABAJO!$E$6:$E$1000,$D12,DO_HTRABAJO!$M$6:$M$1000,$M$4,DO_HTRABAJO!$N$6:$N$1000,N$6) -> 0 | O12: =SUMIFS(IF(DO_HTRABAJO!$AB$6="MN",DO_HTRABAJO!$K$6:$K$1000,DO_HTRABAJO!$J$6:$J$1000),DO_HTRABAJO!$D$6:$D$1000,$C12,DO_HTRABAJO!$E$6:$E$1000,$D12,DO_HTRABAJO!$M$6:$M$1000,$M$4,DO_HTRABAJO!$N$6:$N$1000,O$6) -> 0 | P12: =SUMIFS(IF(DO_HTRABAJO!$AB$6="MN",DO_HTRABAJO!$K$6:$K$1000,DO_HTRABAJO!$J$6:$J$1000),DO_HTRABAJO!$D$6:$D$1000,$C12,DO_HTRABAJO!$E$6:$E$1000,$D12,DO_HTRABAJO!$M$6:$M$1000,$M$4,DO_HTRABAJO!$N$6:$N$1000,P$6) -> 0 | Q12: =SUMIFS(IF(DO_HTRABAJO!$AB$6="MN",DO_HTRABAJO!$K$6:$K$1000,DO_HTRABAJO!$J$6:$J$1000),DO_HTRABAJO!$D$6:$D$1000,$C12,DO_HTRABAJO!$E$6:$E$1000,$D12,DO_HTRABAJO!$M$6:$M$1000,$M$4,DO_HTRABAJO!$N$6:$N$1000,Q$6) -> 0 | R12: =SUMIFS(IF(DO_HTRABAJO!$AB$6="MN",DO_HTRABAJO!$K$6:$K$1000,DO_HTRABAJO!$J$6:$J$1000),DO_HTRABAJO!$D$6:$D$1000,$C12,DO_HTRABAJO!$E$6:$E$1000,$D12,DO_HTRABAJO!$M$6:$M$1000,$M$4,DO_HTRABAJO!$N$6:$N$1000,R$6) -> 0 | S12: =SUMIFS(IF(DO_HTRABAJO!$AB$6="MN",DO_HTRABAJO!$K$6:$K$1000,DO_HTRABAJO!$J$6:$J$1000),DO_HTRABAJO!$D$6:$D$1000,$C12,DO_HTRABAJO!$E$6:$E$1000,$D12,DO_HTRABAJO!$M$6:$M$1000,$M$4,DO_HTRABAJO!$N$6:$N$1000,S$6) -> 0 | T12: 0 | U12: 122,943.26
B13: =ROWS(B$7:B13) -> 7 | C13: =INDEX(DO_HTRABAJO!$T$6:$T$55,MATCH(B13,DO_HTRABAJO!$V$6:$V$55,0)) -> ASTRIB S.A.C. | D13: =INDEX(DO_HTRABAJO!$T$6:$U$55,MATCH($B13,DO_HTRABAJO!$V$6:$V$55,0),2) -> SECTOR NORTE | E13: =SUMIFS(IF(DO_HTRABAJO!$AB$6="MN",DO_HTRABAJO!$K$6:$K$1000,DO_HTRABAJO!$J$6:$J$1000),DO_HTRABAJO!$D$6:$D$1000,$C13,DO_HTRABAJO!$E$6:$E$1000,$D13,DO_HTRABAJO!$M$6:$M$1000,$E$4,DO_HTRABAJO!$N$6:$N$1000,E$6) -> 26,019.73 | F13: =SUMIFS(IF(DO_HTRABAJO!$AB$6="MN",DO_HTRABAJO!$K$6:$K$1000,DO_HTRABAJO!$J$6:$J$1000),DO_HTRABAJO!$D$6:$D$1000,$C13,DO_HTRABAJO!$E$6:$E$1000,$D13,DO_HTRABAJO!$M$6:$M$1000,$E$4,DO_HTRABAJO!$N$6:$N$1000,F$6) -> 0 | G13: =SUMIFS(IF(DO_HTRABAJO!$AB$6="MN",DO_HTRABAJO!$K$6:$K$1000,DO_HTRABAJO!$J$6:$J$1000),DO_HTRABAJO!$D$6:$D$1000,$C13,DO_HTRABAJO!$E$6:$E$1000,$D13,DO_HTRABAJO!$M$6:$M$1000,$E$4,DO_HTRABAJO!$N$6:$N$1000,G$6) -> 0 | H13: =SUMIFS(IF(DO_HTRABAJO!$AB$6="MN",DO_HTRABAJO!$K$6:$K$1000,DO_HTRABAJO!$J$6:$J$1000),DO_HTRABAJO!$D$6:$D$1000,$C13,DO_HTRABAJO!$E$6:$E$1000,$D13,DO_HTRABAJO!$M$6:$M$1000,$E$4,DO_HTRABAJO!$N$6:$N$1000,H$6) -> 0 | I13: =SUMIFS(IF(DO_HTRABAJO!$AB$6="MN",DO_HTRABAJO!$K$6:$K$1000,DO_HTRABAJO!$J$6:$J$1000),DO_HTRABAJO!$D$6:$D$1000,$C13,DO_HTRABAJO!$E$6:$E$1000,$D13,DO_HTRABAJO!$M$6:$M$1000,$E$4,DO_HTRABAJO!$N$6:$N$1000,I$6) -> 0 | J13: =SUMIFS(IF(DO_HTRABAJO!$AB$6="MN",DO_HTRABAJO!$K$6:$K$1000,DO_HTRABAJO!$J$6:$J$1000),DO_HTRABAJO!$D$6:$D$1000,$C13,DO_HTRABAJO!$E$6:$E$1000,$D13,DO_HTRABAJO!$M$6:$M$1000,$E$4,DO_HTRABAJO!$N$6:$N$1000,J$6) -> 0 | K13: =SUMIFS(IF(DO_HTRABAJO!$AB$6="MN",DO_HTRABAJO!$K$6:$K$1000,DO_HTRABAJO!$J$6:$J$1000),DO_HTRABAJO!$D$6:$D$1000,$C13,DO_HTRABAJO!$E$6:$E$1000,$D13,DO_HTRABAJO!$M$6:$M$1000,$E$4,DO_HTRABAJO!$N$6:$N$1000,K$6) -> 0 | L13: 26,019.73 | M13: =SUMIFS(IF(DO_HTRABAJO!$AB$6="MN",DO_HTRABAJO!$K$6:$K$1000,DO_HTRABAJO!$J$6:$J$1000),DO_HTRABAJO!$D$6:$D$1000,$C13,DO_HTRABAJO!$E$6:$E$1000,$D13,DO_HTRABAJO!$M$6:$M$1000,$M$4,DO_HTRABAJO!$N$6:$N$1000,M$6) -> 0 | N13: =SUMIFS(IF(DO_HTRABAJO!$AB$6="MN",DO_HTRABAJO!$K$6:$K$1000,DO_HTRABAJO!$J$6:$J$1000),DO_HTRABAJO!$D$6:$D$1000,$C13,DO_HTRABAJO!$E$6:$E$1000,$D13,DO_HTRABAJO!$M$6:$M$1000,$M$4,DO_HTRABAJO!$N$6:$N$1000,N$6) -> 0 | O13: =SUMIFS(IF(DO_HTRABAJO!$AB$6="MN",DO_HTRABAJO!$K$6:$K$1000,DO_HTRABAJO!$J$6:$J$1000),DO_HTRABAJO!$D$6:$D$1000,$C13,DO_HTRABAJO!$E$6:$E$1000,$D13,DO_HTRABAJO!$M$6:$M$1000,$M$4,DO_HTRABAJO!$N$6:$N$1000,O$6) -> 0 | P13: =SUMIFS(IF(DO_HTRABAJO!$AB$6="MN",DO_HTRABAJO!$K$6:$K$1000,DO_HTRABAJO!$J$6:$J$1000),DO_HTRABAJO!$D$6:$D$1000,$C13,DO_HTRABAJO!$E$6:$E$1000,$D13,DO_HTRABAJO!$M$6:$M$1000,$M$4,DO_HTRABAJO!$N$6:$N$1000,P$6) -> 0 | Q13: =SUMIFS(IF(DO_HTRABAJO!$AB$6="MN",DO_HTRABAJO!$K$6:$K$1000,DO_HTRABAJO!$J$6:$J$1000),DO_HTRABAJO!$D$6:$D$1000,$C13,DO_HTRABAJO!$E$6:$E$1000,$D13,DO_HTRABAJO!$M$6:$M$1000,$M$4,DO_HTRABAJO!$N$6:$N$1000,Q$6) -> 0 | R13: =SUMIFS(IF(DO_HTRABAJO!$AB$6="MN",DO_HTRABAJO!$K$6:$K$1000,DO_HTRABAJO!$J$6:$J$1000),DO_HTRABAJO!$D$6:$D$1000,$C13,DO_HTRABAJO!$E$6:$E$1000,$D13,DO_HTRABAJO!$M$6:$M$1000,$M$4,DO_HTRABAJO!$N$6:$N$1000,R$6) -> 0 | S13: =SUMIFS(IF(DO_HTRABAJO!$AB$6="MN",DO_HTRABAJO!$K$6:$K$1000,DO_HTRABAJO!$J$6:$J$1000),DO_HTRABAJO!$D$6:$D$1000,$C13,DO_HTRABAJO!$E$6:$E$1000,$D13,DO_HTRABAJO!$M$6:$M$1000,$M$4,DO_HTRABAJO!$N$6:$N$1000,S$6) -> 0 | T13: 0 | U13: 26,019.73
B14: =ROWS(B$7:B14) -> 8 | C14: =INDEX(DO_HTRABAJO!$T$6:$T$55,MATCH(B14,DO_HTRABAJO!$V$6:$V$55,0)) -> C. CHINININ S.A.C. | D14: =INDEX(DO_HTRABAJO!$T$6:$U$55,MATCH($B14,DO_HTRABAJO!$V$6:$V$55,0),2) -> SECTOR NORTE | E14: =SUMIFS(IF(DO_HTRABAJO!$AB$6="MN",DO_HTRABAJO!$K$6:$K$1000,DO_HTRABAJO!$J$6:$J$1000),DO_HTRABAJO!$D$6:$D$1000,$C14,DO_HTRABAJO!$E$6:$E$1000,$D14,DO_HTRABAJO!$M$6:$M$1000,$E$4,DO_HTRABAJO!$N$6:$N$1000,E$6) -> 63,628.66 | F14: =SUMIFS(IF(DO_HTRABAJO!$AB$6="MN",DO_HTRABAJO!$K$6:$K$1000,DO_HTRABAJO!$J$6:$J$1000),DO_HTRABAJO!$D$6:$D$1000,$C14,DO_HTRABAJO!$E$6:$E$1000,$D14,DO_HTRABAJO!$M$6:$M$1000,$E$4,DO_HTRABAJO!$N$6:$N$1000,F$6) -> 0 | G14: =SUMIFS(IF(DO_HTRABAJO!$AB$6="MN",DO_HTRABAJO!$K$6:$K$1000,DO_HTRABAJO!$J$6:$J$1000),DO_HTRABAJO!$D$6:$D$1000,$C14,DO_HTRABAJO!$E$6:$E$1000,$D14,DO_HTRABAJO!$M$6:$M$1000,$E$4,DO_HTRABAJO!$N$6:$N$1000,G$6) -> 0 | H14: =SUMIFS(IF(DO_HTRABAJO!$AB$6="MN",DO_HTRABAJO!$K$6:$K$1000,DO_HTRABAJO!$J$6:$J$1000),DO_HTRABAJO!$D$6:$D$1000,$C14,DO_HTRABAJO!$E$6:$E$1000,$D14,DO_HTRABAJO!$M$6:$M$1000,$E$4,DO_HTRABAJO!$N$6:$N$1000,H$6) -> 0 | I14: =SUMIFS(IF(DO_HTRABAJO!$AB$6="MN",DO_HTRABAJO!$K$6:$K$1000,DO_HTRABAJO!$J$6:$J$1000),DO_HTRABAJO!$D$6:$D$1000,$C14,DO_HTRABAJO!$E$6:$E$1000,$D14,DO_HTRABAJO!$M$6:$M$1000,$E$4,DO_HTRABAJO!$N$6:$N$1000,I$6) -> 0 | J14: =SUMIFS(IF(DO_HTRABAJO!$AB$6="MN",DO_HTRABAJO!$K$6:$K$1000,DO_HTRABAJO!$J$6:$J$1000),DO_HTRABAJO!$D$6:$D$1000,$C14,DO_HTRABAJO!$E$6:$E$1000,$D14,DO_HTRABAJO!$M$6:$M$1000,$E$4,DO_HTRABAJO!$N$6:$N$1000,J$6) -> 0 | K14: =SUMIFS(IF(DO_HTRABAJO!$AB$6="MN",DO_HTRABAJO!$K$6:$K$1000,DO_HTRABAJO!$J$6:$J$1000),DO_HTRABAJO!$D$6:$D$1000,$C14,DO_HTRABAJO!$E$6:$E$1000,$D14,DO_HTRABAJO!$M$6:$M$1000,$E$4,DO_HTRABAJO!$N$6:$N$1000,K$6) -> 0 | L14: 63,628.66 | M14: =SUMIFS(IF(DO_HTRABAJO!$AB$6="MN",DO_HTRABAJO!$K$6:$K$1000,DO_HTRABAJO!$J$6:$J$1000),DO_HTRABAJO!$D$6:$D$1000,$C14,DO_HTRABAJO!$E$6:$E$1000,$D14,DO_HTRABAJO!$M$6:$M$1000,$M$4,DO_HTRABAJO!$N$6:$N$1000,M$6) -> 0 | N14: =SUMIFS(IF(DO_HTRABAJO!$AB$6="MN",DO_HTRABAJO!$K$6:$K$1000,DO_HTRABAJO!$J$6:$J$1000),DO_HTRABAJO!$D$6:$D$1000,$C14,DO_HTRABAJO!$E$6:$E$1000,$D14,DO_HTRABAJO!$M$6:$M$1000,$M$4,DO_HTRABAJO!$N$6:$N$1000,N$6) -> 0 | O14: =SUMIFS(IF(DO_HTRABAJO!$AB$6="MN",DO_HTRABAJO!$K$6:$K$1000,DO_HTRABAJO!$J$6:$J$1000),DO_HTRABAJO!$D$6:$D$1000,$C14,DO_HTRABAJO!$E$6:$E$1000,$D14,DO_HTRABAJO!$M$6:$M$1000,$M$4,DO_HTRABAJO!$N$6:$N$1000,O$6) -> 0 | P14: =SUMIFS(IF(DO_HTRABAJO!$AB$6="MN",DO_HTRABAJO!$K$6:$K$1000,DO_HTRABAJO!$J$6:$J$1000),DO_HTRABAJO!$D$6:$D$1000,$C14,DO_HTRABAJO!$E$6:$E$1000,$D14,DO_HTRABAJO!$M$6:$M$1000,$M$4,DO_HTRABAJO!$N$6:$N$1000,P$6) -> 0 | Q14: =SUMIFS(IF(DO_HTRABAJO!$AB$6="MN",DO_HTRABAJO!$K$6:$K$1000,DO_HTRABAJO!$J$6:$J$1000),DO_HTRABAJO!$D$6:$D$1000,$C14,DO_HTRABAJO!$E$6:$E$1000,$D14,DO_HTRABAJO!$M$6:$M$1000,$M$4,DO_HTRABAJO!$N$6:$N$1000,Q$6) -> 0 | R14: =SUMIFS(IF(DO_HTRABAJO!$AB$6="MN",DO_HTRABAJO!$K$6:$K$1000,DO_HTRABAJO!$J$6:$J$1000),DO_HTRABAJO!$D$6:$D$1000,$C14,DO_HTRABAJO!$E$6:$E$1000,$D14,DO_HTRABAJO!$M$6:$M$1000,$M$4,DO_HTRABAJO!$N$6:$N$1000,R$6) -> 0 | S14: =SUMIFS(IF(DO_HTRABAJO!$AB$6="MN",DO_HTRABAJO!$K$6:$K$1000,DO_HTRABAJO!$J$6:$J$1000),DO_HTRABAJO!$D$6:$D$1000,$C14,DO_HTRABAJO!$E$6:$E$1000,$D14,DO_HTRABAJO!$M$6:$M$1000,$M$4,DO_HTRABAJO!$N$6:$N$1000,S$6) -> 0 | T14: 0 | U14: 63,628.66
B15: =ROWS(B$7:B15) -> 9 | C15: =INDEX(DO_HTRABAJO!$T$6:$T$55,MATCH(B15,DO_HTRABAJO!$V$6:$V$55,0)) -> CALIGAS S.R.L. | D15: =INDEX(DO_HTRABAJO!$T$6:$U$55,MATCH($B15,DO_HTRABAJO!$V$6:$V$55,0),2) -> SECTOR OESTE | E15: =SUMIFS(IF(DO_HTRABAJO!$AB$6="MN",DO_HTRABAJO!$K$6:$K$1000,DO_HTRABAJO!$J$6:$J$1000),DO_HTRABAJO!$D$6:$D$1000,$C15,DO_HTRABAJO!$E$6:$E$1000,$D15,DO_HTRABAJO!$M$6:$M$1000,$E$4,DO_HTRABAJO!$N$6:$N$1000,E$6) -> 0 | F15: =SUMIFS(IF(DO_HTRABAJO!$AB$6="MN",DO_HTRABAJO!$K$6:$K$1000,DO_HTRABAJO!$J$6:$J$1000),DO_HTRABAJO!$D$6:$D$1000,$C15,DO_HTRABAJO!$E$6:$E$1000,$D15,DO_HTRABAJO!$M$6:$M$1000,$E$4,DO_HTRABAJO!$N$6:$N$1000,F$6) -> 0 | G15: =SUMIFS(IF(DO_HTRABAJO!$AB$6="MN",DO_HTRABAJO!$K$6:$K$1000,DO_HTRABAJO!$J$6:$J$1000),DO_HTRABAJO!$D$6:$D$1000,$C15,DO_HTRABAJO!$E$6:$E$1000,$D15,DO_HTRABAJO!$M$6:$M$1000,$E$4,DO_HTRABAJO!$N$6:$N$1000,G$6) -> 0 | H15: =SUMIFS(IF(DO_HTRABAJO!$AB$6="MN",DO_HTRABAJO!$K$6:$K$1000,DO_HTRABAJO!$J$6:$J$1000),DO_HTRABAJO!$D$6:$D$1000,$C15,DO_HTRABAJO!$E$6:$E$1000,$D15,DO_HTRABAJO!$M$6:$M$1000,$E$4,DO_HTRABAJO!$N$6:$N$1000,H$6) -> 0 | I15: =SUMIFS(IF(DO_HTRABAJO!$AB$6="MN",DO_HTRABAJO!$K$6:$K$1000,DO_HTRABAJO!$J$6:$J$1000),DO_HTRABAJO!$D$6:$D$1000,$C15,DO_HTRABAJO!$E$6:$E$1000,$D15,DO_HTRABAJO!$M$6:$M$1000,$E$4,DO_HTRABAJO!$N$6:$N$1000,I$6) -> 0 | J15: =SUMIFS(IF(DO_HTRABAJO!$AB$6="MN",DO_HTRABAJO!$K$6:$K$1000,DO_HTRABAJO!$J$6:$J$1000),DO_HTRABAJO!$D$6:$D$1000,$C15,DO_HTRABAJO!$E$6:$E$1000,$D15,DO_HTRABAJO!$M$6:$M$1000,$E$4,DO_HTRABAJO!$N$6:$N$1000,J$6) -> 0 | K15: =SUMIFS(IF(DO_HTRABAJO!$AB$6="MN",DO_HTRABAJO!$K$6:$K$1000,DO_HTRABAJO!$J$6:$J$1000),DO_HTRABAJO!$D$6:$D$1000,$C15,DO_HTRABAJO!$E$6:$E$1000,$D15,DO_HTRABAJO!$M$6:$M$1000,$E$4,DO_HTRABAJO!$N$6:$N$1000,K$6) -> 0 | L15: 0 | M15: =SUMIFS(IF(DO_HTRABAJO!$AB$6="MN",DO_HTRABAJO!$K$6:$K$1000,DO_HTRABAJO!$J$6:$J$1000),DO_HTRABAJO!$D$6:$D$1000,$C15,DO_HTRABAJO!$E$6:$E$1000,$D15,DO_HTRABAJO!$M$6:$M$1000,$M$4,DO_HTRABAJO!$N$6:$N$1000,M$6) -> 0 | N15: =SUMIFS(IF(DO_HTRABAJO!$AB$6="MN",DO_HTRABAJO!$K$6:$K$1000,DO_HTRABAJO!$J$6:$J$1000),DO_HTRABAJO!$D$6:$D$1000,$C15,DO_HTRABAJO!$E$6:$E$1000,$D15,DO_HTRABAJO!$M$6:$M$1000,$M$4,DO_HTRABAJO!$N$6:$N$1000,N$6) -> 0 | O15: =SUMIFS(IF(DO_HTRABAJO!$AB$6="MN",DO_HTRABAJO!$K$6:$K$1000,DO_HTRABAJO!$J$6:$J$1000),DO_HTRABAJO!$D$6:$D$1000,$C15,DO_HTRABAJO!$E$6:$E$1000,$D15,DO_HTRABAJO!$M$6:$M$1000,$M$4,DO_HTRABAJO!$N$6:$N$1000,O$6) -> 0 | P15: =SUMIFS(IF(DO_HTRABAJO!$AB$6="MN",DO_HTRABAJO!$K$6:$K$1000,DO_HTRABAJO!$J$6:$J$1000),DO_HTRABAJO!$D$6:$D$1000,$C15,DO_HTRABAJO!$E$6:$E$1000,$D15,DO_HTRABAJO!$M$6:$M$1000,$M$4,DO_HTRABAJO!$N$6:$N$1000,P$6) -> 67,925.36 | Q15: =SUMIFS(IF(DO_HTRABAJO!$AB$6="MN",DO_HTRABAJO!$K$6:$K$1000,DO_HTRABAJO!$J$6:$J$1000),DO_HTRABAJO!$D$6:$D$1000,$C15,DO_HTRABAJO!$E$6:$E$1000,$D15,DO_HTRABAJO!$M$6:$M$1000,$M$4,DO_HTRABAJO!$N$6:$N$1000,Q$6) -> 0 | R15: =SUMIFS(IF(DO_HTRABAJO!$AB$6="MN",DO_HTRABAJO!$K$6:$K$1000,DO_HTRABAJO!$J$6:$J$1000),DO_HTRABAJO!$D$6:$D$1000,$C15,DO_HTRABAJO!$E$6:$E$1000,$D15,DO_HTRABAJO!$M$6:$M$1000,$M$4,DO_HTRABAJO!$N$6:$N$1000,R$6) -> 0 | S15: =SUMIFS(IF(DO_HTRABAJO!$AB$6="MN",DO_HTRABAJO!$K$6:$K$1000,DO_HTRABAJO!$J$6:$J$1000),DO_HTRABAJO!$D$6:$D$1000,$C15,DO_HTRABAJO!$E$6:$E$1000,$D15,DO_HTRABAJO!$M$6:$M$1000,$M$4,DO_HTRABAJO!$N$6:$N$1000,S$6) -> 67,925.36 | T15: 135,850.71 | U15: 135,850.71
B16: =ROWS(B$7:B16) -> 10 | C16: =INDEX(DO_HTRABAJO!$T$6:$T$55,MATCH(B16,DO_HTRABAJO!$V$6:$V$55,0)) -> CAO JINGHUI | D16: =INDEX(DO_HTRABAJO!$T$6:$U$55,MATCH($B16,DO_HTRABAJO!$V$6:$V$55,0),2) -> SECTOR ESTE | E16: =SUMIFS(IF(DO_HTRABAJO!$AB$6="MN",DO_HTRABAJO!$K$6:$K$1000,DO_HTRABAJO!$J$6:$J$1000),DO_HTRABAJO!$D$6:$D$1000,$C16,DO_HTRABAJO!$E$6:$E$1000,$D16,DO_HTRABAJO!$M$6:$M$1000,$E$4,DO_HTRABAJO!$N$6:$N$1000,E$6) -> 61,433.14 | F16: =SUMIFS(IF(DO_HTRABAJO!$AB$6="MN",DO_HTRABAJO!$K$6:$K$1000,DO_HTRABAJO!$J$6:$J$1000),DO_HTRABAJO!$D$6:$D$1000,$C16,DO_HTRABAJO!$E$6:$E$1000,$D16,DO_HTRABAJO!$M$6:$M$1000,$E$4,DO_HTRABAJO!$N$6:$N$1000,F$6) -> 0 | G16: =SUMIFS(IF(DO_HTRABAJO!$AB$6="MN",DO_HTRABAJO!$K$6:$K$1000,DO_HTRABAJO!$J$6:$J$1000),DO_HTRABAJO!$D$6:$D$1000,$C16,DO_HTRABAJO!$E$6:$E$1000,$D16,DO_HTRABAJO!$M$6:$M$1000,$E$4,DO_HTRABAJO!$N$6:$N$1000,G$6) -> 26,262.96 | H16: =SUMIFS(IF(DO_HTRABAJO!$AB$6="MN",DO_HTRABAJO!$K$6:$K$1000,DO_HTRABAJO!$J$6:$J$1000),DO_HTRABAJO!$D$6:$D$1000,$C16,DO_HTRABAJO!$E$6:$E$1000,$D16,DO_HTRABAJO!$M$6:$M$1000,$E$4,DO_HTRABAJO!$N$6:$N$1000,H$6) -> 10,180.85 | I16: =SUMIFS(IF(DO_HTRABAJO!$AB$6="MN",DO_HTRABAJO!$K$6:$K$1000,DO_HTRABAJO!$J$6:$J$1000),DO_HTRABAJO!$D$6:$D$1000,$C16,DO_HTRABAJO!$E$6:$E$1000,$D16,DO_HTRABAJO!$M$6:$M$1000,$E$4,DO_HTRABAJO!$N$6:$N$1000,I$6) -> 0 | J16: =SUMIFS(IF(DO_HTRABAJO!$AB$6="MN",DO_HTRABAJO!$K$6:$K$1000,DO_HTRABAJO!$J$6:$J$1000),DO_HTRABAJO!$D$6:$D$1000,$C16,DO_HTRABAJO!$E$6:$E$1000,$D16,DO_HTRABAJO!$M$6:$M$1000,$E$4,DO_HTRABAJO!$N$6:$N$1000,J$6) -> 0 | K16: =SUMIFS(IF(DO_HTRABAJO!$AB$6="MN",DO_HTRABAJO!$K$6:$K$1000,DO_HTRABAJO!$J$6:$J$1000),DO_HTRABAJO!$D$6:$D$1000,$C16,DO_HTRABAJO!$E$6:$E$1000,$D16,DO_HTRABAJO!$M$6:$M$1000,$E$4,DO_HTRABAJO!$N$6:$N$1000,K$6) -> 0 | L16: 97,876.95 | M16: =SUMIFS(IF(DO_HTRABAJO!$AB$6="MN",DO_HTRABAJO!$K$6:$K$1000,DO_HTRABAJO!$J$6:$J$1000),DO_HTRABAJO!$D$6:$D$1000,$C16,DO_HTRABAJO!$E$6:$E$1000,$D16,DO_HTRABAJO!$M$6:$M$1000,$M$4,DO_HTRABAJO!$N$6:$N$1000,M$6) -> 0 | N16: =SUMIFS(IF(DO_HTRABAJO!$AB$6="MN",DO_HTRABAJO!$K$6:$K$1000,DO_HTRABAJO!$J$6:$J$1000),DO_HTRABAJO!$D$6:$D$1000,$C16,DO_HTRABAJO!$E$6:$E$1000,$D16,DO_HTRABAJO!$M$6:$M$1000,$M$4,DO_HTRABAJO!$N$6:$N$1000,N$6) -> 0 | O16: =SUMIFS(IF(DO_HTRABAJO!$AB$6="MN",DO_HTRABAJO!$K$6:$K$1000,DO_HTRABAJO!$J$6:$J$1000),DO_HTRABAJO!$D$6:$D$1000,$C16,DO_HTRABAJO!$E$6:$E$1000,$D16,DO_HTRABAJO!$M$6:$M$1000,$M$4,DO_HTRABAJO!$N$6:$N$1000,O$6) -> 0 | P16: =SUMIFS(IF(DO_HTRABAJO!$AB$6="MN",DO_HTRABAJO!$K$6:$K$1000,DO_HTRABAJO!$J$6:$J$1000),DO_HTRABAJO!$D$6:$D$1000,$C16,DO_HTRABAJO!$E$6:$E$1000,$D16,DO_HTRABAJO!$M$6:$M$1000,$M$4,DO_HTRABAJO!$N$6:$N$1000,P$6) -> 0 | Q16: =SUMIFS(IF(DO_HTRABAJO!$AB$6="MN",DO_HTRABAJO!$K$6:$K$1000,DO_HTRABAJO!$J$6:$J$1000),DO_HTRABAJO!$D$6:$D$1000,$C16,DO_HTRABAJO!$E$6:$E$1000,$D16,DO_HTRABAJO!$M$6:$M$1000,$M$4,DO_HTRABAJO!$N$6:$N$1000,Q$6) -> 0 | R16: =SUMIFS(IF(DO_HTRABAJO!$AB$6="MN",DO_HTRABAJO!$K$6:$K$1000,DO_HTRABAJO!$J$6:$J$1000),DO_HTRABAJO!$D$6:$D$1000,$C16,DO_HTRABAJO!$E$6:$E$1000,$D16,DO_HTRABAJO!$M$6:$M$1000,$M$4,DO_HTRABAJO!$N$6:$N$1000,R$6) -> 0 | S16: =SUMIFS(IF(DO_HTRABAJO!$AB$6="MN",DO_HTRABAJO!$K$6:$K$1000,DO_HTRABAJO!$J$6:$J$1000),DO_HTRABAJO!$D$6:$D$1000,$C16,DO_HTRABAJO!$E$6:$E$1000,$D16,DO_HTRABAJO!$M$6:$M$1000,$M$4,DO_HTRABAJO!$N$6:$N$1000,S$6) -> 0 | T16: 0 | U16: 97,876.95
B17: =ROWS(B$7:B17) -> 11 | C17: =INDEX(DO_HTRABAJO!$T$6:$T$55,MATCH(B17,DO_HTRABAJO!$V$6:$V$55,0)) -> CHINANGO S.A.C. | D17: =INDEX(DO_HTRABAJO!$T$6:$U$55,MATCH($B17,DO_HTRABAJO!$V$6:$V$55,0),2) -> SECTOR NORTE | E17: =SUMIFS(IF(DO_HTRABAJO!$AB$6="MN",DO_HTRABAJO!$K$6:$K$1000,DO_HTRABAJO!$J$6:$J$1000),DO_HTRABAJO!$D$6:$D$1000,$C17,DO_HTRABAJO!$E$6:$E$1000,$D17,DO_HTRABAJO!$M$6:$M$1000,$E$4,DO_HTRABAJO!$N$6:$N$1000,E$6) -> 19,214.84 | F17: =SUMIFS(IF(DO_HTRABAJO!$AB$6="MN",DO_HTRABAJO!$K$6:$K$1000,DO_HTRABAJO!$J$6:$J$1000),DO_HTRABAJO!$D$6:$D$1000,$C17,DO_HTRABAJO!$E$6:$E$1000,$D17,DO_HTRABAJO!$M$6:$M$1000,$E$4,DO_HTRABAJO!$N$6:$N$1000,F$6) -> 0 | G17: =SUMIFS(IF(DO_HTRABAJO!$AB$6="MN",DO_HTRABAJO!$K$6:$K$1000,DO_HTRABAJO!$J$6:$J$1000),DO_HTRABAJO!$D$6:$D$1000,$C17,DO_HTRABAJO!$E$6:$E$1000,$D17,DO_HTRABAJO!$M$6:$M$1000,$E$4,DO_HTRABAJO!$N$6:$N$1000,G$6) -> 0 | H17: =SUMIFS(IF(DO_HTRABAJO!$AB$6="MN",DO_HTRABAJO!$K$6:$K$1000,DO_HTRABAJO!$J$6:$J$1000),DO_HTRABAJO!$D$6:$D$1000,$C17,DO_HTRABAJO!$E$6:$E$1000,$D17,DO_HTRABAJO!$M$6:$M$1000,$E$4,DO_HTRABAJO!$N$6:$N$1000,H$6) -> 4,708.60 | I17: =SUMIFS(IF(DO_HTRABAJO!$AB$6="MN",DO_HTRABAJO!$K$6:$K$1000,DO_HTRABAJO!$J$6:$J$1000),DO_HTRABAJO!$D$6:$D$1000,$C17,DO_HTRABAJO!$E$6:$E$1000,$D17,DO_HTRABAJO!$M$6:$M$1000,$E$4,DO_HTRABAJO!$N$6:$N$1000,I$6) -> 0 | J17: =SUMIFS(IF(DO_HTRABAJO!$AB$6="MN",DO_HTRABAJO!$K$6:$K$1000,DO_HTRABAJO!$J$6:$J$1000),DO_HTRABAJO!$D$6:$D$1000,$C17,DO_HTRABAJO!$E$6:$E$1000,$D17,DO_HTRABAJO!$M$6:$M$1000,$E$4,DO_HTRABAJO!$N$6:$N$1000,J$6) -> 0 | K17: =SUMIFS(IF(DO_HTRABAJO!$AB$6="MN",DO_HTRABAJO!$K$6:$K$1000,DO_HTRABAJO!$J$6:$J$1000),DO_HTRABAJO!$D$6:$D$1000,$C17,DO_HTRABAJO!$E$6:$E$1000,$D17,DO_HTRABAJO!$M$6:$M$1000,$E$4,DO_HTRABAJO!$N$6:$N$1000,K$6) -> 0 | L17: 23,923.44 | M17: =SUMIFS(IF(DO_HTRABAJO!$AB$6="MN",DO_HTRABAJO!$K$6:$K$1000,DO_HTRABAJO!$J$6:$J$1000),DO_HTRABAJO!$D$6:$D$1000,$C17,DO_HTRABAJO!$E$6:$E$1000,$D17,DO_HTRABAJO!$M$6:$M$1000,$M$4,DO_HTRABAJO!$N$6:$N$1000,M$6) -> 0 | N17: =SUMIFS(IF(DO_HTRABAJO!$AB$6="MN",DO_HTRABAJO!$K$6:$K$1000,DO_HTRABAJO!$J$6:$J$1000),DO_HTRABAJO!$D$6:$D$1000,$C17,DO_HTRABAJO!$E$6:$E$1000,$D17,DO_HTRABAJO!$M$6:$M$1000,$M$4,DO_HTRABAJO!$N$6:$N$1000,N$6) -> 1,075.64 | O17: =SUMIFS(IF(DO_HTRABAJO!$AB$6="MN",DO_HTRABAJO!$K$6:$K$1000,DO_HTRABAJO!$J$6:$J$1000),DO_HTRABAJO!$D$6:$D$1000,$C17,DO_HTRABAJO!$E$6:$E$1000,$D17,DO_HTRABAJO!$M$6:$M$1000,$M$4,DO_HTRABAJO!$N$6:$N$1000,O$6) -> 0 | P17: =SUMIFS(IF(DO_HTRABAJO!$AB$6="MN",DO_HTRABAJO!$K$6:$K$1000,DO_HTRABAJO!$J$6:$J$1000),DO_HTRABAJO!$D$6:$D$1000,$C17,DO_HTRABAJO!$E$6:$E$1000,$D17,DO_HTRABAJO!$M$6:$M$1000,$M$4,DO_HTRABAJO!$N$6:$N$1000,P$6) -> 0 | Q17: =SUMIFS(IF(DO_HTRABAJO!$AB$6="MN",DO_HTRABAJO!$K$6:$K$1000,DO_HTRABAJO!$J$6:$J$1000),DO_HTRABAJO!$D$6:$D$1000,$C17,DO_HTRABAJO!$E$6:$E$1000,$D17,DO_HTRABAJO!$M$6:$M$1000,$M$4,DO_HTRABAJO!$N$6:$N$1000,Q$6) -> 0 | R17: =SUMIFS(IF(DO_HTRABAJO!$AB$6="MN",DO_HTRABAJO!$K$6:$K$1000,DO_HTRABAJO!$J$6:$J$1000),DO_HTRABAJO!$D$6:$D$1000,$C17,DO_HTRABAJO!$E$6:$E$1000,$D17,DO_HTRABAJO!$M$6:$M$1000,$M$4,DO_HTRABAJO!$N$6:$N$1000,R$6) -> 0 | S17: =SUMIFS(IF(DO_HTRABAJO!$AB$6="MN",DO_HTRABAJO!$K$6:$K$1000,DO_HTRABAJO!$J$6:$J$1000),DO_HTRABAJO!$D$6:$D$1000,$C17,DO_HTRABAJO!$E$6:$E$1000,$D17,DO_HTRABAJO!$M$6:$M$1000,$M$4,DO_HTRABAJO!$N$6:$N$1000,S$6) -> 1,075.64 | T17: 2,151.28 | U17: 26,074.72
B18: =ROWS(B$7:B18) -> 12 | C18: =INDEX(DO_HTRABAJO!$T$6:$T$55,MATCH(B18,DO_HTRABAJO!$V$6:$V$55,0)) -> CINSA E.I.R.L | D18: =INDEX(DO_HTRABAJO!$T$6:$U$55,MATCH($B18,DO_HTRABAJO!$V$6:$V$55,0),2) -> SECTOR SUR | E18: =SUMIFS(IF(DO_HTRABAJO!$AB$6="MN",DO_HTRABAJO!$K$6:$K$1000,DO_HTRABAJO!$J$6:$J$1000),DO_HTRABAJO!$D$6:$D$1000,$C18,DO_HTRABAJO!$E$6:$E$1000,$D18,DO_HTRABAJO!$M$6:$M$1000,$E$4,DO_HTRABAJO!$N$6:$N$1000,E$6) -> 0 | F18: =SUMIFS(IF(DO_HTRABAJO!$AB$6="MN",DO_HTRABAJO!$K$6:$K$1000,DO_HTRABAJO!$J$6:$J$1000),DO_HTRABAJO!$D$6:$D$1000,$C18,DO_HTRABAJO!$E$6:$E$1000,$D18,DO_HTRABAJO!$M$6:$M$1000,$E$4,DO_HTRABAJO!$N$6:$N$1000,F$6) -> 0 | G18: =SUMIFS(IF(DO_HTRABAJO!$AB$6="MN",DO_HTRABAJO!$K$6:$K$1000,DO_HTRABAJO!$J$6:$J$1000),DO_HTRABAJO!$D$6:$D$1000,$C18,DO_HTRABAJO!$E$6:$E$1000,$D18,DO_HTRABAJO!$M$6:$M$1000,$E$4,DO_HTRABAJO!$N$6:$N$1000,G$6) -> 0 | H18: =SUMIFS(IF(DO_HTRABAJO!$AB$6="MN",DO_HTRABAJO!$K$6:$K$1000,DO_HTRABAJO!$J$6:$J$1000),DO_HTRABAJO!$D$6:$D$1000,$C18,DO_HTRABAJO!$E$6:$E$1000,$D18,DO_HTRABAJO!$M$6:$M$1000,$E$4,DO_HTRABAJO!$N$6:$N$1000,H$6) -> 0 | I18: =SUMIFS(IF(DO_HTRABAJO!$AB$6="MN",DO_HTRABAJO!$K$6:$K$1000,DO_HTRABAJO!$J$6:$J$1000),DO_HTRABAJO!$D$6:$D$1000,$C18,DO_HTRABAJO!$E$6:$E$1000,$D18,DO_HTRABAJO!$M$6:$M$1000,$E$4,DO_HTRABAJO!$N$6:$N$1000,I$6) -> 0 | J18: =SUMIFS(IF(DO_HTRABAJO!$AB$6="MN",DO_HTRABAJO!$K$6:$K$1000,DO_HTRABAJO!$J$6:$J$1000),DO_HTRABAJO!$D$6:$D$1000,$C18,DO_HTRABAJO!$E$6:$E$1000,$D18,DO_HTRABAJO!$M$6:$M$1000,$E$4,DO_HTRABAJO!$N$6:$N$1000,J$6) -> 0 | K18: =SUMIFS(IF(DO_HTRABAJO!$AB$6="MN",DO_HTRABAJO!$K$6:$K$1000,DO_HTRABAJO!$J$6:$J$1000),DO_HTRABAJO!$D$6:$D$1000,$C18,DO_HTRABAJO!$E$6:$E$1000,$D18,DO_HTRABAJO!$M$6:$M$1000,$E$4,DO_HTRABAJO!$N$6:$N$1000,K$6) -> 0 | L18: 0 | M18: =SUMIFS(IF(DO_HTRABAJO!$AB$6="MN",DO_HTRABAJO!$K$6:$K$1000,DO_HTRABAJO!$J$6:$J$1000),DO_HTRABAJO!$D$6:$D$1000,$C18,DO_HTRABAJO!$E$6:$E$1000,$D18,DO_HTRABAJO!$M$6:$M$1000,$M$4,DO_HTRABAJO!$N$6:$N$1000,M$6) -> 0 | N18: =SUMIFS(IF(DO_HTRABAJO!$AB$6="MN",DO_HTRABAJO!$K$6:$K$1000,DO_HTRABAJO!$J$6:$J$1000),DO_HTRABAJO!$D$6:$D$1000,$C18,DO_HTRABAJO!$E$6:$E$1000,$D18,DO_HTRABAJO!$M$6:$M$1000,$M$4,DO_HTRABAJO!$N$6:$N$1000,N$6) -> 35,658.79 | O18: =SUMIFS(IF(DO_HTRABAJO!$AB$6="MN",DO_HTRABAJO!$K$6:$K$1000,DO_HTRABAJO!$J$6:$J$1000),DO_HTRABAJO!$D$6:$D$1000,$C18,DO_HTRABAJO!$E$6:$E$1000,$D18,DO_HTRABAJO!$M$6:$M$1000,$M$4,DO_HTRABAJO!$N$6:$N$1000,O$6) -> 0 | P18: =SUMIFS(IF(DO_HTRABAJO!$AB$6="MN",DO_HTRABAJO!$K$6:$K$1000,DO_HTRABAJO!$J$6:$J$1000),DO_HTRABAJO!$D$6:$D$1000,$C18,DO_HTRABAJO!$E$6:$E$1000,$D18,DO_HTRABAJO!$M$6:$M$1000,$M$4,DO_HTRABAJO!$N$6:$N$1000,P$6) -> 0 | Q18: =SUMIFS(IF(DO_HTRABAJO!$AB$6="MN",DO_HTRABAJO!$K$6:$K$1000,DO_HTRABAJO!$J$6:$J$1000),DO_HTRABAJO!$D$6:$D$1000,$C18,DO_HTRABAJO!$E$6:$E$1000,$D18,DO_HTRABAJO!$M$6:$M$1000,$M$4,DO_HTRABAJO!$N$6:$N$1000,Q$6) -> 17,661.69 | R18: =SUMIFS(IF(DO_HTRABAJO!$AB$6="MN",DO_HTRABAJO!$K$6:$K$1000,DO_HTRABAJO!$J$6:$J$1000),DO_HTRABAJO!$D$6:$D$1000,$C18,DO_HTRABAJO!$E$6:$E$1000,$D18,DO_HTRABAJO!$M$6:$M$1000,$M$4,DO_HTRABAJO!$N$6:$N$1000,R$6) -> 0 | S18: =SUMIFS(IF(DO_HTRABAJO!$AB$6="MN",DO_HTRABAJO!$K$6:$K$1000,DO_HTRABAJO!$J$6:$J$1000),DO_HTRABAJO!$D$6:$D$1000,$C18,DO_HTRABAJO!$E$6:$E$1000,$D18,DO_HTRABAJO!$M$6:$M$1000,$M$4,DO_HTRABAJO!$N$6:$N$1000,S$6) -> 53,320.48 | T18: 106,640.95 | U18: 106,640.95
B19: =ROWS(B$7:B19) -> 13 | C19: =INDEX(DO_HTRABAJO!$T$6:$T$55,MATCH(B19,DO_HTRABAJO!$V$6:$V$55,0)) -> CONDORCO S.R.L. | D19: =INDEX(DO_HTRABAJO!$T$6:$U$55,MATCH($B19,DO_HTRABAJO!$V$6:$V$55,0),2) -> SECTOR ESTE | E19: =SUMIFS(IF(DO_HTRABAJO!$AB$6="MN",DO_HTRABAJO!$K$6:$K$1000,DO_HTRABAJO!$J$6:$J$1000),DO_HTRABAJO!$D$6:$D$1000,$C19,DO_HTRABAJO!$E$6:$E$1000,$D19,DO_HTRABAJO!$M$6:$M$1000,$E$4,DO_HTRABAJO!$N$6:$N$1000,E$6) -> 112,023.76 | F19: =SUMIFS(IF(DO_HTRABAJO!$AB$6="MN",DO_HTRABAJO!$K$6:$K$1000,DO_HTRABAJO!$J$6:$J$1000),DO_HTRABAJO!$D$6:$D$1000,$C19,DO_HTRABAJO!$E$6:$E$1000,$D19,DO_HTRABAJO!$M$6:$M$1000,$E$4,DO_HTRABAJO!$N$6:$N$1000,F$6) -> 0 | G19: =SUMIFS(IF(DO_HTRABAJO!$AB$6="MN",DO_HTRABAJO!$K$6:$K$1000,DO_HTRABAJO!$J$6:$J$1000),DO_HTRABAJO!$D$6:$D$1000,$C19,DO_HTRABAJO!$E$6:$E$1000,$D19,DO_HTRABAJO!$M$6:$M$1000,$E$4,DO_HTRABAJO!$N$6:$N$1000,G$6) -> 53,026.68 | H19: =SUMIFS(IF(DO_HTRABAJO!$AB$6="MN",DO_HTRABAJO!$K$6:$K$1000,DO_HTRABAJO!$J$6:$J$1000),DO_HTRABAJO!$D$6:$D$1000,$C19,DO_HTRABAJO!$E$6:$E$1000,$D19,DO_HTRABAJO!$M$6:$M$1000,$E$4,DO_HTRABAJO!$N$6:$N$1000,H$6) -> 0 | I19: =SUMIFS(IF(DO_HTRABAJO!$AB$6="MN",DO_HTRABAJO!$K$6:$K$1000,DO_HTRABAJO!$J$6:$J$1000),DO_HTRABAJO!$D$6:$D$1000,$C19,DO_HTRABAJO!$E$6:$E$1000,$D19,DO_HTRABAJO!$M$6:$M$1000,$E$4,DO_HTRABAJO!$N$6:$N$1000,I$6) -> 0 | J19: =SUMIFS(IF(DO_HTRABAJO!$AB$6="MN",DO_HTRABAJO!$K$6:$K$1000,DO_HTRABAJO!$J$6:$J$1000),DO_HTRABAJO!$D$6:$D$1000,$C19,DO_HTRABAJO!$E$6:$E$1000,$D19,DO_HTRABAJO!$M$6:$M$1000,$E$4,DO_HTRABAJO!$N$6:$N$1000,J$6) -> 0 | K19: =SUMIFS(IF(DO_HTRABAJO!$AB$6="MN",DO_HTRABAJO!$K$6:$K$1000,DO_HTRABAJO!$J$6:$J$1000),DO_HTRABAJO!$D$6:$D$1000,$C19,DO_HTRABAJO!$E$6:$E$1000,$D19,DO_HTRABAJO!$M$6:$M$1000,$E$4,DO_HTRABAJO!$N$6:$N$1000,K$6) -> 58,997.08 | L19: 224,047.52 | M19: =SUMIFS(IF(DO_HTRABAJO!$AB$6="MN",DO_HTRABAJO!$K$6:$K$1000,DO_HTRABAJO!$J$6:$J$1000),DO_HTRABAJO!$D$6:$D$1000,$C19,DO_HTRABAJO!$E$6:$E$1000,$D19,DO_HTRABAJO!$M$6:$M$1000,$M$4,DO_HTRABAJO!$N$6:$N$1000,M$6) -> 63,110.71 | N19: =SUMIFS(IF(DO_HTRABAJO!$AB$6="MN",DO_HTRABAJO!$K$6:$K$1000,DO_HTRABAJO!$J$6:$J$1000),DO_HTRABAJO!$D$6:$D$1000,$C19,DO_HTRABAJO!$E$6:$E$1000,$D19,DO_HTRABAJO!$M$6:$M$1000,$M$4,DO_HTRABAJO!$N$6:$N$1000,N$6) -> 34,942.46 | O19: =SUMIFS(IF(DO_HTRABAJO!$AB$6="MN",DO_HTRABAJO!$K$6:$K$1000,DO_HTRABAJO!$J$6:$J$1000),DO_HTRABAJO!$D$6:$D$1000,$C19,DO_HTRABAJO!$E$6:$E$1000,$D19,DO_HTRABAJO!$M$6:$M$1000,$M$4,DO_HTRABAJO!$N$6:$N$1000,O$6) -> 130,894.30 | P19: =SUMIFS(IF(DO_HTRABAJO!$AB$6="MN",DO_HTRABAJO!$K$6:$K$1000,DO_HTRABAJO!$J$6:$J$1000),DO_HTRABAJO!$D$6:$D$1000,$C19,DO_HTRABAJO!$E$6:$E$1000,$D19,DO_HTRABAJO!$M$6:$M$1000,$M$4,DO_HTRABAJO!$N$6:$N$1000,P$6) -> 99,019.52 | Q19: =SUMIFS(IF(DO_HTRABAJO!$AB$6="MN",DO_HTRABAJO!$K$6:$K$1000,DO_HTRABAJO!$J$6:$J$1000),DO_HTRABAJO!$D$6:$D$1000,$C19,DO_HTRABAJO!$E$6:$E$1000,$D19,DO_HTRABAJO!$M$6:$M$1000,$M$4,DO_HTRABAJO!$N$6:$N$1000,Q$6) -> 0 | R19: =SUMIFS(IF(DO_HTRABAJO!$AB$6="MN",DO_HTRABAJO!$K$6:$K$1000,DO_HTRABAJO!$J$6:$J$1000),DO_HTRABAJO!$D$6:$D$1000,$C19,DO_HTRABAJO!$E$6:$E$1000,$D19,DO_HTRABAJO!$M$6:$M$1000,$M$4,DO_HTRABAJO!$N$6:$N$1000,R$6) -> 0 | S19: =SUMIFS(IF(DO_HTRABAJO!$AB$6="MN",DO_HTRABAJO!$K$6:$K$1000,DO_HTRABAJO!$J$6:$J$1000),DO_HTRABAJO!$D$6:$D$1000,$C19,DO_HTRABAJO!$E$6:$E$1000,$D19,DO_HTRABAJO!$M$6:$M$1000,$M$4,DO_HTRABAJO!$N$6:$N$1000,S$6) -> 327,966.99 | T19: 655,933.99 | U19: 879,981.50
B20: =ROWS(B$7:B20) -> 14 | C20: =INDEX(DO_HTRABAJO!$T$6:$T$55,MATCH(B20,DO_HTRABAJO!$V$6:$V$55,0)) -> CYPRESS PERU S.A.C. | D20: =INDEX(DO_HTRABAJO!$T$6:$U$55,MATCH($B20,DO_HTRABAJO!$V$6:$V$55,0),2) -> SECTOR OESTE | E20: =SUMIFS(IF(DO_HTRABAJO!$AB$6="MN",DO_HTRABAJO!$K$6:$K$1000,DO_HTRABAJO!$J$6:$J$1000),DO_HTRABAJO!$D$6:$D$1000,$C20,DO_HTRABAJO!$E$6:$E$1000,$D20,DO_HTRABAJO!$M$6:$M$1000,$E$4,DO_HTRABAJO!$N$6:$N$1000,E$6) -> 58,883.99 | F20: =SUMIFS(IF(DO_HTRABAJO!$AB$6="MN",DO_HTRABAJO!$K$6:$K$1000,DO_HTRABAJO!$J$6:$J$1000),DO_HTRABAJO!$D$6:$D$1000,$C20,DO_HTRABAJO!$E$6:$E$1000,$D20,DO_HTRABAJO!$M$6:$M$1000,$E$4,DO_HTRABAJO!$N$6:$N$1000,F$6) -> 27,701.64 | G20: =SUMIFS(IF(DO_HTRABAJO!$AB$6="MN",DO_HTRABAJO!$K$6:$K$1000,DO_HTRABAJO!$J$6:$J$1000),DO_HTRABAJO!$D$6:$D$1000,$C20,DO_HTRABAJO!$E$6:$E$1000,$D20,DO_HTRABAJO!$M$6:$M$1000,$E$4,DO_HTRABAJO!$N$6:$N$1000,G$6) -> 0 | H20: =SUMIFS(IF(DO_HTRABAJO!$AB$6="MN",DO_HTRABAJO!$K$6:$K$1000,DO_HTRABAJO!$J$6:$J$1000),DO_HTRABAJO!$D$6:$D$1000,$C20,DO_HTRABAJO!$E$6:$E$1000,$D20,DO_HTRABAJO!$M$6:$M$1000,$E$4,DO_HTRABAJO!$N$6:$N$1000,H$6) -> 9,951.19 | I20: =SUMIFS(IF(DO_HTRABAJO!$AB$6="MN",DO_HTRABAJO!$K$6:$K$1000,DO_HTRABAJO!$J$6:$J$1000),DO_HTRABAJO!$D$6:$D$1000,$C20,DO_HTRABAJO!$E$6:$E$1000,$D20,DO_HTRABAJO!$M$6:$M$1000,$E$4,DO_HTRABAJO!$N$6:$N$1000,I$6) -> 0 | J20: =SUMIFS(IF(DO_HTRABAJO!$AB$6="MN",DO_HTRABAJO!$K$6:$K$1000,DO_HTRABAJO!$J$6:$J$1000),DO_HTRABAJO!$D$6:$D$1000,$C20,DO_HTRABAJO!$E$6:$E$1000,$D20,DO_HTRABAJO!$M$6:$M$1000,$E$4,DO_HTRABAJO!$N$6:$N$1000,J$6) -> 2,541.68 | K20: =SUMIFS(IF(DO_HTRABAJO!$AB$6="MN",DO_HTRABAJO!$K$6:$K$1000,DO_HTRABAJO!$J$6:$J$1000),DO_HTRABAJO!$D$6:$D$1000,$C20,DO_HTRABAJO!$E$6:$E$1000,$D20,DO_HTRABAJO!$M$6:$M$1000,$E$4,DO_HTRABAJO!$N$6:$N$1000,K$6) -> 0 | L20: 99,078.50 | M20: =SUMIFS(IF(DO_HTRABAJO!$AB$6="MN",DO_HTRABAJO!$K$6:$K$1000,DO_HTRABAJO!$J$6:$J$1000),DO_HTRABAJO!$D$6:$D$1000,$C20,DO_HTRABAJO!$E$6:$E$1000,$D20,DO_HTRABAJO!$M$6:$M$1000,$M$4,DO_HTRABAJO!$N$6:$N$1000,M$6) -> 0 | N20: =SUMIFS(IF(DO_HTRABAJO!$AB$6="MN",DO_HTRABAJO!$K$6:$K$1000,DO_HTRABAJO!$J$6:$J$1000),DO_HTRABAJO!$D$6:$D$1000,$C20,DO_HTRABAJO!$E$6:$E$1000,$D20,DO_HTRABAJO!$M$6:$M$1000,$M$4,DO_HTRABAJO!$N$6:$N$1000,N$6) -> 0 | O20: =SUMIFS(IF(DO_HTRABAJO!$AB$6="MN",DO_HTRABAJO!$K$6:$K$1000,DO_HTRABAJO!$J$6:$J$1000),DO_HTRABAJO!$D$6:$D$1000,$C20,DO_HTRABAJO!$E$6:$E$1000,$D20,DO_HTRABAJO!$M$6:$M$1000,$M$4,DO_HTRABAJO!$N$6:$N$1000,O$6) -> 0 | P20: =SUMIFS(IF(DO_HTRABAJO!$AB$6="MN",DO_HTRABAJO!$K$6:$K$1000,DO_HTRABAJO!$J$6:$J$1000),DO_HTRABAJO!$D$6:$D$1000,$C20,DO_HTRABAJO!$E$6:$E$1000,$D20,DO_HTRABAJO!$M$6:$M$1000,$M$4,DO_HTRABAJO!$N$6:$N$1000,P$6) -> 0 | Q20: =SUMIFS(IF(DO_HTRABAJO!$AB$6="MN",DO_HTRABAJO!$K$6:$K$1000,DO_HTRABAJO!$J$6:$J$1000),DO_HTRABAJO!$D$6:$D$1000,$C20,DO_HTRABAJO!$E$6:$E$1000,$D20,DO_HTRABAJO!$M$6:$M$1000,$M$4,DO_HTRABAJO!$N$6:$N$1000,Q$6) -> 0 | R20: =SUMIFS(IF(DO_HTRABAJO!$AB$6="MN",DO_HTRABAJO!$K$6:$K$1000,DO_HTRABAJO!$J$6:$J$1000),DO_HTRABAJO!$D$6:$D$1000,$C20,DO_HTRABAJO!$E$6:$E$1000,$D20,DO_HTRABAJO!$M$6:$M$1000,$M$4,DO_HTRABAJO!$N$6:$N$1000,R$6) -> 0 | S20: =SUMIFS(IF(DO_HTRABAJO!$AB$6="MN",DO_HTRABAJO!$K$6:$K$1000,DO_HTRABAJO!$J$6:$J$1000),DO_HTRABAJO!$D$6:$D$1000,$C20,DO_HTRABAJO!$E$6:$E$1000,$D20,DO_HTRABAJO!$M$6:$M$1000,$M$4,DO_HTRABAJO!$N$6:$N$1000,S$6) -> 0 | T20: 0 | U20: 99,078.50
B21: =ROWS(B$7:B21) -> 15 | C21: =INDEX(DO_HTRABAJO!$T$6:$T$55,MATCH(B21,DO_HTRABAJO!$V$6:$V$55,0)) -> DIMACAR S.A.C. | D21: =INDEX(DO_HTRABAJO!$T$6:$U$55,MATCH($B21,DO_HTRABAJO!$V$6:$V$55,0),2) -> SECTOR ESTE | E21: =SUMIFS(IF(DO_HTRABAJO!$AB$6="MN",DO_HTRABAJO!$K$6:$K$1000,DO_HTRABAJO!$J$6:$J$1000),DO_HTRABAJO!$D$6:$D$1000,$C21,DO_HTRABAJO!$E$6:$E$1000,$D21,DO_HTRABAJO!$M$6:$M$1000,$E$4,DO_HTRABAJO!$N$6:$N$1000,E$6) -> 189,333.08 | F21: =SUMIFS(IF(DO_HTRABAJO!$AB$6="MN",DO_HTRABAJO!$K$6:$K$1000,DO_HTRABAJO!$J$6:$J$1000),DO_HTRABAJO!$D$6:$D$1000,$C21,DO_HTRABAJO!$E$6:$E$1000,$D21,DO_HTRABAJO!$M$6:$M$1000,$E$4,DO_HTRABAJO!$N$6:$N$1000,F$6) -> 0 | G21: =SUMIFS(IF(DO_HTRABAJO!$AB$6="MN",DO_HTRABAJO!$K$6:$K$1000,DO_HTRABAJO!$J$6:$J$1000),DO_HTRABAJO!$D$6:$D$1000,$C21,DO_HTRABAJO!$E$6:$E$1000,$D21,DO_HTRABAJO!$M$6:$M$1000,$E$4,DO_HTRABAJO!$N$6:$N$1000,G$6) -> 37,953.04 | H21: =SUMIFS(IF(DO_HTRABAJO!$AB$6="MN",DO_HTRABAJO!$K$6:$K$1000,DO_HTRABAJO!$J$6:$J$1000),DO_HTRABAJO!$D$6:$D$1000,$C21,DO_HTRABAJO!$E$6:$E$1000,$D21,DO_HTRABAJO!$M$6:$M$1000,$E$4,DO_HTRABAJO!$N$6:$N$1000,H$6) -> 0 | I21: =SUMIFS(IF(DO_HTRABAJO!$AB$6="MN",DO_HTRABAJO!$K$6:$K$1000,DO_HTRABAJO!$J$6:$J$1000),DO_HTRABAJO!$D$6:$D$1000,$C21,DO_HTRABAJO!$E$6:$E$1000,$D21,DO_HTRABAJO!$M$6:$M$1000,$E$4,DO_HTRABAJO!$N$6:$N$1000,I$6) -> 0 | J21: =SUMIFS(IF(DO_HTRABAJO!$AB$6="MN",DO_HTRABAJO!$K$6:$K$1000,DO_HTRABAJO!$J$6:$J$1000),DO_HTRABAJO!$D$6:$D$1000,$C21,DO_HTRABAJO!$E$6:$E$1000,$D21,DO_HTRABAJO!$M$6:$M$1000,$E$4,DO_HTRABAJO!$N$6:$N$1000,J$6) -> 0 | K21: =SUMIFS(IF(DO_HTRABAJO!$AB$6="MN",DO_HTRABAJO!$K$6:$K$1000,DO_HTRABAJO!$J$6:$J$1000),DO_HTRABAJO!$D$6:$D$1000,$C21,DO_HTRABAJO!$E$6:$E$1000,$D21,DO_HTRABAJO!$M$6:$M$1000,$E$4,DO_HTRABAJO!$N$6:$N$1000,K$6) -> 151,380.04 | L21: 378,666.15 | M21: =SUMIFS(IF(DO_HTRABAJO!$AB$6="MN",DO_HTRABAJO!$K$6:$K$1000,DO_HTRABAJO!$J$6:$J$1000),DO_HTRABAJO!$D$6:$D$1000,$C21,DO_HTRABAJO!$E$6:$E$1000,$D21,DO_HTRABAJO!$M$6:$M$1000,$M$4,DO_HTRABAJO!$N$6:$N$1000,M$6) -> 0 | N21: =SUMIFS(IF(DO_HTRABAJO!$AB$6="MN",DO_HTRABAJO!$K$6:$K$1000,DO_HTRABAJO!$J$6:$J$1000),DO_HTRABAJO!$D$6:$D$1000,$C21,DO_HTRABAJO!$E$6:$E$1000,$D21,DO_HTRABAJO!$M$6:$M$1000,$M$4,DO_HTRABAJO!$N$6:$N$1000,N$6) -> 0 | O21: =SUMIFS(IF(DO_HTRABAJO!$AB$6="MN",DO_HTRABAJO!$K$6:$K$1000,DO_HTRABAJO!$J$6:$J$1000),DO_HTRABAJO!$D$6:$D$1000,$C21,DO_HTRABAJO!$E$6:$E$1000,$D21,DO_HTRABAJO!$M$6:$M$1000,$M$4,DO_HTRABAJO!$N$6:$N$1000,O$6) -> 0 | P21: =SUMIFS(IF(DO_HTRABAJO!$AB$6="MN",DO_HTRABAJO!$K$6:$K$1000,DO_HTRABAJO!$J$6:$J$1000),DO_HTRABAJO!$D$6:$D$1000,$C21,DO_HTRABAJO!$E$6:$E$1000,$D21,DO_HTRABAJO!$M$6:$M$1000,$M$4,DO_HTRABAJO!$N$6:$N$1000,P$6) -> 0 | Q21: =SUMIFS(IF(DO_HTRABAJO!$AB$6="MN",DO_HTRABAJO!$K$6:$K$1000,DO_HTRABAJO!$J$6:$J$1000),DO_HTRABAJO!$D$6:$D$1000,$C21,DO_HTRABAJO!$E$6:$E$1000,$D21,DO_HTRABAJO!$M$6:$M$1000,$M$4,DO_HTRABAJO!$N$6:$N$1000,Q$6) -> 0 | R21: =SUMIFS(IF(DO_HTRABAJO!$AB$6="MN",DO_HTRABAJO!$K$6:$K$1000,DO_HTRABAJO!$J$6:$J$1000),DO_HTRABAJO!$D$6:$D$1000,$C21,DO_HTRABAJO!$E$6:$E$1000,$D21,DO_HTRABAJO!$M$6:$M$1000,$M$4,DO_HTRABAJO!$N$6:$N$1000,R$6) -> 0 | S21: =SUMIFS(IF(DO_HTRABAJO!$AB$6="MN",DO_HTRABAJO!$K$6:$K$1000,DO_HTRABAJO!$J$6:$J$1000),DO_HTRABAJO!$D$6:$D$1000,$C21,DO_HTRABAJO!$E$6:$E$1000,$D21,DO_HTRABAJO!$M$6:$M$1000,$M$4,DO_HTRABAJO!$N$6:$N$1000,S$6) -> 0 | T21: 0 | U21: 378,666.15
B22: =ROWS(B$7:B22) -> 16 | C22: =INDEX(DO_HTRABAJO!$T$6:$T$55,MATCH(B22,DO_HTRABAJO!$V$6:$V$55,0)) -> DR GAS S.A.C. | D22: =INDEX(DO_HTRABAJO!$T$6:$U$55,MATCH($B22,DO_HTRABAJO!$V$6:$V$55,0),2) -> SECTOR OESTE | E22: =SUMIFS(IF(DO_HTRABAJO!$AB$6="MN",DO_HTRABAJO!$K$6:$K$1000,DO_HTRABAJO!$J$6:$J$1000),DO_HTRABAJO!$D$6:$D$1000,$C22,DO_HTRABAJO!$E$6:$E$1000,$D22,DO_HTRABAJO!$M$6:$M$1000,$E$4,DO_HTRABAJO!$N$6:$N$1000,E$6) -> 75,764.79 | F22: =SUMIFS(IF(DO_HTRABAJO!$AB$6="MN",DO_HTRABAJO!$K$6:$K$1000,DO_HTRABAJO!$J$6:$J$1000),DO_HTRABAJO!$D$6:$D$1000,$C22,DO_HTRABAJO!$E$6:$E$1000,$D22,DO_HTRABAJO!$M$6:$M$1000,$E$4,DO_HTRABAJO!$N$6:$N$1000,F$6) -> 1,440.74 | G22: =SUMIFS(IF(DO_HTRABAJO!$AB$6="MN",DO_HTRABAJO!$K$6:$K$1000,DO_HTRABAJO!$J$6:$J$1000),DO_HTRABAJO!$D$6:$D$1000,$C22,DO_HTRABAJO!$E$6:$E$1000,$D22,DO_HTRABAJO!$M$6:$M$1000,$E$4,DO_HTRABAJO!$N$6:$N$1000,G$6) -> 1,191.46 | H22: =SUMIFS(IF(DO_HTRABAJO!$AB$6="MN",DO_HTRABAJO!$K$6:$K$1000,DO_HTRABAJO!$J$6:$J$1000),DO_HTRABAJO!$D$6:$D$1000,$C22,DO_HTRABAJO!$E$6:$E$1000,$D22,DO_HTRABAJO!$M$6:$M$1000,$E$4,DO_HTRABAJO!$N$6:$N$1000,H$6) -> 16,300.23 | I22: =SUMIFS(IF(DO_HTRABAJO!$AB$6="MN",DO_HTRABAJO!$K$6:$K$1000,DO_HTRABAJO!$J$6:$J$1000),DO_HTRABAJO!$D$6:$D$1000,$C22,DO_HTRABAJO!$E$6:$E$1000,$D22,DO_HTRABAJO!$M$6:$M$1000,$E$4,DO_HTRABAJO!$N$6:$N$1000,I$6) -> 0 | J22: =SUMIFS(IF(DO_HTRABAJO!$AB$6="MN",DO_HTRABAJO!$K$6:$K$1000,DO_HTRABAJO!$J$6:$J$1000),DO_HTRABAJO!$D$6:$D$1000,$C22,DO_HTRABAJO!$E$6:$E$1000,$D22,DO_HTRABAJO!$M$6:$M$1000,$E$4,DO_HTRABAJO!$N$6:$N$1000,J$6) -> 0 | K22: =SUMIFS(IF(DO_HTRABAJO!$AB$6="MN",DO_HTRABAJO!$K$6:$K$1000,DO_HTRABAJO!$J$6:$J$1000),DO_HTRABAJO!$D$6:$D$1000,$C22,DO_HTRABAJO!$E$6:$E$1000,$D22,DO_HTRABAJO!$M$6:$M$1000,$E$4,DO_HTRABAJO!$N$6:$N$1000,K$6) -> 4,334.05 | L22: 99,031.27 | M22: =SUMIFS(IF(DO_HTRABAJO!$AB$6="MN",DO_HTRABAJO!$K$6:$K$1000,DO_HTRABAJO!$J$6:$J$1000),DO_HTRABAJO!$D$6:$D$1000,$C22,DO_HTRABAJO!$E$6:$E$1000,$D22,DO_HTRABAJO!$M$6:$M$1000,$M$4,DO_HTRABAJO!$N$6:$N$1000,M$6) -> 0 | N22: =SUMIFS(IF(DO_HTRABAJO!$AB$6="MN",DO_HTRABAJO!$K$6:$K$1000,DO_HTRABAJO!$J$6:$J$1000),DO_HTRABAJO!$D$6:$D$1000,$C22,DO_HTRABAJO!$E$6:$E$1000,$D22,DO_HTRABAJO!$M$6:$M$1000,$M$4,DO_HTRABAJO!$N$6:$N$1000,N$6) -> 0 | O22: =SUMIFS(IF(DO_HTRABAJO!$AB$6="MN",DO_HTRABAJO!$K$6:$K$1000,DO_HTRABAJO!$J$6:$J$1000),DO_HTRABAJO!$D$6:$D$1000,$C22,DO_HTRABAJO!$E$6:$E$1000,$D22,DO_HTRABAJO!$M$6:$M$1000,$M$4,DO_HTRABAJO!$N$6:$N$1000,O$6) -> 0 | P22: =SUMIFS(IF(DO_HTRABAJO!$AB$6="MN",DO_HTRABAJO!$K$6:$K$1000,DO_HTRABAJO!$J$6:$J$1000),DO_HTRABAJO!$D$6:$D$1000,$C22,DO_HTRABAJO!$E$6:$E$1000,$D22,DO_HTRABAJO!$M$6:$M$1000,$M$4,DO_HTRABAJO!$N$6:$N$1000,P$6) -> 0 | Q22: =SUMIFS(IF(DO_HTRABAJO!$AB$6="MN",DO_HTRABAJO!$K$6:$K$1000,DO_HTRABAJO!$J$6:$J$1000),DO_HTRABAJO!$D$6:$D$1000,$C22,DO_HTRABAJO!$E$6:$E$1000,$D22,DO_HTRABAJO!$M$6:$M$1000,$M$4,DO_HTRABAJO!$N$6:$N$1000,Q$6) -> 0 | R22: =SUMIFS(IF(DO_HTRABAJO!$AB$6="MN",DO_HTRABAJO!$K$6:$K$1000,DO_HTRABAJO!$J$6:$J$1000),DO_HTRABAJO!$D$6:$D$1000,$C22,DO_HTRABAJO!$E$6:$E$1000,$D22,DO_HTRABAJO!$M$6:$M$1000,$M$4,DO_HTRABAJO!$N$6:$N$1000,R$6) -> 0 | S22: =SUMIFS(IF(DO_HTRABAJO!$AB$6="MN",DO_HTRABAJO!$K$6:$K$1000,DO_HTRABAJO!$J$6:$J$1000),DO_HTRABAJO!$D$6:$D$1000,$C22,DO_HTRABAJO!$E$6:$E$1000,$D22,DO_HTRABAJO!$M$6:$M$1000,$M$4,DO_HTRABAJO!$N$6:$N$1000,S$6) -> 0 | T22: 0 | U22: 99,031.27
B23: =ROWS(B$7:B23) -> 17 | C23: =INDEX(DO_HTRABAJO!$T$6:$T$55,MATCH(B23,DO_HTRABAJO!$V$6:$V$55,0)) -> EL REPOSTERO SAC | D23: =INDEX(DO_HTRABAJO!$T$6:$U$55,MATCH($B23,DO_HTRABAJO!$V$6:$V$55,0),2) -> SECTOR NORTE | E23: =SUMIFS(IF(DO_HTRABAJO!$AB$6="MN",DO_HTRABAJO!$K$6:$K$1000,DO_HTRABAJO!$J$6:$J$1000),DO_HTRABAJO!$D$6:$D$1000,$C23,DO_HTRABAJO!$E$6:$E$1000,$D23,DO_HTRABAJO!$M$6:$M$1000,$E$4,DO_HTRABAJO!$N$6:$N$1000,E$6) -> 129,451.75 | F23: =SUMIFS(IF(DO_HTRABAJO!$AB$6="MN",DO_HTRABAJO!$K$6:$K$1000,DO_HTRABAJO!$J$6:$J$1000),DO_HTRABAJO!$D$6:$D$1000,$C23,DO_HTRABAJO!$E$6:$E$1000,$D23,DO_HTRABAJO!$M$6:$M$1000,$E$4,DO_HTRABAJO!$N$6:$N$1000,F$6) -> 0 | G23: =SUMIFS(IF(DO_HTRABAJO!$AB$6="MN",DO_HTRABAJO!$K$6:$K$1000,DO_HTRABAJO!$J$6:$J$1000),DO_HTRABAJO!$D$6:$D$1000,$C23,DO_HTRABAJO!$E$6:$E$1000,$D23,DO_HTRABAJO!$M$6:$M$1000,$E$4,DO_HTRABAJO!$N$6:$N$1000,G$6) -> 0 | H23: =SUMIFS(IF(DO_HTRABAJO!$AB$6="MN",DO_HTRABAJO!$K$6:$K$1000,DO_HTRABAJO!$J$6:$J$1000),DO_HTRABAJO!$D$6:$D$1000,$C23,DO_HTRABAJO!$E$6:$E$1000,$D23,DO_HTRABAJO!$M$6:$M$1000,$E$4,DO_HTRABAJO!$N$6:$N$1000,H$6) -> 0 | I23: =SUMIFS(IF(DO_HTRABAJO!$AB$6="MN",DO_HTRABAJO!$K$6:$K$1000,DO_HTRABAJO!$J$6:$J$1000),DO_HTRABAJO!$D$6:$D$1000,$C23,DO_HTRABAJO!$E$6:$E$1000,$D23,DO_HTRABAJO!$M$6:$M$1000,$E$4,DO_HTRABAJO!$N$6:$N$1000,I$6) -> 129,451.75 | J23: =SUMIFS(IF(DO_HTRABAJO!$AB$6="MN",DO_HTRABAJO!$K$6:$K$1000,DO_HTRABAJO!$J$6:$J$1000),DO_HTRABAJO!$D$6:$D$1000,$C23,DO_HTRABAJO!$E$6:$E$1000,$D23,DO_HTRABAJO!$M$6:$M$1000,$E$4,DO_HTRABAJO!$N$6:$N$1000,J$6) -> 0 | K23: =SUMIFS(IF(DO_HTRABAJO!$AB$6="MN",DO_HTRABAJO!$K$6:$K$1000,DO_HTRABAJO!$J$6:$J$1000),DO_HTRABAJO!$D$6:$D$1000,$C23,DO_HTRABAJO!$E$6:$E$1000,$D23,DO_HTRABAJO!$M$6:$M$1000,$E$4,DO_HTRABAJO!$N$6:$N$1000,K$6) -> 0 | L23: 258,903.50 | M23: =SUMIFS(IF(DO_HTRABAJO!$AB$6="MN",DO_HTRABAJO!$K$6:$K$1000,DO_HTRABAJO!$J$6:$J$1000),DO_HTRABAJO!$D$6:$D$1000,$C23,DO_HTRABAJO!$E$6:$E$1000,$D23,DO_HTRABAJO!$M$6:$M$1000,$M$4,DO_HTRABAJO!$N$6:$N$1000,M$6) -> 19,711.33 | N23: =SUMIFS(IF(DO_HTRABAJO!$AB$6="MN",DO_HTRABAJO!$K$6:$K$1000,DO_HTRABAJO!$J$6:$J$1000),DO_HTRABAJO!$D$6:$D$1000,$C23,DO_HTRABAJO!$E$6:$E$1000,$D23,DO_HTRABAJO!$M$6:$M$1000,$M$4,DO_HTRABAJO!$N$6:$N$1000,N$6) -> 22,488.53 | O23: =SUMIFS(IF(DO_HTRABAJO!$AB$6="MN",DO_HTRABAJO!$K$6:$K$1000,DO_HTRABAJO!$J$6:$J$1000),DO_HTRABAJO!$D$6:$D$1000,$C23,DO_HTRABAJO!$E$6:$E$1000,$D23,DO_HTRABAJO!$M$6:$M$1000,$M$4,DO_HTRABAJO!$N$6:$N$1000,O$6) -> 0 | P23: =SUMIFS(IF(DO_HTRABAJO!$AB$6="MN",DO_HTRABAJO!$K$6:$K$1000,DO_HTRABAJO!$J$6:$J$1000),DO_HTRABAJO!$D$6:$D$1000,$C23,DO_HTRABAJO!$E$6:$E$1000,$D23,DO_HTRABAJO!$M$6:$M$1000,$M$4,DO_HTRABAJO!$N$6:$N$1000,P$6) -> 0 | Q23: =SUMIFS(IF(DO_HTRABAJO!$AB$6="MN",DO_HTRABAJO!$K$6:$K$1000,DO_HTRABAJO!$J$6:$J$1000),DO_HTRABAJO!$D$6:$D$1000,$C23,DO_HTRABAJO!$E$6:$E$1000,$D23,DO_HTRABAJO!$M$6:$M$1000,$M$4,DO_HTRABAJO!$N$6:$N$1000,Q$6) -> 0 | R23: =SUMIFS(IF(DO_HTRABAJO!$AB$6="MN",DO_HTRABAJO!$K$6:$K$1000,DO_HTRABAJO!$J$6:$J$1000),DO_HTRABAJO!$D$6:$D$1000,$C23,DO_HTRABAJO!$E$6:$E$1000,$D23,DO_HTRABAJO!$M$6:$M$1000,$M$4,DO_HTRABAJO!$N$6:$N$1000,R$6) -> 15,516.78 | S23: =SUMIFS(IF(DO_HTRABAJO!$AB$6="MN",DO_HTRABAJO!$K$6:$K$1000,DO_HTRABAJO!$J$6:$J$1000),DO_HTRABAJO!$D$6:$D$1000,$C23,DO_HTRABAJO!$E$6:$E$1000,$D23,DO_HTRABAJO!$M$6:$M$1000,$M$4,DO_HTRABAJO!$N$6:$N$1000,S$6) -> 57,716.64 | T23: 115,433.29 | U23: 374,336.79
B24: =ROWS(B$7:B24) -> 18 | C24: =INDEX(DO_HTRABAJO!$T$6:$T$55,MATCH(B24,DO_HTRABAJO!$V$6:$V$55,0)) -> FIDUCIARIA GBC S.A. | D24: =INDEX(DO_HTRABAJO!$T$6:$U$55,MATCH($B24,DO_HTRABAJO!$V$6:$V$55,0),2) -> SECTOR NORTE | E24: =SUMIFS(IF(DO_HTRABAJO!$AB$6="MN",DO_HTRABAJO!$K$6:$K$1000,DO_HTRABAJO!$J$6:$J$1000),DO_HTRABAJO!$D$6:$D$1000,$C24,DO_HTRABAJO!$E$6:$E$1000,$D24,DO_HTRABAJO!$M$6:$M$1000,$E$4,DO_HTRABAJO!$N$6:$N$1000,E$6) -> 3,935.98 | F24: =SUMIFS(IF(DO_HTRABAJO!$AB$6="MN",DO_HTRABAJO!$K$6:$K$1000,DO_HTRABAJO!$J$6:$J$1000),DO_HTRABAJO!$D$6:$D$1000,$C24,DO_HTRABAJO!$E$6:$E$1000,$D24,DO_HTRABAJO!$M$6:$M$1000,$E$4,DO_HTRABAJO!$N$6:$N$1000,F$6) -> 0 | G24: =SUMIFS(IF(DO_HTRABAJO!$AB$6="MN",DO_HTRABAJO!$K$6:$K$1000,DO_HTRABAJO!$J$6:$J$1000),DO_HTRABAJO!$D$6:$D$1000,$C24,DO_HTRABAJO!$E$6:$E$1000,$D24,DO_HTRABAJO!$M$6:$M$1000,$E$4,DO_HTRABAJO!$N$6:$N$1000,G$6) -> 1,255.80 | H24: =SUMIFS(IF(DO_HTRABAJO!$AB$6="MN",DO_HTRABAJO!$K$6:$K$1000,DO_HTRABAJO!$J$6:$J$1000),DO_HTRABAJO!$D$6:$D$1000,$C24,DO_HTRABAJO!$E$6:$E$1000,$D24,DO_HTRABAJO!$M$6:$M$1000,$E$4,DO_HTRABAJO!$N$6:$N$1000,H$6) -> 0 | I24: =SUMIFS(IF(DO_HTRABAJO!$AB$6="MN",DO_HTRABAJO!$K$6:$K$1000,DO_HTRABAJO!$J$6:$J$1000),DO_HTRABAJO!$D$6:$D$1000,$C24,DO_HTRABAJO!$E$6:$E$1000,$D24,DO_HTRABAJO!$M$6:$M$1000,$E$4,DO_HTRABAJO!$N$6:$N$1000,I$6) -> 0 | J24: =SUMIFS(IF(DO_HTRABAJO!$AB$6="MN",DO_HTRABAJO!$K$6:$K$1000,DO_HTRABAJO!$J$6:$J$1000),DO_HTRABAJO!$D$6:$D$1000,$C24,DO_HTRABAJO!$E$6:$E$1000,$D24,DO_HTRABAJO!$M$6:$M$1000,$E$4,DO_HTRABAJO!$N$6:$N$1000,J$6) -> 0 | K24: =SUMIFS(IF(DO_HTRABAJO!$AB$6="MN",DO_HTRABAJO!$K$6:$K$1000,DO_HTRABAJO!$J$6:$J$1000),DO_HTRABAJO!$D$6:$D$1000,$C24,DO_HTRABAJO!$E$6:$E$1000,$D24,DO_HTRABAJO!$M$6:$M$1000,$E$4,DO_HTRABAJO!$N$6:$N$1000,K$6) -> 0 | L24: 5,191.78 | M24: =SUMIFS(IF(DO_HTRABAJO!$AB$6="MN",DO_HTRABAJO!$K$6:$K$1000,DO_HTRABAJO!$J$6:$J$1000),DO_HTRABAJO!$D$6:$D$1000,$C24,DO_HTRABAJO!$E$6:$E$1000,$D24,DO_HTRABAJO!$M$6:$M$1000,$M$4,DO_HTRABAJO!$N$6:$N$1000,M$6) -> 0 | N24: =SUMIFS(IF(DO_HTRABAJO!$AB$6="MN",DO_HTRABAJO!$K$6:$K$1000,DO_HTRABAJO!$J$6:$J$1000),DO_HTRABAJO!$D$6:$D$1000,$C24,DO_HTRABAJO!$E$6:$E$1000,$D24,DO_HTRABAJO!$M$6:$M$1000,$M$4,DO_HTRABAJO!$N$6:$N$1000,N$6) -> 0 | O24: =SUMIFS(IF(DO_HTRABAJO!$AB$6="MN",DO_HTRABAJO!$K$6:$K$1000,DO_HTRABAJO!$J$6:$J$1000),DO_HTRABAJO!$D$6:$D$1000,$C24,DO_HTRABAJO!$E$6:$E$1000,$D24,DO_HTRABAJO!$M$6:$M$1000,$M$4,DO_HTRABAJO!$N$6:$N$1000,O$6) -> 0 | P24: =SUMIFS(IF(DO_HTRABAJO!$AB$6="MN",DO_HTRABAJO!$K$6:$K$1000,DO_HTRABAJO!$J$6:$J$1000),DO_HTRABAJO!$D$6:$D$1000,$C24,DO_HTRABAJO!$E$6:$E$1000,$D24,DO_HTRABAJO!$M$6:$M$1000,$M$4,DO_HTRABAJO!$N$6:$N$1000,P$6) -> 0 | Q24: =SUMIFS(IF(DO_HTRABAJO!$AB$6="MN",DO_HTRABAJO!$K$6:$K$1000,DO_HTRABAJO!$J$6:$J$1000),DO_HTRABAJO!$D$6:$D$1000,$C24,DO_HTRABAJO!$E$6:$E$1000,$D24,DO_HTRABAJO!$M$6:$M$1000,$M$4,DO_HTRABAJO!$N$6:$N$1000,Q$6) -> 0 | R24: =SUMIFS(IF(DO_HTRABAJO!$AB$6="MN",DO_HTRABAJO!$K$6:$K$1000,DO_HTRABAJO!$J$6:$J$1000),DO_HTRABAJO!$D$6:$D$1000,$C24,DO_HTRABAJO!$E$6:$E$1000,$D24,DO_HTRABAJO!$M$6:$M$1000,$M$4,DO_HTRABAJO!$N$6:$N$1000,R$6) -> 0 | S24: =SUMIFS(IF(DO_HTRABAJO!$AB$6="MN",DO_HTRABAJO!$K$6:$K$1000,DO_HTRABAJO!$J$6:$J$1000),DO_HTRABAJO!$D$6:$D$1000,$C24,DO_HTRABAJO!$E$6:$E$1000,$D24,DO_HTRABAJO!$M$6:$M$1000,$M$4,DO_HTRABAJO!$N$6:$N$1000,S$6) -> 0 | T24: 0 | U24: 5,191.78
B25: =ROWS(B$7:B25) -> 19 | C25: =INDEX(DO_HTRABAJO!$T$6:$T$55,MATCH(B25,DO_HTRABAJO!$V$6:$V$55,0)) -> GAS ANTONIO'S SAC | D25: =INDEX(DO_HTRABAJO!$T$6:$U$55,MATCH($B25,DO_HTRABAJO!$V$6:$V$55,0),2) -> SECTOR SUR | E25: =SUMIFS(IF(DO_HTRABAJO!$AB$6="MN",DO_HTRABAJO!$K$6:$K$1000,DO_HTRABAJO!$J$6:$J$1000),DO_HTRABAJO!$D$6:$D$1000,$C25,DO_HTRABAJO!$E$6:$E$1000,$D25,DO_HTRABAJO!$M$6:$M$1000,$E$4,DO_HTRABAJO!$N$6:$N$1000,E$6) -> 55,825.39 | F25: =SUMIFS(IF(DO_HTRABAJO!$AB$6="MN",DO_HTRABAJO!$K$6:$K$1000,DO_HTRABAJO!$J$6:$J$1000),DO_HTRABAJO!$D$6:$D$1000,$C25,DO_HTRABAJO!$E$6:$E$1000,$D25,DO_HTRABAJO!$M$6:$M$1000,$E$4,DO_HTRABAJO!$N$6:$N$1000,F$6) -> 0 | G25: =SUMIFS(IF(DO_HTRABAJO!$AB$6="MN",DO_HTRABAJO!$K$6:$K$1000,DO_HTRABAJO!$J$6:$J$1000),DO_HTRABAJO!$D$6:$D$1000,$C25,DO_HTRABAJO!$E$6:$E$1000,$D25,DO_HTRABAJO!$M$6:$M$1000,$E$4,DO_HTRABAJO!$N$6:$N$1000,G$6) -> 0 | H25: =SUMIFS(IF(DO_HTRABAJO!$AB$6="MN",DO_HTRABAJO!$K$6:$K$1000,DO_HTRABAJO!$J$6:$J$1000),DO_HTRABAJO!$D$6:$D$1000,$C25,DO_HTRABAJO!$E$6:$E$1000,$D25,DO_HTRABAJO!$M$6:$M$1000,$E$4,DO_HTRABAJO!$N$6:$N$1000,H$6) -> 0 | I25: =SUMIFS(IF(DO_HTRABAJO!$AB$6="MN",DO_HTRABAJO!$K$6:$K$1000,DO_HTRABAJO!$J$6:$J$1000),DO_HTRABAJO!$D$6:$D$1000,$C25,DO_HTRABAJO!$E$6:$E$1000,$D25,DO_HTRABAJO!$M$6:$M$1000,$E$4,DO_HTRABAJO!$N$6:$N$1000,I$6) -> 0 | J25: =SUMIFS(IF(DO_HTRABAJO!$AB$6="MN",DO_HTRABAJO!$K$6:$K$1000,DO_HTRABAJO!$J$6:$J$1000),DO_HTRABAJO!$D$6:$D$1000,$C25,DO_HTRABAJO!$E$6:$E$1000,$D25,DO_HTRABAJO!$M$6:$M$1000,$E$4,DO_HTRABAJO!$N$6:$N$1000,J$6) -> 0 | K25: =SUMIFS(IF(DO_HTRABAJO!$AB$6="MN",DO_HTRABAJO!$K$6:$K$1000,DO_HTRABAJO!$J$6:$J$1000),DO_HTRABAJO!$D$6:$D$1000,$C25,DO_HTRABAJO!$E$6:$E$1000,$D25,DO_HTRABAJO!$M$6:$M$1000,$E$4,DO_HTRABAJO!$N$6:$N$1000,K$6) -> 0 | L25: 55,825.39 | M25: =SUMIFS(IF(DO_HTRABAJO!$AB$6="MN",DO_HTRABAJO!$K$6:$K$1000,DO_HTRABAJO!$J$6:$J$1000),DO_HTRABAJO!$D$6:$D$1000,$C25,DO_HTRABAJO!$E$6:$E$1000,$D25,DO_HTRABAJO!$M$6:$M$1000,$M$4,DO_HTRABAJO!$N$6:$N$1000,M$6) -> 0 | N25: =SUMIFS(IF(DO_HTRABAJO!$AB$6="MN",DO_HTRABAJO!$K$6:$K$1000,DO_HTRABAJO!$J$6:$J$1000),DO_HTRABAJO!$D$6:$D$1000,$C25,DO_HTRABAJO!$E$6:$E$1000,$D25,DO_HTRABAJO!$M$6:$M$1000,$M$4,DO_HTRABAJO!$N$6:$N$1000,N$6) -> 0 | O25: =SUMIFS(IF(DO_HTRABAJO!$AB$6="MN",DO_HTRABAJO!$K$6:$K$1000,DO_HTRABAJO!$J$6:$J$1000),DO_HTRABAJO!$D$6:$D$1000,$C25,DO_HTRABAJO!$E$6:$E$1000,$D25,DO_HTRABAJO!$M$6:$M$1000,$M$4,DO_HTRABAJO!$N$6:$N$1000,O$6) -> 0 | P25: =SUMIFS(IF(DO_HTRABAJO!$AB$6="MN",DO_HTRABAJO!$K$6:$K$1000,DO_HTRABAJO!$J$6:$J$1000),DO_HTRABAJO!$D$6:$D$1000,$C25,DO_HTRABAJO!$E$6:$E$1000,$D25,DO_HTRABAJO!$M$6:$M$1000,$M$4,DO_HTRABAJO!$N$6:$N$1000,P$6) -> 0 | Q25: =SUMIFS(IF(DO_HTRABAJO!$AB$6="MN",DO_HTRABAJO!$K$6:$K$1000,DO_HTRABAJO!$J$6:$J$1000),DO_HTRABAJO!$D$6:$D$1000,$C25,DO_HTRABAJO!$E$6:$E$1000,$D25,DO_HTRABAJO!$M$6:$M$1000,$M$4,DO_HTRABAJO!$N$6:$N$1000,Q$6) -> 0 | R25: =SUMIFS(IF(DO_HTRABAJO!$AB$6="MN",DO_HTRABAJO!$K$6:$K$1000,DO_HTRABAJO!$J$6:$J$1000),DO_HTRABAJO!$D$6:$D$1000,$C25,DO_HTRABAJO!$E$6:$E$1000,$D25,DO_HTRABAJO!$M$6:$M$1000,$M$4,DO_HTRABAJO!$N$6:$N$1000,R$6) -> 0 | S25: =SUMIFS(IF(DO_HTRABAJO!$AB$6="MN",DO_HTRABAJO!$K$6:$K$1000,DO_HTRABAJO!$J$6:$J$1000),DO_HTRABAJO!$D$6:$D$1000,$C25,DO_HTRABAJO!$E$6:$E$1000,$D25,DO_HTRABAJO!$M$6:$M$1000,$M$4,DO_HTRABAJO!$N$6:$N$1000,S$6) -> 0 | T25: 0 | U25: 55,825.39
B26: =ROWS(B$7:B26) -> 20 | C26: =INDEX(DO_HTRABAJO!$T$6:$T$55,MATCH(B26,DO_HTRABAJO!$V$6:$V$55,0)) -> GRUPO IMPORT EIRL | D26: =INDEX(DO_HTRABAJO!$T$6:$U$55,MATCH($B26,DO_HTRABAJO!$V$6:$V$55,0),2) -> SECTOR NORTE | E26: =SUMIFS(IF(DO_HTRABAJO!$AB$6="MN",DO_HTRABAJO!$K$6:$K$1000,DO_HTRABAJO!$J$6:$J$1000),DO_HTRABAJO!$D$6:$D$1000,$C26,DO_HTRABAJO!$E$6:$E$1000,$D26,DO_HTRABAJO!$M$6:$M$1000,$E$4,DO_HTRABAJO!$N$6:$N$1000,E$6) -> 0 | F26: =SUMIFS(IF(DO_HTRABAJO!$AB$6="MN",DO_HTRABAJO!$K$6:$K$1000,DO_HTRABAJO!$J$6:$J$1000),DO_HTRABAJO!$D$6:$D$1000,$C26,DO_HTRABAJO!$E$6:$E$1000,$D26,DO_HTRABAJO!$M$6:$M$1000,$E$4,DO_HTRABAJO!$N$6:$N$1000,F$6) -> 0 | G26: =SUMIFS(IF(DO_HTRABAJO!$AB$6="MN",DO_HTRABAJO!$K$6:$K$1000,DO_HTRABAJO!$J$6:$J$1000),DO_HTRABAJO!$D$6:$D$1000,$C26,DO_HTRABAJO!$E$6:$E$1000,$D26,DO_HTRABAJO!$M$6:$M$1000,$E$4,DO_HTRABAJO!$N$6:$N$1000,G$6) -> 0 | H26: =SUMIFS(IF(DO_HTRABAJO!$AB$6="MN",DO_HTRABAJO!$K$6:$K$1000,DO_HTRABAJO!$J$6:$J$1000),DO_HTRABAJO!$D$6:$D$1000,$C26,DO_HTRABAJO!$E$6:$E$1000,$D26,DO_HTRABAJO!$M$6:$M$1000,$E$4,DO_HTRABAJO!$N$6:$N$1000,H$6) -> 0 | I26: =SUMIFS(IF(DO_HTRABAJO!$AB$6="MN",DO_HTRABAJO!$K$6:$K$1000,DO_HTRABAJO!$J$6:$J$1000),DO_HTRABAJO!$D$6:$D$1000,$C26,DO_HTRABAJO!$E$6:$E$1000,$D26,DO_HTRABAJO!$M$6:$M$1000,$E$4,DO_HTRABAJO!$N$6:$N$1000,I$6) -> 0 | J26: =SUMIFS(IF(DO_HTRABAJO!$AB$6="MN",DO_HTRABAJO!$K$6:$K$1000,DO_HTRABAJO!$J$6:$J$1000),DO_HTRABAJO!$D$6:$D$1000,$C26,DO_HTRABAJO!$E$6:$E$1000,$D26,DO_HTRABAJO!$M$6:$M$1000,$E$4,DO_HTRABAJO!$N$6:$N$1000,J$6) -> 0 | K26: =SUMIFS(IF(DO_HTRABAJO!$AB$6="MN",DO_HTRABAJO!$K$6:$K$1000,DO_HTRABAJO!$J$6:$J$1000),DO_HTRABAJO!$D$6:$D$1000,$C26,DO_HTRABAJO!$E$6:$E$1000,$D26,DO_HTRABAJO!$M$6:$M$1000,$E$4,DO_HTRABAJO!$N$6:$N$1000,K$6) -> 0 | L26: 0 | M26: =SUMIFS(IF(DO_HTRABAJO!$AB$6="MN",DO_HTRABAJO!$K$6:$K$1000,DO_HTRABAJO!$J$6:$J$1000),DO_HTRABAJO!$D$6:$D$1000,$C26,DO_HTRABAJO!$E$6:$E$1000,$D26,DO_HTRABAJO!$M$6:$M$1000,$M$4,DO_HTRABAJO!$N$6:$N$1000,M$6) -> 0 | N26: =SUMIFS(IF(DO_HTRABAJO!$AB$6="MN",DO_HTRABAJO!$K$6:$K$1000,DO_HTRABAJO!$J$6:$J$1000),DO_HTRABAJO!$D$6:$D$1000,$C26,DO_HTRABAJO!$E$6:$E$1000,$D26,DO_HTRABAJO!$M$6:$M$1000,$M$4,DO_HTRABAJO!$N$6:$N$1000,N$6) -> 0 | O26: =SUMIFS(IF(DO_HTRABAJO!$AB$6="MN",DO_HTRABAJO!$K$6:$K$1000,DO_HTRABAJO!$J$6:$J$1000),DO_HTRABAJO!$D$6:$D$1000,$C26,DO_HTRABAJO!$E$6:$E$1000,$D26,DO_HTRABAJO!$M$6:$M$1000,$M$4,DO_HTRABAJO!$N$6:$N$1000,O$6) -> 0 | P26: =SUMIFS(IF(DO_HTRABAJO!$AB$6="MN",DO_HTRABAJO!$K$6:$K$1000,DO_HTRABAJO!$J$6:$J$1000),DO_HTRABAJO!$D$6:$D$1000,$C26,DO_HTRABAJO!$E$6:$E$1000,$D26,DO_HTRABAJO!$M$6:$M$1000,$M$4,DO_HTRABAJO!$N$6:$N$1000,P$6) -> 0 | Q26: =SUMIFS(IF(DO_HTRABAJO!$AB$6="MN",DO_HTRABAJO!$K$6:$K$1000,DO_HTRABAJO!$J$6:$J$1000),DO_HTRABAJO!$D$6:$D$1000,$C26,DO_HTRABAJO!$E$6:$E$1000,$D26,DO_HTRABAJO!$M$6:$M$1000,$M$4,DO_HTRABAJO!$N$6:$N$1000,Q$6) -> 0 | R26: =SUMIFS(IF(DO_HTRABAJO!$AB$6="MN",DO_HTRABAJO!$K$6:$K$1000,DO_HTRABAJO!$J$6:$J$1000),DO_HTRABAJO!$D$6:$D$1000,$C26,DO_HTRABAJO!$E$6:$E$1000,$D26,DO_HTRABAJO!$M$6:$M$1000,$M$4,DO_HTRABAJO!$N$6:$N$1000,R$6) -> 0 | S26: =SUMIFS(IF(DO_HTRABAJO!$AB$6="MN",DO_HTRABAJO!$K$6:$K$1000,DO_HTRABAJO!$J$6:$J$1000),DO_HTRABAJO!$D$6:$D$1000,$C26,DO_HTRABAJO!$E$6:$E$1000,$D26,DO_HTRABAJO!$M$6:$M$1000,$M$4,DO_HTRABAJO!$N$6:$N$1000,S$6) -> 110,503.63 | T26: 110,503.63 | U26: 110,503.63
B27: =ROWS(B$7:B27) -> 21 | C27: =INDEX(DO_HTRABAJO!$T$6:$T$55,MATCH(B27,DO_HTRABAJO!$V$6:$V$55,0)) -> ILOP S.A.C. | D27: =INDEX(DO_HTRABAJO!$T$6:$U$55,MATCH($B27,DO_HTRABAJO!$V$6:$V$55,0),2) -> SECTOR ESTE | E27: =SUMIFS(IF(DO_HTRABAJO!$AB$6="MN",DO_HTRABAJO!$K$6:$K$1000,DO_HTRABAJO!$J$6:$J$1000),DO_HTRABAJO!$D$6:$D$1000,$C27,DO_HTRABAJO!$E$6:$E$1000,$D27,DO_HTRABAJO!$M$6:$M$1000,$E$4,DO_HTRABAJO!$N$6:$N$1000,E$6) -> 48,275.82 | F27: =SUMIFS(IF(DO_HTRABAJO!$AB$6="MN",DO_HTRABAJO!$K$6:$K$1000,DO_HTRABAJO!$J$6:$J$1000),DO_HTRABAJO!$D$6:$D$1000,$C27,DO_HTRABAJO!$E$6:$E$1000,$D27,DO_HTRABAJO!$M$6:$M$1000,$E$4,DO_HTRABAJO!$N$6:$N$1000,F$6) -> 22,306.29 | G27: =SUMIFS(IF(DO_HTRABAJO!$AB$6="MN",DO_HTRABAJO!$K$6:$K$1000,DO_HTRABAJO!$J$6:$J$1000),DO_HTRABAJO!$D$6:$D$1000,$C27,DO_HTRABAJO!$E$6:$E$1000,$D27,DO_HTRABAJO!$M$6:$M$1000,$E$4,DO_HTRABAJO!$N$6:$N$1000,G$6) -> 0 | H27: =SUMIFS(IF(DO_HTRABAJO!$AB$6="MN",DO_HTRABAJO!$K$6:$K$1000,DO_HTRABAJO!$J$6:$J$1000),DO_HTRABAJO!$D$6:$D$1000,$C27,DO_HTRABAJO!$E$6:$E$1000,$D27,DO_HTRABAJO!$M$6:$M$1000,$E$4,DO_HTRABAJO!$N$6:$N$1000,H$6) -> 0 | I27: =SUMIFS(IF(DO_HTRABAJO!$AB$6="MN",DO_HTRABAJO!$K$6:$K$1000,DO_HTRABAJO!$J$6:$J$1000),DO_HTRABAJO!$D$6:$D$1000,$C27,DO_HTRABAJO!$E$6:$E$1000,$D27,DO_HTRABAJO!$M$6:$M$1000,$E$4,DO_HTRABAJO!$N$6:$N$1000,I$6) -> 0 | J27: =SUMIFS(IF(DO_HTRABAJO!$AB$6="MN",DO_HTRABAJO!$K$6:$K$1000,DO_HTRABAJO!$J$6:$J$1000),DO_HTRABAJO!$D$6:$D$1000,$C27,DO_HTRABAJO!$E$6:$E$1000,$D27,DO_HTRABAJO!$M$6:$M$1000,$E$4,DO_HTRABAJO!$N$6:$N$1000,J$6) -> 0 | K27: =SUMIFS(IF(DO_HTRABAJO!$AB$6="MN",DO_HTRABAJO!$K$6:$K$1000,DO_HTRABAJO!$J$6:$J$1000),DO_HTRABAJO!$D$6:$D$1000,$C27,DO_HTRABAJO!$E$6:$E$1000,$D27,DO_HTRABAJO!$M$6:$M$1000,$E$4,DO_HTRABAJO!$N$6:$N$1000,K$6) -> 0 | L27: 70,582.11 | M27: =SUMIFS(IF(DO_HTRABAJO!$AB$6="MN",DO_HTRABAJO!$K$6:$K$1000,DO_HTRABAJO!$J$6:$J$1000),DO_HTRABAJO!$D$6:$D$1000,$C27,DO_HTRABAJO!$E$6:$E$1000,$D27,DO_HTRABAJO!$M$6:$M$1000,$M$4,DO_HTRABAJO!$N$6:$N$1000,M$6) -> 0 | N27: =SUMIFS(IF(DO_HTRABAJO!$AB$6="MN",DO_HTRABAJO!$K$6:$K$1000,DO_HTRABAJO!$J$6:$J$1000),DO_HTRABAJO!$D$6:$D$1000,$C27,DO_HTRABAJO!$E$6:$E$1000,$D27,DO_HTRABAJO!$M$6:$M$1000,$M$4,DO_HTRABAJO!$N$6:$N$1000,N$6) -> 0 | O27: =SUMIFS(IF(DO_HTRABAJO!$AB$6="MN",DO_HTRABAJO!$K$6:$K$1000,DO_HTRABAJO!$J$6:$J$1000),DO_HTRABAJO!$D$6:$D$1000,$C27,DO_HTRABAJO!$E$6:$E$1000,$D27,DO_HTRABAJO!$M$6:$M$1000,$M$4,DO_HTRABAJO!$N$6:$N$1000,O$6) -> 0 | P27: =SUMIFS(IF(DO_HTRABAJO!$AB$6="MN",DO_HTRABAJO!$K$6:$K$1000,DO_HTRABAJO!$J$6:$J$1000),DO_HTRABAJO!$D$6:$D$1000,$C27,DO_HTRABAJO!$E$6:$E$1000,$D27,DO_HTRABAJO!$M$6:$M$1000,$M$4,DO_HTRABAJO!$N$6:$N$1000,P$6) -> 0 | Q27: =SUMIFS(IF(DO_HTRABAJO!$AB$6="MN",DO_HTRABAJO!$K$6:$K$1000,DO_HTRABAJO!$J$6:$J$1000),DO_HTRABAJO!$D$6:$D$1000,$C27,DO_HTRABAJO!$E$6:$E$1000,$D27,DO_HTRABAJO!$M$6:$M$1000,$M$4,DO_HTRABAJO!$N$6:$N$1000,Q$6) -> 0 | R27: =SUMIFS(IF(DO_HTRABAJO!$AB$6="MN",DO_HTRABAJO!$K$6:$K$1000,DO_HTRABAJO!$J$6:$J$1000),DO_HTRABAJO!$D$6:$D$1000,$C27,DO_HTRABAJO!$E$6:$E$1000,$D27,DO_HTRABAJO!$M$6:$M$1000,$M$4,DO_HTRABAJO!$N$6:$N$1000,R$6) -> 0 | S27: =SUMIFS(IF(DO_HTRABAJO!$AB$6="MN",DO_HTRABAJO!$K$6:$K$1000,DO_HTRABAJO!$J$6:$J$1000),DO_HTRABAJO!$D$6:$D$1000,$C27,DO_HTRABAJO!$E$6:$E$1000,$D27,DO_HTRABAJO!$M$6:$M$1000,$M$4,DO_HTRABAJO!$N$6:$N$1000,S$6) -> 0 | T27: 0 | U27: 70,582.11
B28: =ROWS(B$7:B28) -> 22 | C28: =INDEX(DO_HTRABAJO!$T$6:$T$55,MATCH(B28,DO_HTRABAJO!$V$6:$V$55,0)) -> INGEMEC PERU SAC | D28: =INDEX(DO_HTRABAJO!$T$6:$U$55,MATCH($B28,DO_HTRABAJO!$V$6:$V$55,0),2) -> SECTOR NORTE | E28: =SUMIFS(IF(DO_HTRABAJO!$AB$6="MN",DO_HTRABAJO!$K$6:$K$1000,DO_HTRABAJO!$J$6:$J$1000),DO_HTRABAJO!$D$6:$D$1000,$C28,DO_HTRABAJO!$E$6:$E$1000,$D28,DO_HTRABAJO!$M$6:$M$1000,$E$4,DO_HTRABAJO!$N$6:$N$1000,E$6) -> 26,035.17 | F28: =SUMIFS(IF(DO_HTRABAJO!$AB$6="MN",DO_HTRABAJO!$K$6:$K$1000,DO_HTRABAJO!$J$6:$J$1000),DO_HTRABAJO!$D$6:$D$1000,$C28,DO_HTRABAJO!$E$6:$E$1000,$D28,DO_HTRABAJO!$M$6:$M$1000,$E$4,DO_HTRABAJO!$N$6:$N$1000,F$6) -> 0 | G28: =SUMIFS(IF(DO_HTRABAJO!$AB$6="MN",DO_HTRABAJO!$K$6:$K$1000,DO_HTRABAJO!$J$6:$J$1000),DO_HTRABAJO!$D$6:$D$1000,$C28,DO_HTRABAJO!$E$6:$E$1000,$D28,DO_HTRABAJO!$M$6:$M$1000,$E$4,DO_HTRABAJO!$N$6:$N$1000,G$6) -> 0 | H28: =SUMIFS(IF(DO_HTRABAJO!$AB$6="MN",DO_HTRABAJO!$K$6:$K$1000,DO_HTRABAJO!$J$6:$J$1000),DO_HTRABAJO!$D$6:$D$1000,$C28,DO_HTRABAJO!$E$6:$E$1000,$D28,DO_HTRABAJO!$M$6:$M$1000,$E$4,DO_HTRABAJO!$N$6:$N$1000,H$6) -> 0 | I28: =SUMIFS(IF(DO_HTRABAJO!$AB$6="MN",DO_HTRABAJO!$K$6:$K$1000,DO_HTRABAJO!$J$6:$J$1000),DO_HTRABAJO!$D$6:$D$1000,$C28,DO_HTRABAJO!$E$6:$E$1000,$D28,DO_HTRABAJO!$M$6:$M$1000,$E$4,DO_HTRABAJO!$N$6:$N$1000,I$6) -> 0 | J28: =SUMIFS(IF(DO_HTRABAJO!$AB$6="MN",DO_HTRABAJO!$K$6:$K$1000,DO_HTRABAJO!$J$6:$J$1000),DO_HTRABAJO!$D$6:$D$1000,$C28,DO_HTRABAJO!$E$6:$E$1000,$D28,DO_HTRABAJO!$M$6:$M$1000,$E$4,DO_HTRABAJO!$N$6:$N$1000,J$6) -> 0 | K28: =SUMIFS(IF(DO_HTRABAJO!$AB$6="MN",DO_HTRABAJO!$K$6:$K$1000,DO_HTRABAJO!$J$6:$J$1000),DO_HTRABAJO!$D$6:$D$1000,$C28,DO_HTRABAJO!$E$6:$E$1000,$D28,DO_HTRABAJO!$M$6:$M$1000,$E$4,DO_HTRABAJO!$N$6:$N$1000,K$6) -> 26,035.17 | L28: 52,070.34 | M28: =SUMIFS(IF(DO_HTRABAJO!$AB$6="MN",DO_HTRABAJO!$K$6:$K$1000,DO_HTRABAJO!$J$6:$J$1000),DO_HTRABAJO!$D$6:$D$1000,$C28,DO_HTRABAJO!$E$6:$E$1000,$D28,DO_HTRABAJO!$M$6:$M$1000,$M$4,DO_HTRABAJO!$N$6:$N$1000,M$6) -> 27,982.76 | N28: =SUMIFS(IF(DO_HTRABAJO!$AB$6="MN",DO_HTRABAJO!$K$6:$K$1000,DO_HTRABAJO!$J$6:$J$1000),DO_HTRABAJO!$D$6:$D$1000,$C28,DO_HTRABAJO!$E$6:$E$1000,$D28,DO_HTRABAJO!$M$6:$M$1000,$M$4,DO_HTRABAJO!$N$6:$N$1000,N$6) -> 0 | O28: =SUMIFS(IF(DO_HTRABAJO!$AB$6="MN",DO_HTRABAJO!$K$6:$K$1000,DO_HTRABAJO!$J$6:$J$1000),DO_HTRABAJO!$D$6:$D$1000,$C28,DO_HTRABAJO!$E$6:$E$1000,$D28,DO_HTRABAJO!$M$6:$M$1000,$M$4,DO_HTRABAJO!$N$6:$N$1000,O$6) -> 26,967.57 | P28: =SUMIFS(IF(DO_HTRABAJO!$AB$6="MN",DO_HTRABAJO!$K$6:$K$1000,DO_HTRABAJO!$J$6:$J$1000),DO_HTRABAJO!$D$6:$D$1000,$C28,DO_HTRABAJO!$E$6:$E$1000,$D28,DO_HTRABAJO!$M$6:$M$1000,$M$4,DO_HTRABAJO!$N$6:$N$1000,P$6) -> 0 | Q28: =SUMIFS(IF(DO_HTRABAJO!$AB$6="MN",DO_HTRABAJO!$K$6:$K$1000,DO_HTRABAJO!$J$6:$J$1000),DO_HTRABAJO!$D$6:$D$1000,$C28,DO_HTRABAJO!$E$6:$E$1000,$D28,DO_HTRABAJO!$M$6:$M$1000,$M$4,DO_HTRABAJO!$N$6:$N$1000,Q$6) -> 0 | R28: =SUMIFS(IF(DO_HTRABAJO!$AB$6="MN",DO_HTRABAJO!$K$6:$K$1000,DO_HTRABAJO!$J$6:$J$1000),DO_HTRABAJO!$D$6:$D$1000,$C28,DO_HTRABAJO!$E$6:$E$1000,$D28,DO_HTRABAJO!$M$6:$M$1000,$M$4,DO_HTRABAJO!$N$6:$N$1000,R$6) -> 0 | S28: =SUMIFS(IF(DO_HTRABAJO!$AB$6="MN",DO_HTRABAJO!$K$6:$K$1000,DO_HTRABAJO!$J$6:$J$1000),DO_HTRABAJO!$D$6:$D$1000,$C28,DO_HTRABAJO!$E$6:$E$1000,$D28,DO_HTRABAJO!$M$6:$M$1000,$M$4,DO_HTRABAJO!$N$6:$N$1000,S$6) -> 54,950.33 | T28: 109,900.66 | U28: 161,970.99
B29: =ROWS(B$7:B29) -> 23 | C29: =INDEX(DO_HTRABAJO!$T$6:$T$55,MATCH(B29,DO_HTRABAJO!$V$6:$V$55,0)) -> J.D. PLASTIC S.A.C. | D29: =INDEX(DO_HTRABAJO!$T$6:$U$55,MATCH($B29,DO_HTRABAJO!$V$6:$V$55,0),2) -> SECTOR ESTE | E29: =SUMIFS(IF(DO_HTRABAJO!$AB$6="MN",DO_HTRABAJO!$K$6:$K$1000,DO_HTRABAJO!$J$6:$J$1000),DO_HTRABAJO!$D$6:$D$1000,$C29,DO_HTRABAJO!$E$6:$E$1000,$D29,DO_HTRABAJO!$M$6:$M$1000,$E$4,DO_HTRABAJO!$N$6:$N$1000,E$6) -> 83,414.36 | F29: =SUMIFS(IF(DO_HTRABAJO!$AB$6="MN",DO_HTRABAJO!$K$6:$K$1000,DO_HTRABAJO!$J$6:$J$1000),DO_HTRABAJO!$D$6:$D$1000,$C29,DO_HTRABAJO!$E$6:$E$1000,$D29,DO_HTRABAJO!$M$6:$M$1000,$E$4,DO_HTRABAJO!$N$6:$N$1000,F$6) -> 0 | G29: =SUMIFS(IF(DO_HTRABAJO!$AB$6="MN",DO_HTRABAJO!$K$6:$K$1000,DO_HTRABAJO!$J$6:$J$1000),DO_HTRABAJO!$D$6:$D$1000,$C29,DO_HTRABAJO!$E$6:$E$1000,$D29,DO_HTRABAJO!$M$6:$M$1000,$E$4,DO_HTRABAJO!$N$6:$N$1000,G$6) -> 0 | H29: =SUMIFS(IF(DO_HTRABAJO!$AB$6="MN",DO_HTRABAJO!$K$6:$K$1000,DO_HTRABAJO!$J$6:$J$1000),DO_HTRABAJO!$D$6:$D$1000,$C29,DO_HTRABAJO!$E$6:$E$1000,$D29,DO_HTRABAJO!$M$6:$M$1000,$E$4,DO_HTRABAJO!$N$6:$N$1000,H$6) -> 0 | I29: =SUMIFS(IF(DO_HTRABAJO!$AB$6="MN",DO_HTRABAJO!$K$6:$K$1000,DO_HTRABAJO!$J$6:$J$1000),DO_HTRABAJO!$D$6:$D$1000,$C29,DO_HTRABAJO!$E$6:$E$1000,$D29,DO_HTRABAJO!$M$6:$M$1000,$E$4,DO_HTRABAJO!$N$6:$N$1000,I$6) -> 0 | J29: =SUMIFS(IF(DO_HTRABAJO!$AB$6="MN",DO_HTRABAJO!$K$6:$K$1000,DO_HTRABAJO!$J$6:$J$1000),DO_HTRABAJO!$D$6:$D$1000,$C29,DO_HTRABAJO!$E$6:$E$1000,$D29,DO_HTRABAJO!$M$6:$M$1000,$E$4,DO_HTRABAJO!$N$6:$N$1000,J$6) -> 24,790.97 | K29: =SUMIFS(IF(DO_HTRABAJO!$AB$6="MN",DO_HTRABAJO!$K$6:$K$1000,DO_HTRABAJO!$J$6:$J$1000),DO_HTRABAJO!$D$6:$D$1000,$C29,DO_HTRABAJO!$E$6:$E$1000,$D29,DO_HTRABAJO!$M$6:$M$1000,$E$4,DO_HTRABAJO!$N$6:$N$1000,K$6) -> 0 | L29: 108,205.33 | M29: =SUMIFS(IF(DO_HTRABAJO!$AB$6="MN",DO_HTRABAJO!$K$6:$K$1000,DO_HTRABAJO!$J$6:$J$1000),DO_HTRABAJO!$D$6:$D$1000,$C29,DO_HTRABAJO!$E$6:$E$1000,$D29,DO_HTRABAJO!$M$6:$M$1000,$M$4,DO_HTRABAJO!$N$6:$N$1000,M$6) -> 9,156.17 | N29: =SUMIFS(IF(DO_HTRABAJO!$AB$6="MN",DO_HTRABAJO!$K$6:$K$1000,DO_HTRABAJO!$J$6:$J$1000),DO_HTRABAJO!$D$6:$D$1000,$C29,DO_HTRABAJO!$E$6:$E$1000,$D29,DO_HTRABAJO!$M$6:$M$1000,$M$4,DO_HTRABAJO!$N$6:$N$1000,N$6) -> 0 | O29: =SUMIFS(IF(DO_HTRABAJO!$AB$6="MN",DO_HTRABAJO!$K$6:$K$1000,DO_HTRABAJO!$J$6:$J$1000),DO_HTRABAJO!$D$6:$D$1000,$C29,DO_HTRABAJO!$E$6:$E$1000,$D29,DO_HTRABAJO!$M$6:$M$1000,$M$4,DO_HTRABAJO!$N$6:$N$1000,O$6) -> 0 | P29: =SUMIFS(IF(DO_HTRABAJO!$AB$6="MN",DO_HTRABAJO!$K$6:$K$1000,DO_HTRABAJO!$J$6:$J$1000),DO_HTRABAJO!$D$6:$D$1000,$C29,DO_HTRABAJO!$E$6:$E$1000,$D29,DO_HTRABAJO!$M$6:$M$1000,$M$4,DO_HTRABAJO!$N$6:$N$1000,P$6) -> 0 | Q29: =SUMIFS(IF(DO_HTRABAJO!$AB$6="MN",DO_HTRABAJO!$K$6:$K$1000,DO_HTRABAJO!$J$6:$J$1000),DO_HTRABAJO!$D$6:$D$1000,$C29,DO_HTRABAJO!$E$6:$E$1000,$D29,DO_HTRABAJO!$M$6:$M$1000,$M$4,DO_HTRABAJO!$N$6:$N$1000,Q$6) -> 0 | R29: =SUMIFS(IF(DO_HTRABAJO!$AB$6="MN",DO_HTRABAJO!$K$6:$K$1000,DO_HTRABAJO!$J$6:$J$1000),DO_HTRABAJO!$D$6:$D$1000,$C29,DO_HTRABAJO!$E$6:$E$1000,$D29,DO_HTRABAJO!$M$6:$M$1000,$M$4,DO_HTRABAJO!$N$6:$N$1000,R$6) -> 0 | S29: =SUMIFS(IF(DO_HTRABAJO!$AB$6="MN",DO_HTRABAJO!$K$6:$K$1000,DO_HTRABAJO!$J$6:$J$1000),DO_HTRABAJO!$D$6:$D$1000,$C29,DO_HTRABAJO!$E$6:$E$1000,$D29,DO_HTRABAJO!$M$6:$M$1000,$M$4,DO_HTRABAJO!$N$6:$N$1000,S$6) -> 9,156.17 | T29: 18,312.34 | U29: 126,517.67
B30: =ROWS(B$7:B30) -> 24 | C30: =INDEX(DO_HTRABAJO!$T$6:$T$55,MATCH(B30,DO_HTRABAJO!$V$6:$V$55,0)) -> JHOSBET E.I.R.L. | D30: =INDEX(DO_HTRABAJO!$T$6:$U$55,MATCH($B30,DO_HTRABAJO!$V$6:$V$55,0),2) -> SECTOR ESTE | E30: =SUMIFS(IF(DO_HTRABAJO!$AB$6="MN",DO_HTRABAJO!$K$6:$K$1000,DO_HTRABAJO!$J$6:$J$1000),DO_HTRABAJO!$D$6:$D$1000,$C30,DO_HTRABAJO!$E$6:$E$1000,$D30,DO_HTRABAJO!$M$6:$M$1000,$E$4,DO_HTRABAJO!$N$6:$N$1000,E$6) -> 23,364.52 | F30: =SUMIFS(IF(DO_HTRABAJO!$AB$6="MN",DO_HTRABAJO!$K$6:$K$1000,DO_HTRABAJO!$J$6:$J$1000),DO_HTRABAJO!$D$6:$D$1000,$C30,DO_HTRABAJO!$E$6:$E$1000,$D30,DO_HTRABAJO!$M$6:$M$1000,$E$4,DO_HTRABAJO!$N$6:$N$1000,F$6) -> 0 | G30: =SUMIFS(IF(DO_HTRABAJO!$AB$6="MN",DO_HTRABAJO!$K$6:$K$1000,DO_HTRABAJO!$J$6:$J$1000),DO_HTRABAJO!$D$6:$D$1000,$C30,DO_HTRABAJO!$E$6:$E$1000,$D30,DO_HTRABAJO!$M$6:$M$1000,$E$4,DO_HTRABAJO!$N$6:$N$1000,G$6) -> 0 | H30: =SUMIFS(IF(DO_HTRABAJO!$AB$6="MN",DO_HTRABAJO!$K$6:$K$1000,DO_HTRABAJO!$J$6:$J$1000),DO_HTRABAJO!$D$6:$D$1000,$C30,DO_HTRABAJO!$E$6:$E$1000,$D30,DO_HTRABAJO!$M$6:$M$1000,$E$4,DO_HTRABAJO!$N$6:$N$1000,H$6) -> 23,364.52 | I30: =SUMIFS(IF(DO_HTRABAJO!$AB$6="MN",DO_HTRABAJO!$K$6:$K$1000,DO_HTRABAJO!$J$6:$J$1000),DO_HTRABAJO!$D$6:$D$1000,$C30,DO_HTRABAJO!$E$6:$E$1000,$D30,DO_HTRABAJO!$M$6:$M$1000,$E$4,DO_HTRABAJO!$N$6:$N$1000,I$6) -> 0 | J30: =SUMIFS(IF(DO_HTRABAJO!$AB$6="MN",DO_HTRABAJO!$K$6:$K$1000,DO_HTRABAJO!$J$6:$J$1000),DO_HTRABAJO!$D$6:$D$1000,$C30,DO_HTRABAJO!$E$6:$E$1000,$D30,DO_HTRABAJO!$M$6:$M$1000,$E$4,DO_HTRABAJO!$N$6:$N$1000,J$6) -> 0 | K30: =SUMIFS(IF(DO_HTRABAJO!$AB$6="MN",DO_HTRABAJO!$K$6:$K$1000,DO_HTRABAJO!$J$6:$J$1000),DO_HTRABAJO!$D$6:$D$1000,$C30,DO_HTRABAJO!$E$6:$E$1000,$D30,DO_HTRABAJO!$M$6:$M$1000,$E$4,DO_HTRABAJO!$N$6:$N$1000,K$6) -> 0 | L30: 46,729.04 | M30: =SUMIFS(IF(DO_HTRABAJO!$AB$6="MN",DO_HTRABAJO!$K$6:$K$1000,DO_HTRABAJO!$J$6:$J$1000),DO_HTRABAJO!$D$6:$D$1000,$C30,DO_HTRABAJO!$E$6:$E$1000,$D30,DO_HTRABAJO!$M$6:$M$1000,$M$4,DO_HTRABAJO!$N$6:$N$1000,M$6) -> 0 | N30: =SUMIFS(IF(DO_HTRABAJO!$AB$6="MN",DO_HTRABAJO!$K$6:$K$1000,DO_HTRABAJO!$J$6:$J$1000),DO_HTRABAJO!$D$6:$D$1000,$C30,DO_HTRABAJO!$E$6:$E$1000,$D30,DO_HTRABAJO!$M$6:$M$1000,$M$4,DO_HTRABAJO!$N$6:$N$1000,N$6) -> 0 | O30: =SUMIFS(IF(DO_HTRABAJO!$AB$6="MN",DO_HTRABAJO!$K$6:$K$1000,DO_HTRABAJO!$J$6:$J$1000),DO_HTRABAJO!$D$6:$D$1000,$C30,DO_HTRABAJO!$E$6:$E$1000,$D30,DO_HTRABAJO!$M$6:$M$1000,$M$4,DO_HTRABAJO!$N$6:$N$1000,O$6) -> 91,989.84 | P30: =SUMIFS(IF(DO_HTRABAJO!$AB$6="MN",DO_HTRABAJO!$K$6:$K$1000,DO_HTRABAJO!$J$6:$J$1000),DO_HTRABAJO!$D$6:$D$1000,$C30,DO_HTRABAJO!$E$6:$E$1000,$D30,DO_HTRABAJO!$M$6:$M$1000,$M$4,DO_HTRABAJO!$N$6:$N$1000,P$6) -> 20,006.90 | Q30: =SUMIFS(IF(DO_HTRABAJO!$AB$6="MN",DO_HTRABAJO!$K$6:$K$1000,DO_HTRABAJO!$J$6:$J$1000),DO_HTRABAJO!$D$6:$D$1000,$C30,DO_HTRABAJO!$E$6:$E$1000,$D30,DO_HTRABAJO!$M$6:$M$1000,$M$4,DO_HTRABAJO!$N$6:$N$1000,Q$6) -> 0 | R30: =SUMIFS(IF(DO_HTRABAJO!$AB$6="MN",DO_HTRABAJO!$K$6:$K$1000,DO_HTRABAJO!$J$6:$J$1000),DO_HTRABAJO!$D$6:$D$1000,$C30,DO_HTRABAJO!$E$6:$E$1000,$D30,DO_HTRABAJO!$M$6:$M$1000,$M$4,DO_HTRABAJO!$N$6:$N$1000,R$6) -> 0 | S30: =SUMIFS(IF(DO_HTRABAJO!$AB$6="MN",DO_HTRABAJO!$K$6:$K$1000,DO_HTRABAJO!$J$6:$J$1000),DO_HTRABAJO!$D$6:$D$1000,$C30,DO_HTRABAJO!$E$6:$E$1000,$D30,DO_HTRABAJO!$M$6:$M$1000,$M$4,DO_HTRABAJO!$N$6:$N$1000,S$6) -> 111,996.74 | T30: 223,993.48 | U30: 270,722.52
B31: =ROWS(B$7:B31) -> 25 | C31: =INDEX(DO_HTRABAJO!$T$6:$T$55,MATCH(B31,DO_HTRABAJO!$V$6:$V$55,0)) -> KOZUMI PERU S.A. | D31: =INDEX(DO_HTRABAJO!$T$6:$U$55,MATCH($B31,DO_HTRABAJO!$V$6:$V$55,0),2) -> SECTOR OESTE | E31: =SUMIFS(IF(DO_HTRABAJO!$AB$6="MN",DO_HTRABAJO!$K$6:$K$1000,DO_HTRABAJO!$J$6:$J$1000),DO_HTRABAJO!$D$6:$D$1000,$C31,DO_HTRABAJO!$E$6:$E$1000,$D31,DO_HTRABAJO!$M$6:$M$1000,$E$4,DO_HTRABAJO!$N$6:$N$1000,E$6) -> 137,922.20 | F31: =SUMIFS(IF(DO_HTRABAJO!$AB$6="MN",DO_HTRABAJO!$K$6:$K$1000,DO_HTRABAJO!$J$6:$J$1000),DO_HTRABAJO!$D$6:$D$1000,$C31,DO_HTRABAJO!$E$6:$E$1000,$D31,DO_HTRABAJO!$M$6:$M$1000,$E$4,DO_HTRABAJO!$N$6:$N$1000,F$6) -> 107,182.62 | G31: =SUMIFS(IF(DO_HTRABAJO!$AB$6="MN",DO_HTRABAJO!$K$6:$K$1000,DO_HTRABAJO!$J$6:$J$1000),DO_HTRABAJO!$D$6:$D$1000,$C31,DO_HTRABAJO!$E$6:$E$1000,$D31,DO_HTRABAJO!$M$6:$M$1000,$E$4,DO_HTRABAJO!$N$6:$N$1000,G$6) -> 0 | H31: =SUMIFS(IF(DO_HTRABAJO!$AB$6="MN",DO_HTRABAJO!$K$6:$K$1000,DO_HTRABAJO!$J$6:$J$1000),DO_HTRABAJO!$D$6:$D$1000,$C31,DO_HTRABAJO!$E$6:$E$1000,$D31,DO_HTRABAJO!$M$6:$M$1000,$E$4,DO_HTRABAJO!$N$6:$N$1000,H$6) -> 0 | I31: =SUMIFS(IF(DO_HTRABAJO!$AB$6="MN",DO_HTRABAJO!$K$6:$K$1000,DO_HTRABAJO!$J$6:$J$1000),DO_HTRABAJO!$D$6:$D$1000,$C31,DO_HTRABAJO!$E$6:$E$1000,$D31,DO_HTRABAJO!$M$6:$M$1000,$E$4,DO_HTRABAJO!$N$6:$N$1000,I$6) -> 30,739.58 | J31: =SUMIFS(IF(DO_HTRABAJO!$AB$6="MN",DO_HTRABAJO!$K$6:$K$1000,DO_HTRABAJO!$J$6:$J$1000),DO_HTRABAJO!$D$6:$D$1000,$C31,DO_HTRABAJO!$E$6:$E$1000,$D31,DO_HTRABAJO!$M$6:$M$1000,$E$4,DO_HTRABAJO!$N$6:$N$1000,J$6) -> 0 | K31: =SUMIFS(IF(DO_HTRABAJO!$AB$6="MN",DO_HTRABAJO!$K$6:$K$1000,DO_HTRABAJO!$J$6:$J$1000),DO_HTRABAJO!$D$6:$D$1000,$C31,DO_HTRABAJO!$E$6:$E$1000,$D31,DO_HTRABAJO!$M$6:$M$1000,$E$4,DO_HTRABAJO!$N$6:$N$1000,K$6) -> 0 | L31: 275,844.40 | M31: =SUMIFS(IF(DO_HTRABAJO!$AB$6="MN",DO_HTRABAJO!$K$6:$K$1000,DO_HTRABAJO!$J$6:$J$1000),DO_HTRABAJO!$D$6:$D$1000,$C31,DO_HTRABAJO!$E$6:$E$1000,$D31,DO_HTRABAJO!$M$6:$M$1000,$M$4,DO_HTRABAJO!$N$6:$N$1000,M$6) -> 0 | N31: =SUMIFS(IF(DO_HTRABAJO!$AB$6="MN",DO_HTRABAJO!$K$6:$K$1000,DO_HTRABAJO!$J$6:$J$1000),DO_HTRABAJO!$D$6:$D$1000,$C31,DO_HTRABAJO!$E$6:$E$1000,$D31,DO_HTRABAJO!$M$6:$M$1000,$M$4,DO_HTRABAJO!$N$6:$N$1000,N$6) -> 0 | O31: =SUMIFS(IF(DO_HTRABAJO!$AB$6="MN",DO_HTRABAJO!$K$6:$K$1000,DO_HTRABAJO!$J$6:$J$1000),DO_HTRABAJO!$D$6:$D$1000,$C31,DO_HTRABAJO!$E$6:$E$1000,$D31,DO_HTRABAJO!$M$6:$M$1000,$M$4,DO_HTRABAJO!$N$6:$N$1000,O$6) -> 59,980.08 | P31: =SUMIFS(IF(DO_HTRABAJO!$AB$6="MN",DO_HTRABAJO!$K$6:$K$1000,DO_HTRABAJO!$J$6:$J$1000),DO_HTRABAJO!$D$6:$D$1000,$C31,DO_HTRABAJO!$E$6:$E$1000,$D31,DO_HTRABAJO!$M$6:$M$1000,$M$4,DO_HTRABAJO!$N$6:$N$1000,P$6) -> 95,537.45 | Q31: =SUMIFS(IF(DO_HTRABAJO!$AB$6="MN",DO_HTRABAJO!$K$6:$K$1000,DO_HTRABAJO!$J$6:$J$1000),DO_HTRABAJO!$D$6:$D$1000,$C31,DO_HTRABAJO!$E$6:$E$1000,$D31,DO_HTRABAJO!$M$6:$M$1000,$M$4,DO_HTRABAJO!$N$6:$N$1000,Q$6) -> 21,145.65 | R31: =SUMIFS(IF(DO_HTRABAJO!$AB$6="MN",DO_HTRABAJO!$K$6:$K$1000,DO_HTRABAJO!$J$6:$J$1000),DO_HTRABAJO!$D$6:$D$1000,$C31,DO_HTRABAJO!$E$6:$E$1000,$D31,DO_HTRABAJO!$M$6:$M$1000,$M$4,DO_HTRABAJO!$N$6:$N$1000,R$6) -> 15,446.33 | S31: =SUMIFS(IF(DO_HTRABAJO!$AB$6="MN",DO_HTRABAJO!$K$6:$K$1000,DO_HTRABAJO!$J$6:$J$1000),DO_HTRABAJO!$D$6:$D$1000,$C31,DO_HTRABAJO!$E$6:$E$1000,$D31,DO_HTRABAJO!$M$6:$M$1000,$M$4,DO_HTRABAJO!$N$6:$N$1000,S$6) -> 192,109.51 | T31: 384,219.02 | U31: 660,063.42
B32: =ROWS(B$7:B32) -> 26 | C32: =INDEX(DO_HTRABAJO!$T$6:$T$55,MATCH(B32,DO_HTRABAJO!$V$6:$V$55,0)) -> L & C SERVIS EIRL | D32: =INDEX(DO_HTRABAJO!$T$6:$U$55,MATCH($B32,DO_HTRABAJO!$V$6:$V$55,0),2) -> SECTOR OESTE | E32: =SUMIFS(IF(DO_HTRABAJO!$AB$6="MN",DO_HTRABAJO!$K$6:$K$1000,DO_HTRABAJO!$J$6:$J$1000),DO_HTRABAJO!$D$6:$D$1000,$C32,DO_HTRABAJO!$E$6:$E$1000,$D32,DO_HTRABAJO!$M$6:$M$1000,$E$4,DO_HTRABAJO!$N$6:$N$1000,E$6) -> 11,302.81 | F32: =SUMIFS(IF(DO_HTRABAJO!$AB$6="MN",DO_HTRABAJO!$K$6:$K$1000,DO_HTRABAJO!$J$6:$J$1000),DO_HTRABAJO!$D$6:$D$1000,$C32,DO_HTRABAJO!$E$6:$E$1000,$D32,DO_HTRABAJO!$M$6:$M$1000,$E$4,DO_HTRABAJO!$N$6:$N$1000,F$6) -> 0 | G32: =SUMIFS(IF(DO_HTRABAJO!$AB$6="MN",DO_HTRABAJO!$K$6:$K$1000,DO_HTRABAJO!$J$6:$J$1000),DO_HTRABAJO!$D$6:$D$1000,$C32,DO_HTRABAJO!$E$6:$E$1000,$D32,DO_HTRABAJO!$M$6:$M$1000,$E$4,DO_HTRABAJO!$N$6:$N$1000,G$6) -> 0 | H32: =SUMIFS(IF(DO_HTRABAJO!$AB$6="MN",DO_HTRABAJO!$K$6:$K$1000,DO_HTRABAJO!$J$6:$J$1000),DO_HTRABAJO!$D$6:$D$1000,$C32,DO_HTRABAJO!$E$6:$E$1000,$D32,DO_HTRABAJO!$M$6:$M$1000,$E$4,DO_HTRABAJO!$N$6:$N$1000,H$6) -> 11,302.81 | I32: =SUMIFS(IF(DO_HTRABAJO!$AB$6="MN",DO_HTRABAJO!$K$6:$K$1000,DO_HTRABAJO!$J$6:$J$1000),DO_HTRABAJO!$D$6:$D$1000,$C32,DO_HTRABAJO!$E$6:$E$1000,$D32,DO_HTRABAJO!$M$6:$M$1000,$E$4,DO_HTRABAJO!$N$6:$N$1000,I$6) -> 0 | J32: =SUMIFS(IF(DO_HTRABAJO!$AB$6="MN",DO_HTRABAJO!$K$6:$K$1000,DO_HTRABAJO!$J$6:$J$1000),DO_HTRABAJO!$D$6:$D$1000,$C32,DO_HTRABAJO!$E$6:$E$1000,$D32,DO_HTRABAJO!$M$6:$M$1000,$E$4,DO_HTRABAJO!$N$6:$N$1000,J$6) -> 0 | K32: =SUMIFS(IF(DO_HTRABAJO!$AB$6="MN",DO_HTRABAJO!$K$6:$K$1000,DO_HTRABAJO!$J$6:$J$1000),DO_HTRABAJO!$D$6:$D$1000,$C32,DO_HTRABAJO!$E$6:$E$1000,$D32,DO_HTRABAJO!$M$6:$M$1000,$E$4,DO_HTRABAJO!$N$6:$N$1000,K$6) -> 0 | L32: 22,605.62 | M32: =SUMIFS(IF(DO_HTRABAJO!$AB$6="MN",DO_HTRABAJO!$K$6:$K$1000,DO_HTRABAJO!$J$6:$J$1000),DO_HTRABAJO!$D$6:$D$1000,$C32,DO_HTRABAJO!$E$6:$E$1000,$D32,DO_HTRABAJO!$M$6:$M$1000,$M$4,DO_HTRABAJO!$N$6:$N$1000,M$6) -> 0 | N32: =SUMIFS(IF(DO_HTRABAJO!$AB$6="MN",DO_HTRABAJO!$K$6:$K$1000,DO_HTRABAJO!$J$6:$J$1000),DO_HTRABAJO!$D$6:$D$1000,$C32,DO_HTRABAJO!$E$6:$E$1000,$D32,DO_HTRABAJO!$M$6:$M$1000,$M$4,DO_HTRABAJO!$N$6:$N$1000,N$6) -> 0 | O32: =SUMIFS(IF(DO_HTRABAJO!$AB$6="MN",DO_HTRABAJO!$K$6:$K$1000,DO_HTRABAJO!$J$6:$J$1000),DO_HTRABAJO!$D$6:$D$1000,$C32,DO_HTRABAJO!$E$6:$E$1000,$D32,DO_HTRABAJO!$M$6:$M$1000,$M$4,DO_HTRABAJO!$N$6:$N$1000,O$6) -> 26,594.93 | P32: =SUMIFS(IF(DO_HTRABAJO!$AB$6="MN",DO_HTRABAJO!$K$6:$K$1000,DO_HTRABAJO!$J$6:$J$1000),DO_HTRABAJO!$D$6:$D$1000,$C32,DO_HTRABAJO!$E$6:$E$1000,$D32,DO_HTRABAJO!$M$6:$M$1000,$M$4,DO_HTRABAJO!$N$6:$N$1000,P$6) -> 0 | Q32: =SUMIFS(IF(DO_HTRABAJO!$AB$6="MN",DO_HTRABAJO!$K$6:$K$1000,DO_HTRABAJO!$J$6:$J$1000),DO_HTRABAJO!$D$6:$D$1000,$C32,DO_HTRABAJO!$E$6:$E$1000,$D32,DO_HTRABAJO!$M$6:$M$1000,$M$4,DO_HTRABAJO!$N$6:$N$1000,Q$6) -> 0 | R32: =SUMIFS(IF(DO_HTRABAJO!$AB$6="MN",DO_HTRABAJO!$K$6:$K$1000,DO_HTRABAJO!$J$6:$J$1000),DO_HTRABAJO!$D$6:$D$1000,$C32,DO_HTRABAJO!$E$6:$E$1000,$D32,DO_HTRABAJO!$M$6:$M$1000,$M$4,DO_HTRABAJO!$N$6:$N$1000,R$6) -> 20,418.67 | S32: =SUMIFS(IF(DO_HTRABAJO!$AB$6="MN",DO_HTRABAJO!$K$6:$K$1000,DO_HTRABAJO!$J$6:$J$1000),DO_HTRABAJO!$D$6:$D$1000,$C32,DO_HTRABAJO!$E$6:$E$1000,$D32,DO_HTRABAJO!$M$6:$M$1000,$M$4,DO_HTRABAJO!$N$6:$N$1000,S$6) -> 47,013.60 | T32: 94,027.20 | U32: 116,632.82
B33: =ROWS(B$7:B33) -> 27 | C33: =INDEX(DO_HTRABAJO!$T$6:$T$55,MATCH(B33,DO_HTRABAJO!$V$6:$V$55,0)) -> LA BRETAÐA S.A.C. | D33: =INDEX(DO_HTRABAJO!$T$6:$U$55,MATCH($B33,DO_HTRABAJO!$V$6:$V$55,0),2) -> SECTOR NORTE | E33: =SUMIFS(IF(DO_HTRABAJO!$AB$6="MN",DO_HTRABAJO!$K$6:$K$1000,DO_HTRABAJO!$J$6:$J$1000),DO_HTRABAJO!$D$6:$D$1000,$C33,DO_HTRABAJO!$E$6:$E$1000,$D33,DO_HTRABAJO!$M$6:$M$1000,$E$4,DO_HTRABAJO!$N$6:$N$1000,E$6) -> 87,702.26 | F33: =SUMIFS(IF(DO_HTRABAJO!$AB$6="MN",DO_HTRABAJO!$K$6:$K$1000,DO_HTRABAJO!$J$6:$J$1000),DO_HTRABAJO!$D$6:$D$1000,$C33,DO_HTRABAJO!$E$6:$E$1000,$D33,DO_HTRABAJO!$M$6:$M$1000,$E$4,DO_HTRABAJO!$N$6:$N$1000,F$6) -> 0 | G33: =SUMIFS(IF(DO_HTRABAJO!$AB$6="MN",DO_HTRABAJO!$K$6:$K$1000,DO_HTRABAJO!$J$6:$J$1000),DO_HTRABAJO!$D$6:$D$1000,$C33,DO_HTRABAJO!$E$6:$E$1000,$D33,DO_HTRABAJO!$M$6:$M$1000,$E$4,DO_HTRABAJO!$N$6:$N$1000,G$6) -> 12,083.00 | H33: =SUMIFS(IF(DO_HTRABAJO!$AB$6="MN",DO_HTRABAJO!$K$6:$K$1000,DO_HTRABAJO!$J$6:$J$1000),DO_HTRABAJO!$D$6:$D$1000,$C33,DO_HTRABAJO!$E$6:$E$1000,$D33,DO_HTRABAJO!$M$6:$M$1000,$E$4,DO_HTRABAJO!$N$6:$N$1000,H$6) -> 0 | I33: =SUMIFS(IF(DO_HTRABAJO!$AB$6="MN",DO_HTRABAJO!$K$6:$K$1000,DO_HTRABAJO!$J$6:$J$1000),DO_HTRABAJO!$D$6:$D$1000,$C33,DO_HTRABAJO!$E$6:$E$1000,$D33,DO_HTRABAJO!$M$6:$M$1000,$E$4,DO_HTRABAJO!$N$6:$N$1000,I$6) -> 0 | J33: =SUMIFS(IF(DO_HTRABAJO!$AB$6="MN",DO_HTRABAJO!$K$6:$K$1000,DO_HTRABAJO!$J$6:$J$1000),DO_HTRABAJO!$D$6:$D$1000,$C33,DO_HTRABAJO!$E$6:$E$1000,$D33,DO_HTRABAJO!$M$6:$M$1000,$E$4,DO_HTRABAJO!$N$6:$N$1000,J$6) -> 13,270.88 | K33: =SUMIFS(IF(DO_HTRABAJO!$AB$6="MN",DO_HTRABAJO!$K$6:$K$1000,DO_HTRABAJO!$J$6:$J$1000),DO_HTRABAJO!$D$6:$D$1000,$C33,DO_HTRABAJO!$E$6:$E$1000,$D33,DO_HTRABAJO!$M$6:$M$1000,$E$4,DO_HTRABAJO!$N$6:$N$1000,K$6) -> 0 | L33: 113,056.14 | M33: =SUMIFS(IF(DO_HTRABAJO!$AB$6="MN",DO_HTRABAJO!$K$6:$K$1000,DO_HTRABAJO!$J$6:$J$1000),DO_HTRABAJO!$D$6:$D$1000,$C33,DO_HTRABAJO!$E$6:$E$1000,$D33,DO_HTRABAJO!$M$6:$M$1000,$M$4,DO_HTRABAJO!$N$6:$N$1000,M$6) -> 0 | N33: =SUMIFS(IF(DO_HTRABAJO!$AB$6="MN",DO_HTRABAJO!$K$6:$K$1000,DO_HTRABAJO!$J$6:$J$1000),DO_HTRABAJO!$D$6:$D$1000,$C33,DO_HTRABAJO!$E$6:$E$1000,$D33,DO_HTRABAJO!$M$6:$M$1000,$M$4,DO_HTRABAJO!$N$6:$N$1000,N$6) -> 0 | O33: =SUMIFS(IF(DO_HTRABAJO!$AB$6="MN",DO_HTRABAJO!$K$6:$K$1000,DO_HTRABAJO!$J$6:$J$1000),DO_HTRABAJO!$D$6:$D$1000,$C33,DO_HTRABAJO!$E$6:$E$1000,$D33,DO_HTRABAJO!$M$6:$M$1000,$M$4,DO_HTRABAJO!$N$6:$N$1000,O$6) -> 0 | P33: =SUMIFS(IF(DO_HTRABAJO!$AB$6="MN",DO_HTRABAJO!$K$6:$K$1000,DO_HTRABAJO!$J$6:$J$1000),DO_HTRABAJO!$D$6:$D$1000,$C33,DO_HTRABAJO!$E$6:$E$1000,$D33,DO_HTRABAJO!$M$6:$M$1000,$M$4,DO_HTRABAJO!$N$6:$N$1000,P$6) -> 0 | Q33: =SUMIFS(IF(DO_HTRABAJO!$AB$6="MN",DO_HTRABAJO!$K$6:$K$1000,DO_HTRABAJO!$J$6:$J$1000),DO_HTRABAJO!$D$6:$D$1000,$C33,DO_HTRABAJO!$E$6:$E$1000,$D33,DO_HTRABAJO!$M$6:$M$1000,$M$4,DO_HTRABAJO!$N$6:$N$1000,Q$6) -> 0 | R33: =SUMIFS(IF(DO_HTRABAJO!$AB$6="MN",DO_HTRABAJO!$K$6:$K$1000,DO_HTRABAJO!$J$6:$J$1000),DO_HTRABAJO!$D$6:$D$1000,$C33,DO_HTRABAJO!$E$6:$E$1000,$D33,DO_HTRABAJO!$M$6:$M$1000,$M$4,DO_HTRABAJO!$N$6:$N$1000,R$6) -> 0 | S33: =SUMIFS(IF(DO_HTRABAJO!$AB$6="MN",DO_HTRABAJO!$K$6:$K$1000,DO_HTRABAJO!$J$6:$J$1000),DO_HTRABAJO!$D$6:$D$1000,$C33,DO_HTRABAJO!$E$6:$E$1000,$D33,DO_HTRABAJO!$M$6:$M$1000,$M$4,DO_HTRABAJO!$N$6:$N$1000,S$6) -> 0 | T33: 0 | U33: 113,056.14
B34: =ROWS(B$7:B34) -> 28 | C34: =INDEX(DO_HTRABAJO!$T$6:$T$55,MATCH(B34,DO_HTRABAJO!$V$6:$V$55,0)) -> LA GRANJITA E.I.R.L | D34: =INDEX(DO_HTRABAJO!$T$6:$U$55,MATCH($B34,DO_HTRABAJO!$V$6:$V$55,0),2) -> SECTOR ESTE | E34: =SUMIFS(IF(DO_HTRABAJO!$AB$6="MN",DO_HTRABAJO!$K$6:$K$1000,DO_HTRABAJO!$J$6:$J$1000),DO_HTRABAJO!$D$6:$D$1000,$C34,DO_HTRABAJO!$E$6:$E$1000,$D34,DO_HTRABAJO!$M$6:$M$1000,$E$4,DO_HTRABAJO!$N$6:$N$1000,E$6) -> 147,183.67 | F34: =SUMIFS(IF(DO_HTRABAJO!$AB$6="MN",DO_HTRABAJO!$K$6:$K$1000,DO_HTRABAJO!$J$6:$J$1000),DO_HTRABAJO!$D$6:$D$1000,$C34,DO_HTRABAJO!$E$6:$E$1000,$D34,DO_HTRABAJO!$M$6:$M$1000,$E$4,DO_HTRABAJO!$N$6:$N$1000,F$6) -> 0 | G34: =SUMIFS(IF(DO_HTRABAJO!$AB$6="MN",DO_HTRABAJO!$K$6:$K$1000,DO_HTRABAJO!$J$6:$J$1000),DO_HTRABAJO!$D$6:$D$1000,$C34,DO_HTRABAJO!$E$6:$E$1000,$D34,DO_HTRABAJO!$M$6:$M$1000,$E$4,DO_HTRABAJO!$N$6:$N$1000,G$6) -> 0 | H34: =SUMIFS(IF(DO_HTRABAJO!$AB$6="MN",DO_HTRABAJO!$K$6:$K$1000,DO_HTRABAJO!$J$6:$J$1000),DO_HTRABAJO!$D$6:$D$1000,$C34,DO_HTRABAJO!$E$6:$E$1000,$D34,DO_HTRABAJO!$M$6:$M$1000,$E$4,DO_HTRABAJO!$N$6:$N$1000,H$6) -> 25,655.41 | I34: =SUMIFS(IF(DO_HTRABAJO!$AB$6="MN",DO_HTRABAJO!$K$6:$K$1000,DO_HTRABAJO!$J$6:$J$1000),DO_HTRABAJO!$D$6:$D$1000,$C34,DO_HTRABAJO!$E$6:$E$1000,$D34,DO_HTRABAJO!$M$6:$M$1000,$E$4,DO_HTRABAJO!$N$6:$N$1000,I$6) -> 0 | J34: =SUMIFS(IF(DO_HTRABAJO!$AB$6="MN",DO_HTRABAJO!$K$6:$K$1000,DO_HTRABAJO!$J$6:$J$1000),DO_HTRABAJO!$D$6:$D$1000,$C34,DO_HTRABAJO!$E$6:$E$1000,$D34,DO_HTRABAJO!$M$6:$M$1000,$E$4,DO_HTRABAJO!$N$6:$N$1000,J$6) -> 0 | K34: =SUMIFS(IF(DO_HTRABAJO!$AB$6="MN",DO_HTRABAJO!$K$6:$K$1000,DO_HTRABAJO!$J$6:$J$1000),DO_HTRABAJO!$D$6:$D$1000,$C34,DO_HTRABAJO!$E$6:$E$1000,$D34,DO_HTRABAJO!$M$6:$M$1000,$E$4,DO_HTRABAJO!$N$6:$N$1000,K$6) -> 121,528.26 | L34: 294,367.35 | M34: =SUMIFS(IF(DO_HTRABAJO!$AB$6="MN",DO_HTRABAJO!$K$6:$K$1000,DO_HTRABAJO!$J$6:$J$1000),DO_HTRABAJO!$D$6:$D$1000,$C34,DO_HTRABAJO!$E$6:$E$1000,$D34,DO_HTRABAJO!$M$6:$M$1000,$M$4,DO_HTRABAJO!$N$6:$N$1000,M$6) -> 44,912.51 | N34: =SUMIFS(IF(DO_HTRABAJO!$AB$6="MN",DO_HTRABAJO!$K$6:$K$1000,DO_HTRABAJO!$J$6:$J$1000),DO_HTRABAJO!$D$6:$D$1000,$C34,DO_HTRABAJO!$E$6:$E$1000,$D34,DO_HTRABAJO!$M$6:$M$1000,$M$4,DO_HTRABAJO!$N$6:$N$1000,N$6) -> 0 | O34: =SUMIFS(IF(DO_HTRABAJO!$AB$6="MN",DO_HTRABAJO!$K$6:$K$1000,DO_HTRABAJO!$J$6:$J$1000),DO_HTRABAJO!$D$6:$D$1000,$C34,DO_HTRABAJO!$E$6:$E$1000,$D34,DO_HTRABAJO!$M$6:$M$1000,$M$4,DO_HTRABAJO!$N$6:$N$1000,O$6) -> 7,127.04 | P34: =SUMIFS(IF(DO_HTRABAJO!$AB$6="MN",DO_HTRABAJO!$K$6:$K$1000,DO_HTRABAJO!$J$6:$J$1000),DO_HTRABAJO!$D$6:$D$1000,$C34,DO_HTRABAJO!$E$6:$E$1000,$D34,DO_HTRABAJO!$M$6:$M$1000,$M$4,DO_HTRABAJO!$N$6:$N$1000,P$6) -> 20,881.10 | Q34: =SUMIFS(IF(DO_HTRABAJO!$AB$6="MN",DO_HTRABAJO!$K$6:$K$1000,DO_HTRABAJO!$J$6:$J$1000),DO_HTRABAJO!$D$6:$D$1000,$C34,DO_HTRABAJO!$E$6:$E$1000,$D34,DO_HTRABAJO!$M$6:$M$1000,$M$4,DO_HTRABAJO!$N$6:$N$1000,Q$6) -> 118,488.85 | R34: =SUMIFS(IF(DO_HTRABAJO!$AB$6="MN",DO_HTRABAJO!$K$6:$K$1000,DO_HTRABAJO!$J$6:$J$1000),DO_HTRABAJO!$D$6:$D$1000,$C34,DO_HTRABAJO!$E$6:$E$1000,$D34,DO_HTRABAJO!$M$6:$M$1000,$M$4,DO_HTRABAJO!$N$6:$N$1000,R$6) -> 68,488.40 | S34: =SUMIFS(IF(DO_HTRABAJO!$AB$6="MN",DO_HTRABAJO!$K$6:$K$1000,DO_HTRABAJO!$J$6:$J$1000),DO_HTRABAJO!$D$6:$D$1000,$C34,DO_HTRABAJO!$E$6:$E$1000,$D34,DO_HTRABAJO!$M$6:$M$1000,$M$4,DO_HTRABAJO!$N$6:$N$1000,S$6) -> 259,897.90 | T34: 519,795.80 | U34: 814,163.14
B35: =ROWS(B$7:B35) -> 29 | C35: =INDEX(DO_HTRABAJO!$T$6:$T$55,MATCH(B35,DO_HTRABAJO!$V$6:$V$55,0)) -> LARCO PETS EIRL | D35: =INDEX(DO_HTRABAJO!$T$6:$U$55,MATCH($B35,DO_HTRABAJO!$V$6:$V$55,0),2) -> SECTOR SUR | E35: =SUMIFS(IF(DO_HTRABAJO!$AB$6="MN",DO_HTRABAJO!$K$6:$K$1000,DO_HTRABAJO!$J$6:$J$1000),DO_HTRABAJO!$D$6:$D$1000,$C35,DO_HTRABAJO!$E$6:$E$1000,$D35,DO_HTRABAJO!$M$6:$M$1000,$E$4,DO_HTRABAJO!$N$6:$N$1000,E$6) -> 127,013.30 | F35: =SUMIFS(IF(DO_HTRABAJO!$AB$6="MN",DO_HTRABAJO!$K$6:$K$1000,DO_HTRABAJO!$J$6:$J$1000),DO_HTRABAJO!$D$6:$D$1000,$C35,DO_HTRABAJO!$E$6:$E$1000,$D35,DO_HTRABAJO!$M$6:$M$1000,$E$4,DO_HTRABAJO!$N$6:$N$1000,F$6) -> 0 | G35: =SUMIFS(IF(DO_HTRABAJO!$AB$6="MN",DO_HTRABAJO!$K$6:$K$1000,DO_HTRABAJO!$J$6:$J$1000),DO_HTRABAJO!$D$6:$D$1000,$C35,DO_HTRABAJO!$E$6:$E$1000,$D35,DO_HTRABAJO!$M$6:$M$1000,$E$4,DO_HTRABAJO!$N$6:$N$1000,G$6) -> 100,809.08 | H35: =SUMIFS(IF(DO_HTRABAJO!$AB$6="MN",DO_HTRABAJO!$K$6:$K$1000,DO_HTRABAJO!$J$6:$J$1000),DO_HTRABAJO!$D$6:$D$1000,$C35,DO_HTRABAJO!$E$6:$E$1000,$D35,DO_HTRABAJO!$M$6:$M$1000,$E$4,DO_HTRABAJO!$N$6:$N$1000,H$6) -> 26,204.22 | I35: =SUMIFS(IF(DO_HTRABAJO!$AB$6="MN",DO_HTRABAJO!$K$6:$K$1000,DO_HTRABAJO!$J$6:$J$1000),DO_HTRABAJO!$D$6:$D$1000,$C35,DO_HTRABAJO!$E$6:$E$1000,$D35,DO_HTRABAJO!$M$6:$M$1000,$E$4,DO_HTRABAJO!$N$6:$N$1000,I$6) -> 0 | J35: =SUMIFS(IF(DO_HTRABAJO!$AB$6="MN",DO_HTRABAJO!$K$6:$K$1000,DO_HTRABAJO!$J$6:$J$1000),DO_HTRABAJO!$D$6:$D$1000,$C35,DO_HTRABAJO!$E$6:$E$1000,$D35,DO_HTRABAJO!$M$6:$M$1000,$E$4,DO_HTRABAJO!$N$6:$N$1000,J$6) -> 0 | K35: =SUMIFS(IF(DO_HTRABAJO!$AB$6="MN",DO_HTRABAJO!$K$6:$K$1000,DO_HTRABAJO!$J$6:$J$1000),DO_HTRABAJO!$D$6:$D$1000,$C35,DO_HTRABAJO!$E$6:$E$1000,$D35,DO_HTRABAJO!$M$6:$M$1000,$E$4,DO_HTRABAJO!$N$6:$N$1000,K$6) -> 0 | L35: 254,026.59 | M35: =SUMIFS(IF(DO_HTRABAJO!$AB$6="MN",DO_HTRABAJO!$K$6:$K$1000,DO_HTRABAJO!$J$6:$J$1000),DO_HTRABAJO!$D$6:$D$1000,$C35,DO_HTRABAJO!$E$6:$E$1000,$D35,DO_HTRABAJO!$M$6:$M$1000,$M$4,DO_HTRABAJO!$N$6:$N$1000,M$6) -> 73,239.24 | N35: =SUMIFS(IF(DO_HTRABAJO!$AB$6="MN",DO_HTRABAJO!$K$6:$K$1000,DO_HTRABAJO!$J$6:$J$1000),DO_HTRABAJO!$D$6:$D$1000,$C35,DO_HTRABAJO!$E$6:$E$1000,$D35,DO_HTRABAJO!$M$6:$M$1000,$M$4,DO_HTRABAJO!$N$6:$N$1000,N$6) -> 15,938.11 | O35: =SUMIFS(IF(DO_HTRABAJO!$AB$6="MN",DO_HTRABAJO!$K$6:$K$1000,DO_HTRABAJO!$J$6:$J$1000),DO_HTRABAJO!$D$6:$D$1000,$C35,DO_HTRABAJO!$E$6:$E$1000,$D35,DO_HTRABAJO!$M$6:$M$1000,$M$4,DO_HTRABAJO!$N$6:$N$1000,O$6) -> 0 | P35: =SUMIFS(IF(DO_HTRABAJO!$AB$6="MN",DO_HTRABAJO!$K$6:$K$1000,DO_HTRABAJO!$J$6:$J$1000),DO_HTRABAJO!$D$6:$D$1000,$C35,DO_HTRABAJO!$E$6:$E$1000,$D35,DO_HTRABAJO!$M$6:$M$1000,$M$4,DO_HTRABAJO!$N$6:$N$1000,P$6) -> 0 | Q35: =SUMIFS(IF(DO_HTRABAJO!$AB$6="MN",DO_HTRABAJO!$K$6:$K$1000,DO_HTRABAJO!$J$6:$J$1000),DO_HTRABAJO!$D$6:$D$1000,$C35,DO_HTRABAJO!$E$6:$E$1000,$D35,DO_HTRABAJO!$M$6:$M$1000,$M$4,DO_HTRABAJO!$N$6:$N$1000,Q$6) -> 0 | R35: =SUMIFS(IF(DO_HTRABAJO!$AB$6="MN",DO_HTRABAJO!$K$6:$K$1000,DO_HTRABAJO!$J$6:$J$1000),DO_HTRABAJO!$D$6:$D$1000,$C35,DO_HTRABAJO!$E$6:$E$1000,$D35,DO_HTRABAJO!$M$6:$M$1000,$M$4,DO_HTRABAJO!$N$6:$N$1000,R$6) -> 75,539.34 | S35: =SUMIFS(IF(DO_HTRABAJO!$AB$6="MN",DO_HTRABAJO!$K$6:$K$1000,DO_HTRABAJO!$J$6:$J$1000),DO_HTRABAJO!$D$6:$D$1000,$C35,DO_HTRABAJO!$E$6:$E$1000,$D35,DO_HTRABAJO!$M$6:$M$1000,$M$4,DO_HTRABAJO!$N$6:$N$1000,S$6) -> 184,528.58 | T35: 349,245.26 | U35: 603,271.86
B36: =ROWS(B$7:B36) -> 30 | C36: =INDEX(DO_HTRABAJO!$T$6:$T$55,MATCH(B36,DO_HTRABAJO!$V$6:$V$55,0)) -> LIDER GRAFICO SRL | D36: =INDEX(DO_HTRABAJO!$T$6:$U$55,MATCH($B36,DO_HTRABAJO!$V$6:$V$55,0),2) -> SECTOR ESTE | E36: =SUMIFS(IF(DO_HTRABAJO!$AB$6="MN",DO_HTRABAJO!$K$6:$K$1000,DO_HTRABAJO!$J$6:$J$1000),DO_HTRABAJO!$D$6:$D$1000,$C36,DO_HTRABAJO!$E$6:$E$1000,$D36,DO_HTRABAJO!$M$6:$M$1000,$E$4,DO_HTRABAJO!$N$6:$N$1000,E$6) -> 102,274.02 | F36: =SUMIFS(IF(DO_HTRABAJO!$AB$6="MN",DO_HTRABAJO!$K$6:$K$1000,DO_HTRABAJO!$J$6:$J$1000),DO_HTRABAJO!$D$6:$D$1000,$C36,DO_HTRABAJO!$E$6:$E$1000,$D36,DO_HTRABAJO!$M$6:$M$1000,$E$4,DO_HTRABAJO!$N$6:$N$1000,F$6) -> 23,922.02 | G36: =SUMIFS(IF(DO_HTRABAJO!$AB$6="MN",DO_HTRABAJO!$K$6:$K$1000,DO_HTRABAJO!$J$6:$J$1000),DO_HTRABAJO!$D$6:$D$1000,$C36,DO_HTRABAJO!$E$6:$E$1000,$D36,DO_HTRABAJO!$M$6:$M$1000,$E$4,DO_HTRABAJO!$N$6:$N$1000,G$6) -> 20,815.78 | H36: =SUMIFS(IF(DO_HTRABAJO!$AB$6="MN",DO_HTRABAJO!$K$6:$K$1000,DO_HTRABAJO!$J$6:$J$1000),DO_HTRABAJO!$D$6:$D$1000,$C36,DO_HTRABAJO!$E$6:$E$1000,$D36,DO_HTRABAJO!$M$6:$M$1000,$E$4,DO_HTRABAJO!$N$6:$N$1000,H$6) -> 8,631.11 | I36: =SUMIFS(IF(DO_HTRABAJO!$AB$6="MN",DO_HTRABAJO!$K$6:$K$1000,DO_HTRABAJO!$J$6:$J$1000),DO_HTRABAJO!$D$6:$D$1000,$C36,DO_HTRABAJO!$E$6:$E$1000,$D36,DO_HTRABAJO!$M$6:$M$1000,$E$4,DO_HTRABAJO!$N$6:$N$1000,I$6) -> 0 | J36: =SUMIFS(IF(DO_HTRABAJO!$AB$6="MN",DO_HTRABAJO!$K$6:$K$1000,DO_HTRABAJO!$J$6:$J$1000),DO_HTRABAJO!$D$6:$D$1000,$C36,DO_HTRABAJO!$E$6:$E$1000,$D36,DO_HTRABAJO!$M$6:$M$1000,$E$4,DO_HTRABAJO!$N$6:$N$1000,J$6) -> 0 | K36: =SUMIFS(IF(DO_HTRABAJO!$AB$6="MN",DO_HTRABAJO!$K$6:$K$1000,DO_HTRABAJO!$J$6:$J$1000),DO_HTRABAJO!$D$6:$D$1000,$C36,DO_HTRABAJO!$E$6:$E$1000,$D36,DO_HTRABAJO!$M$6:$M$1000,$E$4,DO_HTRABAJO!$N$6:$N$1000,K$6) -> 0 | L36: 155,642.93 | M36: =SUMIFS(IF(DO_HTRABAJO!$AB$6="MN",DO_HTRABAJO!$K$6:$K$1000,DO_HTRABAJO!$J$6:$J$1000),DO_HTRABAJO!$D$6:$D$1000,$C36,DO_HTRABAJO!$E$6:$E$1000,$D36,DO_HTRABAJO!$M$6:$M$1000,$M$4,DO_HTRABAJO!$N$6:$N$1000,M$6) -> 8,125.70 | N36: =SUMIFS(IF(DO_HTRABAJO!$AB$6="MN",DO_HTRABAJO!$K$6:$K$1000,DO_HTRABAJO!$J$6:$J$1000),DO_HTRABAJO!$D$6:$D$1000,$C36,DO_HTRABAJO!$E$6:$E$1000,$D36,DO_HTRABAJO!$M$6:$M$1000,$M$4,DO_HTRABAJO!$N$6:$N$1000,N$6) -> 0 | O36: =SUMIFS(IF(DO_HTRABAJO!$AB$6="MN",DO_HTRABAJO!$K$6:$K$1000,DO_HTRABAJO!$J$6:$J$1000),DO_HTRABAJO!$D$6:$D$1000,$C36,DO_HTRABAJO!$E$6:$E$1000,$D36,DO_HTRABAJO!$M$6:$M$1000,$M$4,DO_HTRABAJO!$N$6:$N$1000,O$6) -> 0 | P36: =SUMIFS(IF(DO_HTRABAJO!$AB$6="MN",DO_HTRABAJO!$K$6:$K$1000,DO_HTRABAJO!$J$6:$J$1000),DO_HTRABAJO!$D$6:$D$1000,$C36,DO_HTRABAJO!$E$6:$E$1000,$D36,DO_HTRABAJO!$M$6:$M$1000,$M$4,DO_HTRABAJO!$N$6:$N$1000,P$6) -> 0 | Q36: =SUMIFS(IF(DO_HTRABAJO!$AB$6="MN",DO_HTRABAJO!$K$6:$K$1000,DO_HTRABAJO!$J$6:$J$1000),DO_HTRABAJO!$D$6:$D$1000,$C36,DO_HTRABAJO!$E$6:$E$1000,$D36,DO_HTRABAJO!$M$6:$M$1000,$M$4,DO_HTRABAJO!$N$6:$N$1000,Q$6) -> 0 | R36: =SUMIFS(IF(DO_HTRABAJO!$AB$6="MN",DO_HTRABAJO!$K$6:$K$1000,DO_HTRABAJO!$J$6:$J$1000),DO_HTRABAJO!$D$6:$D$1000,$C36,DO_HTRABAJO!$E$6:$E$1000,$D36,DO_HTRABAJO!$M$6:$M$1000,$M$4,DO_HTRABAJO!$N$6:$N$1000,R$6) -> 0 | S36: =SUMIFS(IF(DO_HTRABAJO!$AB$6="MN",DO_HTRABAJO!$K$6:$K$1000,DO_HTRABAJO!$J$6:$J$1000),DO_HTRABAJO!$D$6:$D$1000,$C36,DO_HTRABAJO!$E$6:$E$1000,$D36,DO_HTRABAJO!$M$6:$M$1000,$M$4,DO_HTRABAJO!$N$6:$N$1000,S$6) -> 8,125.70 | T36: 16,251.40 | U36: 171,894.33
B37: =ROWS(B$7:B37) -> 31 | C37: =INDEX(DO_HTRABAJO!$T$6:$T$55,MATCH(B37,DO_HTRABAJO!$V$6:$V$55,0)) -> OMNITEC S.R.L. | D37: =INDEX(DO_HTRABAJO!$T$6:$U$55,MATCH($B37,DO_HTRABAJO!$V$6:$V$55,0),2) -> SECTOR OESTE | E37: =SUMIFS(IF(DO_HTRABAJO!$AB$6="MN",DO_HTRABAJO!$K$6:$K$1000,DO_HTRABAJO!$J$6:$J$1000),DO_HTRABAJO!$D$6:$D$1000,$C37,DO_HTRABAJO!$E$6:$E$1000,$D37,DO_HTRABAJO!$M$6:$M$1000,$E$4,DO_HTRABAJO!$N$6:$N$1000,E$6) -> 250,177.57 | F37: =SUMIFS(IF(DO_HTRABAJO!$AB$6="MN",DO_HTRABAJO!$K$6:$K$1000,DO_HTRABAJO!$J$6:$J$1000),DO_HTRABAJO!$D$6:$D$1000,$C37,DO_HTRABAJO!$E$6:$E$1000,$D37,DO_HTRABAJO!$M$6:$M$1000,$E$4,DO_HTRABAJO!$N$6:$N$1000,F$6) -> 118,755.08 | G37: =SUMIFS(IF(DO_HTRABAJO!$AB$6="MN",DO_HTRABAJO!$K$6:$K$1000,DO_HTRABAJO!$J$6:$J$1000),DO_HTRABAJO!$D$6:$D$1000,$C37,DO_HTRABAJO!$E$6:$E$1000,$D37,DO_HTRABAJO!$M$6:$M$1000,$E$4,DO_HTRABAJO!$N$6:$N$1000,G$6) -> 0 | H37: =SUMIFS(IF(DO_HTRABAJO!$AB$6="MN",DO_HTRABAJO!$K$6:$K$1000,DO_HTRABAJO!$J$6:$J$1000),DO_HTRABAJO!$D$6:$D$1000,$C37,DO_HTRABAJO!$E$6:$E$1000,$D37,DO_HTRABAJO!$M$6:$M$1000,$E$4,DO_HTRABAJO!$N$6:$N$1000,H$6) -> 0 | I37: =SUMIFS(IF(DO_HTRABAJO!$AB$6="MN",DO_HTRABAJO!$K$6:$K$1000,DO_HTRABAJO!$J$6:$J$1000),DO_HTRABAJO!$D$6:$D$1000,$C37,DO_HTRABAJO!$E$6:$E$1000,$D37,DO_HTRABAJO!$M$6:$M$1000,$E$4,DO_HTRABAJO!$N$6:$N$1000,I$6) -> 0 | J37: =SUMIFS(IF(DO_HTRABAJO!$AB$6="MN",DO_HTRABAJO!$K$6:$K$1000,DO_HTRABAJO!$J$6:$J$1000),DO_HTRABAJO!$D$6:$D$1000,$C37,DO_HTRABAJO!$E$6:$E$1000,$D37,DO_HTRABAJO!$M$6:$M$1000,$E$4,DO_HTRABAJO!$N$6:$N$1000,J$6) -> 19,691.90 | K37: =SUMIFS(IF(DO_HTRABAJO!$AB$6="MN",DO_HTRABAJO!$K$6:$K$1000,DO_HTRABAJO!$J$6:$J$1000),DO_HTRABAJO!$D$6:$D$1000,$C37,DO_HTRABAJO!$E$6:$E$1000,$D37,DO_HTRABAJO!$M$6:$M$1000,$E$4,DO_HTRABAJO!$N$6:$N$1000,K$6) -> 111,730.59 | L37: 500,355.14 | M37: =SUMIFS(IF(DO_HTRABAJO!$AB$6="MN",DO_HTRABAJO!$K$6:$K$1000,DO_HTRABAJO!$J$6:$J$1000),DO_HTRABAJO!$D$6:$D$1000,$C37,DO_HTRABAJO!$E$6:$E$1000,$D37,DO_HTRABAJO!$M$6:$M$1000,$M$4,DO_HTRABAJO!$N$6:$N$1000,M$6) -> 0 | N37: =SUMIFS(IF(DO_HTRABAJO!$AB$6="MN",DO_HTRABAJO!$K$6:$K$1000,DO_HTRABAJO!$J$6:$J$1000),DO_HTRABAJO!$D$6:$D$1000,$C37,DO_HTRABAJO!$E$6:$E$1000,$D37,DO_HTRABAJO!$M$6:$M$1000,$M$4,DO_HTRABAJO!$N$6:$N$1000,N$6) -> 134,390.90 | O37: =SUMIFS(IF(DO_HTRABAJO!$AB$6="MN",DO_HTRABAJO!$K$6:$K$1000,DO_HTRABAJO!$J$6:$J$1000),DO_HTRABAJO!$D$6:$D$1000,$C37,DO_HTRABAJO!$E$6:$E$1000,$D37,DO_HTRABAJO!$M$6:$M$1000,$M$4,DO_HTRABAJO!$N$6:$N$1000,O$6) -> 41,221.16 | P37: =SUMIFS(IF(DO_HTRABAJO!$AB$6="MN",DO_HTRABAJO!$K$6:$K$1000,DO_HTRABAJO!$J$6:$J$1000),DO_HTRABAJO!$D$6:$D$1000,$C37,DO_HTRABAJO!$E$6:$E$1000,$D37,DO_HTRABAJO!$M$6:$M$1000,$M$4,DO_HTRABAJO!$N$6:$N$1000,P$6) -> 0 | Q37: =SUMIFS(IF(DO_HTRABAJO!$AB$6="MN",DO_HTRABAJO!$K$6:$K$1000,DO_HTRABAJO!$J$6:$J$1000),DO_HTRABAJO!$D$6:$D$1000,$C37,DO_HTRABAJO!$E$6:$E$1000,$D37,DO_HTRABAJO!$M$6:$M$1000,$M$4,DO_HTRABAJO!$N$6:$N$1000,Q$6) -> 0 | R37: =SUMIFS(IF(DO_HTRABAJO!$AB$6="MN",DO_HTRABAJO!$K$6:$K$1000,DO_HTRABAJO!$J$6:$J$1000),DO_HTRABAJO!$D$6:$D$1000,$C37,DO_HTRABAJO!$E$6:$E$1000,$D37,DO_HTRABAJO!$M$6:$M$1000,$M$4,DO_HTRABAJO!$N$6:$N$1000,R$6) -> 88,928.46 | S37: =SUMIFS(IF(DO_HTRABAJO!$AB$6="MN",DO_HTRABAJO!$K$6:$K$1000,DO_HTRABAJO!$J$6:$J$1000),DO_HTRABAJO!$D$6:$D$1000,$C37,DO_HTRABAJO!$E$6:$E$1000,$D37,DO_HTRABAJO!$M$6:$M$1000,$M$4,DO_HTRABAJO!$N$6:$N$1000,S$6) -> 272,012.74 | T37: 536,553.26 | U37: 1,036,908.40
B38: =ROWS(B$7:B38) -> 32 | C38: =INDEX(DO_HTRABAJO!$T$6:$T$55,MATCH(B38,DO_HTRABAJO!$V$6:$V$55,0)) -> OTUSS S.A.C. | D38: =INDEX(DO_HTRABAJO!$T$6:$U$55,MATCH($B38,DO_HTRABAJO!$V$6:$V$55,0),2) -> SECTOR SUR | E38: =SUMIFS(IF(DO_HTRABAJO!$AB$6="MN",DO_HTRABAJO!$K$6:$K$1000,DO_HTRABAJO!$J$6:$J$1000),DO_HTRABAJO!$D$6:$D$1000,$C38,DO_HTRABAJO!$E$6:$E$1000,$D38,DO_HTRABAJO!$M$6:$M$1000,$E$4,DO_HTRABAJO!$N$6:$N$1000,E$6) -> 132,662.60 | F38: =SUMIFS(IF(DO_HTRABAJO!$AB$6="MN",DO_HTRABAJO!$K$6:$K$1000,DO_HTRABAJO!$J$6:$J$1000),DO_HTRABAJO!$D$6:$D$1000,$C38,DO_HTRABAJO!$E$6:$E$1000,$D38,DO_HTRABAJO!$M$6:$M$1000,$E$4,DO_HTRABAJO!$N$6:$N$1000,F$6) -> 0 | G38: =SUMIFS(IF(DO_HTRABAJO!$AB$6="MN",DO_HTRABAJO!$K$6:$K$1000,DO_HTRABAJO!$J$6:$J$1000),DO_HTRABAJO!$D$6:$D$1000,$C38,DO_HTRABAJO!$E$6:$E$1000,$D38,DO_HTRABAJO!$M$6:$M$1000,$E$4,DO_HTRABAJO!$N$6:$N$1000,G$6) -> 0 | H38: =SUMIFS(IF(DO_HTRABAJO!$AB$6="MN",DO_HTRABAJO!$K$6:$K$1000,DO_HTRABAJO!$J$6:$J$1000),DO_HTRABAJO!$D$6:$D$1000,$C38,DO_HTRABAJO!$E$6:$E$1000,$D38,DO_HTRABAJO!$M$6:$M$1000,$E$4,DO_HTRABAJO!$N$6:$N$1000,H$6) -> 86,551.31 | I38: =SUMIFS(IF(DO_HTRABAJO!$AB$6="MN",DO_HTRABAJO!$K$6:$K$1000,DO_HTRABAJO!$J$6:$J$1000),DO_HTRABAJO!$D$6:$D$1000,$C38,DO_HTRABAJO!$E$6:$E$1000,$D38,DO_HTRABAJO!$M$6:$M$1000,$E$4,DO_HTRABAJO!$N$6:$N$1000,I$6) -> 0 | J38: =SUMIFS(IF(DO_HTRABAJO!$AB$6="MN",DO_HTRABAJO!$K$6:$K$1000,DO_HTRABAJO!$J$6:$J$1000),DO_HTRABAJO!$D$6:$D$1000,$C38,DO_HTRABAJO!$E$6:$E$1000,$D38,DO_HTRABAJO!$M$6:$M$1000,$E$4,DO_HTRABAJO!$N$6:$N$1000,J$6) -> 17,917.80 | K38: =SUMIFS(IF(DO_HTRABAJO!$AB$6="MN",DO_HTRABAJO!$K$6:$K$1000,DO_HTRABAJO!$J$6:$J$1000),DO_HTRABAJO!$D$6:$D$1000,$C38,DO_HTRABAJO!$E$6:$E$1000,$D38,DO_HTRABAJO!$M$6:$M$1000,$E$4,DO_HTRABAJO!$N$6:$N$1000,K$6) -> 28,193.48 | L38: 265,325.19 | M38: =SUMIFS(IF(DO_HTRABAJO!$AB$6="MN",DO_HTRABAJO!$K$6:$K$1000,DO_HTRABAJO!$J$6:$J$1000),DO_HTRABAJO!$D$6:$D$1000,$C38,DO_HTRABAJO!$E$6:$E$1000,$D38,DO_HTRABAJO!$M$6:$M$1000,$M$4,DO_HTRABAJO!$N$6:$N$1000,M$6) -> 0 | N38: =SUMIFS(IF(DO_HTRABAJO!$AB$6="MN",DO_HTRABAJO!$K$6:$K$1000,DO_HTRABAJO!$J$6:$J$1000),DO_HTRABAJO!$D$6:$D$1000,$C38,DO_HTRABAJO!$E$6:$E$1000,$D38,DO_HTRABAJO!$M$6:$M$1000,$M$4,DO_HTRABAJO!$N$6:$N$1000,N$6) -> 0 | O38: =SUMIFS(IF(DO_HTRABAJO!$AB$6="MN",DO_HTRABAJO!$K$6:$K$1000,DO_HTRABAJO!$J$6:$J$1000),DO_HTRABAJO!$D$6:$D$1000,$C38,DO_HTRABAJO!$E$6:$E$1000,$D38,DO_HTRABAJO!$M$6:$M$1000,$M$4,DO_HTRABAJO!$N$6:$N$1000,O$6) -> 0 | P38: =SUMIFS(IF(DO_HTRABAJO!$AB$6="MN",DO_HTRABAJO!$K$6:$K$1000,DO_HTRABAJO!$J$6:$J$1000),DO_HTRABAJO!$D$6:$D$1000,$C38,DO_HTRABAJO!$E$6:$E$1000,$D38,DO_HTRABAJO!$M$6:$M$1000,$M$4,DO_HTRABAJO!$N$6:$N$1000,P$6) -> 0 | Q38: =SUMIFS(IF(DO_HTRABAJO!$AB$6="MN",DO_HTRABAJO!$K$6:$K$1000,DO_HTRABAJO!$J$6:$J$1000),DO_HTRABAJO!$D$6:$D$1000,$C38,DO_HTRABAJO!$E$6:$E$1000,$D38,DO_HTRABAJO!$M$6:$M$1000,$M$4,DO_HTRABAJO!$N$6:$N$1000,Q$6) -> 27,022.67 | R38: =SUMIFS(IF(DO_HTRABAJO!$AB$6="MN",DO_HTRABAJO!$K$6:$K$1000,DO_HTRABAJO!$J$6:$J$1000),DO_HTRABAJO!$D$6:$D$1000,$C38,DO_HTRABAJO!$E$6:$E$1000,$D38,DO_HTRABAJO!$M$6:$M$1000,$M$4,DO_HTRABAJO!$N$6:$N$1000,R$6) -> 0 | S38: =SUMIFS(IF(DO_HTRABAJO!$AB$6="MN",DO_HTRABAJO!$K$6:$K$1000,DO_HTRABAJO!$J$6:$J$1000),DO_HTRABAJO!$D$6:$D$1000,$C38,DO_HTRABAJO!$E$6:$E$1000,$D38,DO_HTRABAJO!$M$6:$M$1000,$M$4,DO_HTRABAJO!$N$6:$N$1000,S$6) -> 64,182.96 | T38: 91,205.63 | U38: 356,530.82
B39: =ROWS(B$7:B39) -> 33 | C39: =INDEX(DO_HTRABAJO!$T$6:$T$55,MATCH(B39,DO_HTRABAJO!$V$6:$V$55,0)) -> PENTAGRAF S.A.C. | D39: =INDEX(DO_HTRABAJO!$T$6:$U$55,MATCH($B39,DO_HTRABAJO!$V$6:$V$55,0),2) -> SECTOR SUR | E39: =SUMIFS(IF(DO_HTRABAJO!$AB$6="MN",DO_HTRABAJO!$K$6:$K$1000,DO_HTRABAJO!$J$6:$J$1000),DO_HTRABAJO!$D$6:$D$1000,$C39,DO_HTRABAJO!$E$6:$E$1000,$D39,DO_HTRABAJO!$M$6:$M$1000,$E$4,DO_HTRABAJO!$N$6:$N$1000,E$6) -> 4,788.63 | F39: =SUMIFS(IF(DO_HTRABAJO!$AB$6="MN",DO_HTRABAJO!$K$6:$K$1000,DO_HTRABAJO!$J$6:$J$1000),DO_HTRABAJO!$D$6:$D$1000,$C39,DO_HTRABAJO!$E$6:$E$1000,$D39,DO_HTRABAJO!$M$6:$M$1000,$E$4,DO_HTRABAJO!$N$6:$N$1000,F$6) -> 0 | G39: =SUMIFS(IF(DO_HTRABAJO!$AB$6="MN",DO_HTRABAJO!$K$6:$K$1000,DO_HTRABAJO!$J$6:$J$1000),DO_HTRABAJO!$D$6:$D$1000,$C39,DO_HTRABAJO!$E$6:$E$1000,$D39,DO_HTRABAJO!$M$6:$M$1000,$E$4,DO_HTRABAJO!$N$6:$N$1000,G$6) -> 0 | H39: =SUMIFS(IF(DO_HTRABAJO!$AB$6="MN",DO_HTRABAJO!$K$6:$K$1000,DO_HTRABAJO!$J$6:$J$1000),DO_HTRABAJO!$D$6:$D$1000,$C39,DO_HTRABAJO!$E$6:$E$1000,$D39,DO_HTRABAJO!$M$6:$M$1000,$E$4,DO_HTRABAJO!$N$6:$N$1000,H$6) -> 4,788.63 | I39: =SUMIFS(IF(DO_HTRABAJO!$AB$6="MN",DO_HTRABAJO!$K$6:$K$1000,DO_HTRABAJO!$J$6:$J$1000),DO_HTRABAJO!$D$6:$D$1000,$C39,DO_HTRABAJO!$E$6:$E$1000,$D39,DO_HTRABAJO!$M$6:$M$1000,$E$4,DO_HTRABAJO!$N$6:$N$1000,I$6) -> 0 | J39: =SUMIFS(IF(DO_HTRABAJO!$AB$6="MN",DO_HTRABAJO!$K$6:$K$1000,DO_HTRABAJO!$J$6:$J$1000),DO_HTRABAJO!$D$6:$D$1000,$C39,DO_HTRABAJO!$E$6:$E$1000,$D39,DO_HTRABAJO!$M$6:$M$1000,$E$4,DO_HTRABAJO!$N$6:$N$1000,J$6) -> 0 | K39: =SUMIFS(IF(DO_HTRABAJO!$AB$6="MN",DO_HTRABAJO!$K$6:$K$1000,DO_HTRABAJO!$J$6:$J$1000),DO_HTRABAJO!$D$6:$D$1000,$C39,DO_HTRABAJO!$E$6:$E$1000,$D39,DO_HTRABAJO!$M$6:$M$1000,$E$4,DO_HTRABAJO!$N$6:$N$1000,K$6) -> 0 | L39: =SUM(E39:K39) -> 9,577.27 | M39: =SUMIFS(IF(DO_HTRABAJO!$AB$6="MN",DO_HTRABAJO!$K$6:$K$1000,DO_HTRABAJO!$J$6:$J$1000),DO_HTRABAJO!$D$6:$D$1000,$C39,DO_HTRABAJO!$E$6:$E$1000,$D39,DO_HTRABAJO!$M$6:$M$1000,$M$4,DO_HTRABAJO!$N$6:$N$1000,M$6) -> 15,545.53 | N39: =SUMIFS(IF(DO_HTRABAJO!$AB$6="MN",DO_HTRABAJO!$K$6:$K$1000,DO_HTRABAJO!$J$6:$J$1000),DO_HTRABAJO!$D$6:$D$1000,$C39,DO_HTRABAJO!$E$6:$E$1000,$D39,DO_HTRABAJO!$M$6:$M$1000,$M$4,DO_HTRABAJO!$N$6:$N$1000,N$6) -> 0 | O39: =SUMIFS(IF(DO_HTRABAJO!$AB$6="MN",DO_HTRABAJO!$K$6:$K$1000,DO_HTRABAJO!$J$6:$J$1000),DO_HTRABAJO!$D$6:$D$1000,$C39,DO_HTRABAJO!$E$6:$E$1000,$D39,DO_HTRABAJO!$M$6:$M$1000,$M$4,DO_HTRABAJO!$N$6:$N$1000,O$6) -> 0 | P39: =SUMIFS(IF(DO_HTRABAJO!$AB$6="MN",DO_HTRABAJO!$K$6:$K$1000,DO_HTRABAJO!$J$6:$J$1000),DO_HTRABAJO!$D$6:$D$1000,$C39,DO_HTRABAJO!$E$6:$E$1000,$D39,DO_HTRABAJO!$M$6:$M$1000,$M$4,DO_HTRABAJO!$N$6:$N$1000,P$6) -> 0 | Q39: =SUMIFS(IF(DO_HTRABAJO!$AB$6="MN",DO_HTRABAJO!$K$6:$K$1000,DO_HTRABAJO!$J$6:$J$1000),DO_HTRABAJO!$D$6:$D$1000,$C39,DO_HTRABAJO!$E$6:$E$1000,$D39,DO_HTRABAJO!$M$6:$M$1000,$M$4,DO_HTRABAJO!$N$6:$N$1000,Q$6) -> 0 | R39: =SUMIFS(IF(DO_HTRABAJO!$AB$6="MN",DO_HTRABAJO!$K$6:$K$1000,DO_HTRABAJO!$J$6:$J$1000),DO_HTRABAJO!$D$6:$D$1000,$C39,DO_HTRABAJO!$E$6:$E$1000,$D39,DO_HTRABAJO!$M$6:$M$1000,$M$4,DO_HTRABAJO!$N$6:$N$1000,R$6) -> 0 | S39: =SUMIFS(IF(DO_HTRABAJO!$AB$6="MN",DO_HTRABAJO!$K$6:$K$1000,DO_HTRABAJO!$J$6:$J$1000),DO_HTRABAJO!$D$6:$D$1000,$C39,DO_HTRABAJO!$E$6:$E$1000,$D39,DO_HTRABAJO!$M$6:$M$1000,$M$4,DO_HTRABAJO!$N$6:$N$1000,S$6) -> 137,120.60 | T39: 152,666.13 | U39: 162,243.40
B40: =ROWS(B$7:B40) -> 34 | C40: =INDEX(DO_HTRABAJO!$T$6:$T$55,MATCH(B40,DO_HTRABAJO!$V$6:$V$55,0)) -> PLASTIJHIM SRL | D40: =INDEX(DO_HTRABAJO!$T$6:$U$55,MATCH($B40,DO_HTRABAJO!$V$6:$V$55,0),2) -> SECTOR NORTE | E40: =SUMIFS(IF(DO_HTRABAJO!$AB$6="MN",DO_HTRABAJO!$K$6:$K$1000,DO_HTRABAJO!$J$6:$J$1000),DO_HTRABAJO!$D$6:$D$1000,$C40,DO_HTRABAJO!$E$6:$E$1000,$D40,DO_HTRABAJO!$M$6:$M$1000,$E$4,DO_HTRABAJO!$N$6:$N$1000,E$6) -> 16,452.26 | F40: =SUMIFS(IF(DO_HTRABAJO!$AB$6="MN",DO_HTRABAJO!$K$6:$K$1000,DO_HTRABAJO!$J$6:$J$1000),DO_HTRABAJO!$D$6:$D$1000,$C40,DO_HTRABAJO!$E$6:$E$1000,$D40,DO_HTRABAJO!$M$6:$M$1000,$E$4,DO_HTRABAJO!$N$6:$N$1000,F$6) -> 0 | G40: =SUMIFS(IF(DO_HTRABAJO!$AB$6="MN",DO_HTRABAJO!$K$6:$K$1000,DO_HTRABAJO!$J$6:$J$1000),DO_HTRABAJO!$D$6:$D$1000,$C40,DO_HTRABAJO!$E$6:$E$1000,$D40,DO_HTRABAJO!$M$6:$M$1000,$E$4,DO_HTRABAJO!$N$6:$N$1000,G$6) -> 0 | H40: =SUMIFS(IF(DO_HTRABAJO!$AB$6="MN",DO_HTRABAJO!$K$6:$K$1000,DO_HTRABAJO!$J$6:$J$1000),DO_HTRABAJO!$D$6:$D$1000,$C40,DO_HTRABAJO!$E$6:$E$1000,$D40,DO_HTRABAJO!$M$6:$M$1000,$E$4,DO_HTRABAJO!$N$6:$N$1000,H$6) -> 0 | I40: =SUMIFS(IF(DO_HTRABAJO!$AB$6="MN",DO_HTRABAJO!$K$6:$K$1000,DO_HTRABAJO!$J$6:$J$1000),DO_HTRABAJO!$D$6:$D$1000,$C40,DO_HTRABAJO!$E$6:$E$1000,$D40,DO_HTRABAJO!$M$6:$M$1000,$E$4,DO_HTRABAJO!$N$6:$N$1000,I$6) -> 0 | J40: =SUMIFS(IF(DO_HTRABAJO!$AB$6="MN",DO_HTRABAJO!$K$6:$K$1000,DO_HTRABAJO!$J$6:$J$1000),DO_HTRABAJO!$D$6:$D$1000,$C40,DO_HTRABAJO!$E$6:$E$1000,$D40,DO_HTRABAJO!$M$6:$M$1000,$E$4,DO_HTRABAJO!$N$6:$N$1000,J$6) -> 0 | K40: =SUMIFS(IF(DO_HTRABAJO!$AB$6="MN",DO_HTRABAJO!$K$6:$K$1000,DO_HTRABAJO!$J$6:$J$1000),DO_HTRABAJO!$D$6:$D$1000,$C40,DO_HTRABAJO!$E$6:$E$1000,$D40,DO_HTRABAJO!$M$6:$M$1000,$E$4,DO_HTRABAJO!$N$6:$N$1000,K$6) -> 0 | L40: 16,452.26 | M40: =SUMIFS(IF(DO_HTRABAJO!$AB$6="MN",DO_HTRABAJO!$K$6:$K$1000,DO_HTRABAJO!$J$6:$J$1000),DO_HTRABAJO!$D$6:$D$1000,$C40,DO_HTRABAJO!$E$6:$E$1000,$D40,DO_HTRABAJO!$M$6:$M$1000,$M$4,DO_HTRABAJO!$N$6:$N$1000,M$6) -> 0 | N40: =SUMIFS(IF(DO_HTRABAJO!$AB$6="MN",DO_HTRABAJO!$K$6:$K$1000,DO_HTRABAJO!$J$6:$J$1000),DO_HTRABAJO!$D$6:$D$1000,$C40,DO_HTRABAJO!$E$6:$E$1000,$D40,DO_HTRABAJO!$M$6:$M$1000,$M$4,DO_HTRABAJO!$N$6:$N$1000,N$6) -> 0 | O40: =SUMIFS(IF(DO_HTRABAJO!$AB$6="MN",DO_HTRABAJO!$K$6:$K$1000,DO_HTRABAJO!$J$6:$J$1000),DO_HTRABAJO!$D$6:$D$1000,$C40,DO_HTRABAJO!$E$6:$E$1000,$D40,DO_HTRABAJO!$M$6:$M$1000,$M$4,DO_HTRABAJO!$N$6:$N$1000,O$6) -> 0 | P40: =SUMIFS(IF(DO_HTRABAJO!$AB$6="MN",DO_HTRABAJO!$K$6:$K$1000,DO_HTRABAJO!$J$6:$J$1000),DO_HTRABAJO!$D$6:$D$1000,$C40,DO_HTRABAJO!$E$6:$E$1000,$D40,DO_HTRABAJO!$M$6:$M$1000,$M$4,DO_HTRABAJO!$N$6:$N$1000,P$6) -> 0 | Q40: =SUMIFS(IF(DO_HTRABAJO!$AB$6="MN",DO_HTRABAJO!$K$6:$K$1000,DO_HTRABAJO!$J$6:$J$1000),DO_HTRABAJO!$D$6:$D$1000,$C40,DO_HTRABAJO!$E$6:$E$1000,$D40,DO_HTRABAJO!$M$6:$M$1000,$M$4,DO_HTRABAJO!$N$6:$N$1000,Q$6) -> 0 | R40: =SUMIFS(IF(DO_HTRABAJO!$AB$6="MN",DO_HTRABAJO!$K$6:$K$1000,DO_HTRABAJO!$J$6:$J$1000),DO_HTRABAJO!$D$6:$D$1000,$C40,DO_HTRABAJO!$E$6:$E$1000,$D40,DO_HTRABAJO!$M$6:$M$1000,$M$4,DO_HTRABAJO!$N$6:$N$1000,R$6) -> 0 | S40: =SUMIFS(IF(DO_HTRABAJO!$AB$6="MN",DO_HTRABAJO!$K$6:$K$1000,DO_HTRABAJO!$J$6:$J$1000),DO_HTRABAJO!$D$6:$D$1000,$C40,DO_HTRABAJO!$E$6:$E$1000,$D40,DO_HTRABAJO!$M$6:$M$1000,$M$4,DO_HTRABAJO!$N$6:$N$1000,S$6) -> 0 | T40: 0 | U40: 16,452.26
B41: =ROWS(B$7:B41) -> 35 | C41: =INDEX(DO_HTRABAJO!$T$6:$T$55,MATCH(B41,DO_HTRABAJO!$V$6:$V$55,0)) -> QUIMENSA EIRL | D41: =INDEX(DO_HTRABAJO!$T$6:$U$55,MATCH($B41,DO_HTRABAJO!$V$6:$V$55,0),2) -> SECTOR NORTE | E41: =SUMIFS(IF(DO_HTRABAJO!$AB$6="MN",DO_HTRABAJO!$K$6:$K$1000,DO_HTRABAJO!$J$6:$J$1000),DO_HTRABAJO!$D$6:$D$1000,$C41,DO_HTRABAJO!$E$6:$E$1000,$D41,DO_HTRABAJO!$M$6:$M$1000,$E$4,DO_HTRABAJO!$N$6:$N$1000,E$6) -> 25,630.63 | F41: =SUMIFS(IF(DO_HTRABAJO!$AB$6="MN",DO_HTRABAJO!$K$6:$K$1000,DO_HTRABAJO!$J$6:$J$1000),DO_HTRABAJO!$D$6:$D$1000,$C41,DO_HTRABAJO!$E$6:$E$1000,$D41,DO_HTRABAJO!$M$6:$M$1000,$E$4,DO_HTRABAJO!$N$6:$N$1000,F$6) -> 25,630.63 | G41: =SUMIFS(IF(DO_HTRABAJO!$AB$6="MN",DO_HTRABAJO!$K$6:$K$1000,DO_HTRABAJO!$J$6:$J$1000),DO_HTRABAJO!$D$6:$D$1000,$C41,DO_HTRABAJO!$E$6:$E$1000,$D41,DO_HTRABAJO!$M$6:$M$1000,$E$4,DO_HTRABAJO!$N$6:$N$1000,G$6) -> 0 | H41: =SUMIFS(IF(DO_HTRABAJO!$AB$6="MN",DO_HTRABAJO!$K$6:$K$1000,DO_HTRABAJO!$J$6:$J$1000),DO_HTRABAJO!$D$6:$D$1000,$C41,DO_HTRABAJO!$E$6:$E$1000,$D41,DO_HTRABAJO!$M$6:$M$1000,$E$4,DO_HTRABAJO!$N$6:$N$1000,H$6) -> 0 | I41: =SUMIFS(IF(DO_HTRABAJO!$AB$6="MN",DO_HTRABAJO!$K$6:$K$1000,DO_HTRABAJO!$J$6:$J$1000),DO_HTRABAJO!$D$6:$D$1000,$C41,DO_HTRABAJO!$E$6:$E$1000,$D41,DO_HTRABAJO!$M$6:$M$1000,$E$4,DO_HTRABAJO!$N$6:$N$1000,I$6) -> 0 | J41: =SUMIFS(IF(DO_HTRABAJO!$AB$6="MN",DO_HTRABAJO!$K$6:$K$1000,DO_HTRABAJO!$J$6:$J$1000),DO_HTRABAJO!$D$6:$D$1000,$C41,DO_HTRABAJO!$E$6:$E$1000,$D41,DO_HTRABAJO!$M$6:$M$1000,$E$4,DO_HTRABAJO!$N$6:$N$1000,J$6) -> 0 | K41: =SUMIFS(IF(DO_HTRABAJO!$AB$6="MN",DO_HTRABAJO!$K$6:$K$1000,DO_HTRABAJO!$J$6:$J$1000),DO_HTRABAJO!$D$6:$D$1000,$C41,DO_HTRABAJO!$E$6:$E$1000,$D41,DO_HTRABAJO!$M$6:$M$1000,$E$4,DO_HTRABAJO!$N$6:$N$1000,K$6) -> 0 | L41: 51,261.26 | M41: =SUMIFS(IF(DO_HTRABAJO!$AB$6="MN",DO_HTRABAJO!$K$6:$K$1000,DO_HTRABAJO!$J$6:$J$1000),DO_HTRABAJO!$D$6:$D$1000,$C41,DO_HTRABAJO!$E$6:$E$1000,$D41,DO_HTRABAJO!$M$6:$M$1000,$M$4,DO_HTRABAJO!$N$6:$N$1000,M$6) -> 0 | N41: =SUMIFS(IF(DO_HTRABAJO!$AB$6="MN",DO_HTRABAJO!$K$6:$K$1000,DO_HTRABAJO!$J$6:$J$1000),DO_HTRABAJO!$D$6:$D$1000,$C41,DO_HTRABAJO!$E$6:$E$1000,$D41,DO_HTRABAJO!$M$6:$M$1000,$M$4,DO_HTRABAJO!$N$6:$N$1000,N$6) -> 0 | O41: =SUMIFS(IF(DO_HTRABAJO!$AB$6="MN",DO_HTRABAJO!$K$6:$K$1000,DO_HTRABAJO!$J$6:$J$1000),DO_HTRABAJO!$D$6:$D$1000,$C41,DO_HTRABAJO!$E$6:$E$1000,$D41,DO_HTRABAJO!$M$6:$M$1000,$M$4,DO_HTRABAJO!$N$6:$N$1000,O$6) -> 0 | P41: =SUMIFS(IF(DO_HTRABAJO!$AB$6="MN",DO_HTRABAJO!$K$6:$K$1000,DO_HTRABAJO!$J$6:$J$1000),DO_HTRABAJO!$D$6:$D$1000,$C41,DO_HTRABAJO!$E$6:$E$1000,$D41,DO_HTRABAJO!$M$6:$M$1000,$M$4,DO_HTRABAJO!$N$6:$N$1000,P$6) -> 5,038.21 | Q41: =SUMIFS(IF(DO_HTRABAJO!$AB$6="MN",DO_HTRABAJO!$K$6:$K$1000,DO_HTRABAJO!$J$6:$J$1000),DO_HTRABAJO!$D$6:$D$1000,$C41,DO_HTRABAJO!$E$6:$E$1000,$D41,DO_HTRABAJO!$M$6:$M$1000,$M$4,DO_HTRABAJO!$N$6:$N$1000,Q$6) -> 120,828.03 | R41: =SUMIFS(IF(DO_HTRABAJO!$AB$6="MN",DO_HTRABAJO!$K$6:$K$1000,DO_HTRABAJO!$J$6:$J$1000),DO_HTRABAJO!$D$6:$D$1000,$C41,DO_HTRABAJO!$E$6:$E$1000,$D41,DO_HTRABAJO!$M$6:$M$1000,$M$4,DO_HTRABAJO!$N$6:$N$1000,R$6) -> 0 | S41: =SUMIFS(IF(DO_HTRABAJO!$AB$6="MN",DO_HTRABAJO!$K$6:$K$1000,DO_HTRABAJO!$J$6:$J$1000),DO_HTRABAJO!$D$6:$D$1000,$C41,DO_HTRABAJO!$E$6:$E$1000,$D41,DO_HTRABAJO!$M$6:$M$1000,$M$4,DO_HTRABAJO!$N$6:$N$1000,S$6) -> 146,088.60 | T41: 271,954.84 | U41: 323,216.10
B42: =ROWS(B$7:B42) -> 36 | C42: =INDEX(DO_HTRABAJO!$T$6:$T$55,MATCH(B42,DO_HTRABAJO!$V$6:$V$55,0)) -> QUISPE NINA AMERICO | D42: =INDEX(DO_HTRABAJO!$T$6:$U$55,MATCH($B42,DO_HTRABAJO!$V$6:$V$55,0),2) -> SECTOR ESTE | E42: =SUMIFS(IF(DO_HTRABAJO!$AB$6="MN",DO_HTRABAJO!$K$6:$K$1000,DO_HTRABAJO!$J$6:$J$1000),DO_HTRABAJO!$D$6:$D$1000,$C42,DO_HTRABAJO!$E$6:$E$1000,$D42,DO_HTRABAJO!$M$6:$M$1000,$E$4,DO_HTRABAJO!$N$6:$N$1000,E$6) -> 17,091.18 | F42: =SUMIFS(IF(DO_HTRABAJO!$AB$6="MN",DO_HTRABAJO!$K$6:$K$1000,DO_HTRABAJO!$J$6:$J$1000),DO_HTRABAJO!$D$6:$D$1000,$C42,DO_HTRABAJO!$E$6:$E$1000,$D42,DO_HTRABAJO!$M$6:$M$1000,$E$4,DO_HTRABAJO!$N$6:$N$1000,F$6) -> 0 | G42: =SUMIFS(IF(DO_HTRABAJO!$AB$6="MN",DO_HTRABAJO!$K$6:$K$1000,DO_HTRABAJO!$J$6:$J$1000),DO_HTRABAJO!$D$6:$D$1000,$C42,DO_HTRABAJO!$E$6:$E$1000,$D42,DO_HTRABAJO!$M$6:$M$1000,$E$4,DO_HTRABAJO!$N$6:$N$1000,G$6) -> 0 | H42: =SUMIFS(IF(DO_HTRABAJO!$AB$6="MN",DO_HTRABAJO!$K$6:$K$1000,DO_HTRABAJO!$J$6:$J$1000),DO_HTRABAJO!$D$6:$D$1000,$C42,DO_HTRABAJO!$E$6:$E$1000,$D42,DO_HTRABAJO!$M$6:$M$1000,$E$4,DO_HTRABAJO!$N$6:$N$1000,H$6) -> 0 | I42: =SUMIFS(IF(DO_HTRABAJO!$AB$6="MN",DO_HTRABAJO!$K$6:$K$1000,DO_HTRABAJO!$J$6:$J$1000),DO_HTRABAJO!$D$6:$D$1000,$C42,DO_HTRABAJO!$E$6:$E$1000,$D42,DO_HTRABAJO!$M$6:$M$1000,$E$4,DO_HTRABAJO!$N$6:$N$1000,I$6) -> 0 | J42: =SUMIFS(IF(DO_HTRABAJO!$AB$6="MN",DO_HTRABAJO!$K$6:$K$1000,DO_HTRABAJO!$J$6:$J$1000),DO_HTRABAJO!$D$6:$D$1000,$C42,DO_HTRABAJO!$E$6:$E$1000,$D42,DO_HTRABAJO!$M$6:$M$1000,$E$4,DO_HTRABAJO!$N$6:$N$1000,J$6) -> 0 | K42: =SUMIFS(IF(DO_HTRABAJO!$AB$6="MN",DO_HTRABAJO!$K$6:$K$1000,DO_HTRABAJO!$J$6:$J$1000),DO_HTRABAJO!$D$6:$D$1000,$C42,DO_HTRABAJO!$E$6:$E$1000,$D42,DO_HTRABAJO!$M$6:$M$1000,$E$4,DO_HTRABAJO!$N$6:$N$1000,K$6) -> 16,271.77 | L42: 33,362.95 | M42: =SUMIFS(IF(DO_HTRABAJO!$AB$6="MN",DO_HTRABAJO!$K$6:$K$1000,DO_HTRABAJO!$J$6:$J$1000),DO_HTRABAJO!$D$6:$D$1000,$C42,DO_HTRABAJO!$E$6:$E$1000,$D42,DO_HTRABAJO!$M$6:$M$1000,$M$4,DO_HTRABAJO!$N$6:$N$1000,M$6) -> 2,870.16 | N42: =SUMIFS(IF(DO_HTRABAJO!$AB$6="MN",DO_HTRABAJO!$K$6:$K$1000,DO_HTRABAJO!$J$6:$J$1000),DO_HTRABAJO!$D$6:$D$1000,$C42,DO_HTRABAJO!$E$6:$E$1000,$D42,DO_HTRABAJO!$M$6:$M$1000,$M$4,DO_HTRABAJO!$N$6:$N$1000,N$6) -> 0 | O42: =SUMIFS(IF(DO_HTRABAJO!$AB$6="MN",DO_HTRABAJO!$K$6:$K$1000,DO_HTRABAJO!$J$6:$J$1000),DO_HTRABAJO!$D$6:$D$1000,$C42,DO_HTRABAJO!$E$6:$E$1000,$D42,DO_HTRABAJO!$M$6:$M$1000,$M$4,DO_HTRABAJO!$N$6:$N$1000,O$6) -> 0 | P42: =SUMIFS(IF(DO_HTRABAJO!$AB$6="MN",DO_HTRABAJO!$K$6:$K$1000,DO_HTRABAJO!$J$6:$J$1000),DO_HTRABAJO!$D$6:$D$1000,$C42,DO_HTRABAJO!$E$6:$E$1000,$D42,DO_HTRABAJO!$M$6:$M$1000,$M$4,DO_HTRABAJO!$N$6:$N$1000,P$6) -> 0 | Q42: =SUMIFS(IF(DO_HTRABAJO!$AB$6="MN",DO_HTRABAJO!$K$6:$K$1000,DO_HTRABAJO!$J$6:$J$1000),DO_HTRABAJO!$D$6:$D$1000,$C42,DO_HTRABAJO!$E$6:$E$1000,$D42,DO_HTRABAJO!$M$6:$M$1000,$M$4,DO_HTRABAJO!$N$6:$N$1000,Q$6) -> 0 | R42: =SUMIFS(IF(DO_HTRABAJO!$AB$6="MN",DO_HTRABAJO!$K$6:$K$1000,DO_HTRABAJO!$J$6:$J$1000),DO_HTRABAJO!$D$6:$D$1000,$C42,DO_HTRABAJO!$E$6:$E$1000,$D42,DO_HTRABAJO!$M$6:$M$1000,$M$4,DO_HTRABAJO!$N$6:$N$1000,R$6) -> 0 | S42: =SUMIFS(IF(DO_HTRABAJO!$AB$6="MN",DO_HTRABAJO!$K$6:$K$1000,DO_HTRABAJO!$J$6:$J$1000),DO_HTRABAJO!$D$6:$D$1000,$C42,DO_HTRABAJO!$E$6:$E$1000,$D42,DO_HTRABAJO!$M$6:$M$1000,$M$4,DO_HTRABAJO!$N$6:$N$1000,S$6) -> 2,870.16 | T42: 5,740.31 | U42: 39,103.27
B43: =ROWS(B$7:B43) -> 37 | C43: =INDEX(DO_HTRABAJO!$T$6:$T$55,MATCH(B43,DO_HTRABAJO!$V$6:$V$55,0)) -> ROBERCAR EIRL | D43: =INDEX(DO_HTRABAJO!$T$6:$U$55,MATCH($B43,DO_HTRABAJO!$V$6:$V$55,0),2) -> SECTOR OESTE | E43: =SUMIFS(IF(DO_HTRABAJO!$AB$6="MN",DO_HTRABAJO!$K$6:$K$1000,DO_HTRABAJO!$J$6:$J$1000),DO_HTRABAJO!$D$6:$D$1000,$C43,DO_HTRABAJO!$E$6:$E$1000,$D43,DO_HTRABAJO!$M$6:$M$1000,$E$4,DO_HTRABAJO!$N$6:$N$1000,E$6) -> 190,621.70 | F43: =SUMIFS(IF(DO_HTRABAJO!$AB$6="MN",DO_HTRABAJO!$K$6:$K$1000,DO_HTRABAJO!$J$6:$J$1000),DO_HTRABAJO!$D$6:$D$1000,$C43,DO_HTRABAJO!$E$6:$E$1000,$D43,DO_HTRABAJO!$M$6:$M$1000,$E$4,DO_HTRABAJO!$N$6:$N$1000,F$6) -> 0 | G43: =SUMIFS(IF(DO_HTRABAJO!$AB$6="MN",DO_HTRABAJO!$K$6:$K$1000,DO_HTRABAJO!$J$6:$J$1000),DO_HTRABAJO!$D$6:$D$1000,$C43,DO_HTRABAJO!$E$6:$E$1000,$D43,DO_HTRABAJO!$M$6:$M$1000,$E$4,DO_HTRABAJO!$N$6:$N$1000,G$6) -> 0 | H43: =SUMIFS(IF(DO_HTRABAJO!$AB$6="MN",DO_HTRABAJO!$K$6:$K$1000,DO_HTRABAJO!$J$6:$J$1000),DO_HTRABAJO!$D$6:$D$1000,$C43,DO_HTRABAJO!$E$6:$E$1000,$D43,DO_HTRABAJO!$M$6:$M$1000,$E$4,DO_HTRABAJO!$N$6:$N$1000,H$6) -> 0 | I43: =SUMIFS(IF(DO_HTRABAJO!$AB$6="MN",DO_HTRABAJO!$K$6:$K$1000,DO_HTRABAJO!$J$6:$J$1000),DO_HTRABAJO!$D$6:$D$1000,$C43,DO_HTRABAJO!$E$6:$E$1000,$D43,DO_HTRABAJO!$M$6:$M$1000,$E$4,DO_HTRABAJO!$N$6:$N$1000,I$6) -> 0 | J43: =SUMIFS(IF(DO_HTRABAJO!$AB$6="MN",DO_HTRABAJO!$K$6:$K$1000,DO_HTRABAJO!$J$6:$J$1000),DO_HTRABAJO!$D$6:$D$1000,$C43,DO_HTRABAJO!$E$6:$E$1000,$D43,DO_HTRABAJO!$M$6:$M$1000,$E$4,DO_HTRABAJO!$N$6:$N$1000,J$6) -> 26,751.61 | K43: =SUMIFS(IF(DO_HTRABAJO!$AB$6="MN",DO_HTRABAJO!$K$6:$K$1000,DO_HTRABAJO!$J$6:$J$1000),DO_HTRABAJO!$D$6:$D$1000,$C43,DO_HTRABAJO!$E$6:$E$1000,$D43,DO_HTRABAJO!$M$6:$M$1000,$E$4,DO_HTRABAJO!$N$6:$N$1000,K$6) -> 163,870.09 | L43: 381,243.40 | M43: =SUMIFS(IF(DO_HTRABAJO!$AB$6="MN",DO_HTRABAJO!$K$6:$K$1000,DO_HTRABAJO!$J$6:$J$1000),DO_HTRABAJO!$D$6:$D$1000,$C43,DO_HTRABAJO!$E$6:$E$1000,$D43,DO_HTRABAJO!$M$6:$M$1000,$M$4,DO_HTRABAJO!$N$6:$N$1000,M$6) -> 0 | N43: =SUMIFS(IF(DO_HTRABAJO!$AB$6="MN",DO_HTRABAJO!$K$6:$K$1000,DO_HTRABAJO!$J$6:$J$1000),DO_HTRABAJO!$D$6:$D$1000,$C43,DO_HTRABAJO!$E$6:$E$1000,$D43,DO_HTRABAJO!$M$6:$M$1000,$M$4,DO_HTRABAJO!$N$6:$N$1000,N$6) -> 41,326.21 | O43: =SUMIFS(IF(DO_HTRABAJO!$AB$6="MN",DO_HTRABAJO!$K$6:$K$1000,DO_HTRABAJO!$J$6:$J$1000),DO_HTRABAJO!$D$6:$D$1000,$C43,DO_HTRABAJO!$E$6:$E$1000,$D43,DO_HTRABAJO!$M$6:$M$1000,$M$4,DO_HTRABAJO!$N$6:$N$1000,O$6) -> 56,988.92 | P43: =SUMIFS(IF(DO_HTRABAJO!$AB$6="MN",DO_HTRABAJO!$K$6:$K$1000,DO_HTRABAJO!$J$6:$J$1000),DO_HTRABAJO!$D$6:$D$1000,$C43,DO_HTRABAJO!$E$6:$E$1000,$D43,DO_HTRABAJO!$M$6:$M$1000,$M$4,DO_HTRABAJO!$N$6:$N$1000,P$6) -> 68,966.07 | Q43: =SUMIFS(IF(DO_HTRABAJO!$AB$6="MN",DO_HTRABAJO!$K$6:$K$1000,DO_HTRABAJO!$J$6:$J$1000),DO_HTRABAJO!$D$6:$D$1000,$C43,DO_HTRABAJO!$E$6:$E$1000,$D43,DO_HTRABAJO!$M$6:$M$1000,$M$4,DO_HTRABAJO!$N$6:$N$1000,Q$6) -> 0 | R43: =SUMIFS(IF(DO_HTRABAJO!$AB$6="MN",DO_HTRABAJO!$K$6:$K$1000,DO_HTRABAJO!$J$6:$J$1000),DO_HTRABAJO!$D$6:$D$1000,$C43,DO_HTRABAJO!$E$6:$E$1000,$D43,DO_HTRABAJO!$M$6:$M$1000,$M$4,DO_HTRABAJO!$N$6:$N$1000,R$6) -> 0 | S43: =SUMIFS(IF(DO_HTRABAJO!$AB$6="MN",DO_HTRABAJO!$K$6:$K$1000,DO_HTRABAJO!$J$6:$J$1000),DO_HTRABAJO!$D$6:$D$1000,$C43,DO_HTRABAJO!$E$6:$E$1000,$D43,DO_HTRABAJO!$M$6:$M$1000,$M$4,DO_HTRABAJO!$N$6:$N$1000,S$6) -> 167,281.21 | T43: 334,562.41 | U43: 715,805.81
B44: =ROWS(B$7:B44) -> 38 | C44: =INDEX(DO_HTRABAJO!$T$6:$T$55,MATCH(B44,DO_HTRABAJO!$V$6:$V$55,0)) -> RV CONSULTORES SAC | D44: =INDEX(DO_HTRABAJO!$T$6:$U$55,MATCH($B44,DO_HTRABAJO!$V$6:$V$55,0),2) -> SECTOR ESTE | E44: =SUMIFS(IF(DO_HTRABAJO!$AB$6="MN",DO_HTRABAJO!$K$6:$K$1000,DO_HTRABAJO!$J$6:$J$1000),DO_HTRABAJO!$D$6:$D$1000,$C44,DO_HTRABAJO!$E$6:$E$1000,$D44,DO_HTRABAJO!$M$6:$M$1000,$E$4,DO_HTRABAJO!$N$6:$N$1000,E$6) -> 24,959.82 | F44: =SUMIFS(IF(DO_HTRABAJO!$AB$6="MN",DO_HTRABAJO!$K$6:$K$1000,DO_HTRABAJO!$J$6:$J$1000),DO_HTRABAJO!$D$6:$D$1000,$C44,DO_HTRABAJO!$E$6:$E$1000,$D44,DO_HTRABAJO!$M$6:$M$1000,$E$4,DO_HTRABAJO!$N$6:$N$1000,F$6) -> 0 | G44: =SUMIFS(IF(DO_HTRABAJO!$AB$6="MN",DO_HTRABAJO!$K$6:$K$1000,DO_HTRABAJO!$J$6:$J$1000),DO_HTRABAJO!$D$6:$D$1000,$C44,DO_HTRABAJO!$E$6:$E$1000,$D44,DO_HTRABAJO!$M$6:$M$1000,$E$4,DO_HTRABAJO!$N$6:$N$1000,G$6) -> 0 | H44: =SUMIFS(IF(DO_HTRABAJO!$AB$6="MN",DO_HTRABAJO!$K$6:$K$1000,DO_HTRABAJO!$J$6:$J$1000),DO_HTRABAJO!$D$6:$D$1000,$C44,DO_HTRABAJO!$E$6:$E$1000,$D44,DO_HTRABAJO!$M$6:$M$1000,$E$4,DO_HTRABAJO!$N$6:$N$1000,H$6) -> 0 | I44: =SUMIFS(IF(DO_HTRABAJO!$AB$6="MN",DO_HTRABAJO!$K$6:$K$1000,DO_HTRABAJO!$J$6:$J$1000),DO_HTRABAJO!$D$6:$D$1000,$C44,DO_HTRABAJO!$E$6:$E$1000,$D44,DO_HTRABAJO!$M$6:$M$1000,$E$4,DO_HTRABAJO!$N$6:$N$1000,I$6) -> 0 | J44: =SUMIFS(IF(DO_HTRABAJO!$AB$6="MN",DO_HTRABAJO!$K$6:$K$1000,DO_HTRABAJO!$J$6:$J$1000),DO_HTRABAJO!$D$6:$D$1000,$C44,DO_HTRABAJO!$E$6:$E$1000,$D44,DO_HTRABAJO!$M$6:$M$1000,$E$4,DO_HTRABAJO!$N$6:$N$1000,J$6) -> 0 | K44: =SUMIFS(IF(DO_HTRABAJO!$AB$6="MN",DO_HTRABAJO!$K$6:$K$1000,DO_HTRABAJO!$J$6:$J$1000),DO_HTRABAJO!$D$6:$D$1000,$C44,DO_HTRABAJO!$E$6:$E$1000,$D44,DO_HTRABAJO!$M$6:$M$1000,$E$4,DO_HTRABAJO!$N$6:$N$1000,K$6) -> 24,959.82 | L44: 49,919.64 | M44: =SUMIFS(IF(DO_HTRABAJO!$AB$6="MN",DO_HTRABAJO!$K$6:$K$1000,DO_HTRABAJO!$J$6:$J$1000),DO_HTRABAJO!$D$6:$D$1000,$C44,DO_HTRABAJO!$E$6:$E$1000,$D44,DO_HTRABAJO!$M$6:$M$1000,$M$4,DO_HTRABAJO!$N$6:$N$1000,M$6) -> 21,029.09 | N44: =SUMIFS(IF(DO_HTRABAJO!$AB$6="MN",DO_HTRABAJO!$K$6:$K$1000,DO_HTRABAJO!$J$6:$J$1000),DO_HTRABAJO!$D$6:$D$1000,$C44,DO_HTRABAJO!$E$6:$E$1000,$D44,DO_HTRABAJO!$M$6:$M$1000,$M$4,DO_HTRABAJO!$N$6:$N$1000,N$6) -> 0 | O44: =SUMIFS(IF(DO_HTRABAJO!$AB$6="MN",DO_HTRABAJO!$K$6:$K$1000,DO_HTRABAJO!$J$6:$J$1000),DO_HTRABAJO!$D$6:$D$1000,$C44,DO_HTRABAJO!$E$6:$E$1000,$D44,DO_HTRABAJO!$M$6:$M$1000,$M$4,DO_HTRABAJO!$N$6:$N$1000,O$6) -> 0 | P44: =SUMIFS(IF(DO_HTRABAJO!$AB$6="MN",DO_HTRABAJO!$K$6:$K$1000,DO_HTRABAJO!$J$6:$J$1000),DO_HTRABAJO!$D$6:$D$1000,$C44,DO_HTRABAJO!$E$6:$E$1000,$D44,DO_HTRABAJO!$M$6:$M$1000,$M$4,DO_HTRABAJO!$N$6:$N$1000,P$6) -> 83,320.11 | Q44: =SUMIFS(IF(DO_HTRABAJO!$AB$6="MN",DO_HTRABAJO!$K$6:$K$1000,DO_HTRABAJO!$J$6:$J$1000),DO_HTRABAJO!$D$6:$D$1000,$C44,DO_HTRABAJO!$E$6:$E$1000,$D44,DO_HTRABAJO!$M$6:$M$1000,$M$4,DO_HTRABAJO!$N$6:$N$1000,Q$6) -> 0 | R44: =SUMIFS(IF(DO_HTRABAJO!$AB$6="MN",DO_HTRABAJO!$K$6:$K$1000,DO_HTRABAJO!$J$6:$J$1000),DO_HTRABAJO!$D$6:$D$1000,$C44,DO_HTRABAJO!$E$6:$E$1000,$D44,DO_HTRABAJO!$M$6:$M$1000,$M$4,DO_HTRABAJO!$N$6:$N$1000,R$6) -> 0 | S44: =SUMIFS(IF(DO_HTRABAJO!$AB$6="MN",DO_HTRABAJO!$K$6:$K$1000,DO_HTRABAJO!$J$6:$J$1000),DO_HTRABAJO!$D$6:$D$1000,$C44,DO_HTRABAJO!$E$6:$E$1000,$D44,DO_HTRABAJO!$M$6:$M$1000,$M$4,DO_HTRABAJO!$N$6:$N$1000,S$6) -> 128,835.72 | T44: 233,184.92 | U44: 283,104.57
B45: =ROWS(B$7:B45) -> 39 | C45: =INDEX(DO_HTRABAJO!$T$6:$T$55,MATCH(B45,DO_HTRABAJO!$V$6:$V$55,0)) -> SALVADOR LAZO FIDEL | D45: =INDEX(DO_HTRABAJO!$T$6:$U$55,MATCH($B45,DO_HTRABAJO!$V$6:$V$55,0),2) -> SECTOR OESTE | E45: =SUMIFS(IF(DO_HTRABAJO!$AB$6="MN",DO_HTRABAJO!$K$6:$K$1000,DO_HTRABAJO!$J$6:$J$1000),DO_HTRABAJO!$D$6:$D$1000,$C45,DO_HTRABAJO!$E$6:$E$1000,$D45,DO_HTRABAJO!$M$6:$M$1000,$E$4,DO_HTRABAJO!$N$6:$N$1000,E$6) -> 25,117.89 | F45: =SUMIFS(IF(DO_HTRABAJO!$AB$6="MN",DO_HTRABAJO!$K$6:$K$1000,DO_HTRABAJO!$J$6:$J$1000),DO_HTRABAJO!$D$6:$D$1000,$C45,DO_HTRABAJO!$E$6:$E$1000,$D45,DO_HTRABAJO!$M$6:$M$1000,$E$4,DO_HTRABAJO!$N$6:$N$1000,F$6) -> 0 | G45: =SUMIFS(IF(DO_HTRABAJO!$AB$6="MN",DO_HTRABAJO!$K$6:$K$1000,DO_HTRABAJO!$J$6:$J$1000),DO_HTRABAJO!$D$6:$D$1000,$C45,DO_HTRABAJO!$E$6:$E$1000,$D45,DO_HTRABAJO!$M$6:$M$1000,$E$4,DO_HTRABAJO!$N$6:$N$1000,G$6) -> 624.22 | H45: =SUMIFS(IF(DO_HTRABAJO!$AB$6="MN",DO_HTRABAJO!$K$6:$K$1000,DO_HTRABAJO!$J$6:$J$1000),DO_HTRABAJO!$D$6:$D$1000,$C45,DO_HTRABAJO!$E$6:$E$1000,$D45,DO_HTRABAJO!$M$6:$M$1000,$E$4,DO_HTRABAJO!$N$6:$N$1000,H$6) -> 0 | I45: =SUMIFS(IF(DO_HTRABAJO!$AB$6="MN",DO_HTRABAJO!$K$6:$K$1000,DO_HTRABAJO!$J$6:$J$1000),DO_HTRABAJO!$D$6:$D$1000,$C45,DO_HTRABAJO!$E$6:$E$1000,$D45,DO_HTRABAJO!$M$6:$M$1000,$E$4,DO_HTRABAJO!$N$6:$N$1000,I$6) -> 0 | J45: =SUMIFS(IF(DO_HTRABAJO!$AB$6="MN",DO_HTRABAJO!$K$6:$K$1000,DO_HTRABAJO!$J$6:$J$1000),DO_HTRABAJO!$D$6:$D$1000,$C45,DO_HTRABAJO!$E$6:$E$1000,$D45,DO_HTRABAJO!$M$6:$M$1000,$E$4,DO_HTRABAJO!$N$6:$N$1000,J$6) -> 0 | K45: =SUMIFS(IF(DO_HTRABAJO!$AB$6="MN",DO_HTRABAJO!$K$6:$K$1000,DO_HTRABAJO!$J$6:$J$1000),DO_HTRABAJO!$D$6:$D$1000,$C45,DO_HTRABAJO!$E$6:$E$1000,$D45,DO_HTRABAJO!$M$6:$M$1000,$E$4,DO_HTRABAJO!$N$6:$N$1000,K$6) -> 0 | L45: 25,742.11 | M45: =SUMIFS(IF(DO_HTRABAJO!$AB$6="MN",DO_HTRABAJO!$K$6:$K$1000,DO_HTRABAJO!$J$6:$J$1000),DO_HTRABAJO!$D$6:$D$1000,$C45,DO_HTRABAJO!$E$6:$E$1000,$D45,DO_HTRABAJO!$M$6:$M$1000,$M$4,DO_HTRABAJO!$N$6:$N$1000,M$6) -> 0 | N45: =SUMIFS(IF(DO_HTRABAJO!$AB$6="MN",DO_HTRABAJO!$K$6:$K$1000,DO_HTRABAJO!$J$6:$J$1000),DO_HTRABAJO!$D$6:$D$1000,$C45,DO_HTRABAJO!$E$6:$E$1000,$D45,DO_HTRABAJO!$M$6:$M$1000,$M$4,DO_HTRABAJO!$N$6:$N$1000,N$6) -> 0 | O45: =SUMIFS(IF(DO_HTRABAJO!$AB$6="MN",DO_HTRABAJO!$K$6:$K$1000,DO_HTRABAJO!$J$6:$J$1000),DO_HTRABAJO!$D$6:$D$1000,$C45,DO_HTRABAJO!$E$6:$E$1000,$D45,DO_HTRABAJO!$M$6:$M$1000,$M$4,DO_HTRABAJO!$N$6:$N$1000,O$6) -> 0 | P45: =SUMIFS(IF(DO_HTRABAJO!$AB$6="MN",DO_HTRABAJO!$K$6:$K$1000,DO_HTRABAJO!$J$6:$J$1000),DO_HTRABAJO!$D$6:$D$1000,$C45,DO_HTRABAJO!$E$6:$E$1000,$D45,DO_HTRABAJO!$M$6:$M$1000,$M$4,DO_HTRABAJO!$N$6:$N$1000,P$6) -> 0 | Q45: =SUMIFS(IF(DO_HTRABAJO!$AB$6="MN",DO_HTRABAJO!$K$6:$K$1000,DO_HTRABAJO!$J$6:$J$1000),DO_HTRABAJO!$D$6:$D$1000,$C45,DO_HTRABAJO!$E$6:$E$1000,$D45,DO_HTRABAJO!$M$6:$M$1000,$M$4,DO_HTRABAJO!$N$6:$N$1000,Q$6) -> 0 | R45: =SUMIFS(IF(DO_HTRABAJO!$AB$6="MN",DO_HTRABAJO!$K$6:$K$1000,DO_HTRABAJO!$J$6:$J$1000),DO_HTRABAJO!$D$6:$D$1000,$C45,DO_HTRABAJO!$E$6:$E$1000,$D45,DO_HTRABAJO!$M$6:$M$1000,$M$4,DO_HTRABAJO!$N$6:$N$1000,R$6) -> 0 | S45: =SUMIFS(IF(DO_HTRABAJO!$AB$6="MN",DO_HTRABAJO!$K$6:$K$1000,DO_HTRABAJO!$J$6:$J$1000),DO_HTRABAJO!$D$6:$D$1000,$C45,DO_HTRABAJO!$E$6:$E$1000,$D45,DO_HTRABAJO!$M$6:$M$1000,$M$4,DO_HTRABAJO!$N$6:$N$1000,S$6) -> 0 | T45: 0 | U45: 25,742.11
B46: =ROWS(B$7:B46) -> 40 | C46: =INDEX(DO_HTRABAJO!$T$6:$T$55,MATCH(B46,DO_HTRABAJO!$V$6:$V$55,0)) -> SEGURINDUSTRIA SA | D46: =INDEX(DO_HTRABAJO!$T$6:$U$55,MATCH($B46,DO_HTRABAJO!$V$6:$V$55,0),2) -> SECTOR NORTE | E46: =SUMIFS(IF(DO_HTRABAJO!$AB$6="MN",DO_HTRABAJO!$K$6:$K$1000,DO_HTRABAJO!$J$6:$J$1000),DO_HTRABAJO!$D$6:$D$1000,$C46,DO_HTRABAJO!$E$6:$E$1000,$D46,DO_HTRABAJO!$M$6:$M$1000,$E$4,DO_HTRABAJO!$N$6:$N$1000,E$6) -> 20,058.23 | F46: =SUMIFS(IF(DO_HTRABAJO!$AB$6="MN",DO_HTRABAJO!$K$6:$K$1000,DO_HTRABAJO!$J$6:$J$1000),DO_HTRABAJO!$D$6:$D$1000,$C46,DO_HTRABAJO!$E$6:$E$1000,$D46,DO_HTRABAJO!$M$6:$M$1000,$E$4,DO_HTRABAJO!$N$6:$N$1000,F$6) -> 0 | G46: =SUMIFS(IF(DO_HTRABAJO!$AB$6="MN",DO_HTRABAJO!$K$6:$K$1000,DO_HTRABAJO!$J$6:$J$1000),DO_HTRABAJO!$D$6:$D$1000,$C46,DO_HTRABAJO!$E$6:$E$1000,$D46,DO_HTRABAJO!$M$6:$M$1000,$E$4,DO_HTRABAJO!$N$6:$N$1000,G$6) -> 20,058.23 | H46: =SUMIFS(IF(DO_HTRABAJO!$AB$6="MN",DO_HTRABAJO!$K$6:$K$1000,DO_HTRABAJO!$J$6:$J$1000),DO_HTRABAJO!$D$6:$D$1000,$C46,DO_HTRABAJO!$E$6:$E$1000,$D46,DO_HTRABAJO!$M$6:$M$1000,$E$4,DO_HTRABAJO!$N$6:$N$1000,H$6) -> 0 | I46: =SUMIFS(IF(DO_HTRABAJO!$AB$6="MN",DO_HTRABAJO!$K$6:$K$1000,DO_HTRABAJO!$J$6:$J$1000),DO_HTRABAJO!$D$6:$D$1000,$C46,DO_HTRABAJO!$E$6:$E$1000,$D46,DO_HTRABAJO!$M$6:$M$1000,$E$4,DO_HTRABAJO!$N$6:$N$1000,I$6) -> 0 | J46: =SUMIFS(IF(DO_HTRABAJO!$AB$6="MN",DO_HTRABAJO!$K$6:$K$1000,DO_HTRABAJO!$J$6:$J$1000),DO_HTRABAJO!$D$6:$D$1000,$C46,DO_HTRABAJO!$E$6:$E$1000,$D46,DO_HTRABAJO!$M$6:$M$1000,$E$4,DO_HTRABAJO!$N$6:$N$1000,J$6) -> 0 | K46: =SUMIFS(IF(DO_HTRABAJO!$AB$6="MN",DO_HTRABAJO!$K$6:$K$1000,DO_HTRABAJO!$J$6:$J$1000),DO_HTRABAJO!$D$6:$D$1000,$C46,DO_HTRABAJO!$E$6:$E$1000,$D46,DO_HTRABAJO!$M$6:$M$1000,$E$4,DO_HTRABAJO!$N$6:$N$1000,K$6) -> 0 | L46: 40,116.47 | M46: =SUMIFS(IF(DO_HTRABAJO!$AB$6="MN",DO_HTRABAJO!$K$6:$K$1000,DO_HTRABAJO!$J$6:$J$1000),DO_HTRABAJO!$D$6:$D$1000,$C46,DO_HTRABAJO!$E$6:$E$1000,$D46,DO_HTRABAJO!$M$6:$M$1000,$M$4,DO_HTRABAJO!$N$6:$N$1000,M$6) -> 0 | N46: =SUMIFS(IF(DO_HTRABAJO!$AB$6="MN",DO_HTRABAJO!$K$6:$K$1000,DO_HTRABAJO!$J$6:$J$1000),DO_HTRABAJO!$D$6:$D$1000,$C46,DO_HTRABAJO!$E$6:$E$1000,$D46,DO_HTRABAJO!$M$6:$M$1000,$M$4,DO_HTRABAJO!$N$6:$N$1000,N$6) -> 77,483.60 | O46: =SUMIFS(IF(DO_HTRABAJO!$AB$6="MN",DO_HTRABAJO!$K$6:$K$1000,DO_HTRABAJO!$J$6:$J$1000),DO_HTRABAJO!$D$6:$D$1000,$C46,DO_HTRABAJO!$E$6:$E$1000,$D46,DO_HTRABAJO!$M$6:$M$1000,$M$4,DO_HTRABAJO!$N$6:$N$1000,O$6) -> 0 | P46: =SUMIFS(IF(DO_HTRABAJO!$AB$6="MN",DO_HTRABAJO!$K$6:$K$1000,DO_HTRABAJO!$J$6:$J$1000),DO_HTRABAJO!$D$6:$D$1000,$C46,DO_HTRABAJO!$E$6:$E$1000,$D46,DO_HTRABAJO!$M$6:$M$1000,$M$4,DO_HTRABAJO!$N$6:$N$1000,P$6) -> 26,981.23 | Q46: =SUMIFS(IF(DO_HTRABAJO!$AB$6="MN",DO_HTRABAJO!$K$6:$K$1000,DO_HTRABAJO!$J$6:$J$1000),DO_HTRABAJO!$D$6:$D$1000,$C46,DO_HTRABAJO!$E$6:$E$1000,$D46,DO_HTRABAJO!$M$6:$M$1000,$M$4,DO_HTRABAJO!$N$6:$N$1000,Q$6) -> 0 | R46: =SUMIFS(IF(DO_HTRABAJO!$AB$6="MN",DO_HTRABAJO!$K$6:$K$1000,DO_HTRABAJO!$J$6:$J$1000),DO_HTRABAJO!$D$6:$D$1000,$C46,DO_HTRABAJO!$E$6:$E$1000,$D46,DO_HTRABAJO!$M$6:$M$1000,$M$4,DO_HTRABAJO!$N$6:$N$1000,R$6) -> 0 | S46: =SUMIFS(IF(DO_HTRABAJO!$AB$6="MN",DO_HTRABAJO!$K$6:$K$1000,DO_HTRABAJO!$J$6:$J$1000),DO_HTRABAJO!$D$6:$D$1000,$C46,DO_HTRABAJO!$E$6:$E$1000,$D46,DO_HTRABAJO!$M$6:$M$1000,$M$4,DO_HTRABAJO!$N$6:$N$1000,S$6) -> 237,216.28 | T46: 341,681.11 | U46: 381,797.58
B47: =ROWS(B$7:B47) -> 41 | C47: =INDEX(DO_HTRABAJO!$T$6:$T$55,MATCH(B47,DO_HTRABAJO!$V$6:$V$55,0)) -> SERVICON S.A.C. | D47: =INDEX(DO_HTRABAJO!$T$6:$U$55,MATCH($B47,DO_HTRABAJO!$V$6:$V$55,0),2) -> SECTOR CENTRO | E47: =SUMIFS(IF(DO_HTRABAJO!$AB$6="MN",DO_HTRABAJO!$K$6:$K$1000,DO_HTRABAJO!$J$6:$J$1000),DO_HTRABAJO!$D$6:$D$1000,$C47,DO_HTRABAJO!$E$6:$E$1000,$D47,DO_HTRABAJO!$M$6:$M$1000,$E$4,DO_HTRABAJO!$N$6:$N$1000,E$6) -> 60,299.38 | F47: =SUMIFS(IF(DO_HTRABAJO!$AB$6="MN",DO_HTRABAJO!$K$6:$K$1000,DO_HTRABAJO!$J$6:$J$1000),DO_HTRABAJO!$D$6:$D$1000,$C47,DO_HTRABAJO!$E$6:$E$1000,$D47,DO_HTRABAJO!$M$6:$M$1000,$E$4,DO_HTRABAJO!$N$6:$N$1000,F$6) -> 0 | G47: =SUMIFS(IF(DO_HTRABAJO!$AB$6="MN",DO_HTRABAJO!$K$6:$K$1000,DO_HTRABAJO!$J$6:$J$1000),DO_HTRABAJO!$D$6:$D$1000,$C47,DO_HTRABAJO!$E$6:$E$1000,$D47,DO_HTRABAJO!$M$6:$M$1000,$E$4,DO_HTRABAJO!$N$6:$N$1000,G$6) -> 0 | H47: =SUMIFS(IF(DO_HTRABAJO!$AB$6="MN",DO_HTRABAJO!$K$6:$K$1000,DO_HTRABAJO!$J$6:$J$1000),DO_HTRABAJO!$D$6:$D$1000,$C47,DO_HTRABAJO!$E$6:$E$1000,$D47,DO_HTRABAJO!$M$6:$M$1000,$E$4,DO_HTRABAJO!$N$6:$N$1000,H$6) -> 0 | I47: =SUMIFS(IF(DO_HTRABAJO!$AB$6="MN",DO_HTRABAJO!$K$6:$K$1000,DO_HTRABAJO!$J$6:$J$1000),DO_HTRABAJO!$D$6:$D$1000,$C47,DO_HTRABAJO!$E$6:$E$1000,$D47,DO_HTRABAJO!$M$6:$M$1000,$E$4,DO_HTRABAJO!$N$6:$N$1000,I$6) -> 0 | J47: =SUMIFS(IF(DO_HTRABAJO!$AB$6="MN",DO_HTRABAJO!$K$6:$K$1000,DO_HTRABAJO!$J$6:$J$1000),DO_HTRABAJO!$D$6:$D$1000,$C47,DO_HTRABAJO!$E$6:$E$1000,$D47,DO_HTRABAJO!$M$6:$M$1000,$E$4,DO_HTRABAJO!$N$6:$N$1000,J$6) -> 0 | K47: =SUMIFS(IF(DO_HTRABAJO!$AB$6="MN",DO_HTRABAJO!$K$6:$K$1000,DO_HTRABAJO!$J$6:$J$1000),DO_HTRABAJO!$D$6:$D$1000,$C47,DO_HTRABAJO!$E$6:$E$1000,$D47,DO_HTRABAJO!$M$6:$M$1000,$E$4,DO_HTRABAJO!$N$6:$N$1000,K$6) -> 60,299.38 | L47: 120,598.75 | M47: =SUMIFS(IF(DO_HTRABAJO!$AB$6="MN",DO_HTRABAJO!$K$6:$K$1000,DO_HTRABAJO!$J$6:$J$1000),DO_HTRABAJO!$D$6:$D$1000,$C47,DO_HTRABAJO!$E$6:$E$1000,$D47,DO_HTRABAJO!$M$6:$M$1000,$M$4,DO_HTRABAJO!$N$6:$N$1000,M$6) -> 214,073.78 | N47: =SUMIFS(IF(DO_HTRABAJO!$AB$6="MN",DO_HTRABAJO!$K$6:$K$1000,DO_HTRABAJO!$J$6:$J$1000),DO_HTRABAJO!$D$6:$D$1000,$C47,DO_HTRABAJO!$E$6:$E$1000,$D47,DO_HTRABAJO!$M$6:$M$1000,$M$4,DO_HTRABAJO!$N$6:$N$1000,N$6) -> 0 | O47: =SUMIFS(IF(DO_HTRABAJO!$AB$6="MN",DO_HTRABAJO!$K$6:$K$1000,DO_HTRABAJO!$J$6:$J$1000),DO_HTRABAJO!$D$6:$D$1000,$C47,DO_HTRABAJO!$E$6:$E$1000,$D47,DO_HTRABAJO!$M$6:$M$1000,$M$4,DO_HTRABAJO!$N$6:$N$1000,O$6) -> 0 | P47: =SUMIFS(IF(DO_HTRABAJO!$AB$6="MN",DO_HTRABAJO!$K$6:$K$1000,DO_HTRABAJO!$J$6:$J$1000),DO_HTRABAJO!$D$6:$D$1000,$C47,DO_HTRABAJO!$E$6:$E$1000,$D47,DO_HTRABAJO!$M$6:$M$1000,$M$4,DO_HTRABAJO!$N$6:$N$1000,P$6) -> 0 | Q47: =SUMIFS(IF(DO_HTRABAJO!$AB$6="MN",DO_HTRABAJO!$K$6:$K$1000,DO_HTRABAJO!$J$6:$J$1000),DO_HTRABAJO!$D$6:$D$1000,$C47,DO_HTRABAJO!$E$6:$E$1000,$D47,DO_HTRABAJO!$M$6:$M$1000,$M$4,DO_HTRABAJO!$N$6:$N$1000,Q$6) -> 113,257.83 | R47: =SUMIFS(IF(DO_HTRABAJO!$AB$6="MN",DO_HTRABAJO!$K$6:$K$1000,DO_HTRABAJO!$J$6:$J$1000),DO_HTRABAJO!$D$6:$D$1000,$C47,DO_HTRABAJO!$E$6:$E$1000,$D47,DO_HTRABAJO!$M$6:$M$1000,$M$4,DO_HTRABAJO!$N$6:$N$1000,R$6) -> 127,799.39 | S47: =SUMIFS(IF(DO_HTRABAJO!$AB$6="MN",DO_HTRABAJO!$K$6:$K$1000,DO_HTRABAJO!$J$6:$J$1000),DO_HTRABAJO!$D$6:$D$1000,$C47,DO_HTRABAJO!$E$6:$E$1000,$D47,DO_HTRABAJO!$M$6:$M$1000,$M$4,DO_HTRABAJO!$N$6:$N$1000,S$6) -> 455,131.00 | T47: 910,262.00 | U47: 1,030,860.75
B48: =ROWS(B$7:B48) -> 42 | C48: =INDEX(DO_HTRABAJO!$T$6:$T$55,MATCH(B48,DO_HTRABAJO!$V$6:$V$55,0)) -> SUCAROL E.I.R.L. | D48: =INDEX(DO_HTRABAJO!$T$6:$U$55,MATCH($B48,DO_HTRABAJO!$V$6:$V$55,0),2) -> SECTOR ESTE | E48: =SUMIFS(IF(DO_HTRABAJO!$AB$6="MN",DO_HTRABAJO!$K$6:$K$1000,DO_HTRABAJO!$J$6:$J$1000),DO_HTRABAJO!$D$6:$D$1000,$C48,DO_HTRABAJO!$E$6:$E$1000,$D48,DO_HTRABAJO!$M$6:$M$1000,$E$4,DO_HTRABAJO!$N$6:$N$1000,E$6) -> 141,152.49 | F48: =SUMIFS(IF(DO_HTRABAJO!$AB$6="MN",DO_HTRABAJO!$K$6:$K$1000,DO_HTRABAJO!$J$6:$J$1000),DO_HTRABAJO!$D$6:$D$1000,$C48,DO_HTRABAJO!$E$6:$E$1000,$D48,DO_HTRABAJO!$M$6:$M$1000,$E$4,DO_HTRABAJO!$N$6:$N$1000,F$6) -> 0 | G48: =SUMIFS(IF(DO_HTRABAJO!$AB$6="MN",DO_HTRABAJO!$K$6:$K$1000,DO_HTRABAJO!$J$6:$J$1000),DO_HTRABAJO!$D$6:$D$1000,$C48,DO_HTRABAJO!$E$6:$E$1000,$D48,DO_HTRABAJO!$M$6:$M$1000,$E$4,DO_HTRABAJO!$N$6:$N$1000,G$6) -> 5,116.07 | H48: =SUMIFS(IF(DO_HTRABAJO!$AB$6="MN",DO_HTRABAJO!$K$6:$K$1000,DO_HTRABAJO!$J$6:$J$1000),DO_HTRABAJO!$D$6:$D$1000,$C48,DO_HTRABAJO!$E$6:$E$1000,$D48,DO_HTRABAJO!$M$6:$M$1000,$E$4,DO_HTRABAJO!$N$6:$N$1000,H$6) -> 0 | I48: =SUMIFS(IF(DO_HTRABAJO!$AB$6="MN",DO_HTRABAJO!$K$6:$K$1000,DO_HTRABAJO!$J$6:$J$1000),DO_HTRABAJO!$D$6:$D$1000,$C48,DO_HTRABAJO!$E$6:$E$1000,$D48,DO_HTRABAJO!$M$6:$M$1000,$E$4,DO_HTRABAJO!$N$6:$N$1000,I$6) -> 0 | J48: =SUMIFS(IF(DO_HTRABAJO!$AB$6="MN",DO_HTRABAJO!$K$6:$K$1000,DO_HTRABAJO!$J$6:$J$1000),DO_HTRABAJO!$D$6:$D$1000,$C48,DO_HTRABAJO!$E$6:$E$1000,$D48,DO_HTRABAJO!$M$6:$M$1000,$E$4,DO_HTRABAJO!$N$6:$N$1000,J$6) -> 25,309.34 | K48: =SUMIFS(IF(DO_HTRABAJO!$AB$6="MN",DO_HTRABAJO!$K$6:$K$1000,DO_HTRABAJO!$J$6:$J$1000),DO_HTRABAJO!$D$6:$D$1000,$C48,DO_HTRABAJO!$E$6:$E$1000,$D48,DO_HTRABAJO!$M$6:$M$1000,$E$4,DO_HTRABAJO!$N$6:$N$1000,K$6) -> 110,727.08 | L48: 282,304.98 | M48: =SUMIFS(IF(DO_HTRABAJO!$AB$6="MN",DO_HTRABAJO!$K$6:$K$1000,DO_HTRABAJO!$J$6:$J$1000),DO_HTRABAJO!$D$6:$D$1000,$C48,DO_HTRABAJO!$E$6:$E$1000,$D48,DO_HTRABAJO!$M$6:$M$1000,$M$4,DO_HTRABAJO!$N$6:$N$1000,M$6) -> 0 | N48: =SUMIFS(IF(DO_HTRABAJO!$AB$6="MN",DO_HTRABAJO!$K$6:$K$1000,DO_HTRABAJO!$J$6:$J$1000),DO_HTRABAJO!$D$6:$D$1000,$C48,DO_HTRABAJO!$E$6:$E$1000,$D48,DO_HTRABAJO!$M$6:$M$1000,$M$4,DO_HTRABAJO!$N$6:$N$1000,N$6) -> 0 | O48: =SUMIFS(IF(DO_HTRABAJO!$AB$6="MN",DO_HTRABAJO!$K$6:$K$1000,DO_HTRABAJO!$J$6:$J$1000),DO_HTRABAJO!$D$6:$D$1000,$C48,DO_HTRABAJO!$E$6:$E$1000,$D48,DO_HTRABAJO!$M$6:$M$1000,$M$4,DO_HTRABAJO!$N$6:$N$1000,O$6) -> 0 | P48: =SUMIFS(IF(DO_HTRABAJO!$AB$6="MN",DO_HTRABAJO!$K$6:$K$1000,DO_HTRABAJO!$J$6:$J$1000),DO_HTRABAJO!$D$6:$D$1000,$C48,DO_HTRABAJO!$E$6:$E$1000,$D48,DO_HTRABAJO!$M$6:$M$1000,$M$4,DO_HTRABAJO!$N$6:$N$1000,P$6) -> 0 | Q48: =SUMIFS(IF(DO_HTRABAJO!$AB$6="MN",DO_HTRABAJO!$K$6:$K$1000,DO_HTRABAJO!$J$6:$J$1000),DO_HTRABAJO!$D$6:$D$1000,$C48,DO_HTRABAJO!$E$6:$E$1000,$D48,DO_HTRABAJO!$M$6:$M$1000,$M$4,DO_HTRABAJO!$N$6:$N$1000,Q$6) -> 110,524.03 | R48: =SUMIFS(IF(DO_HTRABAJO!$AB$6="MN",DO_HTRABAJO!$K$6:$K$1000,DO_HTRABAJO!$J$6:$J$1000),DO_HTRABAJO!$D$6:$D$1000,$C48,DO_HTRABAJO!$E$6:$E$1000,$D48,DO_HTRABAJO!$M$6:$M$1000,$M$4,DO_HTRABAJO!$N$6:$N$1000,R$6) -> 0 | S48: =SUMIFS(IF(DO_HTRABAJO!$AB$6="MN",DO_HTRABAJO!$K$6:$K$1000,DO_HTRABAJO!$J$6:$J$1000),DO_HTRABAJO!$D$6:$D$1000,$C48,DO_HTRABAJO!$E$6:$E$1000,$D48,DO_HTRABAJO!$M$6:$M$1000,$M$4,DO_HTRABAJO!$N$6:$N$1000,S$6) -> 110,524.03 | T48: 221,048.07 | U48: 503,353.05
B49: =ROWS(B$7:B49) -> 43 | C49: =INDEX(DO_HTRABAJO!$T$6:$T$55,MATCH(B49,DO_HTRABAJO!$V$6:$V$55,0)) -> SURTIDORES S.A.C. | D49: =INDEX(DO_HTRABAJO!$T$6:$U$55,MATCH($B49,DO_HTRABAJO!$V$6:$V$55,0),2) -> SECTOR OESTE | E49: =SUMIFS(IF(DO_HTRABAJO!$AB$6="MN",DO_HTRABAJO!$K$6:$K$1000,DO_HTRABAJO!$J$6:$J$1000),DO_HTRABAJO!$D$6:$D$1000,$C49,DO_HTRABAJO!$E$6:$E$1000,$D49,DO_HTRABAJO!$M$6:$M$1000,$E$4,DO_HTRABAJO!$N$6:$N$1000,E$6) -> 17,137.42 | F49: =SUMIFS(IF(DO_HTRABAJO!$AB$6="MN",DO_HTRABAJO!$K$6:$K$1000,DO_HTRABAJO!$J$6:$J$1000),DO_HTRABAJO!$D$6:$D$1000,$C49,DO_HTRABAJO!$E$6:$E$1000,$D49,DO_HTRABAJO!$M$6:$M$1000,$E$4,DO_HTRABAJO!$N$6:$N$1000,F$6) -> 0 | G49: =SUMIFS(IF(DO_HTRABAJO!$AB$6="MN",DO_HTRABAJO!$K$6:$K$1000,DO_HTRABAJO!$J$6:$J$1000),DO_HTRABAJO!$D$6:$D$1000,$C49,DO_HTRABAJO!$E$6:$E$1000,$D49,DO_HTRABAJO!$M$6:$M$1000,$E$4,DO_HTRABAJO!$N$6:$N$1000,G$6) -> 0 | H49: =SUMIFS(IF(DO_HTRABAJO!$AB$6="MN",DO_HTRABAJO!$K$6:$K$1000,DO_HTRABAJO!$J$6:$J$1000),DO_HTRABAJO!$D$6:$D$1000,$C49,DO_HTRABAJO!$E$6:$E$1000,$D49,DO_HTRABAJO!$M$6:$M$1000,$E$4,DO_HTRABAJO!$N$6:$N$1000,H$6) -> 0 | I49: =SUMIFS(IF(DO_HTRABAJO!$AB$6="MN",DO_HTRABAJO!$K$6:$K$1000,DO_HTRABAJO!$J$6:$J$1000),DO_HTRABAJO!$D$6:$D$1000,$C49,DO_HTRABAJO!$E$6:$E$1000,$D49,DO_HTRABAJO!$M$6:$M$1000,$E$4,DO_HTRABAJO!$N$6:$N$1000,I$6) -> 0 | J49: =SUMIFS(IF(DO_HTRABAJO!$AB$6="MN",DO_HTRABAJO!$K$6:$K$1000,DO_HTRABAJO!$J$6:$J$1000),DO_HTRABAJO!$D$6:$D$1000,$C49,DO_HTRABAJO!$E$6:$E$1000,$D49,DO_HTRABAJO!$M$6:$M$1000,$E$4,DO_HTRABAJO!$N$6:$N$1000,J$6) -> 17,137.42 | K49: =SUMIFS(IF(DO_HTRABAJO!$AB$6="MN",DO_HTRABAJO!$K$6:$K$1000,DO_HTRABAJO!$J$6:$J$1000),DO_HTRABAJO!$D$6:$D$1000,$C49,DO_HTRABAJO!$E$6:$E$1000,$D49,DO_HTRABAJO!$M$6:$M$1000,$E$4,DO_HTRABAJO!$N$6:$N$1000,K$6) -> 0 | L49: 34,274.84 | M49: =SUMIFS(IF(DO_HTRABAJO!$AB$6="MN",DO_HTRABAJO!$K$6:$K$1000,DO_HTRABAJO!$J$6:$J$1000),DO_HTRABAJO!$D$6:$D$1000,$C49,DO_HTRABAJO!$E$6:$E$1000,$D49,DO_HTRABAJO!$M$6:$M$1000,$M$4,DO_HTRABAJO!$N$6:$N$1000,M$6) -> 24,690.54 | N49: =SUMIFS(IF(DO_HTRABAJO!$AB$6="MN",DO_HTRABAJO!$K$6:$K$1000,DO_HTRABAJO!$J$6:$J$1000),DO_HTRABAJO!$D$6:$D$1000,$C49,DO_HTRABAJO!$E$6:$E$1000,$D49,DO_HTRABAJO!$M$6:$M$1000,$M$4,DO_HTRABAJO!$N$6:$N$1000,N$6) -> 0 | O49: =SUMIFS(IF(DO_HTRABAJO!$AB$6="MN",DO_HTRABAJO!$K$6:$K$1000,DO_HTRABAJO!$J$6:$J$1000),DO_HTRABAJO!$D$6:$D$1000,$C49,DO_HTRABAJO!$E$6:$E$1000,$D49,DO_HTRABAJO!$M$6:$M$1000,$M$4,DO_HTRABAJO!$N$6:$N$1000,O$6) -> 0 | P49: =SUMIFS(IF(DO_HTRABAJO!$AB$6="MN",DO_HTRABAJO!$K$6:$K$1000,DO_HTRABAJO!$J$6:$J$1000),DO_HTRABAJO!$D$6:$D$1000,$C49,DO_HTRABAJO!$E$6:$E$1000,$D49,DO_HTRABAJO!$M$6:$M$1000,$M$4,DO_HTRABAJO!$N$6:$N$1000,P$6) -> 0 | Q49: =SUMIFS(IF(DO_HTRABAJO!$AB$6="MN",DO_HTRABAJO!$K$6:$K$1000,DO_HTRABAJO!$J$6:$J$1000),DO_HTRABAJO!$D$6:$D$1000,$C49,DO_HTRABAJO!$E$6:$E$1000,$D49,DO_HTRABAJO!$M$6:$M$1000,$M$4,DO_HTRABAJO!$N$6:$N$1000,Q$6) -> 34,914.37 | R49: =SUMIFS(IF(DO_HTRABAJO!$AB$6="MN",DO_HTRABAJO!$K$6:$K$1000,DO_HTRABAJO!$J$6:$J$1000),DO_HTRABAJO!$D$6:$D$1000,$C49,DO_HTRABAJO!$E$6:$E$1000,$D49,DO_HTRABAJO!$M$6:$M$1000,$M$4,DO_HTRABAJO!$N$6:$N$1000,R$6) -> 0 | S49: =SUMIFS(IF(DO_HTRABAJO!$AB$6="MN",DO_HTRABAJO!$K$6:$K$1000,DO_HTRABAJO!$J$6:$J$1000),DO_HTRABAJO!$D$6:$D$1000,$C49,DO_HTRABAJO!$E$6:$E$1000,$D49,DO_HTRABAJO!$M$6:$M$1000,$M$4,DO_HTRABAJO!$N$6:$N$1000,S$6) -> 59,604.91 | T49: 119,209.81 | U49: 153,484.65
B50: =ROWS(B$7:B50) -> 44 | C50: =INDEX(DO_HTRABAJO!$T$6:$T$55,MATCH(B50,DO_HTRABAJO!$V$6:$V$55,0)) -> TECNO COLOR S R L | D50: =INDEX(DO_HTRABAJO!$T$6:$U$55,MATCH($B50,DO_HTRABAJO!$V$6:$V$55,0),2) -> SECTOR SUR | E50: =SUMIFS(IF(DO_HTRABAJO!$AB$6="MN",DO_HTRABAJO!$K$6:$K$1000,DO_HTRABAJO!$J$6:$J$1000),DO_HTRABAJO!$D$6:$D$1000,$C50,DO_HTRABAJO!$E$6:$E$1000,$D50,DO_HTRABAJO!$M$6:$M$1000,$E$4,DO_HTRABAJO!$N$6:$N$1000,E$6) -> 66,642.53 | F50: =SUMIFS(IF(DO_HTRABAJO!$AB$6="MN",DO_HTRABAJO!$K$6:$K$1000,DO_HTRABAJO!$J$6:$J$1000),DO_HTRABAJO!$D$6:$D$1000,$C50,DO_HTRABAJO!$E$6:$E$1000,$D50,DO_HTRABAJO!$M$6:$M$1000,$E$4,DO_HTRABAJO!$N$6:$N$1000,F$6) -> 0 | G50: =SUMIFS(IF(DO_HTRABAJO!$AB$6="MN",DO_HTRABAJO!$K$6:$K$1000,DO_HTRABAJO!$J$6:$J$1000),DO_HTRABAJO!$D$6:$D$1000,$C50,DO_HTRABAJO!$E$6:$E$1000,$D50,DO_HTRABAJO!$M$6:$M$1000,$E$4,DO_HTRABAJO!$N$6:$N$1000,G$6) -> 17,082.98 | H50: =SUMIFS(IF(DO_HTRABAJO!$AB$6="MN",DO_HTRABAJO!$K$6:$K$1000,DO_HTRABAJO!$J$6:$J$1000),DO_HTRABAJO!$D$6:$D$1000,$C50,DO_HTRABAJO!$E$6:$E$1000,$D50,DO_HTRABAJO!$M$6:$M$1000,$E$4,DO_HTRABAJO!$N$6:$N$1000,H$6) -> 16,807.00 | I50: =SUMIFS(IF(DO_HTRABAJO!$AB$6="MN",DO_HTRABAJO!$K$6:$K$1000,DO_HTRABAJO!$J$6:$J$1000),DO_HTRABAJO!$D$6:$D$1000,$C50,DO_HTRABAJO!$E$6:$E$1000,$D50,DO_HTRABAJO!$M$6:$M$1000,$E$4,DO_HTRABAJO!$N$6:$N$1000,I$6) -> 0 | J50: =SUMIFS(IF(DO_HTRABAJO!$AB$6="MN",DO_HTRABAJO!$K$6:$K$1000,DO_HTRABAJO!$J$6:$J$1000),DO_HTRABAJO!$D$6:$D$1000,$C50,DO_HTRABAJO!$E$6:$E$1000,$D50,DO_HTRABAJO!$M$6:$M$1000,$E$4,DO_HTRABAJO!$N$6:$N$1000,J$6) -> 9,018.37 | K50: =SUMIFS(IF(DO_HTRABAJO!$AB$6="MN",DO_HTRABAJO!$K$6:$K$1000,DO_HTRABAJO!$J$6:$J$1000),DO_HTRABAJO!$D$6:$D$1000,$C50,DO_HTRABAJO!$E$6:$E$1000,$D50,DO_HTRABAJO!$M$6:$M$1000,$E$4,DO_HTRABAJO!$N$6:$N$1000,K$6) -> 0 | L50: 109,550.88 | M50: =SUMIFS(IF(DO_HTRABAJO!$AB$6="MN",DO_HTRABAJO!$K$6:$K$1000,DO_HTRABAJO!$J$6:$J$1000),DO_HTRABAJO!$D$6:$D$1000,$C50,DO_HTRABAJO!$E$6:$E$1000,$D50,DO_HTRABAJO!$M$6:$M$1000,$M$4,DO_HTRABAJO!$N$6:$N$1000,M$6) -> 0 | N50: =SUMIFS(IF(DO_HTRABAJO!$AB$6="MN",DO_HTRABAJO!$K$6:$K$1000,DO_HTRABAJO!$J$6:$J$1000),DO_HTRABAJO!$D$6:$D$1000,$C50,DO_HTRABAJO!$E$6:$E$1000,$D50,DO_HTRABAJO!$M$6:$M$1000,$M$4,DO_HTRABAJO!$N$6:$N$1000,N$6) -> 0 | O50: =SUMIFS(IF(DO_HTRABAJO!$AB$6="MN",DO_HTRABAJO!$K$6:$K$1000,DO_HTRABAJO!$J$6:$J$1000),DO_HTRABAJO!$D$6:$D$1000,$C50,DO_HTRABAJO!$E$6:$E$1000,$D50,DO_HTRABAJO!$M$6:$M$1000,$M$4,DO_HTRABAJO!$N$6:$N$1000,O$6) -> 0 | P50: =SUMIFS(IF(DO_HTRABAJO!$AB$6="MN",DO_HTRABAJO!$K$6:$K$1000,DO_HTRABAJO!$J$6:$J$1000),DO_HTRABAJO!$D$6:$D$1000,$C50,DO_HTRABAJO!$E$6:$E$1000,$D50,DO_HTRABAJO!$M$6:$M$1000,$M$4,DO_HTRABAJO!$N$6:$N$1000,P$6) -> 0 | Q50: =SUMIFS(IF(DO_HTRABAJO!$AB$6="MN",DO_HTRABAJO!$K$6:$K$1000,DO_HTRABAJO!$J$6:$J$1000),DO_HTRABAJO!$D$6:$D$1000,$C50,DO_HTRABAJO!$E$6:$E$1000,$D50,DO_HTRABAJO!$M$6:$M$1000,$M$4,DO_HTRABAJO!$N$6:$N$1000,Q$6) -> 0 | R50: =SUMIFS(IF(DO_HTRABAJO!$AB$6="MN",DO_HTRABAJO!$K$6:$K$1000,DO_HTRABAJO!$J$6:$J$1000),DO_HTRABAJO!$D$6:$D$1000,$C50,DO_HTRABAJO!$E$6:$E$1000,$D50,DO_HTRABAJO!$M$6:$M$1000,$M$4,DO_HTRABAJO!$N$6:$N$1000,R$6) -> 0 | S50: =SUMIFS(IF(DO_HTRABAJO!$AB$6="MN",DO_HTRABAJO!$K$6:$K$1000,DO_HTRABAJO!$J$6:$J$1000),DO_HTRABAJO!$D$6:$D$1000,$C50,DO_HTRABAJO!$E$6:$E$1000,$D50,DO_HTRABAJO!$M$6:$M$1000,$M$4,DO_HTRABAJO!$N$6:$N$1000,S$6) -> 0 | T50: 0 | U50: 109,550.88
B51: =ROWS(B$7:B51) -> 45 | C51: =INDEX(DO_HTRABAJO!$T$6:$T$55,MATCH(B51,DO_HTRABAJO!$V$6:$V$55,0)) -> TECNO LASER S.A.C. | D51: =INDEX(DO_HTRABAJO!$T$6:$U$55,MATCH($B51,DO_HTRABAJO!$V$6:$V$55,0),2) -> SECTOR NORTE | E51: =SUMIFS(IF(DO_HTRABAJO!$AB$6="MN",DO_HTRABAJO!$K$6:$K$1000,DO_HTRABAJO!$J$6:$J$1000),DO_HTRABAJO!$D$6:$D$1000,$C51,DO_HTRABAJO!$E$6:$E$1000,$D51,DO_HTRABAJO!$M$6:$M$1000,$E$4,DO_HTRABAJO!$N$6:$N$1000,E$6) -> 65,591.34 | F51: =SUMIFS(IF(DO_HTRABAJO!$AB$6="MN",DO_HTRABAJO!$K$6:$K$1000,DO_HTRABAJO!$J$6:$J$1000),DO_HTRABAJO!$D$6:$D$1000,$C51,DO_HTRABAJO!$E$6:$E$1000,$D51,DO_HTRABAJO!$M$6:$M$1000,$E$4,DO_HTRABAJO!$N$6:$N$1000,F$6) -> 0 | G51: =SUMIFS(IF(DO_HTRABAJO!$AB$6="MN",DO_HTRABAJO!$K$6:$K$1000,DO_HTRABAJO!$J$6:$J$1000),DO_HTRABAJO!$D$6:$D$1000,$C51,DO_HTRABAJO!$E$6:$E$1000,$D51,DO_HTRABAJO!$M$6:$M$1000,$E$4,DO_HTRABAJO!$N$6:$N$1000,G$6) -> 8,005.93 | H51: =SUMIFS(IF(DO_HTRABAJO!$AB$6="MN",DO_HTRABAJO!$K$6:$K$1000,DO_HTRABAJO!$J$6:$J$1000),DO_HTRABAJO!$D$6:$D$1000,$C51,DO_HTRABAJO!$E$6:$E$1000,$D51,DO_HTRABAJO!$M$6:$M$1000,$E$4,DO_HTRABAJO!$N$6:$N$1000,H$6) -> 1,412.79 | I51: =SUMIFS(IF(DO_HTRABAJO!$AB$6="MN",DO_HTRABAJO!$K$6:$K$1000,DO_HTRABAJO!$J$6:$J$1000),DO_HTRABAJO!$D$6:$D$1000,$C51,DO_HTRABAJO!$E$6:$E$1000,$D51,DO_HTRABAJO!$M$6:$M$1000,$E$4,DO_HTRABAJO!$N$6:$N$1000,I$6) -> 0 | J51: =SUMIFS(IF(DO_HTRABAJO!$AB$6="MN",DO_HTRABAJO!$K$6:$K$1000,DO_HTRABAJO!$J$6:$J$1000),DO_HTRABAJO!$D$6:$D$1000,$C51,DO_HTRABAJO!$E$6:$E$1000,$D51,DO_HTRABAJO!$M$6:$M$1000,$E$4,DO_HTRABAJO!$N$6:$N$1000,J$6) -> 0 | K51: =SUMIFS(IF(DO_HTRABAJO!$AB$6="MN",DO_HTRABAJO!$K$6:$K$1000,DO_HTRABAJO!$J$6:$J$1000),DO_HTRABAJO!$D$6:$D$1000,$C51,DO_HTRABAJO!$E$6:$E$1000,$D51,DO_HTRABAJO!$M$6:$M$1000,$E$4,DO_HTRABAJO!$N$6:$N$1000,K$6) -> 26,250.14 | L51: 101,260.20 | M51: =SUMIFS(IF(DO_HTRABAJO!$AB$6="MN",DO_HTRABAJO!$K$6:$K$1000,DO_HTRABAJO!$J$6:$J$1000),DO_HTRABAJO!$D$6:$D$1000,$C51,DO_HTRABAJO!$E$6:$E$1000,$D51,DO_HTRABAJO!$M$6:$M$1000,$M$4,DO_HTRABAJO!$N$6:$N$1000,M$6) -> 0 | N51: =SUMIFS(IF(DO_HTRABAJO!$AB$6="MN",DO_HTRABAJO!$K$6:$K$1000,DO_HTRABAJO!$J$6:$J$1000),DO_HTRABAJO!$D$6:$D$1000,$C51,DO_HTRABAJO!$E$6:$E$1000,$D51,DO_HTRABAJO!$M$6:$M$1000,$M$4,DO_HTRABAJO!$N$6:$N$1000,N$6) -> 0 | O51: =SUMIFS(IF(DO_HTRABAJO!$AB$6="MN",DO_HTRABAJO!$K$6:$K$1000,DO_HTRABAJO!$J$6:$J$1000),DO_HTRABAJO!$D$6:$D$1000,$C51,DO_HTRABAJO!$E$6:$E$1000,$D51,DO_HTRABAJO!$M$6:$M$1000,$M$4,DO_HTRABAJO!$N$6:$N$1000,O$6) -> 0 | P51: =SUMIFS(IF(DO_HTRABAJO!$AB$6="MN",DO_HTRABAJO!$K$6:$K$1000,DO_HTRABAJO!$J$6:$J$1000),DO_HTRABAJO!$D$6:$D$1000,$C51,DO_HTRABAJO!$E$6:$E$1000,$D51,DO_HTRABAJO!$M$6:$M$1000,$M$4,DO_HTRABAJO!$N$6:$N$1000,P$6) -> 0 | Q51: =SUMIFS(IF(DO_HTRABAJO!$AB$6="MN",DO_HTRABAJO!$K$6:$K$1000,DO_HTRABAJO!$J$6:$J$1000),DO_HTRABAJO!$D$6:$D$1000,$C51,DO_HTRABAJO!$E$6:$E$1000,$D51,DO_HTRABAJO!$M$6:$M$1000,$M$4,DO_HTRABAJO!$N$6:$N$1000,Q$6) -> 0 | R51: =SUMIFS(IF(DO_HTRABAJO!$AB$6="MN",DO_HTRABAJO!$K$6:$K$1000,DO_HTRABAJO!$J$6:$J$1000),DO_HTRABAJO!$D$6:$D$1000,$C51,DO_HTRABAJO!$E$6:$E$1000,$D51,DO_HTRABAJO!$M$6:$M$1000,$M$4,DO_HTRABAJO!$N$6:$N$1000,R$6) -> 0 | S51: =SUMIFS(IF(DO_HTRABAJO!$AB$6="MN",DO_HTRABAJO!$K$6:$K$1000,DO_HTRABAJO!$J$6:$J$1000),DO_HTRABAJO!$D$6:$D$1000,$C51,DO_HTRABAJO!$E$6:$E$1000,$D51,DO_HTRABAJO!$M$6:$M$1000,$M$4,DO_HTRABAJO!$N$6:$N$1000,S$6) -> 0 | T51: 0 | U51: 101,260.20
B52: =ROWS(B$7:B52) -> 46 | C52: =INDEX(DO_HTRABAJO!$T$6:$T$55,MATCH(B52,DO_HTRABAJO!$V$6:$V$55,0)) -> TROQPA SAC | D52: =INDEX(DO_HTRABAJO!$T$6:$U$55,MATCH($B52,DO_HTRABAJO!$V$6:$V$55,0),2) -> SECTOR OESTE | E52: =SUMIFS(IF(DO_HTRABAJO!$AB$6="MN",DO_HTRABAJO!$K$6:$K$1000,DO_HTRABAJO!$J$6:$J$1000),DO_HTRABAJO!$D$6:$D$1000,$C52,DO_HTRABAJO!$E$6:$E$1000,$D52,DO_HTRABAJO!$M$6:$M$1000,$E$4,DO_HTRABAJO!$N$6:$N$1000,E$6) -> 52,215.46 | F52: =SUMIFS(IF(DO_HTRABAJO!$AB$6="MN",DO_HTRABAJO!$K$6:$K$1000,DO_HTRABAJO!$J$6:$J$1000),DO_HTRABAJO!$D$6:$D$1000,$C52,DO_HTRABAJO!$E$6:$E$1000,$D52,DO_HTRABAJO!$M$6:$M$1000,$E$4,DO_HTRABAJO!$N$6:$N$1000,F$6) -> 0 | G52: =SUMIFS(IF(DO_HTRABAJO!$AB$6="MN",DO_HTRABAJO!$K$6:$K$1000,DO_HTRABAJO!$J$6:$J$1000),DO_HTRABAJO!$D$6:$D$1000,$C52,DO_HTRABAJO!$E$6:$E$1000,$D52,DO_HTRABAJO!$M$6:$M$1000,$E$4,DO_HTRABAJO!$N$6:$N$1000,G$6) -> 0 | H52: =SUMIFS(IF(DO_HTRABAJO!$AB$6="MN",DO_HTRABAJO!$K$6:$K$1000,DO_HTRABAJO!$J$6:$J$1000),DO_HTRABAJO!$D$6:$D$1000,$C52,DO_HTRABAJO!$E$6:$E$1000,$D52,DO_HTRABAJO!$M$6:$M$1000,$E$4,DO_HTRABAJO!$N$6:$N$1000,H$6) -> 0 | I52: =SUMIFS(IF(DO_HTRABAJO!$AB$6="MN",DO_HTRABAJO!$K$6:$K$1000,DO_HTRABAJO!$J$6:$J$1000),DO_HTRABAJO!$D$6:$D$1000,$C52,DO_HTRABAJO!$E$6:$E$1000,$D52,DO_HTRABAJO!$M$6:$M$1000,$E$4,DO_HTRABAJO!$N$6:$N$1000,I$6) -> 0 | J52: =SUMIFS(IF(DO_HTRABAJO!$AB$6="MN",DO_HTRABAJO!$K$6:$K$1000,DO_HTRABAJO!$J$6:$J$1000),DO_HTRABAJO!$D$6:$D$1000,$C52,DO_HTRABAJO!$E$6:$E$1000,$D52,DO_HTRABAJO!$M$6:$M$1000,$E$4,DO_HTRABAJO!$N$6:$N$1000,J$6) -> 52,215.46 | K52: =SUMIFS(IF(DO_HTRABAJO!$AB$6="MN",DO_HTRABAJO!$K$6:$K$1000,DO_HTRABAJO!$J$6:$J$1000),DO_HTRABAJO!$D$6:$D$1000,$C52,DO_HTRABAJO!$E$6:$E$1000,$D52,DO_HTRABAJO!$M$6:$M$1000,$E$4,DO_HTRABAJO!$N$6:$N$1000,K$6) -> 0 | L52: 104,430.92 | M52: =SUMIFS(IF(DO_HTRABAJO!$AB$6="MN",DO_HTRABAJO!$K$6:$K$1000,DO_HTRABAJO!$J$6:$J$1000),DO_HTRABAJO!$D$6:$D$1000,$C52,DO_HTRABAJO!$E$6:$E$1000,$D52,DO_HTRABAJO!$M$6:$M$1000,$M$4,DO_HTRABAJO!$N$6:$N$1000,M$6) -> 133,035.86 | N52: =SUMIFS(IF(DO_HTRABAJO!$AB$6="MN",DO_HTRABAJO!$K$6:$K$1000,DO_HTRABAJO!$J$6:$J$1000),DO_HTRABAJO!$D$6:$D$1000,$C52,DO_HTRABAJO!$E$6:$E$1000,$D52,DO_HTRABAJO!$M$6:$M$1000,$M$4,DO_HTRABAJO!$N$6:$N$1000,N$6) -> 8,861.91 | O52: =SUMIFS(IF(DO_HTRABAJO!$AB$6="MN",DO_HTRABAJO!$K$6:$K$1000,DO_HTRABAJO!$J$6:$J$1000),DO_HTRABAJO!$D$6:$D$1000,$C52,DO_HTRABAJO!$E$6:$E$1000,$D52,DO_HTRABAJO!$M$6:$M$1000,$M$4,DO_HTRABAJO!$N$6:$N$1000,O$6) -> 0 | P52: =SUMIFS(IF(DO_HTRABAJO!$AB$6="MN",DO_HTRABAJO!$K$6:$K$1000,DO_HTRABAJO!$J$6:$J$1000),DO_HTRABAJO!$D$6:$D$1000,$C52,DO_HTRABAJO!$E$6:$E$1000,$D52,DO_HTRABAJO!$M$6:$M$1000,$M$4,DO_HTRABAJO!$N$6:$N$1000,P$6) -> 0 | Q52: =SUMIFS(IF(DO_HTRABAJO!$AB$6="MN",DO_HTRABAJO!$K$6:$K$1000,DO_HTRABAJO!$J$6:$J$1000),DO_HTRABAJO!$D$6:$D$1000,$C52,DO_HTRABAJO!$E$6:$E$1000,$D52,DO_HTRABAJO!$M$6:$M$1000,$M$4,DO_HTRABAJO!$N$6:$N$1000,Q$6) -> 0 | R52: =SUMIFS(IF(DO_HTRABAJO!$AB$6="MN",DO_HTRABAJO!$K$6:$K$1000,DO_HTRABAJO!$J$6:$J$1000),DO_HTRABAJO!$D$6:$D$1000,$C52,DO_HTRABAJO!$E$6:$E$1000,$D52,DO_HTRABAJO!$M$6:$M$1000,$M$4,DO_HTRABAJO!$N$6:$N$1000,R$6) -> 0 | S52: =SUMIFS(IF(DO_HTRABAJO!$AB$6="MN",DO_HTRABAJO!$K$6:$K$1000,DO_HTRABAJO!$J$6:$J$1000),DO_HTRABAJO!$D$6:$D$1000,$C52,DO_HTRABAJO!$E$6:$E$1000,$D52,DO_HTRABAJO!$M$6:$M$1000,$M$4,DO_HTRABAJO!$N$6:$N$1000,S$6) -> 141,897.77 | T52: 283,795.55 | U52: 388,226.47
B53: =ROWS(B$7:B53) -> 47 | C53: =INDEX(DO_HTRABAJO!$T$6:$T$55,MATCH(B53,DO_HTRABAJO!$V$6:$V$55,0)) -> VAMER E.I.R.L | D53: =INDEX(DO_HTRABAJO!$T$6:$U$55,MATCH($B53,DO_HTRABAJO!$V$6:$V$55,0),2) -> SECTOR SUR | E53: =SUMIFS(IF(DO_HTRABAJO!$AB$6="MN",DO_HTRABAJO!$K$6:$K$1000,DO_HTRABAJO!$J$6:$J$1000),DO_HTRABAJO!$D$6:$D$1000,$C53,DO_HTRABAJO!$E$6:$E$1000,$D53,DO_HTRABAJO!$M$6:$M$1000,$E$4,DO_HTRABAJO!$N$6:$N$1000,E$6) -> 67,087.82 | F53: =SUMIFS(IF(DO_HTRABAJO!$AB$6="MN",DO_HTRABAJO!$K$6:$K$1000,DO_HTRABAJO!$J$6:$J$1000),DO_HTRABAJO!$D$6:$D$1000,$C53,DO_HTRABAJO!$E$6:$E$1000,$D53,DO_HTRABAJO!$M$6:$M$1000,$E$4,DO_HTRABAJO!$N$6:$N$1000,F$6) -> 0 | G53: =SUMIFS(IF(DO_HTRABAJO!$AB$6="MN",DO_HTRABAJO!$K$6:$K$1000,DO_HTRABAJO!$J$6:$J$1000),DO_HTRABAJO!$D$6:$D$1000,$C53,DO_HTRABAJO!$E$6:$E$1000,$D53,DO_HTRABAJO!$M$6:$M$1000,$E$4,DO_HTRABAJO!$N$6:$N$1000,G$6) -> 0 | H53: =SUMIFS(IF(DO_HTRABAJO!$AB$6="MN",DO_HTRABAJO!$K$6:$K$1000,DO_HTRABAJO!$J$6:$J$1000),DO_HTRABAJO!$D$6:$D$1000,$C53,DO_HTRABAJO!$E$6:$E$1000,$D53,DO_HTRABAJO!$M$6:$M$1000,$E$4,DO_HTRABAJO!$N$6:$N$1000,H$6) -> 0 | I53: =SUMIFS(IF(DO_HTRABAJO!$AB$6="MN",DO_HTRABAJO!$K$6:$K$1000,DO_HTRABAJO!$J$6:$J$1000),DO_HTRABAJO!$D$6:$D$1000,$C53,DO_HTRABAJO!$E$6:$E$1000,$D53,DO_HTRABAJO!$M$6:$M$1000,$E$4,DO_HTRABAJO!$N$6:$N$1000,I$6) -> 15,557.81 | J53: =SUMIFS(IF(DO_HTRABAJO!$AB$6="MN",DO_HTRABAJO!$K$6:$K$1000,DO_HTRABAJO!$J$6:$J$1000),DO_HTRABAJO!$D$6:$D$1000,$C53,DO_HTRABAJO!$E$6:$E$1000,$D53,DO_HTRABAJO!$M$6:$M$1000,$E$4,DO_HTRABAJO!$N$6:$N$1000,J$6) -> 28,220.19 | K53: =SUMIFS(IF(DO_HTRABAJO!$AB$6="MN",DO_HTRABAJO!$K$6:$K$1000,DO_HTRABAJO!$J$6:$J$1000),DO_HTRABAJO!$D$6:$D$1000,$C53,DO_HTRABAJO!$E$6:$E$1000,$D53,DO_HTRABAJO!$M$6:$M$1000,$E$4,DO_HTRABAJO!$N$6:$N$1000,K$6) -> 23,309.81 | L53: 134,175.63 | M53: =SUMIFS(IF(DO_HTRABAJO!$AB$6="MN",DO_HTRABAJO!$K$6:$K$1000,DO_HTRABAJO!$J$6:$J$1000),DO_HTRABAJO!$D$6:$D$1000,$C53,DO_HTRABAJO!$E$6:$E$1000,$D53,DO_HTRABAJO!$M$6:$M$1000,$M$4,DO_HTRABAJO!$N$6:$N$1000,M$6) -> 108,947.23 | N53: =SUMIFS(IF(DO_HTRABAJO!$AB$6="MN",DO_HTRABAJO!$K$6:$K$1000,DO_HTRABAJO!$J$6:$J$1000),DO_HTRABAJO!$D$6:$D$1000,$C53,DO_HTRABAJO!$E$6:$E$1000,$D53,DO_HTRABAJO!$M$6:$M$1000,$M$4,DO_HTRABAJO!$N$6:$N$1000,N$6) -> 0 | O53: =SUMIFS(IF(DO_HTRABAJO!$AB$6="MN",DO_HTRABAJO!$K$6:$K$1000,DO_HTRABAJO!$J$6:$J$1000),DO_HTRABAJO!$D$6:$D$1000,$C53,DO_HTRABAJO!$E$6:$E$1000,$D53,DO_HTRABAJO!$M$6:$M$1000,$M$4,DO_HTRABAJO!$N$6:$N$1000,O$6) -> 0 | P53: =SUMIFS(IF(DO_HTRABAJO!$AB$6="MN",DO_HTRABAJO!$K$6:$K$1000,DO_HTRABAJO!$J$6:$J$1000),DO_HTRABAJO!$D$6:$D$1000,$C53,DO_HTRABAJO!$E$6:$E$1000,$D53,DO_HTRABAJO!$M$6:$M$1000,$M$4,DO_HTRABAJO!$N$6:$N$1000,P$6) -> 0 | Q53: =SUMIFS(IF(DO_HTRABAJO!$AB$6="MN",DO_HTRABAJO!$K$6:$K$1000,DO_HTRABAJO!$J$6:$J$1000),DO_HTRABAJO!$D$6:$D$1000,$C53,DO_HTRABAJO!$E$6:$E$1000,$D53,DO_HTRABAJO!$M$6:$M$1000,$M$4,DO_HTRABAJO!$N$6:$N$1000,Q$6) -> 117,625.53 | R53: =SUMIFS(IF(DO_HTRABAJO!$AB$6="MN",DO_HTRABAJO!$K$6:$K$1000,DO_HTRABAJO!$J$6:$J$1000),DO_HTRABAJO!$D$6:$D$1000,$C53,DO_HTRABAJO!$E$6:$E$1000,$D53,DO_HTRABAJO!$M$6:$M$1000,$M$4,DO_HTRABAJO!$N$6:$N$1000,R$6) -> 0 | S53: =SUMIFS(IF(DO_HTRABAJO!$AB$6="MN",DO_HTRABAJO!$K$6:$K$1000,DO_HTRABAJO!$J$6:$J$1000),DO_HTRABAJO!$D$6:$D$1000,$C53,DO_HTRABAJO!$E$6:$E$1000,$D53,DO_HTRABAJO!$M$6:$M$1000,$M$4,DO_HTRABAJO!$N$6:$N$1000,S$6) -> 226,572.76 | T53: 453,145.53 | U53: 587,321.16
B54: =ROWS(B$7:B54) -> 48 | C54: =INDEX(DO_HTRABAJO!$T$6:$T$55,MATCH(B54,DO_HTRABAJO!$V$6:$V$55,0)) -> VICKO Y CO S.A. | D54: =INDEX(DO_HTRABAJO!$T$6:$U$55,MATCH($B54,DO_HTRABAJO!$V$6:$V$55,0),2) -> SECTOR ESTE | E54: =SUMIFS(IF(DO_HTRABAJO!$AB$6="MN",DO_HTRABAJO!$K$6:$K$1000,DO_HTRABAJO!$J$6:$J$1000),DO_HTRABAJO!$D$6:$D$1000,$C54,DO_HTRABAJO!$E$6:$E$1000,$D54,DO_HTRABAJO!$M$6:$M$1000,$E$4,DO_HTRABAJO!$N$6:$N$1000,E$6) -> 28,968.42 | F54: =SUMIFS(IF(DO_HTRABAJO!$AB$6="MN",DO_HTRABAJO!$K$6:$K$1000,DO_HTRABAJO!$J$6:$J$1000),DO_HTRABAJO!$D$6:$D$1000,$C54,DO_HTRABAJO!$E$6:$E$1000,$D54,DO_HTRABAJO!$M$6:$M$1000,$E$4,DO_HTRABAJO!$N$6:$N$1000,F$6) -> 0 | G54: =SUMIFS(IF(DO_HTRABAJO!$AB$6="MN",DO_HTRABAJO!$K$6:$K$1000,DO_HTRABAJO!$J$6:$J$1000),DO_HTRABAJO!$D$6:$D$1000,$C54,DO_HTRABAJO!$E$6:$E$1000,$D54,DO_HTRABAJO!$M$6:$M$1000,$E$4,DO_HTRABAJO!$N$6:$N$1000,G$6) -> 0 | H54: =SUMIFS(IF(DO_HTRABAJO!$AB$6="MN",DO_HTRABAJO!$K$6:$K$1000,DO_HTRABAJO!$J$6:$J$1000),DO_HTRABAJO!$D$6:$D$1000,$C54,DO_HTRABAJO!$E$6:$E$1000,$D54,DO_HTRABAJO!$M$6:$M$1000,$E$4,DO_HTRABAJO!$N$6:$N$1000,H$6) -> 28,968.42 | I54: =SUMIFS(IF(DO_HTRABAJO!$AB$6="MN",DO_HTRABAJO!$K$6:$K$1000,DO_HTRABAJO!$J$6:$J$1000),DO_HTRABAJO!$D$6:$D$1000,$C54,DO_HTRABAJO!$E$6:$E$1000,$D54,DO_HTRABAJO!$M$6:$M$1000,$E$4,DO_HTRABAJO!$N$6:$N$1000,I$6) -> 0 | J54: =SUMIFS(IF(DO_HTRABAJO!$AB$6="MN",DO_HTRABAJO!$K$6:$K$1000,DO_HTRABAJO!$J$6:$J$1000),DO_HTRABAJO!$D$6:$D$1000,$C54,DO_HTRABAJO!$E$6:$E$1000,$D54,DO_HTRABAJO!$M$6:$M$1000,$E$4,DO_HTRABAJO!$N$6:$N$1000,J$6) -> 0 | K54: =SUMIFS(IF(DO_HTRABAJO!$AB$6="MN",DO_HTRABAJO!$K$6:$K$1000,DO_HTRABAJO!$J$6:$J$1000),DO_HTRABAJO!$D$6:$D$1000,$C54,DO_HTRABAJO!$E$6:$E$1000,$D54,DO_HTRABAJO!$M$6:$M$1000,$E$4,DO_HTRABAJO!$N$6:$N$1000,K$6) -> 0 | L54: 57,936.85 | M54: =SUMIFS(IF(DO_HTRABAJO!$AB$6="MN",DO_HTRABAJO!$K$6:$K$1000,DO_HTRABAJO!$J$6:$J$1000),DO_HTRABAJO!$D$6:$D$1000,$C54,DO_HTRABAJO!$E$6:$E$1000,$D54,DO_HTRABAJO!$M$6:$M$1000,$M$4,DO_HTRABAJO!$N$6:$N$1000,M$6) -> 0 | N54: =SUMIFS(IF(DO_HTRABAJO!$AB$6="MN",DO_HTRABAJO!$K$6:$K$1000,DO_HTRABAJO!$J$6:$J$1000),DO_HTRABAJO!$D$6:$D$1000,$C54,DO_HTRABAJO!$E$6:$E$1000,$D54,DO_HTRABAJO!$M$6:$M$1000,$M$4,DO_HTRABAJO!$N$6:$N$1000,N$6) -> 0 | O54: =SUMIFS(IF(DO_HTRABAJO!$AB$6="MN",DO_HTRABAJO!$K$6:$K$1000,DO_HTRABAJO!$J$6:$J$1000),DO_HTRABAJO!$D$6:$D$1000,$C54,DO_HTRABAJO!$E$6:$E$1000,$D54,DO_HTRABAJO!$M$6:$M$1000,$M$4,DO_HTRABAJO!$N$6:$N$1000,O$6) -> 0 | P54: =SUMIFS(IF(DO_HTRABAJO!$AB$6="MN",DO_HTRABAJO!$K$6:$K$1000,DO_HTRABAJO!$J$6:$J$1000),DO_HTRABAJO!$D$6:$D$1000,$C54,DO_HTRABAJO!$E$6:$E$1000,$D54,DO_HTRABAJO!$M$6:$M$1000,$M$4,DO_HTRABAJO!$N$6:$N$1000,P$6) -> 0 | Q54: =SUMIFS(IF(DO_HTRABAJO!$AB$6="MN",DO_HTRABAJO!$K$6:$K$1000,DO_HTRABAJO!$J$6:$J$1000),DO_HTRABAJO!$D$6:$D$1000,$C54,DO_HTRABAJO!$E$6:$E$1000,$D54,DO_HTRABAJO!$M$6:$M$1000,$M$4,DO_HTRABAJO!$N$6:$N$1000,Q$6) -> 0 | R54: =SUMIFS(IF(DO_HTRABAJO!$AB$6="MN",DO_HTRABAJO!$K$6:$K$1000,DO_HTRABAJO!$J$6:$J$1000),DO_HTRABAJO!$D$6:$D$1000,$C54,DO_HTRABAJO!$E$6:$E$1000,$D54,DO_HTRABAJO!$M$6:$M$1000,$M$4,DO_HTRABAJO!$N$6:$N$1000,R$6) -> 170,421.25 | S54: =SUMIFS(IF(DO_HTRABAJO!$AB$6="MN",DO_HTRABAJO!$K$6:$K$1000,DO_HTRABAJO!$J$6:$J$1000),DO_HTRABAJO!$D$6:$D$1000,$C54,DO_HTRABAJO!$E$6:$E$1000,$D54,DO_HTRABAJO!$M$6:$M$1000,$M$4,DO_HTRABAJO!$N$6:$N$1000,S$6) -> 170,421.25 | T54: 340,842.50 | U54: 398,779.35
B55: =ROWS(B$7:B55) -> 49 | C55: =INDEX(DO_HTRABAJO!$T$6:$T$55,MATCH(B55,DO_HTRABAJO!$V$6:$V$55,0)) -> VLALDO E.I.R.L. | D55: =INDEX(DO_HTRABAJO!$T$6:$U$55,MATCH($B55,DO_HTRABAJO!$V$6:$V$55,0),2) -> SECTOR ESTE | E55: =SUMIFS(IF(DO_HTRABAJO!$AB$6="MN",DO_HTRABAJO!$K$6:$K$1000,DO_HTRABAJO!$J$6:$J$1000),DO_HTRABAJO!$D$6:$D$1000,$C55,DO_HTRABAJO!$E$6:$E$1000,$D55,DO_HTRABAJO!$M$6:$M$1000,$E$4,DO_HTRABAJO!$N$6:$N$1000,E$6) -> 295,798.31 | F55: =SUMIFS(IF(DO_HTRABAJO!$AB$6="MN",DO_HTRABAJO!$K$6:$K$1000,DO_HTRABAJO!$J$6:$J$1000),DO_HTRABAJO!$D$6:$D$1000,$C55,DO_HTRABAJO!$E$6:$E$1000,$D55,DO_HTRABAJO!$M$6:$M$1000,$E$4,DO_HTRABAJO!$N$6:$N$1000,F$6) -> 0 | G55: =SUMIFS(IF(DO_HTRABAJO!$AB$6="MN",DO_HTRABAJO!$K$6:$K$1000,DO_HTRABAJO!$J$6:$J$1000),DO_HTRABAJO!$D$6:$D$1000,$C55,DO_HTRABAJO!$E$6:$E$1000,$D55,DO_HTRABAJO!$M$6:$M$1000,$E$4,DO_HTRABAJO!$N$6:$N$1000,G$6) -> 0 | H55: =SUMIFS(IF(DO_HTRABAJO!$AB$6="MN",DO_HTRABAJO!$K$6:$K$1000,DO_HTRABAJO!$J$6:$J$1000),DO_HTRABAJO!$D$6:$D$1000,$C55,DO_HTRABAJO!$E$6:$E$1000,$D55,DO_HTRABAJO!$M$6:$M$1000,$E$4,DO_HTRABAJO!$N$6:$N$1000,H$6) -> 0 | I55: =SUMIFS(IF(DO_HTRABAJO!$AB$6="MN",DO_HTRABAJO!$K$6:$K$1000,DO_HTRABAJO!$J$6:$J$1000),DO_HTRABAJO!$D$6:$D$1000,$C55,DO_HTRABAJO!$E$6:$E$1000,$D55,DO_HTRABAJO!$M$6:$M$1000,$E$4,DO_HTRABAJO!$N$6:$N$1000,I$6) -> 138,284.94 | J55: =SUMIFS(IF(DO_HTRABAJO!$AB$6="MN",DO_HTRABAJO!$K$6:$K$1000,DO_HTRABAJO!$J$6:$J$1000),DO_HTRABAJO!$D$6:$D$1000,$C55,DO_HTRABAJO!$E$6:$E$1000,$D55,DO_HTRABAJO!$M$6:$M$1000,$E$4,DO_HTRABAJO!$N$6:$N$1000,J$6) -> 139,574.05 | K55: =SUMIFS(IF(DO_HTRABAJO!$AB$6="MN",DO_HTRABAJO!$K$6:$K$1000,DO_HTRABAJO!$J$6:$J$1000),DO_HTRABAJO!$D$6:$D$1000,$C55,DO_HTRABAJO!$E$6:$E$1000,$D55,DO_HTRABAJO!$M$6:$M$1000,$E$4,DO_HTRABAJO!$N$6:$N$1000,K$6) -> 0 | L55: 573,657.30 | M55: =SUMIFS(IF(DO_HTRABAJO!$AB$6="MN",DO_HTRABAJO!$K$6:$K$1000,DO_HTRABAJO!$J$6:$J$1000),DO_HTRABAJO!$D$6:$D$1000,$C55,DO_HTRABAJO!$E$6:$E$1000,$D55,DO_HTRABAJO!$M$6:$M$1000,$M$4,DO_HTRABAJO!$N$6:$N$1000,M$6) -> 0 | N55: =SUMIFS(IF(DO_HTRABAJO!$AB$6="MN",DO_HTRABAJO!$K$6:$K$1000,DO_HTRABAJO!$J$6:$J$1000),DO_HTRABAJO!$D$6:$D$1000,$C55,DO_HTRABAJO!$E$6:$E$1000,$D55,DO_HTRABAJO!$M$6:$M$1000,$M$4,DO_HTRABAJO!$N$6:$N$1000,N$6) -> 98,850.18 | O55: =SUMIFS(IF(DO_HTRABAJO!$AB$6="MN",DO_HTRABAJO!$K$6:$K$1000,DO_HTRABAJO!$J$6:$J$1000),DO_HTRABAJO!$D$6:$D$1000,$C55,DO_HTRABAJO!$E$6:$E$1000,$D55,DO_HTRABAJO!$M$6:$M$1000,$M$4,DO_HTRABAJO!$N$6:$N$1000,O$6) -> 0 | P55: =SUMIFS(IF(DO_HTRABAJO!$AB$6="MN",DO_HTRABAJO!$K$6:$K$1000,DO_HTRABAJO!$J$6:$J$1000),DO_HTRABAJO!$D$6:$D$1000,$C55,DO_HTRABAJO!$E$6:$E$1000,$D55,DO_HTRABAJO!$M$6:$M$1000,$M$4,DO_HTRABAJO!$N$6:$N$1000,P$6) -> 0 | Q55: =SUMIFS(IF(DO_HTRABAJO!$AB$6="MN",DO_HTRABAJO!$K$6:$K$1000,DO_HTRABAJO!$J$6:$J$1000),DO_HTRABAJO!$D$6:$D$1000,$C55,DO_HTRABAJO!$E$6:$E$1000,$D55,DO_HTRABAJO!$M$6:$M$1000,$M$4,DO_HTRABAJO!$N$6:$N$1000,Q$6) -> 0 | R55: =SUMIFS(IF(DO_HTRABAJO!$AB$6="MN",DO_HTRABAJO!$K$6:$K$1000,DO_HTRABAJO!$J$6:$J$1000),DO_HTRABAJO!$D$6:$D$1000,$C55,DO_HTRABAJO!$E$6:$E$1000,$D55,DO_HTRABAJO!$M$6:$M$1000,$M$4,DO_HTRABAJO!$N$6:$N$1000,R$6) -> 0 | S55: =SUMIFS(IF(DO_HTRABAJO!$AB$6="MN",DO_HTRABAJO!$K$6:$K$1000,DO_HTRABAJO!$J$6:$J$1000),DO_HTRABAJO!$D$6:$D$1000,$C55,DO_HTRABAJO!$E$6:$E$1000,$D55,DO_HTRABAJO!$M$6:$M$1000,$M$4,DO_HTRABAJO!$N$6:$N$1000,S$6) -> 98,850.18 | T55: 197,700.36 | U55: 771,357.66
B56: =ROWS(B$7:B56) -> 50 | C56: =INDEX(DO_HTRABAJO!$T$6:$T$55,MATCH(B56,DO_HTRABAJO!$V$6:$V$55,0)) -> WIBGUS S.A.C. | D56: =INDEX(DO_HTRABAJO!$T$6:$U$55,MATCH($B56,DO_HTRABAJO!$V$6:$V$55,0),2) -> SECTOR OESTE | E56: =SUMIFS(IF(DO_HTRABAJO!$AB$6="MN",DO_HTRABAJO!$K$6:$K$1000,DO_HTRABAJO!$J$6:$J$1000),DO_HTRABAJO!$D$6:$D$1000,$C56,DO_HTRABAJO!$E$6:$E$1000,$D56,DO_HTRABAJO!$M$6:$M$1000,$E$4,DO_HTRABAJO!$N$6:$N$1000,E$6) -> 0 | F56: =SUMIFS(IF(DO_HTRABAJO!$AB$6="MN",DO_HTRABAJO!$K$6:$K$1000,DO_HTRABAJO!$J$6:$J$1000),DO_HTRABAJO!$D$6:$D$1000,$C56,DO_HTRABAJO!$E$6:$E$1000,$D56,DO_HTRABAJO!$M$6:$M$1000,$E$4,DO_HTRABAJO!$N$6:$N$1000,F$6) -> 0 | G56: =SUMIFS(IF(DO_HTRABAJO!$AB$6="MN",DO_HTRABAJO!$K$6:$K$1000,DO_HTRABAJO!$J$6:$J$1000),DO_HTRABAJO!$D$6:$D$1000,$C56,DO_HTRABAJO!$E$6:$E$1000,$D56,DO_HTRABAJO!$M$6:$M$1000,$E$4,DO_HTRABAJO!$N$6:$N$1000,G$6) -> 0 | H56: =SUMIFS(IF(DO_HTRABAJO!$AB$6="MN",DO_HTRABAJO!$K$6:$K$1000,DO_HTRABAJO!$J$6:$J$1000),DO_HTRABAJO!$D$6:$D$1000,$C56,DO_HTRABAJO!$E$6:$E$1000,$D56,DO_HTRABAJO!$M$6:$M$1000,$E$4,DO_HTRABAJO!$N$6:$N$1000,H$6) -> 0 | I56: =SUMIFS(IF(DO_HTRABAJO!$AB$6="MN",DO_HTRABAJO!$K$6:$K$1000,DO_HTRABAJO!$J$6:$J$1000),DO_HTRABAJO!$D$6:$D$1000,$C56,DO_HTRABAJO!$E$6:$E$1000,$D56,DO_HTRABAJO!$M$6:$M$1000,$E$4,DO_HTRABAJO!$N$6:$N$1000,I$6) -> 0 | J56: =SUMIFS(IF(DO_HTRABAJO!$AB$6="MN",DO_HTRABAJO!$K$6:$K$1000,DO_HTRABAJO!$J$6:$J$1000),DO_HTRABAJO!$D$6:$D$1000,$C56,DO_HTRABAJO!$E$6:$E$1000,$D56,DO_HTRABAJO!$M$6:$M$1000,$E$4,DO_HTRABAJO!$N$6:$N$1000,J$6) -> 0 | K56: =SUMIFS(IF(DO_HTRABAJO!$AB$6="MN",DO_HTRABAJO!$K$6:$K$1000,DO_HTRABAJO!$J$6:$J$1000),DO_HTRABAJO!$D$6:$D$1000,$C56,DO_HTRABAJO!$E$6:$E$1000,$D56,DO_HTRABAJO!$M$6:$M$1000,$E$4,DO_HTRABAJO!$N$6:$N$1000,K$6) -> 0 | L56: 0 | M56: =SUMIFS(IF(DO_HTRABAJO!$AB$6="MN",DO_HTRABAJO!$K$6:$K$1000,DO_HTRABAJO!$J$6:$J$1000),DO_HTRABAJO!$D$6:$D$1000,$C56,DO_HTRABAJO!$E$6:$E$1000,$D56,DO_HTRABAJO!$M$6:$M$1000,$M$4,DO_HTRABAJO!$N$6:$N$1000,M$6) -> 0 | N56: =SUMIFS(IF(DO_HTRABAJO!$AB$6="MN",DO_HTRABAJO!$K$6:$K$1000,DO_HTRABAJO!$J$6:$J$1000),DO_HTRABAJO!$D$6:$D$1000,$C56,DO_HTRABAJO!$E$6:$E$1000,$D56,DO_HTRABAJO!$M$6:$M$1000,$M$4,DO_HTRABAJO!$N$6:$N$1000,N$6) -> 16,186.14 | O56: =SUMIFS(IF(DO_HTRABAJO!$AB$6="MN",DO_HTRABAJO!$K$6:$K$1000,DO_HTRABAJO!$J$6:$J$1000),DO_HTRABAJO!$D$6:$D$1000,$C56,DO_HTRABAJO!$E$6:$E$1000,$D56,DO_HTRABAJO!$M$6:$M$1000,$M$4,DO_HTRABAJO!$N$6:$N$1000,O$6) -> 19,328.55 | P56: =SUMIFS(IF(DO_HTRABAJO!$AB$6="MN",DO_HTRABAJO!$K$6:$K$1000,DO_HTRABAJO!$J$6:$J$1000),DO_HTRABAJO!$D$6:$D$1000,$C56,DO_HTRABAJO!$E$6:$E$1000,$D56,DO_HTRABAJO!$M$6:$M$1000,$M$4,DO_HTRABAJO!$N$6:$N$1000,P$6) -> 0 | Q56: =SUMIFS(IF(DO_HTRABAJO!$AB$6="MN",DO_HTRABAJO!$K$6:$K$1000,DO_HTRABAJO!$J$6:$J$1000),DO_HTRABAJO!$D$6:$D$1000,$C56,DO_HTRABAJO!$E$6:$E$1000,$D56,DO_HTRABAJO!$M$6:$M$1000,$M$4,DO_HTRABAJO!$N$6:$N$1000,Q$6) -> 0 | R56: =SUMIFS(IF(DO_HTRABAJO!$AB$6="MN",DO_HTRABAJO!$K$6:$K$1000,DO_HTRABAJO!$J$6:$J$1000),DO_HTRABAJO!$D$6:$D$1000,$C56,DO_HTRABAJO!$E$6:$E$1000,$D56,DO_HTRABAJO!$M$6:$M$1000,$M$4,DO_HTRABAJO!$N$6:$N$1000,R$6) -> 0 | S56: =SUMIFS(IF(DO_HTRABAJO!$AB$6="MN",DO_HTRABAJO!$K$6:$K$1000,DO_HTRABAJO!$J$6:$J$1000),DO_HTRABAJO!$D$6:$D$1000,$C56,DO_HTRABAJO!$E$6:$E$1000,$D56,DO_HTRABAJO!$M$6:$M$1000,$M$4,DO_HTRABAJO!$N$6:$N$1000,S$6) -> 35,514.69 | T56: 71,029.38 | U56: 71,029.38

Sheet DATA
B1: Data • Reporte de anticuamiento de deuda
B2: MOS - CPC Martín Cruz - +51 998401784 | Excel No Convencional
B5: FECHA EMISION | C5: CUENTA | D5: CLIENTE | E5: SECTORES | F5: DOCUMENTO | G5: FECHA VCTO | H5: MONEDA | I5: MON ORIG | J5: DOLARES | K5: SOLES | L5: DIAS | M5: CONCEPTO | N5: DIAS CAL
B6: 2020-04-13 | C6: 121201 | D6: AGF VULCANO S.R.L. | E6: SECTOR CENTRO | F6: 0001-00066953 | G6: 2020-08-03 | H6: US | I6: 55,869.00 | J6: 55,869.00 | K6: 184,702.91 | L6: 76 | M6: POR COBRAR POR VENCER | N6: 90 DIAS
B7: 2019-11-18 | C7: 121201 | D7: ILOP S.A.C. | E7: SECTOR ESTE | F7: 0005-00014336 | G7: 2020-02-10 | H7: US | I7: 3,978.32 | J7: 3,978.32 | K7: 13,331.35 | L7: -99 | M7: POR COBRAR VENCIDOS | N7: > 90 DIAS
B8: 2020-01-20 | C8: 121202 | D8: QUISPE NINA AMERICO | E8: SECTOR ESTE | F8: 0005-00029241 | G8: 2020-05-25 | H8: MN | I8: 9,721.22 | J8: 2,870.16 | K8: 9,721.22 | L8: 6 | M8: POR COBRAR POR VENCER | N8: 15 DIAS
B9: 2020-05-18 | C9: 121201 | D9: GRUPO IMPORT EIRL | E9: SECTOR NORTE | F9: 0002-00094590 | G9: 2020-08-24 | H9: US | I9: 110,503.63 | J9: 110,503.63 | K9: 372,618.24 | L9: 97 | M9: POR COBRAR POR VENCER | N9: > 90 DIAS
B10: 2019-11-11 | C10: 121201 | D10: CAO JINGHUI | E10: SECTOR ESTE | F10: 0005-00026359 | G10: 2020-01-20 | H10: US | I10: 9,450.97 | J10: 9,450.97 | K10: 31,282.71 | L10: -120 | M10: POR COBRAR VENCIDOS | N10: > 90 DIAS
B11: 2019-09-02 | C11: 121201 | D11: PLASTIJHIM SRL | E11: SECTOR NORTE | F11: 0002-00005889 | G11: 2019-11-25 | H11: US | I11: 1,078.29 | J11: 1,078.29 | K11: 3,655.40 | L11: -176 | M11: POR COBRAR VENCIDOS | N11: > 90 DIAS
B12: 2020-02-17 | C12: 121202 | D12: SEGURINDUSTRIA SA | E12: SECTOR NORTE | F12: 0002-00076765 | G12: 2020-06-08 | H12: US | I12: 77,483.60 | J12: 77,483.60 | K12: 260,732.31 | L12: 20 | M12: POR COBRAR POR VENCER | N12: 30 DIAS
B13: 2020-03-09 | C13: 121201 | D13: A.C.D. S.R.L. | E13: SECTOR SUR | F13: 0003-00065086 | G13: 2020-04-20 | H13: US | I13: 143,331.65 | J13: 143,331.65 | K13: 482,454.33 | L13: -29 | M13: POR COBRAR VENCIDOS | N13: 30 DIAS
B14: 2019-12-16 | C14: 121202 | D14: J.D. PLASTIC S.A.C. | E14: SECTOR ESTE | F14: 0005-00034432 | G14: 2019-12-16 | H14: US | I14: 23,773.17 | J14: 23,773.17 | K14: 80,472.18 | L14: -155 | M14: POR COBRAR VENCIDOS | N14: > 90 DIAS
B15: 2020-04-13 | C15: 121202 | D15: ROBERCAR EIRL | E15: SECTOR OESTE | F15: 0004-00095282 | G15: 2020-06-22 | H15: US | I15: 56,988.92 | J15: 56,988.92 | K15: 190,513.96 | L15: 34 | M15: POR COBRAR POR VENCER | N15: 45 DIAS
B16: 2020-02-03 | C16: 121202 | D16: J.D. PLASTIC S.A.C. | E16: SECTOR ESTE | F16: 0005-00027432 | G16: 2020-05-25 | H16: US | I16: 9,156.17 | J16: 9,156.17 | K16: 30,471.73 | L16: 6 | M16: POR COBRAR POR VENCER | N16: 15 DIAS
B17: 2020-03-30 | C17: 121201 | D17: OTUSS S.A.C. | E17: SECTOR SUR | F17: 0003-00077988 | G17: 2020-03-30 | H17: US | I17: 86,551.31 | J17: 86,551.31 | K17: 286,831.04 | L17: -50 | M17: POR COBRAR VENCIDOS | N17: 60 DIAS
B18: 2020-03-23 | C18: 121201 | D18: WIBGUS S.A.C. | E18: SECTOR OESTE | F18: 0004-00062991 | G18: 2020-06-15 | H18: MN | I18: 53,851.30 | J18: 16,186.14 | K18: 53,851.30 | L18: 27 | M18: POR COBRAR POR VENCER | N18: 30 DIAS
B19: 2020-02-24 | C19: 121201 | D19: QUIMENSA EIRL | E19: SECTOR NORTE | F19: 0002-00044780 | G19: 2020-02-24 | H19: US | I19: 25,630.63 | J19: 25,630.63 | K19: 86,093.29 | L19: -85 | M19: POR COBRAR VENCIDOS | N19: 90 DIAS
B20: 2020-05-04 | C20: 121201 | D20: PENTAGRAF S.A.C. | E20: SECTOR SUR | F20: 0003-00069319 | G20: 2020-08-24 | H20: US | I20: 121,575.07 | J20: 121,575.07 | K20: 410,315.86 | L20: 97 | M20: POR COBRAR POR VENCER | N20: > 90 DIAS
B21: 2020-04-06 | C21: 121202 | D21: AGF VULCANO S.R.L. | E21: SECTOR OESTE | F21: 0004-00053884 | G21: 2020-06-15 | H21: MN | I21: 25,127.38 | J21: 7,552.56 | K21: 25,127.38 | L21: 27 | M21: POR COBRAR POR VENCER | N21: 30 DIAS
B22: 2019-12-02 | C22: 121201 | D22: 3E SERVICIOS S.A.C. | E22: SECTOR NORTE | F22: 0002-00032972 | G22: 2020-02-10 | H22: MN | I22: 24,800.42 | J22: 7,497.10 | K22: 24,800.42 | L22: -99 | M22: POR COBRAR VENCIDOS | N22: > 90 DIAS
B23: 2020-04-20 | C23: 121201 | D23: CALIGAS S.R.L. | E23: SECTOR OESTE | F23: 0004-00071756 | G23: 2020-07-13 | H23: MN | I23: 118,378.26 | J23: 34,961.09 | K23: 118,378.26 | L23: 55 | M23: POR COBRAR POR VENCER | N23: 60 DIAS
B24: 2020-05-11 | C24: 121201 | D24: OMNITEC S.R.L. | E24: SECTOR OESTE | F24: 0004-00062498 | G24: 2020-08-17 | H24: US | I24: 88,928.46 | J24: 88,928.46 | K24: 301,111.77 | L24: 90 | M24: POR COBRAR POR VENCER | N24: 90 DIAS
B25: 2019-10-14 | C25: 121202 | D25: PLASTIJHIM SRL | E25: SECTOR SUR | F25: 0003-00005996 | G25: 2020-02-17 | H25: US | I25: 6,511.61 | J25: 6,511.61 | K25: 21,957.15 | L25: -92 | M25: POR COBRAR VENCIDOS | N25: > 90 DIAS
B26: 2020-05-25 | C26: 121202 | D26: RV CONSULTORES SAC | E26: SECTOR ESTE | F26: 0005-00058159 | G26: 2020-09-14 | H26: MN | I26: 23,546.61 | J26: 7,075.30 | K26: 23,546.61 | L26: 118 | M26: POR COBRAR POR VENCER | N26: > 90 DIAS
B27: 2020-04-27 | C27: 121202 | D27: CONDORCO S.R.L. | E27: SECTOR ESTE | F27: 0005-00083091 | G27: 2020-06-22 | H27: MN | I27: 112,995.75 | J27: 33,332.08 | K27: 112,995.75 | L27: 34 | M27: POR COBRAR POR VENCER | N27: 45 DIAS
B28: 2020-03-30 | C28: 121202 | D28: VICKO Y CO S.A. | E28: SECTOR ESTE | F28: 0005-00063540 | G28: 2020-08-03 | H28: MN | I28: 112,795.31 | J28: 34,005.22 | K28: 112,795.31 | L28: 76 | M28: POR COBRAR POR VENCER | N28: 90 DIAS
B29: 2020-05-04 | C29: 121201 | D29: AGF VULCANO S.R.L. | E29: SECTOR ESTE | F29: 0005-00057478 | G29: 2020-06-29 | H29: US | I29: 28,058.25 | J29: 28,058.25 | K29: 93,939.02 | L29: 41 | M29: POR COBRAR POR VENCER | N29: 45 DIAS
B30: 2020-03-09 | C30: 121201 | D30: PENTAGRAF S.A.C. | E30: SECTOR SUR | F30: 0003-00059495 | G30: 2020-06-01 | H30: US | I30: 15,545.53 | J30: 15,545.53 | K30: 52,606.07 | L30: 13 | M30: POR COBRAR POR VENCER | N30: 15 DIAS
B31: 2020-04-13 | C31: 121202 | D31: CALIGAS S.R.L. | E31: SECTOR SUR | F31: 0003-00072522 | G31: 2020-08-03 | H31: MN | I31: 110,583.27 | J31: 32,833.51 | K31: 110,583.27 | L31: 76 | M31: POR COBRAR POR VENCER | N31: 90 DIAS
B32: 2020-02-03 | C32: 121202 | D32: DR GAS S.A.C. | E32: SECTOR OESTE | F32: 0004-00024806 | G32: 2020-03-02 | H32: US | I32: 1,440.74 | J32: 1,440.74 | K32: 4,897.08 | L32: -78 | M32: POR COBRAR VENCIDOS | N32: 90 DIAS
B33: 2019-09-09 | C33: 121202 | D33: PLASTIJHIM SRL | E33: SECTOR NORTE | F33: 0002-00008918 | G33: 2019-09-09 | H33: US | I33: 2,213.74 | J33: 2,213.74 | K33: 7,418.24 | L33: -253 | M33: POR COBRAR VENCIDOS | N33: > 90 DIAS
B34: 2019-09-09 | C34: 121202 | D34: PLASTIJHIM SRL | E34: SECTOR SUR | F34: 0003-00008599 | G34: 2019-09-23 | H34: US | I34: 2,869.79 | J34: 2,869.79 | K34: 9,671.19 | L34: -239 | M34: POR COBRAR VENCIDOS | N34: > 90 DIAS
B35: 2020-03-16 | C35: 121201 | D35: PENTAGRAF S.A.C. | E35: SECTOR ESTE | F35: 0005-00056150 | G35: 2020-06-08 | H35: MN | I35: 26,865.38 | J35: 8,043.53 | K35: 26,865.38 | L35: 20 | M35: POR COBRAR POR VENCER | N35: 30 DIAS
B36: 2020-05-04 | C36: 121202 | D36: CALIGAS S.R.L. | E36: SECTOR ESTE | F36: 0005-00079026 | G36: 2020-07-27 | H36: US | I36: 102,578.40 | J36: 102,578.40 | K36: 339,842.24 | L36: 69 | M36: POR COBRAR POR VENCER | N36: 75 DIAS
B37: 2020-01-27 | C37: 121202 | D37: CYPRESS PERU S.A.C. | E37: SECTOR OESTE | F37: 0004-00026534 | G37: 2020-03-23 | H37: US | I37: 4,454.39 | J37: 4,454.39 | K37: 14,957.84 | L37: -57 | M37: POR COBRAR VENCIDOS | N37: 60 DIAS
B38: 2019-11-18 | C38: 121202 | D38: CAO JINGHUI | E38: SECTOR OESTE | F38: 0004-00039449 | G38: 2020-02-10 | H38: MN | I38: 24,805.15 | J38: 7,433.37 | K38: 24,805.15 | L38: -99 | M38: POR COBRAR VENCIDOS | N38: > 90 DIAS
B39: 2020-01-13 | C39: 121202 | D39: ARPE EIRL | E39: SECTOR OESTE | F39: 0004-00013036 | G39: 2020-04-20 | H39: US | I39: 12,515.81 | J39: 12,515.81 | K39: 42,178.28 | L39: -29 | M39: POR COBRAR VENCIDOS | N39: 30 DIAS
B40: 2020-03-02 | C40: 121201 | D40: DIMACAR S.A.C. | E40: SECTOR ESTE | F40: 0005-00072964 | G40: 2020-03-16 | H40: MN | I40: 126,080.00 | J40: 37,953.04 | K40: 126,080.00 | L40: -64 | M40: POR COBRAR VENCIDOS | N40: 75 DIAS
B41: 2020-04-20 | C41: 121202 | D41: CINSA E.I.R.L | E41: SECTOR SUR | F41: 0003-00041735 | G41: 2020-07-27 | H41: US | I41: 17,661.69 | J41: 17,661.69 | K41: 59,025.37 | L41: 69 | M41: POR COBRAR POR VENCER | N41: 75 DIAS
B42: 2020-03-30 | C42: 121201 | D42: OMNITEC S.R.L. | E42: SECTOR ESTE | F42: 0005-00047342 | G42: 2020-06-08 | H42: MN | I42: 19,857.23 | J42: 5,880.14 | K42: 19,857.23 | L42: 20 | M42: POR COBRAR POR VENCER | N42: 30 DIAS
B43: 2019-10-07 | C43: 121202 | D43: ASTRIB S.A.C. | E43: SECTOR NORTE | F43: 0002-00002853 | G43: 2019-11-18 | H43: MN | I43: 1,760.71 | J43: 527.32 | K43: 1,760.71 | L43: -183 | M43: POR COBRAR VENCIDOS | N43: > 90 DIAS
B44: 2019-09-30 | C44: 121202 | D44: C. CHINININ S.A.C. | E44: SECTOR NORTE | F44: 0002-00002834 | G44: 2019-11-11 | H44: US | I44: 10,434.63 | J44: 10,434.63 | K44: 34,789.06 | L44: -190 | M44: POR COBRAR VENCIDOS | N44: > 90 DIAS
B45: 2020-05-04 | C45: 121202 | D45: OTUSS S.A.C. | E45: SECTOR SUR | F45: 0003-00083351 | G45: 2020-09-07 | H45: MN | I45: 126,196.33 | J45: 37,160.29 | K45: 126,196.33 | L45: 111 | M45: POR COBRAR POR VENCER | N45: > 90 DIAS
B46: 2020-03-02 | C46: 121202 | D46: ROBERCAR EIRL | E46: SECTOR SUR | F46: 0003-00065155 | G46: 2020-06-22 | H46: MN | I46: 52,805.96 | J46: 15,781.82 | K46: 52,805.96 | L46: 34 | M46: POR COBRAR POR VENCER | N46: 45 DIAS
B47: 2020-04-20 | C47: 121202 | D47: QUIMENSA EIRL | E47: SECTOR NORTE | F47: 0002-00052531 | G47: 2020-07-13 | H47: MN | I47: 17,039.23 | J47: 5,038.21 | K47: 17,039.23 | L47: 55 | M47: POR COBRAR POR VENCER | N47: 60 DIAS
B48: 2019-11-11 | C48: 121202 | D48: ILOP S.A.C. | E48: SECTOR SUR | F48: 0003-00014863 | G48: 2020-03-16 | H48: US | I48: 1,563.97 | J48: 1,563.97 | K48: 5,233.04 | L48: -64 | M48: POR COBRAR VENCIDOS | N48: 75 DIAS
B49: 2020-05-11 | C49: 121202 | D49: GRUPO IMPORT EIRL | E49: SECTOR CENTRO | F49: 0001-00068670 | G49: 2020-08-03 | H49: MN | I49: 140,182.85 | J49: 41,498.77 | K49: 140,182.85 | L49: 76 | M49: POR COBRAR POR VENCER | N49: 90 DIAS
B50: 2020-03-16 | C50: 121201 | D50: INGEMEC PERU SAC | E50: SECTOR NORTE | F50: 0002-00058166 | G50: 2020-06-22 | H50: US | I50: 26,967.57 | J50: 26,967.57 | K50: 89,963.81 | L50: 34 | M50: POR COBRAR POR VENCER | N50: 45 DIAS
B51: 2020-04-06 | C51: 121202 | D51: OMNITEC S.R.L. | E51: SECTOR OESTE | F51: 0004-00059301 | G51: 2020-06-15 | H51: US | I51: 16,025.65 | J51: 16,025.65 | K51: 53,397.47 | L51: 27 | M51: POR COBRAR POR VENCER | N51: 30 DIAS
B52: 2020-05-04 | C52: 121201 | D52: INGEMEC PERU SAC | E52: SECTOR ESTE | F52: 0005-00071631 | G52: 2020-05-18 | H52: US | I52: 77,220.60 | J52: 77,220.60 | K52: 262,550.04 | L52: -1 | M52: POR COBRAR VENCIDOS | N52: 15 DIAS
B53: 2019-10-14 | C53: 121202 | D53: C. CHINININ S.A.C. | E53: SECTOR SUR | F53: 0003-00002769 | G53: 2020-02-03 | H53: US | I53: 757.70 | J53: 757.70 | K53: 2,549.66 | L53: -106 | M53: POR COBRAR VENCIDOS | N53: > 90 DIAS
B54: 2020-05-18 | C54: 121202 | D54: A.C.D. S.R.L. | E54: SECTOR CENTRO | F54: 0001-00066579 | G54: 2020-07-13 | H54: US | I54: 88,227.54 | J54: 88,227.54 | K54: 292,033.16 | L54: 55 | M54: POR COBRAR POR VENCER | N54: 60 DIAS
B55: 2020-01-13 | C55: 121202 | D55: LA BRETAÐA S.A.C. | E55: SECTOR NORTE | F55: 0002-00014140 | G55: 2020-01-27 | H55: MN | I55: 1,021.36 | J55: 305.70 | K55: 1,021.36 | L55: -113 | M55: POR COBRAR VENCIDOS | N55: > 90 DIAS
B56: 2020-03-02 | C56: 121202 | D56: CONDORCO S.R.L. | E56: SECTOR OESTE | F56: 0004-00057532 | G56: 2020-07-06 | H56: US | I56: 23,617.26 | J56: 23,617.26 | K56: 79,141.44 | L56: 48 | M56: POR COBRAR POR VENCER | N56: 60 DIAS
B57: 2020-04-13 | C57: 121202 | D57: CONDORCO S.R.L. | E57: SECTOR NORTE | F57: 0002-00061846 | G57: 2020-06-08 | H57: US | I57: 136,711.81 | J57: 136,711.81 | K57: 457,574.43 | L57: 20 | M57: POR COBRAR POR VENCER | N57: 30 DIAS
B58: 2020-02-24 | C58: 121202 | D58: ROBERCAR EIRL | E58: SECTOR NORTE | F58: 0002-00074940 | G58: 2020-06-29 | H58: US | I58: 106,715.54 | J58: 106,715.54 | K58: 357,497.06 | L58: 41 | M58: POR COBRAR POR VENCER | N58: 45 DIAS
B59: 2020-05-11 | C59: 121201 | D59: AGF VULCANO S.R.L. | E59: SECTOR SUR | F59: 0003-00095175 | G59: 2020-07-20 | H59: US | I59: 59,212.61 | J59: 59,212.61 | K59: 198,835.94 | L59: 62 | M59: POR COBRAR POR VENCER | N59: 75 DIAS
B60: 2020-02-10 | C60: 121202 | D60: CHINANGO S.A.C. | E60: SECTOR NORTE | F60: 0002-00017687 | G60: 2020-06-15 | H60: US | I60: 1,075.64 | J60: 1,075.64 | K60: 3,594.79 | L60: 27 | M60: POR COBRAR POR VENCER | N60: 30 DIAS
B61: 2020-01-13 | C61: 121202 | D61: QUISPE NINA AMERICO | E61: SECTOR ESTE | F61: 0005-00033842 | G61: 2020-05-04 | H61: US | I61: 16,271.77 | J61: 16,271.77 | K61: 54,396.53 | L61: -15 | M61: POR COBRAR VENCIDOS | N61: 15 DIAS
B62: 2020-04-13 | C62: 121202 | D62: KOZUMI PERU S.A. | E62: SECTOR OESTE | F62: 0004-00059266 | G62: 2020-08-17 | H62: US | I62: 15,446.33 | J62: 15,446.33 | K62: 52,131.36 | L62: 90 | M62: POR COBRAR POR VENCER | N62: 90 DIAS
B63: 2020-04-27 | C63: 121202 | D63: RV CONSULTORES SAC | E63: SECTOR OESTE | F63: 0004-00073674 | G63: 2020-08-17 | H63: US | I63: 139,071.76 | J63: 139,071.76 | K63: 472,148.63 | L63: 90 | M63: POR COBRAR POR VENCER | N63: 90 DIAS
B64: 2019-08-26 | C64: 121202 | D64: PLASTIJHIM SRL | E64: SECTOR SUR | F64: 0003-00005271 | G64: 2019-10-07 | H64: MN | I64: 5,422.72 | J64: 1,596.33 | K64: 5,422.72 | L64: -225 | M64: POR COBRAR VENCIDOS | N64: > 90 DIAS
B65: 2020-03-09 | C65: 121201 | D65: VICKO Y CO S.A. | E65: SECTOR CENTRO | F65: 0001-00070575 | G65: 2020-06-15 | H65: US | I65: 68,585.77 | J65: 68,585.77 | K65: 229,968.09 | L65: 27 | M65: POR COBRAR POR VENCER | N65: 30 DIAS
B66: 2019-12-30 | C66: 121201 | D66: DR GAS S.A.C. | E66: SECTOR OESTE | F66: 0004-00022269 | G66: 2020-05-04 | H66: MN | I66: 14,488.72 | J66: 4,334.05 | K66: 14,488.72 | L66: -15 | M66: POR COBRAR VENCIDOS | N66: 15 DIAS
B67: 2020-02-10 | C67: 121202 | D67: LIDER GRAFICO SRL | E67: SECTOR ESTE | F67: 0005-00012629 | G67: 2020-06-01 | H67: US | I67: 8,125.70 | J67: 8,125.70 | K67: 27,351.11 | L67: 13 | M67: POR COBRAR POR VENCER | N67: 15 DIAS
B68: 2020-03-02 | C68: 121202 | D68: LA GRANJITA E.I.R.L | E68: SECTOR ESTE | F68: 0005-00045300 | G68: 2020-06-22 | H68: MN | I68: 24,231.94 | J68: 7,127.04 | K68: 24,231.94 | L68: 34 | M68: POR COBRAR POR VENCER | N68: 45 DIAS
B69: 2020-01-06 | C69: 121202 | D69: TECNO COLOR S R L | E69: SECTOR SUR | F69: 0003-00036078 | G69: 2020-03-30 | H69: US | I69: 16,807.00 | J69: 16,807.00 | K69: 56,622.78 | L69: -50 | M69: POR COBRAR VENCIDOS | N69: 60 DIAS
B70: 2020-01-13 | C70: 121202 | D70: TECNO LASER S.A.C. | E70: SECTOR NORTE | F70: 0002-00028227 | G70: 2020-03-23 | H70: MN | I70: 4,711.64 | J70: 1,412.79 | K70: 4,711.64 | L70: -57 | M70: POR COBRAR VENCIDOS | N70: 60 DIAS
B71: 2020-04-27 | C71: 121202 | D71: A.C.D. S.R.L. | E71: SECTOR OESTE | F71: 0004-00075490 | G71: 2020-08-17 | H71: US | I71: 123,924.93 | J71: 123,924.93 | K71: 421,344.76 | L71: 90 | M71: POR COBRAR POR VENCER | N71: 90 DIAS
B72: 2019-12-02 | C72: 121202 | D72: TECNO LASER S.A.C. | E72: SECTOR ESTE | F72: 0005-00031520 | G72: 2020-03-23 | H72: MN | I72: 22,066.34 | J72: 6,575.19 | K72: 22,066.34 | L72: -57 | M72: POR COBRAR VENCIDOS | N72: 60 DIAS
B73: 2020-05-18 | C73: 121202 | D73: CINSA E.I.R.L | E73: SECTOR NORTE | F73: 0002-00054658 | G73: 2020-06-29 | H73: MN | I73: 21,403.89 | J73: 6,472.30 | K73: 21,403.89 | L73: 41 | M73: POR COBRAR POR VENCER | N73: 45 DIAS
B74: 2019-09-16 | C74: 121202 | D74: FIDUCIARIA GBC S.A. | E74: SECTOR NORTE | F74: 0002-00000088 | G74: 2019-10-28 | H74: MN | I74: 8,874.09 | J74: 2,680.18 | K74: 8,874.09 | L74: -204 | M74: POR COBRAR VENCIDOS | N74: > 90 DIAS
B75: 2019-12-02 | C75: 121202 | D75: ARPE EIRL | E75: SECTOR ESTE | F75: 0005-00031568 | G75: 2020-02-10 | H75: US | I75: 22,707.77 | J75: 22,707.77 | K75: 76,593.31 | L75: -99 | M75: POR COBRAR VENCIDOS | N75: > 90 DIAS
B76: 2020-04-20 | C76: 121202 | D76: VICKO Y CO S.A. | E76: SECTOR OESTE | F76: 0004-00066692 | G76: 2020-08-24 | H76: MN | I76: 148,478.25 | J76: 44,938.94 | K76: 148,478.25 | L76: 97 | M76: POR COBRAR POR VENCER | N76: > 90 DIAS
B77: 2020-03-23 | C77: 121201 | D77: AGF VULCANO S.R.L. | E77: SECTOR ESTE | F77: 0005-00099861 | G77: 2020-04-06 | H77: US | I77: 114,070.54 | J77: 114,070.54 | K77: 378,942.33 | L77: -43 | M77: POR COBRAR VENCIDOS | N77: 45 DIAS
B78: 2020-05-18 | C78: 121201 | D78: CINSA E.I.R.L | E78: SECTOR NORTE | F78: 0002-00088720 | G78: 2020-05-18 | H78: US | I78: 131,655.28 | J78: 131,655.28 | K78: 441,045.19 | L78: -1 | M78: POR COBRAR VENCIDOS | N78: 15 DIAS
B79: 2019-12-02 | C79: 121202 | D79: LA BRETAÐA S.A.C. | E79: SECTOR NORTE | F79: 0002-00013165 | G79: 2020-01-13 | H79: US | I79: 8,946.64 | J79: 8,946.64 | K79: 30,159.12 | L79: -127 | M79: POR COBRAR VENCIDOS | N79: > 90 DIAS
B80: 2019-12-02 | C80: 121201 | D80: TECNO LASER S.A.C. | E80: SECTOR ESTE | F80: 0005-00029300 | G80: 2019-12-30 | H80: MN | I80: 2,792.69 | J80: 825.02 | K80: 2,792.69 | L80: -141 | M80: POR COBRAR VENCIDOS | N80: > 90 DIAS
B81: 2020-01-27 | C81: 121201 | D81: CAO JINGHUI | E81: SECTOR NORTE | F81: 0002-00019205 | G81: 2020-03-09 | H81: MN | I81: 7,662.44 | J81: 2,307.96 | K81: 7,662.44 | L81: -71 | M81: POR COBRAR VENCIDOS | N81: 75 DIAS
B82: 2019-12-02 | C82: 121201 | D82: QUISPE NINA AMERICO | E82: SECTOR OESTE | F82: 0004-00013054 | G82: 2020-02-10 | H82: US | I82: 6,702.84 | J82: 6,702.84 | K82: 22,394.19 | L82: -99 | M82: POR COBRAR VENCIDOS | N82: > 90 DIAS
B83: 2019-08-12 | C83: 121202 | D83: FIDUCIARIA GBC S.A. | E83: SECTOR SUR | F83: 0003-00000625 | G83: 2019-12-16 | H83: US | I83: 13,620.78 | J83: 13,620.78 | K83: 45,670.48 | L83: -155 | M83: POR COBRAR VENCIDOS | N83: > 90 DIAS
B84: 2019-12-16 | C84: 121201 | D84: TECNO COLOR S R L | E84: SECTOR ESTE | F84: 0005-00025586 | G84: 2020-01-27 | H84: MN | I84: 1,914.96 | J84: 575.24 | K84: 1,914.96 | L84: -113 | M84: POR COBRAR VENCIDOS | N84: > 90 DIAS
B85: 2019-12-23 | C85: 121202 | D85: TECNO COLOR S R L | E85: SECTOR ESTE | F85: 0005-00015072 | G85: 2020-03-30 | H85: US | I85: 12,444.34 | J85: 12,444.34 | K85: 41,178.32 | L85: -50 | M85: POR COBRAR VENCIDOS | N85: 60 DIAS
B86: 2020-05-04 | C86: 121202 | D86: L & C SERVIS EIRL | E86: SECTOR OESTE | F86: 0004-00049670 | G86: 2020-08-10 | H86: US | I86: 20,418.67 | J86: 20,418.67 | K86: 68,443.38 | L86: 83 | M86: POR COBRAR POR VENCER | N86: 90 DIAS
B87: 2020-04-27 | C87: 121202 | D87: L & C SERVIS EIRL | E87: SECTOR NORTE | F87: 0002-00095685 | G87: 2020-06-08 | H87: US | I87: 61,523.08 | J87: 61,523.08 | K87: 206,348.41 | L87: 20 | M87: POR COBRAR POR VENCER | N87: 30 DIAS
B88: 2020-01-27 | C88: 121202 | D88: DR GAS S.A.C. | E88: SECTOR OESTE | F88: 0004-00034121 | G88: 2020-01-27 | H88: US | I88: 28,202.66 | J88: 28,202.66 | K88: 95,240.38 | L88: -113 | M88: POR COBRAR VENCIDOS | N88: > 90 DIAS
B89: 2020-01-13 | C89: 121202 | D89: 3E SERVICIOS S.A.C. | E89: SECTOR OESTE | F89: 0004-00018465 | G89: 2020-02-10 | H89: US | I89: 6,881.25 | J89: 6,881.25 | K89: 23,148.53 | L89: -99 | M89: POR COBRAR VENCIDOS | N89: > 90 DIAS
B90: 2020-05-04 | C90: 121202 | D90: OMNITEC S.R.L. | E90: SECTOR ESTE | F90: 0005-00090014 | G90: 2020-08-10 | H90: US | I90: 52,779.92 | J90: 52,779.92 | K90: 178,765.59 | L90: 83 | M90: POR COBRAR POR VENCER | N90: 90 DIAS
B91: 2020-01-06 | C91: 121201 | D91: ARPE EIRL | E91: SECTOR SUR | F91: 0003-00026322 | G91: 2020-05-11 | H91: MN | I91: 13,067.18 | J91: 3,906.48 | K91: 13,067.18 | L91: -8 | M91: POR COBRAR VENCIDOS | N91: 15 DIAS
B92: 2019-11-25 | C92: 121201 | D92: DR GAS S.A.C. | E92: SECTOR SUR | F92: 0003-00030813 | G92: 2020-02-17 | H92: US | I92: 28,903.81 | J92: 28,903.81 | K92: 95,498.19 | L92: -92 | M92: POR COBRAR VENCIDOS | N92: > 90 DIAS
B93: 2020-02-10 | C93: 121202 | D93: LARCO PETS EIRL | E93: SECTOR SUR | F93: 0003-00083660 | G93: 2020-06-15 | H93: MN | I93: 53,791.11 | J93: 15,938.11 | K93: 53,791.11 | L93: 27 | M93: POR COBRAR POR VENCER | N93: 30 DIAS
B94: 2020-01-20 | C94: 121201 | D94: ILOP S.A.C. | E94: SECTOR ESTE | F94: 0005-00030204 | G94: 2020-03-02 | H94: US | I94: 22,306.29 | J94: 22,306.29 | K94: 73,967.66 | L94: -78 | M94: POR COBRAR VENCIDOS | N94: 90 DIAS
B95: 2020-04-27 | C95: 121202 | D95: DIMACAR S.A.C. | E95: SECTOR SUR | F95: 0003-00090267 | G95: 2020-06-22 | H95: US | I95: 74,994.91 | J95: 74,994.91 | K95: 251,457.93 | L95: 34 | M95: POR COBRAR POR VENCER | N95: 45 DIAS
B96: 2020-03-23 | C96: 121202 | D96: EL REPOSTERO SAC | E96: SECTOR NORTE | F96: 0002-00090964 | G96: 2020-06-15 | H96: MN | I96: 75,943.78 | J96: 22,488.53 | K96: 75,943.78 | L96: 27 | M96: POR COBRAR POR VENCER | N96: 30 DIAS
B97: 2020-03-09 | C97: 121201 | D97: TROQPA SAC | E97: SECTOR OESTE | F97: 0004-00084305 | G97: 2020-04-20 | H97: US | I97: 52,215.46 | J97: 52,215.46 | K97: 173,459.76 | L97: -29 | M97: POR COBRAR VENCIDOS | N97: 30 DIAS
B98: 2020-03-02 | C98: 121201 | D98: CINSA E.I.R.L | E98: SECTOR OESTE | F98: 0004-00061075 | G98: 2020-06-08 | H98: MN | I98: 127,528.35 | J98: 37,864.71 | K98: 127,528.35 | L98: 20 | M98: POR COBRAR POR VENCER | N98: 30 DIAS
B99: 2020-02-03 | C99: 121201 | D99: CHINANGO S.A.C. | E99: SECTOR SUR | F99: 0003-00038887 | G99: 2020-02-03 | H99: US | I99: 25,385.80 | J99: 25,385.80 | K99: 83,900.07 | L99: -106 | M99: POR COBRAR VENCIDOS | N99: > 90 DIAS
B100: 2019-12-30 | C100: 121202 | D100: ILOP S.A.C. | E100: SECTOR NORTE | F100: 0002-00032814 | G100: 2020-03-23 | H100: MN | I100: 16,267.44 | J100: 4,807.16 | K100: 16,267.44 | L100: -57 | M100: POR COBRAR VENCIDOS | N100: 60 DIAS
B101: 2020-04-06 | C101: 121202 | D101: SEGURINDUSTRIA SA | E101: SECTOR CENTRO | F101: 0001-00090798 | G101: 2020-07-13 | H101: MN | I101: 70,271.33 | J101: 21,108.84 | K101: 70,271.33 | L101: 55 | M101: POR COBRAR POR VENCER | N101: 60 DIAS
B102: 2020-02-24 | C102: 121202 | D102: A.C.D. S.R.L. | E102: SECTOR CENTRO | F102: 0001-00068603 | G102: 2020-02-24 | H102: US | I102: 87,794.66 | J102: 87,794.66 | K102: 290,688.12 | L102: -85 | M102: POR COBRAR VENCIDOS | N102: 90 DIAS
B103: 2020-03-16 | C103: 121202 | D103: VICKO Y CO S.A. | E103: SECTOR SUR | F103: 0003-00042125 | G103: 2020-06-08 | H103: US | I103: 22,800.03 | J103: 22,800.03 | K103: 77,406.10 | L103: 20 | M103: POR COBRAR POR VENCER | N103: 30 DIAS
B104: 2020-04-06 | C104: 121202 | D104: TROQPA SAC | E104: SECTOR OESTE | F104: 0004-00049883 | G104: 2020-06-15 | H104: MN | I104: 29,811.48 | J104: 8,861.91 | K104: 29,811.48 | L104: 27 | M104: POR COBRAR POR VENCER | N104: 30 DIAS
B105: 2019-08-12 | C105: 121201 | D105: GAS ANTONIO'S SAC | E105: SECTOR SUR | F105: 0003-00005277 | G105: 2019-09-09 | H105: US | I105: 5,717.55 | J105: 5,717.55 | K105: 19,090.90 | L105: -253 | M105: POR COBRAR VENCIDOS | N105: > 90 DIAS
B106: 2020-02-10 | C106: 121202 | D106: CAO JINGHUI | E106: SECTOR OESTE | F106: 0004-00016581 | G106: 2020-05-18 | H106: MN | I106: 7,750.05 | J106: 2,316.91 | K106: 7,750.05 | L106: -1 | M106: POR COBRAR VENCIDOS | N106: 15 DIAS
B107: 2020-01-13 | C107: 121202 | D107: TECNO LASER S.A.C. | E107: SECTOR OESTE | F107: 0004-00029302 | G107: 2020-04-06 | H107: MN | I107: 7,007.19 | J107: 2,094.83 | K107: 7,007.19 | L107: -43 | M107: POR COBRAR VENCIDOS | N107: 45 DIAS
B108: 2020-03-16 | C108: 121202 | D108: TROQPA SAC | E108: SECTOR SUR | F108: 0003-00056796 | G108: 2020-03-30 | H108: US | I108: 27,565.13 | J108: 27,565.13 | K108: 91,433.54 | L108: -50 | M108: POR COBRAR VENCIDOS | N108: 60 DIAS
B109: 2020-05-04 | C109: 121202 | D109: DIMACAR S.A.C. | E109: SECTOR NORTE | F109: 0002-00046378 | G109: 2020-08-10 | H109: MN | I109: 24,074.74 | J109: 7,216.65 | K109: 24,074.74 | L109: 83 | M109: POR COBRAR POR VENCER | N109: 90 DIAS
B110: 2020-02-17 | C110: 121202 | D110: ROBERCAR EIRL | E110: SECTOR CENTRO | F110: 0001-00052130 | G110: 2020-06-22 | H110: US | I110: 25,841.51 | J110: 25,841.51 | K110: 85,897.18 | L110: 34 | M110: POR COBRAR POR VENCER | N110: 45 DIAS
B111: 2020-04-13 | C111: 121202 | D111: JHOSBET E.I.R.L. | E111: SECTOR ESTE | F111: 0005-00051116 | G111: 2020-07-06 | H111: US | I111: 20,006.90 | J111: 20,006.90 | K111: 66,642.98 | L111: 48 | M111: POR COBRAR POR VENCER | N111: 60 DIAS
B112: 2020-03-16 | C112: 121201 | D112: CONDORCO S.R.L. | E112: SECTOR OESTE | F112: 0004-00085094 | G112: 2020-06-22 | H112: US | I112: 93,914.78 | J112: 93,914.78 | K112: 317,431.96 | L112: 34 | M112: POR COBRAR POR VENCER | N112: 45 DIAS
B113: 2019-11-18 | C113: 121201 | D113: LA BRETAÐA S.A.C. | E113: SECTOR OESTE | F113: 0004-00032456 | G113: 2019-12-30 | H113: US | I113: 25,829.13 | J113: 25,829.13 | K113: 87,509.09 | L113: -141 | M113: POR COBRAR VENCIDOS | N113: > 90 DIAS
B114: 2019-11-18 | C114: 121202 | D114: LA BRETAÐA S.A.C. | E114: SECTOR ESTE | F114: 0005-00023400 | G114: 2020-03-23 | H114: MN | I114: 13,942.75 | J114: 4,208.50 | K114: 13,942.75 | L114: -57 | M114: POR COBRAR VENCIDOS | N114: 60 DIAS
B115: 2019-11-04 | C115: 121202 | D115: 3E SERVICIOS S.A.C. | E115: SECTOR OESTE | F115: 0004-00016001 | G115: 2020-02-24 | H115: MN | I115: 5,029.34 | J115: 1,507.14 | K115: 5,029.34 | L115: -85 | M115: POR COBRAR VENCIDOS | N115: 90 DIAS
B116: 2019-12-09 | C116: 121201 | D116: ARPE EIRL | E116: SECTOR NORTE | F116: 0002-00016932 | G116: 2020-01-06 | H116: MN | I116: 14,871.28 | J116: 4,452.48 | K116: 14,871.28 | L116: -134 | M116: POR COBRAR VENCIDOS | N116: > 90 DIAS
B117: 2020-02-17 | C117: 121201 | D117: JHOSBET E.I.R.L. | E117: SECTOR OESTE | F117: 0004-00087010 | G117: 2020-04-13 | H117: US | I117: 134,927.75 | J117: 134,927.75 | K117: 445,261.58 | L117: -36 | M117: POR COBRAR VENCIDOS | N117: 45 DIAS
B118: 2020-05-18 | C118: 121202 | D118: RV CONSULTORES SAC | E118: SECTOR ESTE | F118: 0005-00059924 | G118: 2020-09-21 | H118: US | I118: 17,411.22 | J118: 17,411.22 | K118: 58,397.23 | L118: 125 | M118: POR COBRAR POR VENCER | N118: > 90 DIAS
B119: 2020-04-13 | C119: 121202 | D119: VICKO Y CO S.A. | E119: SECTOR NORTE | F119: 0002-00053174 | G119: 2020-06-08 | H119: US | I119: 20,204.10 | J119: 20,204.10 | K119: 66,835.16 | L119: 20 | M119: POR COBRAR POR VENCER | N119: 30 DIAS
B120: 2020-03-16 | C120: 121202 | D120: EL REPOSTERO SAC | E120: SECTOR ESTE | F120: 0005-00086867 | G120: 2020-03-16 | H120: MN | I120: 71,824.37 | J120: 21,692.65 | K120: 71,824.37 | L120: -64 | M120: POR COBRAR VENCIDOS | N120: 75 DIAS
B121: 2020-01-13 | C121: 121202 | D121: TECNO COLOR S R L | E121: SECTOR SUR | F121: 0003-00013010 | G121: 2020-04-20 | H121: US | I121: 9,018.37 | J121: 9,018.37 | K121: 30,328.78 | L121: -29 | M121: POR COBRAR VENCIDOS | N121: 30 DIAS
B122: 2020-03-23 | C122: 121201 | D122: CALIGAS S.R.L. | E122: SECTOR NORTE | F122: 0002-00096498 | G122: 2020-04-06 | H122: US | I122: 51,984.97 | J122: 51,984.97 | K122: 175,137.36 | L122: -43 | M122: POR COBRAR VENCIDOS | N122: 45 DIAS
B123: 2019-12-09 | C123: 121201 | D123: TECNO COLOR S R L | E123: SECTOR ESTE | F123: 0005-00022178 | G123: 2020-01-20 | H123: US | I123: 14,070.67 | J123: 14,070.67 | K123: 46,658.34 | L123: -120 | M123: POR COBRAR VENCIDOS | N123: > 90 DIAS
B124: 2020-03-16 | C124: 121202 | D124: VAMER E.I.R.L | E124: SECTOR SUR | F124: 0003-00043443 | G124: 2020-05-11 | H124: MN | I124: 23,584.37 | J124: 7,031.71 | K124: 23,584.37 | L124: -8 | M124: POR COBRAR VENCIDOS | N124: 15 DIAS
B125: 2020-02-24 | C125: 121202 | D125: VLALDO E.I.R.L. | E125: SECTOR ESTE | F125: 0005-00086756 | G125: 2020-06-15 | H125: US | I125: 98,850.18 | J125: 98,850.18 | K125: 329,072.25 | L125: 27 | M125: POR COBRAR POR VENCER | N125: 30 DIAS
B126: 2020-04-06 | C126: 121201 | D126: LARCO PETS EIRL | E126: SECTOR ESTE | F126: 0005-00093588 | G126: 2020-04-06 | H126: US | I126: 57,155.17 | J126: 57,155.17 | K126: 191,698.44 | L126: -43 | M126: POR COBRAR VENCIDOS | N126: 45 DIAS
B127: 2019-09-16 | C127: 121202 | D127: GAS ANTONIO'S SAC | E127: SECTOR SUR | F127: 0003-00003361 | G127: 2019-10-14 | H127: US | I127: 1,206.71 | J127: 1,206.71 | K127: 3,993.00 | L127: -218 | M127: POR COBRAR VENCIDOS | N127: > 90 DIAS
B128: 2020-04-27 | C128: 121201 | D128: PENTAGRAF S.A.C. | E128: SECTOR OESTE | F128: 0004-00053665 | G128: 2020-06-22 | H128: US | I128: 26,067.18 | J128: 26,067.18 | K128: 86,960.11 | L128: 34 | M128: POR COBRAR POR VENCER | N128: 45 DIAS
B129: 2019-09-02 | C129: 121202 | D129: ASTRIB S.A.C. | E129: SECTOR SUR | F129: 0003-00006414 | G129: 2019-11-25 | H129: US | I129: 9,814.52 | J129: 9,814.52 | K129: 32,996.42 | L129: -176 | M129: POR COBRAR VENCIDOS | N129: > 90 DIAS
B130: 2020-02-17 | C130: 121202 | D130: VICKO Y CO S.A. | E130: SECTOR CENTRO | F130: 0001-00068423 | G130: 2020-02-17 | H130: US | I130: 86,767.96 | J130: 86,767.96 | K130: 293,449.24 | L130: -92 | M130: POR COBRAR VENCIDOS | N130: > 90 DIAS
B131: 2020-03-09 | C131: 121201 | D131: INGEMEC PERU SAC | E131: SECTOR NORTE | F131: 0002-00075145 | G131: 2020-05-18 | H131: MN | I131: 86,697.11 | J131: 26,035.17 | K131: 86,697.11 | L131: -1 | M131: POR COBRAR VENCIDOS | N131: 15 DIAS
B132: 2020-05-11 | C132: 121202 | D132: SERVICON S.A.C. | E132: SECTOR CENTRO | F132: 0001-00091941 | G132: 2020-05-11 | H132: US | I132: 51,375.08 | J132: 51,375.08 | K132: 172,312.02 | L132: -8 | M132: POR COBRAR VENCIDOS | N132: 15 DIAS
B133: 2020-03-09 | C133: 121202 | D133: RV CONSULTORES SAC | E133: SECTOR ESTE | F133: 0005-00087495 | G133: 2020-05-04 | H133: MN | I133: 83,865.00 | J133: 24,959.82 | K133: 83,865.00 | L133: -15 | M133: POR COBRAR VENCIDOS | N133: 15 DIAS
B134: 2020-02-17 | C134: 121201 | D134: OMNITEC S.R.L. | E134: SECTOR CENTRO | F134: 0001-00096666 | G134: 2020-04-13 | H134: US | I134: 61,816.10 | J134: 61,816.10 | K134: 204,425.84 | L134: -36 | M134: POR COBRAR VENCIDOS | N134: 45 DIAS
B135: 2019-12-23 | C135: 121201 | D135: DR GAS S.A.C. | E135: SECTOR OESTE | F135: 0004-00024432 | G135: 2020-03-16 | H135: MN | I135: 3,966.36 | J135: 1,191.46 | K135: 3,966.36 | L135: -64 | M135: POR COBRAR VENCIDOS | N135: 75 DIAS
B136: 2020-04-20 | C136: 121202 | D136: L & C SERVIS EIRL | E136: SECTOR NORTE | F136: 0002-00072547 | G136: 2020-07-27 | H136: US | I136: 96,101.70 | J136: 96,101.70 | K136: 317,423.92 | L136: 69 | M136: POR COBRAR POR VENCER | N136: 75 DIAS
B137: 2020-05-11 | C137: 121202 | D137: QUIMENSA EIRL | E137: SECTOR CENTRO | F137: 0001-00067703 | G137: 2020-07-20 | H137: US | I137: 97,512.22 | J137: 97,512.22 | K137: 330,371.40 | L137: 62 | M137: POR COBRAR POR VENCER | N137: 75 DIAS
B138: 2020-01-13 | C138: 121201 | D138: J.D. PLASTIC S.A.C. | E138: SECTOR OESTE | F138: 0004-00027403 | G138: 2020-01-27 | H138: US | I138: 5,556.47 | J138: 5,556.47 | K138: 18,347.46 | L138: -113 | M138: POR COBRAR VENCIDOS | N138: > 90 DIAS
B139: 2020-03-16 | C139: 121201 | D139: INGEMEC PERU SAC | E139: SECTOR ESTE | F139: 0005-00041768 | G139: 2020-05-11 | H139: US | I139: 25,340.46 | J139: 25,340.46 | K139: 84,865.20 | L139: -8 | M139: POR COBRAR VENCIDOS | N139: 15 DIAS
B140: 2020-01-20 | C140: 121202 | D140: CHINANGO S.A.C. | E140: SECTOR OESTE | F140: 0004-00030738 | G140: 2020-02-03 | H140: MN | I140: 16,590.19 | J140: 4,905.44 | K140: 16,590.19 | L140: -106 | M140: POR COBRAR VENCIDOS | N140: > 90 DIAS
B141: 2020-03-23 | C141: 121202 | D141: CALIGAS S.R.L. | E141: SECTOR SUR | F141: 0003-00071429 | G141: 2020-07-27 | H141: MN | I141: 98,062.38 | J141: 29,141.87 | K141: 98,062.38 | L141: 69 | M141: POR COBRAR POR VENCER | N141: 75 DIAS
B142: 2020-03-09 | C142: 121201 | D142: OMNITEC S.R.L. | E142: SECTOR OESTE | F142: 0004-00061849 | G142: 2020-06-29 | H142: MN | I142: 108,809.54 | J142: 32,695.17 | K142: 108,809.54 | L142: 41 | M142: POR COBRAR POR VENCER | N142: 45 DIAS
B143: 2020-03-09 | C143: 121202 | D143: VAMER E.I.R.L | E143: SECTOR SUR | F143: 0003-00089757 | G143: 2020-04-06 | H143: MN | I143: 52,367.60 | J143: 15,557.81 | K143: 52,367.60 | L143: -43 | M143: POR COBRAR VENCIDOS | N143: 45 DIAS
B144: 2019-11-04 | C144: 121201 | D144: ASTRIB S.A.C. | E144: SECTOR SUR | F144: 0003-00008527 | G144: 2020-01-27 | H144: MN | I144: 1,444.82 | J144: 429.62 | K144: 1,444.82 | L144: -113 | M144: POR COBRAR VENCIDOS | N144: > 90 DIAS
B145: 2020-03-02 | C145: 121201 | D145: LARCO PETS EIRL | E145: SECTOR OESTE | F145: 0004-00073672 | G145: 2020-03-16 | H145: MN | I145: 64,581.81 | J145: 19,101.39 | K145: 64,581.81 | L145: -64 | M145: POR COBRAR VENCIDOS | N145: 75 DIAS
B146: 2020-05-18 | C146: 121202 | D146: LARCO PETS EIRL | E146: SECTOR CENTRO | F146: 0001-00059791 | G146: 2020-08-10 | H146: MN | I146: 24,329.68 | J146: 7,223.78 | K146: 24,329.68 | L146: 83 | M146: POR COBRAR POR VENCER | N146: 90 DIAS
B147: 2019-12-16 | C147: 121201 | D147: TECNO LASER S.A.C. | E147: SECTOR ESTE | F147: 0005-00021439 | G147: 2020-04-20 | H147: MN | I147: 5,849.75 | J147: 1,748.80 | K147: 5,849.75 | L147: -29 | M147: POR COBRAR VENCIDOS | N147: 30 DIAS
B148: 2020-04-13 | C148: 121202 | D148: RV CONSULTORES SAC | E148: SECTOR SUR | F148: 0003-00087992 | G148: 2020-08-17 | H148: MN | I148: 73,542.55 | J148: 21,966.11 | K148: 73,542.55 | L148: 90 | M148: POR COBRAR POR VENCER | N148: 90 DIAS
B149: 2020-03-23 | C149: 121202 | D149: OTUSS S.A.C. | E149: SECTOR SUR | F149: 0003-00056462 | G149: 2020-07-27 | H149: US | I149: 27,022.67 | J149: 27,022.67 | K149: 91,552.81 | L149: 69 | M149: POR COBRAR POR VENCER | N149: 75 DIAS
B150: 2020-05-11 | C150: 121201 | D150: TROQPA SAC | E150: SECTOR ESTE | F150: 0005-00088069 | G150: 2020-05-25 | H150: MN | I150: 142,357.29 | J150: 42,507.40 | K150: 142,357.29 | L150: 6 | M150: POR COBRAR POR VENCER | N150: 15 DIAS
B151: 2020-04-20 | C151: 121201 | D151: VICKO Y CO S.A. | E151: SECTOR NORTE | F151: 0002-00082361 | G151: 2020-06-01 | H151: US | I151: 55,010.02 | J151: 55,010.02 | K151: 186,979.06 | L151: 13 | M151: POR COBRAR POR VENCER | N151: 15 DIAS
B152: 2020-05-18 | C152: 121202 | D152: A.C.D. S.R.L. | E152: SECTOR CENTRO | F152: 0001-00096269 | G152: 2020-09-07 | H152: US | I152: 58,080.37 | J152: 58,080.37 | K152: 196,776.29 | L152: 111 | M152: POR COBRAR POR VENCER | N152: > 90 DIAS
B153: 2020-05-18 | C153: 121201 | D153: CALIGAS S.R.L. | E153: SECTOR CENTRO | F153: 0001-00055810 | G153: 2020-09-21 | H153: US | I153: 19,805.46 | J153: 19,805.46 | K153: 65,417.43 | L153: 125 | M153: POR COBRAR POR VENCER | N153: > 90 DIAS
B154: 2020-02-24 | C154: 121201 | D154: OMNITEC S.R.L. | E154: SECTOR NORTE | F154: 0002-00097309 | G154: 2020-06-29 | H154: US | I154: 56,430.12 | J154: 56,430.12 | K154: 188,645.89 | L154: 41 | M154: POR COBRAR POR VENCER | N154: 45 DIAS
B155: 2020-04-06 | C155: 121202 | D155: LA GRANJITA E.I.R.L | E155: SECTOR NORTE | F155: 0002-00074579 | G155: 2020-07-27 | H155: US | I155: 119,599.47 | J155: 119,599.47 | K155: 397,668.24 | L155: 69 | M155: POR COBRAR POR VENCER | N155: 75 DIAS
B156: 2019-12-16 | C156: 121202 | D156: CHINANGO S.A.C. | E156: SECTOR OESTE | F156: 0004-00023040 | G156: 2020-01-13 | H156: MN | I156: 12,966.26 | J156: 3,832.77 | K156: 12,966.26 | L156: -127 | M156: POR COBRAR VENCIDOS | N156: > 90 DIAS
B157: 2020-03-23 | C157: 121202 | D157: AGRO SELECTO S.A.C. | E157: SECTOR NORTE | F157: 0002-00059577 | G157: 2020-06-01 | H157: US | I157: 27,212.85 | J157: 27,212.85 | K157: 89,829.62 | L157: 13 | M157: POR COBRAR POR VENCER | N157: 15 DIAS
B158: 2020-03-30 | C158: 121201 | D158: SEGURINDUSTRIA SA | E158: SECTOR CENTRO | F158: 0001-00044792 | G158: 2020-08-03 | H158: US | I158: 28,355.68 | J158: 28,355.68 | K158: 95,190.02 | L158: 76 | M158: POR COBRAR POR VENCER | N158: 90 DIAS
B159: 2020-03-09 | C159: 121201 | D159: OTUSS S.A.C. | E159: SECTOR NORTE | F159: 0002-00098054 | G159: 2020-05-04 | H159: MN | I159: 87,960.75 | J159: 26,116.61 | K159: 87,960.75 | L159: -15 | M159: POR COBRAR VENCIDOS | N159: 15 DIAS
B160: 2019-11-25 | C160: 121202 | D160: TECNO COLOR S R L | E160: SECTOR NORTE | F160: 0002-00019931 | G160: 2020-03-16 | H160: MN | I160: 4,417.55 | J160: 1,333.80 | K160: 4,417.55 | L160: -64 | M160: POR COBRAR VENCIDOS | N160: 75 DIAS
B161: 2020-01-27 | C161: 121202 | D161: ILOP S.A.C. | E161: SECTOR SUR | F161: 0003-00026849 | G161: 2020-04-20 | H161: US | I161: 4,645.78 | J161: 4,645.78 | K161: 15,679.51 | L161: -29 | M161: POR COBRAR VENCIDOS | N161: 30 DIAS
B162: 2020-02-17 | C162: 121202 | D162: VAMER E.I.R.L | E162: SECTOR ESTE | F162: 0005-00052311 | G162: 2020-06-08 | H162: MN | I162: 20,682.73 | J162: 6,101.10 | K162: 20,682.73 | L162: 20 | M162: POR COBRAR POR VENCER | N162: 30 DIAS
B163: 2019-08-19 | C163: 121201 | D163: GAS ANTONIO'S SAC | E163: SECTOR NORTE | F163: 0002-00008967 | G163: 2019-11-25 | H163: US | I163: 12,202.73 | J163: 12,202.73 | K163: 41,123.20 | L163: -176 | M163: POR COBRAR VENCIDOS | N163: > 90 DIAS
B164: 2020-03-09 | C164: 121202 | D164: CINSA E.I.R.L | E164: SECTOR CENTRO | F164: 0001-00084618 | G164: 2020-04-20 | H164: US | I164: 90,720.80 | J164: 90,720.80 | K164: 307,452.79 | L164: -29 | M164: POR COBRAR VENCIDOS | N164: 30 DIAS
B165: 2020-03-30 | C165: 121202 | D165: LARCO PETS EIRL | E165: SECTOR NORTE | F165: 0002-00058876 | G165: 2020-04-13 | H165: US | I165: 29,568.45 | J165: 29,568.45 | K165: 99,054.31 | L165: -36 | M165: POR COBRAR VENCIDOS | N165: 45 DIAS
B166: 2020-05-04 | C166: 121201 | D166: QUIMENSA EIRL | E166: SECTOR SUR | F166: 0003-00040520 | G166: 2020-07-27 | H166: MN | I166: 26,883.87 | J166: 8,104.87 | K166: 26,883.87 | L166: 69 | M166: POR COBRAR POR VENCER | N166: 75 DIAS
B167: 2020-02-24 | C167: 121202 | D167: AGRO SELECTO S.A.C. | E167: SECTOR NORTE | F167: 0002-00093149 | G167: 2020-03-09 | H167: MN | I167: 122,326.28 | J167: 36,515.31 | K167: 122,326.28 | L167: -71 | M167: POR COBRAR VENCIDOS | N167: 75 DIAS
B168: 2020-02-17 | C168: 121202 | D168: KOZUMI PERU S.A. | E168: SECTOR OESTE | F168: 0004-00072923 | G168: 2020-03-02 | H168: US | I168: 107,182.62 | J168: 107,182.62 | K168: 364,420.91 | L168: -78 | M168: POR COBRAR VENCIDOS | N168: 90 DIAS
B169: 2020-03-23 | C169: 121202 | D169: VLALDO E.I.R.L. | E169: SECTOR ESTE | F169: 0005-00079207 | G169: 2020-04-20 | H169: US | I169: 139,574.05 | J169: 139,574.05 | K169: 473,714.33 | L169: -29 | M169: POR COBRAR VENCIDOS | N169: 30 DIAS
B170: 2020-01-13 | C170: 121202 | D170: CAO JINGHUI | E170: SECTOR SUR | F170: 0003-00037495 | G170: 2020-01-27 | H170: US | I170: 20,967.12 | J170: 20,967.12 | K170: 69,443.10 | L170: -113 | M170: POR COBRAR VENCIDOS | N170: > 90 DIAS
B171: 2020-02-10 | C171: 121202 | D171: CAO JINGHUI | E171: SECTOR SUR | F171: 0003-00031389 | G171: 2020-05-18 | H171: US | I171: 25,157.03 | J171: 25,157.03 | K171: 83,345.24 | L171: -1 | M171: POR COBRAR VENCIDOS | N171: 15 DIAS
B172: 2020-04-20 | C172: 121202 | D172: CONDORCO S.R.L. | E172: SECTOR OESTE | F172: 0004-00083441 | G172: 2020-06-15 | H172: MN | I172: 83,994.48 | J172: 24,726.08 | K172: 83,994.48 | L172: 27 | M172: POR COBRAR POR VENCER | N172: 30 DIAS
B173: 2020-02-24 | C173: 121202 | D173: AGF VULCANO S.R.L. | E173: SECTOR SUR | F173: 0003-00057146 | G173: 2020-06-15 | H173: MN | I173: 15,459.56 | J173: 4,674.80 | K173: 15,459.56 | L173: 27 | M173: POR COBRAR POR VENCER | N173: 30 DIAS
B174: 2020-02-17 | C174: 121202 | D174: LA GRANJITA E.I.R.L | E174: SECTOR NORTE | F174: 0002-00095512 | G174: 2020-04-13 | H174: MN | I174: 79,862.86 | J174: 24,011.68 | K174: 79,862.86 | L174: -36 | M174: POR COBRAR VENCIDOS | N174: 45 DIAS
B175: 2020-03-09 | C175: 121201 | D175: ROBERCAR EIRL | E175: SECTOR OESTE | F175: 0004-00050926 | G175: 2020-07-13 | H175: US | I175: 17,366.62 | J175: 17,366.62 | K175: 57,691.91 | L175: 55 | M175: POR COBRAR POR VENCER | N175: 60 DIAS
B176: 2019-09-16 | C176: 121202 | D176: GAS ANTONIO'S SAC | E176: SECTOR SUR | F176: 0003-00007091 | G176: 2019-10-14 | H176: MN | I176: 12,831.12 | J176: 3,884.69 | K176: 12,831.12 | L176: -218 | M176: POR COBRAR VENCIDOS | N176: > 90 DIAS
B177: 2020-02-10 | C177: 121202 | D177: LIDER GRAFICO SRL | E177: SECTOR NORTE | F177: 0002-00035245 | G177: 2020-06-01 | H177: US | I177: 24,563.27 | J177: 24,563.27 | K177: 83,072.98 | L177: 13 | M177: POR COBRAR POR VENCER | N177: 15 DIAS
B178: 2020-04-20 | C178: 121202 | D178: OMNITEC S.R.L. | E178: SECTOR OESTE | F178: 0004-00072864 | G178: 2020-05-18 | H178: US | I178: 111,730.59 | J178: 111,730.59 | K178: 370,275.18 | L178: -1 | M178: POR COBRAR VENCIDOS | N178: 15 DIAS
B179: 2020-02-03 | C179: 121202 | D179: TECNO LASER S.A.C. | E179: SECTOR OESTE | F179: 0004-00033972 | G179: 2020-04-13 | H179: MN | I179: 20,349.21 | J179: 6,129.28 | K179: 20,349.21 | L179: -36 | M179: POR COBRAR VENCIDOS | N179: 45 DIAS
B180: 2020-03-16 | C180: 121202 | D180: PENTAGRAF S.A.C. | E180: SECTOR OESTE | F180: 0004-00057021 | G180: 2020-06-08 | H180: US | I180: 27,309.39 | J180: 27,309.39 | K180: 92,442.29 | L180: 20 | M180: POR COBRAR POR VENCER | N180: 30 DIAS
B181: 2019-11-18 | C181: 121202 | D181: CAO JINGHUI | E181: SECTOR NORTE | F181: 0002-00030203 | G181: 2019-11-18 | H181: MN | I181: 16,251.18 | J181: 4,848.20 | K181: 16,251.18 | L181: -183 | M181: POR COBRAR VENCIDOS | N181: > 90 DIAS
B182: 2020-05-18 | C182: 121201 | D182: LARCO PETS EIRL | E182: SECTOR NORTE | F182: 0002-00063007 | G182: 2020-06-01 | H182: US | I182: 51,754.60 | J182: 51,754.60 | K182: 174,464.76 | L182: 13 | M182: POR COBRAR POR VENCER | N182: 15 DIAS
B183: 2020-03-23 | C183: 121201 | D183: LA GRANJITA E.I.R.L | E183: SECTOR ESTE | F183: 0005-00041092 | G183: 2020-07-13 | H183: US | I183: 20,881.10 | J183: 20,881.10 | K183: 69,889.04 | L183: 55 | M183: POR COBRAR POR VENCER | N183: 60 DIAS
B184: 2020-05-11 | C184: 121202 | D184: CALIGAS S.R.L. | E184: SECTOR SUR | F184: 0003-00063074 | G184: 2020-05-25 | H184: MN | I184: 112,913.93 | J184: 33,475.82 | K184: 112,913.93 | L184: 6 | M184: POR COBRAR POR VENCER | N184: 15 DIAS
B185: 2020-03-23 | C185: 121202 | D185: A.C.D. S.R.L. | E185: SECTOR SUR | F185: 0003-00084439 | G185: 2020-06-15 | H185: US | I185: 75,522.48 | J185: 75,522.48 | K185: 256,096.73 | L185: 27 | M185: POR COBRAR POR VENCER | N185: 30 DIAS
B186: 2020-03-30 | C186: 121202 | D186: PENTAGRAF S.A.C. | E186: SECTOR SUR | F186: 0003-00041998 | G186: 2020-03-30 | H186: MN | I186: 16,051.50 | J186: 4,788.63 | K186: 16,051.50 | L186: -50 | M186: POR COBRAR VENCIDOS | N186: 60 DIAS
B187: 2019-11-18 | C187: 121201 | D187: LA BRETAÐA S.A.C. | E187: SECTOR ESTE | F187: 0005-00014518 | G187: 2019-12-16 | H187: MN | I187: 11,949.96 | J187: 3,518.83 | K187: 11,949.96 | L187: -155 | M187: POR COBRAR VENCIDOS | N187: > 90 DIAS
B188: 2019-09-23 | C188: 121202 | D188: GAS ANTONIO'S SAC | E188: SECTOR SUR | F188: 0003-00003551 | G188: 2019-09-23 | H188: MN | I188: 10,763.65 | J188: 3,173.25 | K188: 10,763.65 | L188: -239 | M188: POR COBRAR VENCIDOS | N188: > 90 DIAS
B189: 2019-12-30 | C189: 121202 | D189: TECNO LASER S.A.C. | E189: SECTOR SUR | F189: 0003-00034445 | G189: 2020-04-06 | H189: MN | I189: 15,286.67 | J189: 4,628.12 | K189: 15,286.67 | L189: -43 | M189: POR COBRAR VENCIDOS | N189: 45 DIAS
B190: 2020-05-18 | C190: 121201 | D190: VICKO Y CO S.A. | E190: SECTOR CENTRO | F190: 0001-00077347 | G190: 2020-08-24 | H190: US | I190: 123,212.21 | J190: 123,212.21 | K190: 418,305.45 | L190: 97 | M190: POR COBRAR POR VENCER | N190: > 90 DIAS
B191: 2020-04-20 | C191: 121201 | D191: LA GRANJITA E.I.R.L | E191: SECTOR NORTE | F191: 0002-00079922 | G191: 2020-07-13 | H191: US | I191: 123,690.48 | J191: 123,690.48 | K191: 411,394.54 | L191: 55 | M191: POR COBRAR POR VENCER | N191: 60 DIAS
B192: 2020-02-24 | C192: 121201 | D192: INGEMEC PERU SAC | E192: SECTOR OESTE | F192: 0004-00053195 | G192: 2020-03-09 | H192: MN | I192: 27,515.37 | J192: 8,262.87 | K192: 27,515.37 | L192: -71 | M192: POR COBRAR VENCIDOS | N192: 75 DIAS
B193: 2020-05-18 | C193: 121202 | D193: TROQPA SAC | E193: SECTOR CENTRO | F193: 0001-00074910 | G193: 2020-06-01 | H193: US | I193: 147,235.10 | J193: 147,235.10 | K193: 495,593.35 | L193: 13 | M193: POR COBRAR POR VENCER | N193: 15 DIAS
B194: 2020-04-27 | C194: 121202 | D194: LA GRANJITA E.I.R.L | E194: SECTOR OESTE | F194: 0004-00051096 | G194: 2020-06-22 | H194: US | I194: 25,866.06 | J194: 25,866.06 | K194: 85,358.00 | L194: 34 | M194: POR COBRAR POR VENCER | N194: 45 DIAS
B195: 2020-01-06 | C195: 121202 | D195: CYPRESS PERU S.A.C. | E195: SECTOR SUR | F195: 0003-00031802 | G195: 2020-05-11 | H195: MN | I195: 15,706.50 | J195: 4,638.66 | K195: 15,706.50 | L195: -8 | M195: POR COBRAR VENCIDOS | N195: 15 DIAS
B196: 2020-01-06 | C196: 121202 | D196: 3E SERVICIOS S.A.C. | E196: SECTOR OESTE | F196: 0004-00010302 | G196: 2020-03-30 | H196: MN | I196: 4,095.59 | J196: 1,233.61 | K196: 4,095.59 | L196: -50 | M196: POR COBRAR VENCIDOS | N196: 60 DIAS
B197: 2020-02-10 | C197: 121201 | D197: ARCPERU S.A.C. | E197: SECTOR ESTE | F197: 0005-00031412 | G197: 2020-04-06 | H197: MN | I197: 20,951.99 | J197: 6,215.36 | K197: 20,951.99 | L197: -43 | M197: POR COBRAR VENCIDOS | N197: 45 DIAS
B198: 2019-12-30 | C198: 121202 | D198: SALVADOR LAZO FIDEL | E198: SECTOR OESTE | F198: 0004-00025363 | G198: 2020-03-09 | H198: US | I198: 624.22 | J198: 624.22 | K198: 2,121.10 | L198: -71 | M198: POR COBRAR VENCIDOS | N198: 75 DIAS
B199: 2019-12-16 | C199: 121202 | D199: LIDER GRAFICO SRL | E199: SECTOR ESTE | F199: 0005-00013497 | G199: 2019-12-16 | H199: MN | I199: 10,030.08 | J199: 3,014.75 | K199: 10,030.08 | L199: -155 | M199: POR COBRAR VENCIDOS | N199: > 90 DIAS
B200: 2019-09-23 | C200: 121201 | D200: FIDUCIARIA GBC S.A. | E200: SECTOR SUR | F200: 0003-00001575 | G200: 2020-01-13 | H200: US | I200: 3,918.74 | J200: 3,918.74 | K200: 13,131.70 | L200: -127 | M200: POR COBRAR VENCIDOS | N200: > 90 DIAS
B201: 2019-11-25 | C201: 121202 | D201: TECNO COLOR S R L | E201: SECTOR ESTE | F201: 0005-00016638 | G201: 2020-03-16 | H201: US | I201: 13,094.94 | J201: 13,094.94 | K201: 43,475.20 | L201: -64 | M201: POR COBRAR VENCIDOS | N201: 75 DIAS
B202: 2020-04-20 | C202: 121201 | D202: L & C SERVIS EIRL | E202: SECTOR CENTRO | F202: 0001-00068176 | G202: 2020-06-29 | H202: MN | I202: 137,843.41 | J202: 41,456.66 | K202: 137,843.41 | L202: 41 | M202: POR COBRAR POR VENCER | N202: 45 DIAS
... 798 more rows

Sheet REPORTE
B1: Reporte de anticuamiento de deuda
B2: MOS - CPC Martín Cruz - +51 998401784 | Excel No Convencional
E4: POR COBRAR VENCIDOS | L4: TOTAL | M4: POR COBRAR POR VENCER | T4: TOTAL | U4: TOTAL GRAL
B6: OR | C6: CLIENTE | D6: SECTOR | E6: > 90 DIAS | F6: 90 DIAS | G6: 75 DIAS | H6: 60 DIAS | I6: 45 DIAS | J6: 30 DIAS | K6: 15 DIAS | M6: =OFFSET($L6,0,-COLUMNS($M$6:M$6)) -> 15 DIAS | N6: =OFFSET($L6,0,-COLUMNS($M$6:N$6)) -> 30 DIAS | O6: =OFFSET($L6,0,-COLUMNS($M$6:O$6)) -> 45 DIAS | P6: =OFFSET($L6,0,-COLUMNS($M$6:P$6)) -> 60 DIAS | Q6: =OFFSET($L6,0,-COLUMNS($M$6:Q$6)) -> 75 DIAS | R6: =OFFSET($L6,0,-COLUMNS($M$6:R$6)) -> 90 DIAS | S6: =OFFSET($L6,0,-COLUMNS($M$6:S$6)) -> > 90 DIAS
B7: =lista01.01 -> 1 | C7: 3E SERVICIOS S.A.C. | D7: SECTOR NORTE | E7: 98,127.14 | F7: 0 | G7: 0 | H7: 0 | I7: 17,618.28 | J7: 24,991.99 | K7: 0 | L7: 140,737.41 | M7: 0 | N7: 0 | O7: 0 | P7: 0 | Q7: 0 | R7: 0 | S7: 0 | T7: 0 | U7: 140,737.41
B8: 2 | C8: A.C.D. S.R.L. | D8: SECTOR SUR | E8: 286,353.98 | F8: 83,694.98 | G8: 0 | H8: 0 | I8: 0 | J8: 202,659.00 | K8: 0 | L8: 572,707.96 | M8: 0 | N8: 75,522.48 | O8: 0 | P8: 15,097.63 | Q8: 0 | R8: 0 | S8: 187,337.31 | T8: 277,957.42 | U8: 850,665.38
B9: 3 | C9: AGF VULCANO S.R.L. | D9: SECTOR CENTRO | E9: 53,774.90 | F9: 0 | G9: 24,891.74 | H9: 0 | I9: 28,883.16 | J9: 0 | K9: 0 | L9: 107,549.80 | M9: 0 | N9: 21,748.65 | O9: 25,736.69 | P9: 0 | Q9: 0 | R9: 55,869.00 | S9: 103,354.34 | T9: 206,708.68 | U9: 314,258.48
B10: 4 | C10: AGRO SELECTO S.A.C. | D10: SECTOR NORTE | E10: 57,750.55 | F10: 0 | G10: 36,515.31 | H10: 0 | I10: 0 | J10: 21,235.24 | K10: 0 | L10: 115,501.10 | M10: 27,212.85 | N10: 0 | O10: 185,415.16 | P10: 0 | Q10: 0 | R10: 0 | S10: 212,628.01 | T10: 425,256.03 | U10: 540,757.13
B11: 5 | C11: ARCPERU S.A.C. | D11: SECTOR ESTE | E11: 55,945.32 | F11: 30,396.34 | G11: 0 | H11: 5,236.89 | I11: 6,215.36 | J11: 0 | K11: 1,271.61 | L11: 99,065.53 | M11: 0 | N11: 14,101.55 | O11: 0 | P11: 0 | Q11: 0 | R11: 0 | S11: 14,101.55 | T11: 28,203.10 | U11: 127,268.63
B12: 6 | C12: ARPE EIRL | D12: SECTOR OESTE | E12: 74,291.67 | F12: 0 | G12: 0 | H12: 0 | I12: 0 | J12: 19,651.07 | K12: 29,000.52 | L12: 122,943.26 | M12: 0 | N12: 0 | O12: 0 | P12: 0 | Q12: 0 | R12: 0 | S12: 0 | T12: 0 | U12: 122,943.26
B13: 7 | C13: ASTRIB S.A.C. | D13: SECTOR NORTE | E13: 26,019.73 | F13: 0 | G13: 0 | H13: 0 | I13: 0 | J13: 0 | K13: 0 | L13: 26,019.73 | M13: 0 | N13: 0 | O13: 0 | P13: 0 | Q13: 0 | R13: 0 | S13: 0 | T13: 0 | U13: 26,019.73
B14: 8 | C14: C. CHINININ S.A.C. | D14: SECTOR NORTE | E14: 63,628.66 | F14: 0 | G14: 0 | H14: 0 | I14: 0 | J14: 0 | K14: 0 | L14: 63,628.66 | M14: 0 | N14: 0 | O14: 0 | P14: 0 | Q14: 0 | R14: 0 | S14: 0 | T14: 0 | U14: 63,628.66
B15: 9 | C15: CALIGAS S.R.L. | D15: SECTOR OESTE | E15: 0 | F15: 0 | G15: 0 | H15: 0 | I15: 0 | J15: 0 | K15: 0 | L15: 0 | M15: 0 | N15: 0 | O15: 0 | P15: 67,925.36 | Q15: 0 | R15: 0 | S15: 67,925.36 | T15: 135,850.71 | U15: 135,850.71
B16: 10 | C16: CAO JINGHUI | D16: SECTOR ESTE | E16: 61,433.14 | F16: 0 | G16: 26,262.96 | H16: 10,180.85 | I16: 0 | J16: 0 | K16: 0 | L16: 97,876.95 | M16: 0 | N16: 0 | O16: 0 | P16: 0 | Q16: 0 | R16: 0 | S16: 0 | T16: 0 | U16: 97,876.95
B17: 11 | C17: CHINANGO S.A.C. | D17: SECTOR NORTE | E17: 19,214.84 | F17: 0 | G17: 0 | H17: 4,708.60 | I17: 0 | J17: 0 | K17: 0 | L17: 23,923.44 | M17: 0 | N17: 1,075.64 | O17: 0 | P17: 0 | Q17: 0 | R17: 0 | S17: 1,075.64 | T17: 2,151.28 | U17: 26,074.72
B18: 12 | C18: CINSA E.I.R.L | D18: SECTOR SUR | E18: 0 | F18: 0 | G18: 0 | H18: 0 | I18: 0 | J18: 0 | K18: 0 | L18: 0 | M18: 0 | N18: 35,658.79 | O18: 0 | P18: 0 | Q18: 17,661.69 | R18: 0 | S18: 53,320.48 | T18: 106,640.95 | U18: 106,640.95
B19: 13 | C19: CONDORCO S.R.L. | D19: SECTOR ESTE | E19: 112,023.76 | F19: 0 | G19: 53,026.68 | H19: 0 | I19: 0 | J19: 0 | K19: 58,997.08 | L19: 224,047.52 | M19: 63,110.71 | N19: 34,942.46 | O19: 130,894.30 | P19: 99,019.52 | Q19: 0 | R19: 0 | S19: 327,966.99 | T19: 655,933.99 | U19: 879,981.50
B20: 14 | C20: CYPRESS PERU S.A.C. | D20: SECTOR OESTE | E20: 58,883.99 | F20: 27,701.64 | G20: 0 | H20: 9,951.19 | I20: 0 | J20: 2,541.68 | K20: 0 | L20: 99,078.50 | M20: 0 | N20: 0 | O20: 0 | P20: 0 | Q20: 0 | R20: 0 | S20: 0 | T20: 0 | U20: 99,078.50
B21: 15 | C21: DIMACAR S.A.C. | D21: SECTOR ESTE | E21: 189,333.08 | F21: 0 | G21: 37,953.04 | H21: 0 | I21: 0 | J21: 0 | K21: 151,380.04 | L21: 378,666.15 | M21: 0 | N21: 0 | O21: 0 | P21: 0 | Q21: 0 | R21: 0 | S21: 0 | T21: 0 | U21: 378,666.15
B22: 16 | C22: DR GAS S.A.C. | D22: SECTOR OESTE | E22: 75,764.79 | F22: 1,440.74 | G22: 1,191.46 | H22: 16,300.23 | I22: 0 | J22: 0 | K22: 4,334.05 | L22: 99,031.27 | M22: 0 | N22: 0 | O22: 0 | P22: 0 | Q22: 0 | R22: 0 | S22: 0 | T22: 0 | U22: 99,031.27
B23: 17 | C23: EL REPOSTERO SAC | D23: SECTOR NORTE | E23: 129,451.75 | F23: 0 | G23: 0 | H23: 0 | I23: 129,451.75 | J23: 0 | K23: 0 | L23: 258,903.50 | M23: 19,711.33 | N23: 22,488.53 | O23: 0 | P23: 0 | Q23: 0 | R23: 15,516.78 | S23: 57,716.64 | T23: 115,433.29 | U23: 374,336.79
B24: 18 | C24: FIDUCIARIA GBC S.A. | D24: SECTOR NORTE | E24: 3,935.98 | F24: 0 | G24: 1,255.80 | H24: 0 | I24: 0 | J24: 0 | K24: 0 | L24: 5,191.78 | M24: 0 | N24: 0 | O24: 0 | P24: 0 | Q24: 0 | R24: 0 | S24: 0 | T24: 0 | U24: 5,191.78
B25: 19 | C25: GAS ANTONIO'S SAC | D25: SECTOR SUR | E25: 55,825.39 | F25: 0 | G25: 0 | H25: 0 | I25: 0 | J25: 0 | K25: 0 | L25: 55,825.39 | M25: 0 | N25: 0 | O25: 0 | P25: 0 | Q25: 0 | R25: 0 | S25: 0 | T25: 0 | U25: 55,825.39
B26: 20 | C26: GRUPO IMPORT EIRL | D26: SECTOR NORTE | E26: 0 | F26: 0 | G26: 0 | H26: 0 | I26: 0 | J26: 0 | K26: 0 | L26: 0 | M26: 0 | N26: 0 | O26: 0 | P26: 0 | Q26: 0 | R26: 0 | S26: 110,503.63 | T26: 110,503.63 | U26: 110,503.63
B27: 21 | C27: ILOP S.A.C. | D27: SECTOR ESTE | E27: 48,275.82 | F27: 22,306.29 | G27: 0 | H27: 0 | I27: 0 | J27: 0 | K27: 0 | L27: 70,582.11 | M27: 0 | N27: 0 | O27: 0 | P27: 0 | Q27: 0 | R27: 0 | S27: 0 | T27: 0 | U27: 70,582.11
B28: 22 | C28: INGEMEC PERU SAC | D28: SECTOR NORTE | E28: 26,035.17 | F28: 0 | G28: 0 | H28: 0 | I28: 0 | J28: 0 | K28: 26,035.17 | L28: 52,070.34 | M28: 27,982.76 | N28: 0 | O28: 26,967.57 | P28: 0 | Q28: 0 | R28: 0 | S28: 54,950.33 | T28: 109,900.66 | U28: 161,970.99
B29: 23 | C29: J.D. PLASTIC S.A.C. | D29: SECTOR ESTE | E29: 83,414.36 | F29: 0 | G29: 0 | H29: 0 | I29: 0 | J29: 24,790.97 | K29: 0 | L29: 108,205.33 | M29: 9,156.17 | N29: 0 | O29: 0 | P29: 0 | Q29: 0 | R29: 0 | S29: 9,156.17 | T29: 18,312.34 | U29: 126,517.67
B30: 24 | C30: JHOSBET E.I.R.L. | D30: SECTOR ESTE | E30: 23,364.52 | F30: 0 | G30: 0 | H30: 23,364.52 | I30: 0 | J30: 0 | K30: 0 | L30: 46,729.04 | M30: 0 | N30: 0 | O30: 91,989.84 | P30: 20,006.90 | Q30: 0 | R30: 0 | S30: 111,996.74 | T30: 223,993.48 | U30: 270,722.52
B31: 25 | C31: KOZUMI PERU S.A. | D31: SECTOR OESTE | E31: 137,922.20 | F31: 107,182.62 | G31: 0 | H31: 0 | I31: 30,739.58 | J31: 0 | K31: 0 | L31: 275,844.40 | M31: 0 | N31: 0 | O31: 59,980.08 | P31: 95,537.45 | Q31: 21,145.65 | R31: 15,446.33 | S31: 192,109.51 | T31: 384,219.02 | U31: 660,063.42
B32: 26 | C32: L & C SERVIS EIRL | D32: SECTOR OESTE | E32: 11,302.81 | F32: 0 | G32: 0 | H32: 11,302.81 | I32: 0 | J32: 0 | K32: 0 | L32: 22,605.62 | M32: 0 | N32: 0 | O32: 26,594.93 | P32: 0 | Q32: 0 | R32: 20,418.67 | S32: 47,013.60 | T32: 94,027.20 | U32: 116,632.82
B33: 27 | C33: LA BRETAÐA S.A.C. | D33: SECTOR NORTE | E33: 87,702.26 | F33: 0 | G33: 12,083.00 | H33: 0 | I33: 0 | J33: 13,270.88 | K33: 0 | L33: 113,056.14 | M33: 0 | N33: 0 | O33: 0 | P33: 0 | Q33: 0 | R33: 0 | S33: 0 | T33: 0 | U33: 113,056.14
B34: 28 | C34: LA GRANJITA E.I.R.L | D34: SECTOR ESTE | E34: 147,183.67 | F34: 0 | G34: 0 | H34: 25,655.41 | I34: 0 | J34: 0 | K34: 121,528.26 | L34: 294,367.35 | M34: 44,912.51 | N34: 0 | O34: 7,127.04 | P34: 20,881.10 | Q34: 118,488.85 | R34: 68,488.40 | S34: 259,897.90 | T34: 519,795.80 | U34: 814,163.14
B35: 29 | C35: LARCO PETS EIRL | D35: SECTOR SUR | E35: 127,013.30 | F35: 0 | G35: 100,809.08 | H35: 26,204.22 | I35: 0 | J35: 0 | K35: 0 | L35: 254,026.59 | M35: 73,239.24 | N35: 15,938.11 | O35: 0 | P35: 0 | Q35: 0 | R35: 75,539.34 | S35: 184,528.58 | T35: 349,245.26 | U35: 603,271.86
B36: 30 | C36: LIDER GRAFICO SRL | D36: SECTOR ESTE | E36: 102,274.02 | F36: 23,922.02 | G36: 20,815.78 | H36: 8,631.11 | I36: 0 | J36: 0 | K36: 0 | L36: 155,642.93 | M36: 8,125.70 | N36: 0 | O36: 0 | P36: 0 | Q36: 0 | R36: 0 | S36: 8,125.70 | T36: 16,251.40 | U36: 171,894.33
B37: 31 | C37: OMNITEC S.R.L. | D37: SECTOR OESTE | E37: 250,177.57 | F37: 118,755.08 | G37: 0 | H37: 0 | I37: 0 | J37: 19,691.90 | K37: 111,730.59 | L37: 500,355.14 | M37: 0 | N37: 134,390.90 | O37: 41,221.16 | P37: 0 | Q37: 0 | R37: 88,928.46 | S37: 272,012.74 | T37: 536,553.26 | U37: 1,036,908.40
B38: 32 | C38: OTUSS S.A.C. | D38: SECTOR SUR | E38: 132,662.60 | F38: 0 | G38: 0 | H38: 86,551.31 | I38: 0 | J38: 17,917.80 | K38: 28,193.48 | L38: 265,325.19 | M38: 0 | N38: 0 | O38: 0 | P38: 0 | Q38: 27,022.67 | R38: 0 | S38: 64,182.96 | T38: 91,205.63 | U38: 356,530.82
B39: 33 | C39: PENTAGRAF S.A.C. | D39: SECTOR SUR | E39: 4,788.63 | F39: 0 | G39: 0 | H39: 4,788.63 | I39: 0 | J39: 0 | K39: 0 | L39: 9,577.27 | M39: 15,545.53 | N39: 0 | O39: 0 | P39: 0 | Q39: 0 | R39: 0 | S39: 137,120.60 | T39: 152,666.13 | U39: 162,243.40
B40: 34 | C40: PLASTIJHIM SRL | D40: SECTOR NORTE | E40: 16,452.26 | F40: 0 | G40: 0 | H40: 0 | I40: 0 | J40: 0 | K40: 0 | L40: 16,452.26 | M40: 0 | N40: 0 | O40: 0 | P40: 0 | Q40: 0 | R40: 0 | S40: 0 | T40: 0 | U40: 16,452.26
B41: 35 | C41: QUIMENSA EIRL | D41: SECTOR NORTE | E41: 25,630.63 | F41: 25,630.63 | G41: 0 | H41: 0 | I41: 0 | J41: 0 | K41: 0 | L41: 51,261.26 | M41: 0 | N41: 0 | O41: 0 | P41: 5,038.21 | Q41: 120,828.03 | R41: 0 | S41: 146,088.60 | T41: 271,954.84 | U41: 323,216.10
B42: 36 | C42: QUISPE NINA AMERICO | D42: SECTOR ESTE | E42: 17,091.18 | F42: 0 | G42: 0 | H42: 0 | I42: 0 | J42: 0 | K42: 16,271.77 | L42: 33,362.95 | M42: 2,870.16 | N42: 0 | O42: 0 | P42: 0 | Q42: 0 | R42: 0 | S42: 2,870.16 | T42: 5,740.31 | U42: 39,103.27
B43: 37 | C43: ROBERCAR EIRL | D43: SECTOR OESTE | E43: 190,621.70 | F43: 0 | G43: 0 | H43: 0 | I43: 0 | J43: 26,751.61 | K43: 163,870.09 | L43: 381,243.40 | M43: 0 | N43: 41,326.21 | O43: 56,988.92 | P43: 68,966.07 | Q43: 0 | R43: 0 | S43: 167,281.21 | T43: 334,562.41 | U43: 715,805.81
B44: 38 | C44: RV CONSULTORES SAC | D44: SECTOR ESTE | E44: 24,959.82 | F44: 0 | G44: 0 | H44: 0 | I44: 0 | J44: 0 | K44: 24,959.82 | L44: 49,919.64 | M44: 21,029.09 | N44: 0 | O44: 0 | P44: 83,320.11 | Q44: 0 | R44: 0 | S44: 128,835.72 | T44: 233,184.92 | U44: 283,104.57
B45: 39 | C45: SALVADOR LAZO FIDEL | D45: SECTOR OESTE | E45: 25,117.89 | F45: 0 | G45: 624.22 | H45: 0 | I45: 0 | J45: 0 | K45: 0 | L45: 25,742.11 | M45: 0 | N45: 0 | O45: 0 | P45: 0 | Q45: 0 | R45: 0 | S45: 0 | T45: 0 | U45: 25,742.11
B46: 40 | C46: SEGURINDUSTRIA SA | D46: SECTOR NORTE | E46: 20,058.23 | F46: 0 | G46: 20,058.23 | H46: 0 | I46: 0 | J46: 0 | K46: 0 | L46: 40,116.47 | M46: 0 | N46: 77,483.60 | O46: 0 | P46: 26,981.23 | Q46: 0 | R46: 0 | S46: 237,216.28 | T46: 341,681.11 | U46: 381,797.58
B47: 41 | C47: SERVICON S.A.C. | D47: SECTOR CENTRO | E47: 60,299.38 | F47: 0 | G47: 0 | H47: 0 | I47: 0 | J47: 0 | K47: 60,299.38 | L47: 120,598.75 | M47: 214,073.78 | N47: 0 | O47: 0 | P47: 0 | Q47: 113,257.83 | R47: 127,799.39 | S47: 455,131.00 | T47: 910,262.00 | U47: 1,030,860.75
